Workbook

Sheet Introduction
B6: BEIS: UK and Global Bioenergy Resource Model
F26: Produced for BEIS by Ricardo Energy & Environment
F27: Version 8.09
F28: 21st Feb 2017
B35: Governance | I35: Disclaimer
D36: Details for latest Model Version | E36: Value
D37: Model Author/Owner: | E37: Judith Bates | I37: This model has been prepared by Ricardo Energy & Environment (Ricardo) for BEIS. No representation, warranty or undertaking (expressed or implied) is made in relation to it. Ricardo and BEIS accept no liability whatsoever to any third party for any loss or damage arising from any interpretation or use of the information contained in this model, or reliance on any views expressed therein.
D38: QA Reviewer: | E38: Simon Gandy
D39: Date of last model review: | E39: 2017-02-02
D40: Senior Responsible Officer (SRO): | E40: Chris Dodwell
D41: Project Manager (PM): | E41: Judith Bates
D42: Project Reference: | E42: ED61134
D43: Client organisation: | E43: BEIS
D44: Client individual(s) (if appropriate): | E44: Peter Coleman
D45: Ricardo QA requirement: | E45: BEIS nBC
D46: Ricardo QA score: | E46: 0.896
D47: QA Result: | E47: PASS

Sheet Get started (hidden)

Sheet Set Scenarios (hidden)
A1: Key scenario assumptions
C4: 1 | D4: Set assumptions for UK supply of biomass
D6: Price level | E6: £4/GJ
D7: Level of barriers overcome | E7: No barriers overcome
D8: Perennial vs annual energy crops | E8: Maximise production annual energy crops
D9: When annual crops maximised | E9: Maximise production of crops for liquid biofuels
D11: If 'Set for feedstocks individually' chosen above then set level of barriers overcome for each feedstock individually below
D13: Solid biomass and biogas
D14: UK perennial energy crops
D15: Dry agricultural residue
D16: Forestry residues
D17: Stemwood
D18: Short rotation forestry
D19: Sawmill co-products
D20: Arboricultural arisings
D21: Waste wood
D22: Renewable fraction of wastes
D23: Biogas from food waste
D24: Landfill gas
D25: Biogas from sewage sludge
D26: Biogas from livestock manures
D27: Biogas from crops
D29: 1G biofuels
D30: Bioethanol from crops
D31: Biodiesel from crops
D32: Biodiesel from UCO
D33: Biodiesel from tallow
C35: 2 | D35: Set assumptions for global supply of biomass
D37: Global scenario | E37: BAU/continuing trends
D38: Global bioenergy demand | E38: BAU (including new policies)
D39: Land based crops | E39: Maximise production annual energy crops
C41: 3 | D41: Set assumptions for fraction of global 'surplus' of bioenergy UK can acquire
D43: Fraction of global bioenergy 'surplus' which the UK can acquire
E44: 2015 | F44: 2020 | G44: 2025 | H44: 2030 | I44: 2035 | J44: 2040 | K44: 2045 | L44: 2050
D45: Agricultural Residues | E45: 0.1 | F45: 0.1 | G45: 0.09 | H45: 0.07 | I45: 0.06 | J45: 0.05 | K45: 0.03 | L45: 0.02
D46: Woody Biomass | E46: 0.1 | F46: 0.1 | G46: 0.09 | H46: 0.07 | I46: 0.06 | J46: 0.05 | K46: 0.03 | L46: 0.02
D47: 1G - Bioethanol | E47: 0.1 | F47: 0.1 | G47: 0.09 | H47: 0.07 | I47: 0.06 | J47: 0.05 | K47: 0.03 | L47: 0.02
D48: 1G - Biodiesel | E48: 0.1 | F48: 0.1 | G48: 0.09 | H48: 0.07 | I48: 0.06 | J48: 0.05 | K48: 0.03 | L48: 0.02
C51: 4 | D51: Go to scenario results to see estimated supply of biomass to UK under above conditions
C53: Note
C54: 1) Other data sets and assumptions may be altered by the user on the appropriate input data pages
C55: 2) The sustainability criteria applied to solid and gaseous biofuels depend on the assumed end use of the feedstocks. This can be set on the 'Assumed end use' sheet

Sheet Set other key assumptions (hidden)
A1: Other input assumptions for model which user can set
A3: This sheet contains some of the key assumptions which the general model user can alter. More detailed assumptions can be viewed on the input worksheets (whose tabs are colour coded yellow). Changes to these more detailed assumptions may only be made by advanced model users.
A5: Sustainability criteria
C7: Sustainability criteria for biofuels and bioliquids | E7: Applied
C8: Sustainability criteria for solid biomass and gaseous biofuels | E8: Applied
C9: Distribution for GHG emissions associated with biomass | E9: Central
C11: Energy vector | D11: Sustainability Criteria | E11: Unit | F11: 2015 | G11: 2020 | H11: 2025 | I11: 2030 | J11: 2035 | K11: 2040 | L11: 2045 | M11: 2050
C12: Electricity | D12: Fossil fuel comparator | E12: kg CO2/MWh | F12: 712.8 | G12: 712.8 | H12: 712.8 | I12: 712.8 | J12: 712.8 | K12: 712.8 | L12: 712.8 | M12: 712.8
D13: % saving required | E13: % | F13: 0.6 | G13: 0.6 | H13: 0.6 | I13: 0.6 | J13: 0.6 | K13: 0.6 | L13: 0.6 | M13: 0.6
C14: Heat | D14: Fossil fuel comparator | E14: kg CO2/MWh | F14: 313.2 | G14: 313.2 | H14: 313.2 | I14: 313.2 | J14: 313.2 | K14: 313.2 | L14: 313.2 | M14: 313.2
D15: % saving required | E15: % | F15: 0.6 | G15: 0.6 | H15: 0.6 | I15: 0.6 | J15: 0.6 | K15: 0.6 | L15: 0.6 | M15: 0.6
C16: Biomethane | D16: Fossil fuel comparator | E16: kg CO2/MWh | F16: 313.2 | G16: 313.2 | H16: 313.2 | I16: 313.2 | J16: 313.2 | K16: 313.2 | L16: 313.2 | M16: 313.2
D17: % saving required | E17: % | F17: 0.6 | G17: 0.6 | H17: 0.6 | I17: 0.6 | J17: 0.6 | K17: 0.6 | L17: 0.6 | M17: 0.6
C18: Liquid biofuel | D18: Fossil fuel comparator | E18: g CO2/MJ | F18: 83.8 | G18: 83.8 | H18: 83.8 | I18: 83.8 | J18: 83.8 | K18: 83.8 | L18: 83.8 | M18: 83.8
D19: % saving required | E19: % | F19: 0.35 | G19: 0.5 | H19: 0.5 | I19: 0.5 | J19: 0.5 | K19: 0.55 | L19: 0.6 | M19: 0.6 | O19: Note: GHG criteria for new plant constructed from 2018 onwards is 60% so criteria gradually increased to this
D21: Conversion Technology Efficiencies | E21: Comparator | F21: 2015 | G21: 2020 | H21: 2025 | I21: 2030 | J21: 2035 | K21: 2040 | L21: 2045 | M21: 2050
D22: Co-firing | E22: Electricity | F22: 0.36 | G22: 0.36 | H22: 0.36 | I22: 0.36 | J22: 0.36 | K22: 0.36 | L22: 0.36 | M22: 0.36
D23: Dedicated Biomass | E23: Electricity | F23: 0.25 | G23: 0.25 | H23: 0.25 | I23: 0.25 | J23: 0.25 | K23: 0.25 | L23: 0.25 | M23: 0.25
D24: Advanced Conversion Technology | E24: Electricity | F24: 0.35 | G24: 0.35 | H24: 0.35 | I24: 0.35 | J24: 0.35 | K24: 0.35 | L24: 0.35 | M24: 0.35
D25: Dedicated Biomass with CHP | E25: Electricity | F25: =0.3/(0.3+0.3546*0.4) -> 0.6789788159 | G25: 0.6789788159 | H25: 0.6789788159 | I25: 0.6789788159 | J25: 0.6789788159 | K25: 0.6789788159 | L25: 0.6789788159 | M25: 0.6789788159
D26: Boiler for heat | E26: Heat | F26: 0.85 | G26: 0.85 | H26: 0.85 | I26: 0.85 | J26: 0.85 | K26: 0.85 | L26: 0.85 | M26: 0.85
D27: Biogas grid injection | E27: Biomethane | F27: 0.99 | G27: 0.99 | H27: 0.99 | I27: 0.99 | J27: 0.99 | K27: 0.99 | L27: 0.99 | M27: 0.99
D28: Biogas for electricity | E28: Electricity | F28: 0.36 | G28: 0.36 | H28: 0.36 | I28: 0.36 | J28: 0.36 | K28: 0.36 | L28: 0.36 | M28: 0.36
D29: 1G biofuels | E29: Liquid biofuel | F29: 1 | G29: 1 | H29: 1 | I29: 1 | J29: 1 | K29: 1 | L29: 1 | M29: 1
D30: Advanced biofuels | E30: Liquid biofuel | F30: 0.4545454545 | G30: 0.4545454545 | H30: 0.4545454545 | I30: 0.4545454545 | J30: 0.4545454545 | K30: 0.4545454545 | L30: 0.4545454545 | M30: 0.4545454545
A32: Assumptions about end use of feedstocks
D34: Assumed end use
C35: Feedstock resource (UK unless specified as international) | D35: Co-firing | F35: Dedicated Biomass | H35: Advanced Conversion Technology | J35: Dedicated Biomass with CHP | L35: Boiler for heat | N35: Advanced biofuels | O35: Biogas grid injection | P35: Biogas for electricity | Q35: Liquid biofuel or vehicle fuel | S35: Total allocated | T35: Error check
D36: as chips or bales | E36: as pellets | F36: as chips or bales | G36: as pellets | H36: as chips or bales | I36: as pellets | J36: as chips or bales | K36: as pellets | L36: as chips or bales | M36: as pellets
C37: UK perennial energy crops | D37: 1 | F37: 0 | H37: 0 | J37: 0 | L37: 0 | N37: 0 | S37: =SUM(D37:Q37) -> 1 | T37: =IF(S37=1,"OK","ERROR - End uses of resource does not equal 100%") -> OK
C38: Dry agricultural residues | D38: 1 | F38: 0 | H38: 0 | J38: 0 | L38: 0 | N38: 0 | S38: 1 | T38: OK
C39: Forestry residues | D39: 1 | F39: 0 | H39: 0 | J39: 0 | L39: 0 | N39: 0 | S39: 1 | T39: OK
C40: Stemwood | D40: 1 | F40: 0 | H40: 0 | J40: 0 | L40: 0 | N40: 0 | S40: 1 | T40: OK
C41: Short rotation forestry | D41: 1 | F41: 0 | H41: 0 | J41: 0 | L41: 0 | N41: 0 | S41: 1 | T41: OK
C42: Sawmill co-products | E42: 1 | G42: 0 | I42: 0 | K42: 0 | M42: 0 | N42: 0 | S42: 1 | T42: OK
C43: Arboricultural arisings | D43: 1 | F43: 0 | H43: 0 | J43: 0 | L43: 0 | N43: 0 | S43: 1 | T43: OK
C44: Waste wood | D44: 1 | F44: 0 | H44: 0 | J44: 0 | L44: 0 | N44: 0 | S44: 1 | T44: OK
C45: Renewable fraction of wastes | D45: 1 | F45: 0 | H45: 0 | J45: 0 | L45: 0 | N45: 0 | S45: 1 | T45: OK
C46: International agricultural residues | D46: 1 | F46: 0 | H46: 0 | J46: 0 | L46: 0 | N46: 0 | S46: 1 | T46: OK
C47: International woody biomass | D47: 1 | F47: 0 | H47: 0 | J47: 0 | L47: 0 | N47: 0 | S47: 1 | T47: OK
L48: As biogas
C49: Biogas from food waste | L49: 0 | O49: 0.5 | P49: 0.5 | Q49: 0 | S49: =SUM(D49:Q49) -> 1 | T49: =IF(S49=1,"OK","ERROR - End uses of resource does not equal 100%") -> OK
C50: Landfill gas | L50: 0 | O50: 0.5 | P50: 0.4 | Q50: 0.1 | S50: =SUM(D50:Q50) -> 1 | T50: =IF(S50=1,"OK","ERROR - End uses of resource does not equal 100%") -> OK
C51: Biogas from sewage sludge | L51: 0 | O51: 0.5 | P51: 0.5 | Q51: 0 | S51: =SUM(D51:Q51) -> 1 | T51: =IF(S51=1,"OK","ERROR - End uses of resource does not equal 100%") -> OK
C52: Biogas from livestock manures | L52: 0 | O52: 0.5 | P52: 0.5 | Q52: 0 | S52: =SUM(D52:Q52) -> 1 | T52: =IF(S52=1,"OK","ERROR - End uses of resource does not equal 100%") -> OK
C53: Biogas from crops | L53: 0 | O53: 0.7 | P53: 0.3 | Q53: 0 | S53: =SUM(D53:Q53) -> 1 | T53: =IF(S53=1,"OK","ERROR - End uses of resource does not equal 100%") -> OK
A56: Assumptions for international production of perennial energy crops
C58: Use of abandoned pasture land
C60: Percentage of abandoned pasture (rest) land available for use for growing bioenergy crops | H60: 0
C63: Future yield increases for perennial energy crops
C65: Scenario | G65: Annual yield increase
C67: =Scenario_A -> BAU/continuing trends | G67: 0.013
C68: =Scenario_B -> High investment/globalisation | G68: 0.015
C69: =Scenario_C -> Low investment/regionalisation | G69: 0.01
C71: Rate at which energy crop plantations can expand
E73: Annual growth rate in new area planted each year
E75: =Scenario_A -> BAU/continuing trends | F75: =Scenario_B -> High investment/globalisation | G75: =Scenario_C -> Low investment/regionalisation
C77: Region
C78: Canada | E78: 0.2 | F78: 0.2 | G78: 0.2
C79: USA | E79: 0.2 | F79: 0.2 | G79: 0.2
C80: Central America | E80: 0.1 | F80: 0.2 | G80: 0.08
C81: South America | E81: 0.1 | F81: 0.2 | G81: 0.03
C82: North Africa | E82: 0.05 | F82: 0.2 | G82: 0.02
C83: West Africa | E83: 0.05 | F83: 0.2 | G83: 0.02
C84: East Africa | E84: 0.05 | F84: 0.2 | G84: 0.02
C85: South Africa | E85: 0.05 | F85: 0.2 | G85: 0.02
C86: Western Europe | E86: 0.05 | F86: 0.2 | G86: 0.02
C87: East Europe | E87: 0.2 | F87: 0.2 | G87: 0.2
C88: Former USSR | E88: 0.1 | F88: 0.2 | G88: 0.02
C89: Middle East | E89: 0.1 | F89: 0.2 | G89: 0.08
C90: South Asia | E90: 0.05 | F90: 0.2 | G90: 0.02
C91: East Asia | E91: 0.1 | F91: 0.2 | G91: 0.08
C92: South East Asia | E92: 0.1 | F92: 0.2 | G92: 0.08
C93: Oceania | E93: 0.2 | F93: 0.2 | G93: 0.2
C94: Japan | E94: 0.2 | F94: 0.2 | G94: 0.2

Sheet Scenario Results (PJ) (hidden)
C1: Scenario Results | D1: Model version | E1: =Introduction!$F$27 -> Version 8.09 | G1: Date of model version | I1: =Introduction!$F$28 -> 21st Feb 2017
C3: Scenario parameters chosen
C4: UK | H4: International
C5: Price Scenario | D5: Level of barriers overcome | E5: Land Based Crops | F5: Annual crop production which is maximised | H5: Land based crops | I5: Global scenario | J5: Global bioenergy demand
C6: ='Set Scenarios'!E6 -> £4/GJ | D6: ='Set Scenarios'!E7 -> No barriers overcome | E6: ='Set Scenarios'!E8 -> Maximise production annual energy crops | F6: =IF('Set Scenarios'!$E$8=Lists!$O$12,"n/a",'Set Scenarios'!$E$9) -> Maximise production of crops for liquid biofuels | H6: ='Set Scenarios'!E39 -> Maximise production annual energy crops | I6: ='Set Scenarios'!E37 -> BAU/continuing trends | J6: ='Set Scenarios'!E38 -> BAU (including new policies)
C8: GHG Sustainability Criteria Applied
C9: Biofuels and bioliquids | D9: Solid and gaseous biomass | E9: Distribution used for GHG emissions
C10: ='Sustainability data'!$C$29 -> Applied | D10: ='Sustainability data'!$C$30 -> Applied | E10: ='Sustainability data'!$C$32 -> Central
C13: Summary Results
C15: Total potential bioenergy resource available to UK | D15: 2015 | E15: 2020 | F15: 2025 | G15: 2030 | H15: 2035 | I15: 2040 | J15: 2045 | K15: 2050
D16: PJ | E16: PJ | F16: PJ | G16: PJ | H16: PJ | I16: PJ | J16: PJ | K16: PJ
C17: UK solid biomass | D17: =D69 -> 111.5858052 | E17: =E69 -> 179.0437967 | F17: 180.0095263 | G17: 206.3651455 | H17: 249.4621709 | I17: 309.2021369 | J17: 332.1467441 | K17: 358.5149458
C18: UK biogas | D18: =D75 -> 69.83643287 | E18: =E75 -> 66.94452784 | F18: 66.13803296 | G18: 68.90315892 | H18: 70.26608808 | I18: 71.46038806 | J18: 69.12157079 | K18: 70.32857639
C19: UK liquid biofuels | D19: =D80 -> 13.840212 | E19: =E80 -> 13.5412 | F19: 15.14019658 | G19: 16.3497799 | H19: 16.61856117 | I19: 16.190553 | J19: 13.24241081 | K19: 10.554678
C20: International solid biomass | D20: =D87 -> 867.679158 | E20: =E87 -> 908.6995667 | F20: 855.4909198 | G20: 679.0853795 | H20: 495.6943219 | I20: 377.9628297 | J20: 214.2721342 | K20: 134.8824679
C21: International liquid biofuels (1G) | D21: =D90 -> 72.67031484 | E21: =E90 -> 114.6148487 | F21: 101.9270346 | G21: 86.49818358 | H21: 75.26686391 | I21: 62.97215336 | J21: 35.41877485 | K21: 24.57129488
C22: Total | D22: =SUM(D17:D21) -> 1135.611923 | E22: 1282.84394 | F22: 1218.70571 | G22: 1057.201647 | H22: 907.308006 | I22: 837.788061 | J22: 664.2016348 | K22: 598.851963
C56: Detailed Results
D57: Total Biomass availability PJ
C58: Potential UK Resource | D58: 2015 | E58: 2020 | F58: 2025 | G58: 2030 | H58: 2035 | I58: 2040 | J58: 2045 | K58: 2050 | M58: LOOK UP FOR DETAILED RESULTS _ DO NOT DELETE
D59: PJ | E59: PJ | F59: PJ | G59: PJ | H59: PJ | I59: PJ | J59: PJ | K59: PJ
C60: =Lists!F13 -> UK perennial energy crops | D60: =INDEX(INDIRECT(Lists!$M$5&"_"&IF(Lists!$T$3="Set for feedstocks individually",Lists!$S22,Lists!$T$3)&"_"&"EnergyCrops"),MATCH($M60,UK_solid_gaseous_feedstocks,0),MATCH(D$58,Years,0))*VLOOKUP($C60,Pass_rates_solid_gaseous,MATCH(D$58,Years,0)+1,0) -> 1.7202 | E60: =INDEX(INDIRECT(Lists!$M$5&"_"&IF(Lists!$T$3="Set for feedstocks individually",Lists!$S22,Lists!$T$3)&"_"&"EnergyCrops"),MATCH($M60,UK_solid_gaseous_feedstocks,0),MATCH(E$58,Years,0))*VLOOKUP($C60,Pass_rates_solid_gaseous,MATCH(E$58,Years,0)+1,0) -> 0.7850197555 | F60: =INDEX(INDIRECT(Lists!$M$5&"_"&IF(Lists!$T$3="Set for feedstocks individually",Lists!$S22,Lists!$T$3)&"_"&"EnergyCrops"),MATCH($M60,UK_solid_gaseous_feedstocks,0),MATCH(F$58,Years,0))*VLOOKUP($C60,Pass_rates_solid_gaseous,MATCH(F$58,Years,0)+1,0) -> 6.034608 | G60: =INDEX(INDIRECT(Lists!$M$5&"_"&IF(Lists!$T$3="Set for feedstocks individually",Lists!$S22,Lists!$T$3)&"_"&"EnergyCrops"),MATCH($M60,UK_solid_gaseous_feedstocks,0),MATCH(G$58,Years,0))*VLOOKUP($C60,Pass_rates_solid_gaseous,MATCH(G$58,Years,0)+1,0) -> 22.940148 | H60: =INDEX(INDIRECT(Lists!$M$5&"_"&IF(Lists!$T$3="Set for feedstocks individually",Lists!$S22,Lists!$T$3)&"_"&"EnergyCrops"),MATCH($M60,UK_solid_gaseous_feedstocks,0),MATCH(H$58,Years,0))*VLOOKUP($C60,Pass_rates_solid_gaseous,MATCH(H$58,Years,0)+1,0) -> 44.97895237 | I60: =INDEX(INDIRECT(Lists!$M$5&"_"&IF(Lists!$T$3="Set for feedstocks individually",Lists!$S22,Lists!$T$3)&"_"&"EnergyCrops"),MATCH($M60,UK_solid_gaseous_feedstocks,0),MATCH(I$58,Years,0))*VLOOKUP($C60,Pass_rates_solid_gaseous,MATCH(I$58,Years,0)+1,0) -> 73.618704 | J60: =INDEX(INDIRECT(Lists!$M$5&"_"&IF(Lists!$T$3="Set for feedstocks individually",Lists!$S22,Lists!$T$3)&"_"&"EnergyCrops"),MATCH($M60,UK_solid_gaseous_feedstocks,0),MATCH(J$58,Years,0))*VLOOKUP($C60,Pass_rates_solid_gaseous,MATCH(J$58,Years,0)+1,0) -> 90.89953125 | K60: =INDEX(INDIRECT(Lists!$M$5&"_"&IF(Lists!$T$3="Set for feedstocks individually",Lists!$S22,Lists!$T$3)&"_"&"EnergyCrops"),MATCH($M60,UK_solid_gaseous_feedstocks,0),MATCH(K$58,Years,0))*VLOOKUP($C60,Pass_rates_solid_gaseous,MATCH(K$58,Years,0)+1,0) -> 110.6784 | M60: =IF(Lists!$O$5="Max_EC","Energy_Crops_Max","Energy_Crops_Min") -> Energy_Crops_Min
C61: =Lists!F14 -> Dry agricultural residues | D61: =INDEX(INDIRECT(Lists!$M$5&"_"&IF(Lists!$T$3="Set for feedstocks individually",Lists!$S23,Lists!$T$3)&"_"&"EnergyCrops"),MATCH($M61,UK_solid_gaseous_feedstocks,0),MATCH(D$58,Years,0))*VLOOKUP($C61,Pass_rates_solid_gaseous,MATCH(D$58,Years,0)+1,0) -> 44.574 | E61: =INDEX(INDIRECT(Lists!$M$5&"_"&IF(Lists!$T$3="Set for feedstocks individually",Lists!$S23,Lists!$T$3)&"_"&"EnergyCrops"),MATCH($M61,UK_solid_gaseous_feedstocks,0),MATCH(E$58,Years,0))*VLOOKUP($C61,Pass_rates_solid_gaseous,MATCH(E$58,Years,0)+1,0) -> 61.047 | F61: =INDEX(INDIRECT(Lists!$M$5&"_"&IF(Lists!$T$3="Set for feedstocks individually",Lists!$S23,Lists!$T$3)&"_"&"EnergyCrops"),MATCH($M61,UK_solid_gaseous_feedstocks,0),MATCH(F$58,Years,0))*VLOOKUP($C61,Pass_rates_solid_gaseous,MATCH(F$58,Years,0)+1,0) -> 63.4695 | G61: =INDEX(INDIRECT(Lists!$M$5&"_"&IF(Lists!$T$3="Set for feedstocks individually",Lists!$S23,Lists!$T$3)&"_"&"EnergyCrops"),MATCH($M61,UK_solid_gaseous_feedstocks,0),MATCH(G$58,Years,0))*VLOOKUP($C61,Pass_rates_solid_gaseous,MATCH(G$58,Years,0)+1,0) -> 65.892 | H61: =INDEX(INDIRECT(Lists!$M$5&"_"&IF(Lists!$T$3="Set for feedstocks individually",Lists!$S23,Lists!$T$3)&"_"&"EnergyCrops"),MATCH($M61,UK_solid_gaseous_feedstocks,0),MATCH(H$58,Years,0))*VLOOKUP($C61,Pass_rates_solid_gaseous,MATCH(H$58,Years,0)+1,0) -> 81.396 | I61: =INDEX(INDIRECT(Lists!$M$5&"_"&IF(Lists!$T$3="Set for feedstocks individually",Lists!$S23,Lists!$T$3)&"_"&"EnergyCrops"),MATCH($M61,UK_solid_gaseous_feedstocks,0),MATCH(I$58,Years,0))*VLOOKUP($C61,Pass_rates_solid_gaseous,MATCH(I$58,Years,0)+1,0) -> 96.9 | J61: =INDEX(INDIRECT(Lists!$M$5&"_"&IF(Lists!$T$3="Set for feedstocks individually",Lists!$S23,Lists!$T$3)&"_"&"EnergyCrops"),MATCH($M61,UK_solid_gaseous_feedstocks,0),MATCH(J$58,Years,0))*VLOOKUP($C61,Pass_rates_solid_gaseous,MATCH(J$58,Years,0)+1,0) -> 96.9 | K61: =INDEX(INDIRECT(Lists!$M$5&"_"&IF(Lists!$T$3="Set for feedstocks individually",Lists!$S23,Lists!$T$3)&"_"&"EnergyCrops"),MATCH($M61,UK_solid_gaseous_feedstocks,0),MATCH(K$58,Years,0))*VLOOKUP($C61,Pass_rates_solid_gaseous,MATCH(K$58,Years,0)+1,0) -> 96.9 | M61: Dry_Agr_Res
C62: =Lists!F15 -> Forestry residues | D62: =INDEX(INDIRECT(Lists!$M$5&"_"&IF(Lists!$T$3="Set for feedstocks individually",Lists!$S24,Lists!$T$3)&"_"&"EnergyCrops"),MATCH($M62,UK_solid_gaseous_feedstocks,0),MATCH(D$58,Years,0))*VLOOKUP($C62,Pass_rates_solid_gaseous,MATCH(D$58,Years,0)+1,0) -> 0.1159 | E62: =INDEX(INDIRECT(Lists!$M$5&"_"&IF(Lists!$T$3="Set for feedstocks individually",Lists!$S24,Lists!$T$3)&"_"&"EnergyCrops"),MATCH($M62,UK_solid_gaseous_feedstocks,0),MATCH(E$58,Years,0))*VLOOKUP($C62,Pass_rates_solid_gaseous,MATCH(E$58,Years,0)+1,0) -> 0.2394 | F62: =INDEX(INDIRECT(Lists!$M$5&"_"&IF(Lists!$T$3="Set for feedstocks individually",Lists!$S24,Lists!$T$3)&"_"&"EnergyCrops"),MATCH($M62,UK_solid_gaseous_feedstocks,0),MATCH(F$58,Years,0))*VLOOKUP($C62,Pass_rates_solid_gaseous,MATCH(F$58,Years,0)+1,0) -> 0.988 | G62: =INDEX(INDIRECT(Lists!$M$5&"_"&IF(Lists!$T$3="Set for feedstocks individually",Lists!$S24,Lists!$T$3)&"_"&"EnergyCrops"),MATCH($M62,UK_solid_gaseous_feedstocks,0),MATCH(G$58,Years,0))*VLOOKUP($C62,Pass_rates_solid_gaseous,MATCH(G$58,Years,0)+1,0) -> 1.6549 | H62: =INDEX(INDIRECT(Lists!$M$5&"_"&IF(Lists!$T$3="Set for feedstocks individually",Lists!$S24,Lists!$T$3)&"_"&"EnergyCrops"),MATCH($M62,UK_solid_gaseous_feedstocks,0),MATCH(H$58,Years,0))*VLOOKUP($C62,Pass_rates_solid_gaseous,MATCH(H$58,Years,0)+1,0) -> 1.5067 | I62: =INDEX(INDIRECT(Lists!$M$5&"_"&IF(Lists!$T$3="Set for feedstocks individually",Lists!$S24,Lists!$T$3)&"_"&"EnergyCrops"),MATCH($M62,UK_solid_gaseous_feedstocks,0),MATCH(I$58,Years,0))*VLOOKUP($C62,Pass_rates_solid_gaseous,MATCH(I$58,Years,0)+1,0) -> 1.8278 | J62: =INDEX(INDIRECT(Lists!$M$5&"_"&IF(Lists!$T$3="Set for feedstocks individually",Lists!$S24,Lists!$T$3)&"_"&"EnergyCrops"),MATCH($M62,UK_solid_gaseous_feedstocks,0),MATCH(J$58,Years,0))*VLOOKUP($C62,Pass_rates_solid_gaseous,MATCH(J$58,Years,0)+1,0) -> 2.0007 | K62: =INDEX(INDIRECT(Lists!$M$5&"_"&IF(Lists!$T$3="Set for feedstocks individually",Lists!$S24,Lists!$T$3)&"_"&"EnergyCrops"),MATCH($M62,UK_solid_gaseous_feedstocks,0),MATCH(K$58,Years,0))*VLOOKUP($C62,Pass_rates_solid_gaseous,MATCH(K$58,Years,0)+1,0) -> 1.4079 | M62: Forestry_Residue
C63: =Lists!F16 -> Stemwood | D63: =INDEX(INDIRECT(Lists!$M$5&"_"&IF(Lists!$T$3="Set for feedstocks individually",Lists!$S25,Lists!$T$3)&"_"&"EnergyCrops"),MATCH($M63,UK_solid_gaseous_feedstocks,0),MATCH(D$58,Years,0))*VLOOKUP($C63,Pass_rates_solid_gaseous,MATCH(D$58,Years,0)+1,0) -> 0 | E63: =INDEX(INDIRECT(Lists!$M$5&"_"&IF(Lists!$T$3="Set for feedstocks individually",Lists!$S25,Lists!$T$3)&"_"&"EnergyCrops"),MATCH($M63,UK_solid_gaseous_feedstocks,0),MATCH(E$58,Years,0))*VLOOKUP($C63,Pass_rates_solid_gaseous,MATCH(E$58,Years,0)+1,0) -> 0 | F63: =INDEX(INDIRECT(Lists!$M$5&"_"&IF(Lists!$T$3="Set for feedstocks individually",Lists!$S25,Lists!$T$3)&"_"&"EnergyCrops"),MATCH($M63,UK_solid_gaseous_feedstocks,0),MATCH(F$58,Years,0))*VLOOKUP($C63,Pass_rates_solid_gaseous,MATCH(F$58,Years,0)+1,0) -> 0 | G63: =INDEX(INDIRECT(Lists!$M$5&"_"&IF(Lists!$T$3="Set for feedstocks individually",Lists!$S25,Lists!$T$3)&"_"&"EnergyCrops"),MATCH($M63,UK_solid_gaseous_feedstocks,0),MATCH(G$58,Years,0))*VLOOKUP($C63,Pass_rates_solid_gaseous,MATCH(G$58,Years,0)+1,0) -> 0.4788 | H63: =INDEX(INDIRECT(Lists!$M$5&"_"&IF(Lists!$T$3="Set for feedstocks individually",Lists!$S25,Lists!$T$3)&"_"&"EnergyCrops"),MATCH($M63,UK_solid_gaseous_feedstocks,0),MATCH(H$58,Years,0))*VLOOKUP($C63,Pass_rates_solid_gaseous,MATCH(H$58,Years,0)+1,0) -> 0.3933 | I63: =INDEX(INDIRECT(Lists!$M$5&"_"&IF(Lists!$T$3="Set for feedstocks individually",Lists!$S25,Lists!$T$3)&"_"&"EnergyCrops"),MATCH($M63,UK_solid_gaseous_feedstocks,0),MATCH(I$58,Years,0))*VLOOKUP($C63,Pass_rates_solid_gaseous,MATCH(I$58,Years,0)+1,0) -> 0.5225 | J63: =INDEX(INDIRECT(Lists!$M$5&"_"&IF(Lists!$T$3="Set for feedstocks individually",Lists!$S25,Lists!$T$3)&"_"&"EnergyCrops"),MATCH($M63,UK_solid_gaseous_feedstocks,0),MATCH(J$58,Years,0))*VLOOKUP($C63,Pass_rates_solid_gaseous,MATCH(J$58,Years,0)+1,0) -> 0.4845 | K63: =INDEX(INDIRECT(Lists!$M$5&"_"&IF(Lists!$T$3="Set for feedstocks individually",Lists!$S25,Lists!$T$3)&"_"&"EnergyCrops"),MATCH($M63,UK_solid_gaseous_feedstocks,0),MATCH(K$58,Years,0))*VLOOKUP($C63,Pass_rates_solid_gaseous,MATCH(K$58,Years,0)+1,0) -> 0 | M63: SRW
C64: =Lists!F17 -> Short rotation forestry | D64: =INDEX(INDIRECT(Lists!$M$5&"_"&IF(Lists!$T$3="Set for feedstocks individually",Lists!$S26,Lists!$T$3)&"_"&"EnergyCrops"),MATCH($M64,UK_solid_gaseous_feedstocks,0),MATCH(D$58,Years,0))*VLOOKUP($C64,Pass_rates_solid_gaseous,MATCH(D$58,Years,0)+1,0) -> 0 | E64: =INDEX(INDIRECT(Lists!$M$5&"_"&IF(Lists!$T$3="Set for feedstocks individually",Lists!$S26,Lists!$T$3)&"_"&"EnergyCrops"),MATCH($M64,UK_solid_gaseous_feedstocks,0),MATCH(E$58,Years,0))*VLOOKUP($C64,Pass_rates_solid_gaseous,MATCH(E$58,Years,0)+1,0) -> 0 | F64: =INDEX(INDIRECT(Lists!$M$5&"_"&IF(Lists!$T$3="Set for feedstocks individually",Lists!$S26,Lists!$T$3)&"_"&"EnergyCrops"),MATCH($M64,UK_solid_gaseous_feedstocks,0),MATCH(F$58,Years,0))*VLOOKUP($C64,Pass_rates_solid_gaseous,MATCH(F$58,Years,0)+1,0) -> 0 | G64: =INDEX(INDIRECT(Lists!$M$5&"_"&IF(Lists!$T$3="Set for feedstocks individually",Lists!$S26,Lists!$T$3)&"_"&"EnergyCrops"),MATCH($M64,UK_solid_gaseous_feedstocks,0),MATCH(G$58,Years,0))*VLOOKUP($C64,Pass_rates_solid_gaseous,MATCH(G$58,Years,0)+1,0) -> 0 | H64: =INDEX(INDIRECT(Lists!$M$5&"_"&IF(Lists!$T$3="Set for feedstocks individually",Lists!$S26,Lists!$T$3)&"_"&"EnergyCrops"),MATCH($M64,UK_solid_gaseous_feedstocks,0),MATCH(H$58,Years,0))*VLOOKUP($C64,Pass_rates_solid_gaseous,MATCH(H$58,Years,0)+1,0) -> 0.8379 | I64: =INDEX(INDIRECT(Lists!$M$5&"_"&IF(Lists!$T$3="Set for feedstocks individually",Lists!$S26,Lists!$T$3)&"_"&"EnergyCrops"),MATCH($M64,UK_solid_gaseous_feedstocks,0),MATCH(I$58,Years,0))*VLOOKUP($C64,Pass_rates_solid_gaseous,MATCH(I$58,Years,0)+1,0) -> 8.55 | J64: =INDEX(INDIRECT(Lists!$M$5&"_"&IF(Lists!$T$3="Set for feedstocks individually",Lists!$S26,Lists!$T$3)&"_"&"EnergyCrops"),MATCH($M64,UK_solid_gaseous_feedstocks,0),MATCH(J$58,Years,0))*VLOOKUP($C64,Pass_rates_solid_gaseous,MATCH(J$58,Years,0)+1,0) -> 9.405 | K64: =INDEX(INDIRECT(Lists!$M$5&"_"&IF(Lists!$T$3="Set for feedstocks individually",Lists!$S26,Lists!$T$3)&"_"&"EnergyCrops"),MATCH($M64,UK_solid_gaseous_feedstocks,0),MATCH(K$58,Years,0))*VLOOKUP($C64,Pass_rates_solid_gaseous,MATCH(K$58,Years,0)+1,0) -> 12.27096 | M64: SRF
C65: =Lists!F18 -> Sawmill co-products | D65: =INDEX(INDIRECT(Lists!$M$5&"_"&IF(Lists!$T$3="Set for feedstocks individually",Lists!$S27,Lists!$T$3)&"_"&"EnergyCrops"),MATCH($M65,UK_solid_gaseous_feedstocks,0),MATCH(D$58,Years,0))*VLOOKUP($C65,Pass_rates_solid_gaseous,MATCH(D$58,Years,0)+1,0) -> 2.451 | E65: =INDEX(INDIRECT(Lists!$M$5&"_"&IF(Lists!$T$3="Set for feedstocks individually",Lists!$S27,Lists!$T$3)&"_"&"EnergyCrops"),MATCH($M65,UK_solid_gaseous_feedstocks,0),MATCH(E$58,Years,0))*VLOOKUP($C65,Pass_rates_solid_gaseous,MATCH(E$58,Years,0)+1,0) -> 0 | F65: =INDEX(INDIRECT(Lists!$M$5&"_"&IF(Lists!$T$3="Set for feedstocks individually",Lists!$S27,Lists!$T$3)&"_"&"EnergyCrops"),MATCH($M65,UK_solid_gaseous_feedstocks,0),MATCH(F$58,Years,0))*VLOOKUP($C65,Pass_rates_solid_gaseous,MATCH(F$58,Years,0)+1,0) -> 2.6866 | G65: =INDEX(INDIRECT(Lists!$M$5&"_"&IF(Lists!$T$3="Set for feedstocks individually",Lists!$S27,Lists!$T$3)&"_"&"EnergyCrops"),MATCH($M65,UK_solid_gaseous_feedstocks,0),MATCH(G$58,Years,0))*VLOOKUP($C65,Pass_rates_solid_gaseous,MATCH(G$58,Years,0)+1,0) -> 5.2364 | H65: =INDEX(INDIRECT(Lists!$M$5&"_"&IF(Lists!$T$3="Set for feedstocks individually",Lists!$S27,Lists!$T$3)&"_"&"EnergyCrops"),MATCH($M65,UK_solid_gaseous_feedstocks,0),MATCH(H$58,Years,0))*VLOOKUP($C65,Pass_rates_solid_gaseous,MATCH(H$58,Years,0)+1,0) -> 4.6322 | I65: =INDEX(INDIRECT(Lists!$M$5&"_"&IF(Lists!$T$3="Set for feedstocks individually",Lists!$S27,Lists!$T$3)&"_"&"EnergyCrops"),MATCH($M65,UK_solid_gaseous_feedstocks,0),MATCH(I$58,Years,0))*VLOOKUP($C65,Pass_rates_solid_gaseous,MATCH(I$58,Years,0)+1,0) -> 4.8336 | J65: =INDEX(INDIRECT(Lists!$M$5&"_"&IF(Lists!$T$3="Set for feedstocks individually",Lists!$S27,Lists!$T$3)&"_"&"EnergyCrops"),MATCH($M65,UK_solid_gaseous_feedstocks,0),MATCH(J$58,Years,0))*VLOOKUP($C65,Pass_rates_solid_gaseous,MATCH(J$58,Years,0)+1,0) -> 4.5315 | K65: =INDEX(INDIRECT(Lists!$M$5&"_"&IF(Lists!$T$3="Set for feedstocks individually",Lists!$S27,Lists!$T$3)&"_"&"EnergyCrops"),MATCH($M65,UK_solid_gaseous_feedstocks,0),MATCH(K$58,Years,0))*VLOOKUP($C65,Pass_rates_solid_gaseous,MATCH(K$58,Years,0)+1,0) -> 2.5175 | M65: Sawmill
C66: =Lists!F19 -> Arboricultural arisings | D66: =INDEX(INDIRECT(Lists!$M$5&"_"&IF(Lists!$T$3="Set for feedstocks individually",Lists!$S28,Lists!$T$3)&"_"&"EnergyCrops"),MATCH($M66,UK_solid_gaseous_feedstocks,0),MATCH(D$58,Years,0))*VLOOKUP($C66,Pass_rates_solid_gaseous,MATCH(D$58,Years,0)+1,0) -> 2.6144 | E66: =INDEX(INDIRECT(Lists!$M$5&"_"&IF(Lists!$T$3="Set for feedstocks individually",Lists!$S28,Lists!$T$3)&"_"&"EnergyCrops"),MATCH($M66,UK_solid_gaseous_feedstocks,0),MATCH(E$58,Years,0))*VLOOKUP($C66,Pass_rates_solid_gaseous,MATCH(E$58,Years,0)+1,0) -> 4.446 | F66: =INDEX(INDIRECT(Lists!$M$5&"_"&IF(Lists!$T$3="Set for feedstocks individually",Lists!$S28,Lists!$T$3)&"_"&"EnergyCrops"),MATCH($M66,UK_solid_gaseous_feedstocks,0),MATCH(F$58,Years,0))*VLOOKUP($C66,Pass_rates_solid_gaseous,MATCH(F$58,Years,0)+1,0) -> 5.13 | G66: =INDEX(INDIRECT(Lists!$M$5&"_"&IF(Lists!$T$3="Set for feedstocks individually",Lists!$S28,Lists!$T$3)&"_"&"EnergyCrops"),MATCH($M66,UK_solid_gaseous_feedstocks,0),MATCH(G$58,Years,0))*VLOOKUP($C66,Pass_rates_solid_gaseous,MATCH(G$58,Years,0)+1,0) -> 5.814 | H66: =INDEX(INDIRECT(Lists!$M$5&"_"&IF(Lists!$T$3="Set for feedstocks individually",Lists!$S28,Lists!$T$3)&"_"&"EnergyCrops"),MATCH($M66,UK_solid_gaseous_feedstocks,0),MATCH(H$58,Years,0))*VLOOKUP($C66,Pass_rates_solid_gaseous,MATCH(H$58,Years,0)+1,0) -> 5.814 | I66: =INDEX(INDIRECT(Lists!$M$5&"_"&IF(Lists!$T$3="Set for feedstocks individually",Lists!$S28,Lists!$T$3)&"_"&"EnergyCrops"),MATCH($M66,UK_solid_gaseous_feedstocks,0),MATCH(I$58,Years,0))*VLOOKUP($C66,Pass_rates_solid_gaseous,MATCH(I$58,Years,0)+1,0) -> 5.814 | J66: =INDEX(INDIRECT(Lists!$M$5&"_"&IF(Lists!$T$3="Set for feedstocks individually",Lists!$S28,Lists!$T$3)&"_"&"EnergyCrops"),MATCH($M66,UK_solid_gaseous_feedstocks,0),MATCH(J$58,Years,0))*VLOOKUP($C66,Pass_rates_solid_gaseous,MATCH(J$58,Years,0)+1,0) -> 5.814 | K66: =INDEX(INDIRECT(Lists!$M$5&"_"&IF(Lists!$T$3="Set for feedstocks individually",Lists!$S28,Lists!$T$3)&"_"&"EnergyCrops"),MATCH($M66,UK_solid_gaseous_feedstocks,0),MATCH(K$58,Years,0))*VLOOKUP($C66,Pass_rates_solid_gaseous,MATCH(K$58,Years,0)+1,0) -> 5.814 | M66: Arbs
C67: =Lists!F20 -> Waste wood | D67: =INDEX(INDIRECT(Lists!$M$5&"_"&IF(Lists!$T$3="Set for feedstocks individually",Lists!$S29,Lists!$T$3)&"_"&"EnergyCrops"),MATCH($M67,UK_solid_gaseous_feedstocks,0),MATCH(D$58,Years,0))*VLOOKUP($C67,Pass_rates_solid_gaseous,MATCH(D$58,Years,0)+1,0) -> 28.12 | E67: =INDEX(INDIRECT(Lists!$M$5&"_"&IF(Lists!$T$3="Set for feedstocks individually",Lists!$S29,Lists!$T$3)&"_"&"EnergyCrops"),MATCH($M67,UK_solid_gaseous_feedstocks,0),MATCH(E$58,Years,0))*VLOOKUP($C67,Pass_rates_solid_gaseous,MATCH(E$58,Years,0)+1,0) -> 73.91 | F67: =INDEX(INDIRECT(Lists!$M$5&"_"&IF(Lists!$T$3="Set for feedstocks individually",Lists!$S29,Lists!$T$3)&"_"&"EnergyCrops"),MATCH($M67,UK_solid_gaseous_feedstocks,0),MATCH(F$58,Years,0))*VLOOKUP($C67,Pass_rates_solid_gaseous,MATCH(F$58,Years,0)+1,0) -> 73.91 | G67: =INDEX(INDIRECT(Lists!$M$5&"_"&IF(Lists!$T$3="Set for feedstocks individually",Lists!$S29,Lists!$T$3)&"_"&"EnergyCrops"),MATCH($M67,UK_solid_gaseous_feedstocks,0),MATCH(G$58,Years,0))*VLOOKUP($C67,Pass_rates_solid_gaseous,MATCH(G$58,Years,0)+1,0) -> 73.91 | H67: =INDEX(INDIRECT(Lists!$M$5&"_"&IF(Lists!$T$3="Set for feedstocks individually",Lists!$S29,Lists!$T$3)&"_"&"EnergyCrops"),MATCH($M67,UK_solid_gaseous_feedstocks,0),MATCH(H$58,Years,0))*VLOOKUP($C67,Pass_rates_solid_gaseous,MATCH(H$58,Years,0)+1,0) -> 73.91 | I67: =INDEX(INDIRECT(Lists!$M$5&"_"&IF(Lists!$T$3="Set for feedstocks individually",Lists!$S29,Lists!$T$3)&"_"&"EnergyCrops"),MATCH($M67,UK_solid_gaseous_feedstocks,0),MATCH(I$58,Years,0))*VLOOKUP($C67,Pass_rates_solid_gaseous,MATCH(I$58,Years,0)+1,0) -> 73.91 | J67: =INDEX(INDIRECT(Lists!$M$5&"_"&IF(Lists!$T$3="Set for feedstocks individually",Lists!$S29,Lists!$T$3)&"_"&"EnergyCrops"),MATCH($M67,UK_solid_gaseous_feedstocks,0),MATCH(J$58,Years,0))*VLOOKUP($C67,Pass_rates_solid_gaseous,MATCH(J$58,Years,0)+1,0) -> 73.91 | K67: =INDEX(INDIRECT(Lists!$M$5&"_"&IF(Lists!$T$3="Set for feedstocks individually",Lists!$S29,Lists!$T$3)&"_"&"EnergyCrops"),MATCH($M67,UK_solid_gaseous_feedstocks,0),MATCH(K$58,Years,0))*VLOOKUP($C67,Pass_rates_solid_gaseous,MATCH(K$58,Years,0)+1,0) -> 73.91 | M67: Waste_wood
C68: =Lists!F21 -> Renewable fraction of wastes | D68: =INDEX(INDIRECT(Lists!$M$5&"_"&IF(Lists!$T$3="Set for feedstocks individually",Lists!$T30,Lists!$T$3)&"_"&"EnergyCrops"),MATCH($M68,UK_solid_gaseous_feedstocks,0),MATCH(D$58,Years,0))*VLOOKUP($C68,Pass_rates_solid_gaseous,MATCH(D$58,Years,0)+1,0) -> 31.9903052 | E68: =INDEX(INDIRECT(Lists!$M$5&"_"&IF(Lists!$T$3="Set for feedstocks individually",Lists!$T30,Lists!$T$3)&"_"&"EnergyCrops"),MATCH($M68,UK_solid_gaseous_feedstocks,0),MATCH(E$58,Years,0))*VLOOKUP($C68,Pass_rates_solid_gaseous,MATCH(E$58,Years,0)+1,0) -> 38.61637691 | F68: =INDEX(INDIRECT(Lists!$M$5&"_"&IF(Lists!$T$3="Set for feedstocks individually",Lists!$T30,Lists!$T$3)&"_"&"EnergyCrops"),MATCH($M68,UK_solid_gaseous_feedstocks,0),MATCH(F$58,Years,0))*VLOOKUP($C68,Pass_rates_solid_gaseous,MATCH(F$58,Years,0)+1,0) -> 27.79081828 | G68: =INDEX(INDIRECT(Lists!$M$5&"_"&IF(Lists!$T$3="Set for feedstocks individually",Lists!$T30,Lists!$T$3)&"_"&"EnergyCrops"),MATCH($M68,UK_solid_gaseous_feedstocks,0),MATCH(G$58,Years,0))*VLOOKUP($C68,Pass_rates_solid_gaseous,MATCH(G$58,Years,0)+1,0) -> 30.43889749 | H68: =INDEX(INDIRECT(Lists!$M$5&"_"&IF(Lists!$T$3="Set for feedstocks individually",Lists!$T30,Lists!$T$3)&"_"&"EnergyCrops"),MATCH($M68,UK_solid_gaseous_feedstocks,0),MATCH(H$58,Years,0))*VLOOKUP($C68,Pass_rates_solid_gaseous,MATCH(H$58,Years,0)+1,0) -> 35.99311855 | I68: =INDEX(INDIRECT(Lists!$M$5&"_"&IF(Lists!$T$3="Set for feedstocks individually",Lists!$T30,Lists!$T$3)&"_"&"EnergyCrops"),MATCH($M68,UK_solid_gaseous_feedstocks,0),MATCH(I$58,Years,0))*VLOOKUP($C68,Pass_rates_solid_gaseous,MATCH(I$58,Years,0)+1,0) -> 43.22553286 | J68: =INDEX(INDIRECT(Lists!$M$5&"_"&IF(Lists!$T$3="Set for feedstocks individually",Lists!$T30,Lists!$T$3)&"_"&"EnergyCrops"),MATCH($M68,UK_solid_gaseous_feedstocks,0),MATCH(J$58,Years,0))*VLOOKUP($C68,Pass_rates_solid_gaseous,MATCH(J$58,Years,0)+1,0) -> 48.20151286 | K68: =INDEX(INDIRECT(Lists!$M$5&"_"&IF(Lists!$T$3="Set for feedstocks individually",Lists!$T30,Lists!$T$3)&"_"&"EnergyCrops"),MATCH($M68,UK_solid_gaseous_feedstocks,0),MATCH(K$58,Years,0))*VLOOKUP($C68,Pass_rates_solid_gaseous,MATCH(K$58,Years,0)+1,0) -> 55.0161858 | M68: MSW
C69: Total UK solid biomass | D69: =SUM(D60:D68) -> 111.5858052 | E69: =SUM(E60:E68) -> 179.0437967 | F69: 180.0095263 | G69: 206.3651455 | H69: 249.4621709 | I69: 309.2021369 | J69: 332.1467441 | K69: 358.5149458
C70: =Lists!F22 -> Biogas from food waste | D70: =INDEX(INDIRECT(Lists!$M$5&"_"&IF(Lists!$T$3="Set for feedstocks individually",Lists!$T32,Lists!$T$3)&"_"&"EnergyCrops"),MATCH($M70,UK_solid_gaseous_feedstocks,0),MATCH(D$58,Years,0))*VLOOKUP($C70,Pass_rates_solid_gaseous,MATCH(D$58,Years,0)+1,0) -> 7.060442843 | E70: =INDEX(INDIRECT(Lists!$M$5&"_"&IF(Lists!$T$3="Set for feedstocks individually",Lists!$T32,Lists!$T$3)&"_"&"EnergyCrops"),MATCH($M70,UK_solid_gaseous_feedstocks,0),MATCH(E$58,Years,0))*VLOOKUP($C70,Pass_rates_solid_gaseous,MATCH(E$58,Years,0)+1,0) -> 10.53526866 | F70: =INDEX(INDIRECT(Lists!$M$5&"_"&IF(Lists!$T$3="Set for feedstocks individually",Lists!$T32,Lists!$T$3)&"_"&"EnergyCrops"),MATCH($M70,UK_solid_gaseous_feedstocks,0),MATCH(F$58,Years,0))*VLOOKUP($C70,Pass_rates_solid_gaseous,MATCH(F$58,Years,0)+1,0) -> 13.68035279 | G70: =INDEX(INDIRECT(Lists!$M$5&"_"&IF(Lists!$T$3="Set for feedstocks individually",Lists!$T32,Lists!$T$3)&"_"&"EnergyCrops"),MATCH($M70,UK_solid_gaseous_feedstocks,0),MATCH(G$58,Years,0))*VLOOKUP($C70,Pass_rates_solid_gaseous,MATCH(G$58,Years,0)+1,0) -> 17.14694936 | H70: =INDEX(INDIRECT(Lists!$M$5&"_"&IF(Lists!$T$3="Set for feedstocks individually",Lists!$T32,Lists!$T$3)&"_"&"EnergyCrops"),MATCH($M70,UK_solid_gaseous_feedstocks,0),MATCH(H$58,Years,0))*VLOOKUP($C70,Pass_rates_solid_gaseous,MATCH(H$58,Years,0)+1,0) -> 18.16364843 | I70: =INDEX(INDIRECT(Lists!$M$5&"_"&IF(Lists!$T$3="Set for feedstocks individually",Lists!$T32,Lists!$T$3)&"_"&"EnergyCrops"),MATCH($M70,UK_solid_gaseous_feedstocks,0),MATCH(I$58,Years,0))*VLOOKUP($C70,Pass_rates_solid_gaseous,MATCH(I$58,Years,0)+1,0) -> 19.18189052 | J70: =INDEX(INDIRECT(Lists!$M$5&"_"&IF(Lists!$T$3="Set for feedstocks individually",Lists!$T32,Lists!$T$3)&"_"&"EnergyCrops"),MATCH($M70,UK_solid_gaseous_feedstocks,0),MATCH(J$58,Years,0))*VLOOKUP($C70,Pass_rates_solid_gaseous,MATCH(J$58,Years,0)+1,0) -> 20.19740044 | K70: =INDEX(INDIRECT(Lists!$M$5&"_"&IF(Lists!$T$3="Set for feedstocks individually",Lists!$T32,Lists!$T$3)&"_"&"EnergyCrops"),MATCH($M70,UK_solid_gaseous_feedstocks,0),MATCH(K$58,Years,0))*VLOOKUP($C70,Pass_rates_solid_gaseous,MATCH(K$58,Years,0)+1,0) -> 21.21564254 | M70: Food_Waste_AD
C71: =Lists!F23 -> Landfill gas | D71: =INDEX(INDIRECT(Lists!$M$5&"_"&IF(Lists!$T$3="Set for feedstocks individually",Lists!$T33,Lists!$T$3)&"_"&"EnergyCrops"),MATCH($M71,UK_solid_gaseous_feedstocks,0),MATCH(D$58,Years,0))*VLOOKUP($C71,Pass_rates_solid_gaseous,MATCH(D$58,Years,0)+1,0) -> 48.96119797 | E71: =INDEX(INDIRECT(Lists!$M$5&"_"&IF(Lists!$T$3="Set for feedstocks individually",Lists!$T33,Lists!$T$3)&"_"&"EnergyCrops"),MATCH($M71,UK_solid_gaseous_feedstocks,0),MATCH(E$58,Years,0))*VLOOKUP($C71,Pass_rates_solid_gaseous,MATCH(E$58,Years,0)+1,0) -> 41.1239997 | F71: =INDEX(INDIRECT(Lists!$M$5&"_"&IF(Lists!$T$3="Set for feedstocks individually",Lists!$T33,Lists!$T$3)&"_"&"EnergyCrops"),MATCH($M71,UK_solid_gaseous_feedstocks,0),MATCH(F$58,Years,0))*VLOOKUP($C71,Pass_rates_solid_gaseous,MATCH(F$58,Years,0)+1,0) -> 36.16995428 | G71: =INDEX(INDIRECT(Lists!$M$5&"_"&IF(Lists!$T$3="Set for feedstocks individually",Lists!$T33,Lists!$T$3)&"_"&"EnergyCrops"),MATCH($M71,UK_solid_gaseous_feedstocks,0),MATCH(G$58,Years,0))*VLOOKUP($C71,Pass_rates_solid_gaseous,MATCH(G$58,Years,0)+1,0) -> 34.66781609 | H71: =INDEX(INDIRECT(Lists!$M$5&"_"&IF(Lists!$T$3="Set for feedstocks individually",Lists!$T33,Lists!$T$3)&"_"&"EnergyCrops"),MATCH($M71,UK_solid_gaseous_feedstocks,0),MATCH(H$58,Years,0))*VLOOKUP($C71,Pass_rates_solid_gaseous,MATCH(H$58,Years,0)+1,0) -> 34.25914817 | I71: =INDEX(INDIRECT(Lists!$M$5&"_"&IF(Lists!$T$3="Set for feedstocks individually",Lists!$T33,Lists!$T$3)&"_"&"EnergyCrops"),MATCH($M71,UK_solid_gaseous_feedstocks,0),MATCH(I$58,Years,0))*VLOOKUP($C71,Pass_rates_solid_gaseous,MATCH(I$58,Years,0)+1,0) -> 33.90848511 | J71: =INDEX(INDIRECT(Lists!$M$5&"_"&IF(Lists!$T$3="Set for feedstocks individually",Lists!$T33,Lists!$T$3)&"_"&"EnergyCrops"),MATCH($M71,UK_solid_gaseous_feedstocks,0),MATCH(J$58,Years,0))*VLOOKUP($C71,Pass_rates_solid_gaseous,MATCH(J$58,Years,0)+1,0) -> 33.67517475 | K71: =INDEX(INDIRECT(Lists!$M$5&"_"&IF(Lists!$T$3="Set for feedstocks individually",Lists!$T33,Lists!$T$3)&"_"&"EnergyCrops"),MATCH($M71,UK_solid_gaseous_feedstocks,0),MATCH(K$58,Years,0))*VLOOKUP($C71,Pass_rates_solid_gaseous,MATCH(K$58,Years,0)+1,0) -> 33.49531125 | M71: Landfill_Gas
C72: =Lists!F24 -> Biogas from sewage sludge | D72: =INDEX(INDIRECT(Lists!$M$5&"_"&IF(Lists!$T$3="Set for feedstocks individually",Lists!$T34,Lists!$T$3)&"_"&"EnergyCrops"),MATCH($M72,UK_solid_gaseous_feedstocks,0),MATCH(D$58,Years,0))*VLOOKUP($C72,Pass_rates_solid_gaseous,MATCH(D$58,Years,0)+1,0) -> 11.83757557 | E72: =INDEX(INDIRECT(Lists!$M$5&"_"&IF(Lists!$T$3="Set for feedstocks individually",Lists!$T34,Lists!$T$3)&"_"&"EnergyCrops"),MATCH($M72,UK_solid_gaseous_feedstocks,0),MATCH(E$58,Years,0))*VLOOKUP($C72,Pass_rates_solid_gaseous,MATCH(E$58,Years,0)+1,0) -> 12.82524835 | F72: =INDEX(INDIRECT(Lists!$M$5&"_"&IF(Lists!$T$3="Set for feedstocks individually",Lists!$T34,Lists!$T$3)&"_"&"EnergyCrops"),MATCH($M72,UK_solid_gaseous_feedstocks,0),MATCH(F$58,Years,0))*VLOOKUP($C72,Pass_rates_solid_gaseous,MATCH(F$58,Years,0)+1,0) -> 13.59554597 | G72: =INDEX(INDIRECT(Lists!$M$5&"_"&IF(Lists!$T$3="Set for feedstocks individually",Lists!$T34,Lists!$T$3)&"_"&"EnergyCrops"),MATCH($M72,UK_solid_gaseous_feedstocks,0),MATCH(G$58,Years,0))*VLOOKUP($C72,Pass_rates_solid_gaseous,MATCH(G$58,Years,0)+1,0) -> 14.27944028 | H72: =INDEX(INDIRECT(Lists!$M$5&"_"&IF(Lists!$T$3="Set for feedstocks individually",Lists!$T34,Lists!$T$3)&"_"&"EnergyCrops"),MATCH($M72,UK_solid_gaseous_feedstocks,0),MATCH(H$58,Years,0))*VLOOKUP($C72,Pass_rates_solid_gaseous,MATCH(H$58,Years,0)+1,0) -> 14.67342938 | I72: =INDEX(INDIRECT(Lists!$M$5&"_"&IF(Lists!$T$3="Set for feedstocks individually",Lists!$T34,Lists!$T$3)&"_"&"EnergyCrops"),MATCH($M72,UK_solid_gaseous_feedstocks,0),MATCH(I$58,Years,0))*VLOOKUP($C72,Pass_rates_solid_gaseous,MATCH(I$58,Years,0)+1,0) -> 14.82022268 | J72: =INDEX(INDIRECT(Lists!$M$5&"_"&IF(Lists!$T$3="Set for feedstocks individually",Lists!$T34,Lists!$T$3)&"_"&"EnergyCrops"),MATCH($M72,UK_solid_gaseous_feedstocks,0),MATCH(J$58,Years,0))*VLOOKUP($C72,Pass_rates_solid_gaseous,MATCH(J$58,Years,0)+1,0) -> 15.10509295 | K72: =INDEX(INDIRECT(Lists!$M$5&"_"&IF(Lists!$T$3="Set for feedstocks individually",Lists!$T34,Lists!$T$3)&"_"&"EnergyCrops"),MATCH($M72,UK_solid_gaseous_feedstocks,0),MATCH(K$58,Years,0))*VLOOKUP($C72,Pass_rates_solid_gaseous,MATCH(K$58,Years,0)+1,0) -> 15.45104361 | M72: Sewage_Sludge_AD
C73: =Lists!F25 -> Biogas from livestock manures | D73: =INDEX(INDIRECT(Lists!$M$5&"_"&IF(Lists!$T$3="Set for feedstocks individually",Lists!$T35,Lists!$T$3)&"_"&"EnergyCrops"),MATCH($M73,UK_solid_gaseous_feedstocks,0),MATCH(D$58,Years,0))*VLOOKUP($C73,Pass_rates_solid_gaseous,MATCH(D$58,Years,0)+1,0) -> 0.06398208516 | E73: =INDEX(INDIRECT(Lists!$M$5&"_"&IF(Lists!$T$3="Set for feedstocks individually",Lists!$T35,Lists!$T$3)&"_"&"EnergyCrops"),MATCH($M73,UK_solid_gaseous_feedstocks,0),MATCH(E$58,Years,0))*VLOOKUP($C73,Pass_rates_solid_gaseous,MATCH(E$58,Years,0)+1,0) -> 0.1245456874 | F73: =INDEX(INDIRECT(Lists!$M$5&"_"&IF(Lists!$T$3="Set for feedstocks individually",Lists!$T35,Lists!$T$3)&"_"&"EnergyCrops"),MATCH($M73,UK_solid_gaseous_feedstocks,0),MATCH(F$58,Years,0))*VLOOKUP($C73,Pass_rates_solid_gaseous,MATCH(F$58,Years,0)+1,0) -> 0.1231679343 | G73: =INDEX(INDIRECT(Lists!$M$5&"_"&IF(Lists!$T$3="Set for feedstocks individually",Lists!$T35,Lists!$T$3)&"_"&"EnergyCrops"),MATCH($M73,UK_solid_gaseous_feedstocks,0),MATCH(G$58,Years,0))*VLOOKUP($C73,Pass_rates_solid_gaseous,MATCH(G$58,Years,0)+1,0) -> 0.1231679343 | H73: =INDEX(INDIRECT(Lists!$M$5&"_"&IF(Lists!$T$3="Set for feedstocks individually",Lists!$T35,Lists!$T$3)&"_"&"EnergyCrops"),MATCH($M73,UK_solid_gaseous_feedstocks,0),MATCH(H$58,Years,0))*VLOOKUP($C73,Pass_rates_solid_gaseous,MATCH(H$58,Years,0)+1,0) -> 0.1337570334 | I73: =INDEX(INDIRECT(Lists!$M$5&"_"&IF(Lists!$T$3="Set for feedstocks individually",Lists!$T35,Lists!$T$3)&"_"&"EnergyCrops"),MATCH($M73,UK_solid_gaseous_feedstocks,0),MATCH(I$58,Years,0))*VLOOKUP($C73,Pass_rates_solid_gaseous,MATCH(I$58,Years,0)+1,0) -> 0.1439026485 | J73: =INDEX(INDIRECT(Lists!$M$5&"_"&IF(Lists!$T$3="Set for feedstocks individually",Lists!$T35,Lists!$T$3)&"_"&"EnergyCrops"),MATCH($M73,UK_solid_gaseous_feedstocks,0),MATCH(J$58,Years,0))*VLOOKUP($C73,Pass_rates_solid_gaseous,MATCH(J$58,Years,0)+1,0) -> 0.1439026485 | K73: =INDEX(INDIRECT(Lists!$M$5&"_"&IF(Lists!$T$3="Set for feedstocks individually",Lists!$T35,Lists!$T$3)&"_"&"EnergyCrops"),MATCH($M73,UK_solid_gaseous_feedstocks,0),MATCH(K$58,Years,0))*VLOOKUP($C73,Pass_rates_solid_gaseous,MATCH(K$58,Years,0)+1,0) -> 0.1665789999 | M73: Wet_Manures_AD
C74: =Lists!F26 -> Biogas from crops | D74: =INDEX(INDIRECT(Lists!$M$5&"_"&IF(Lists!$T$3="Set for feedstocks individually",Lists!$T36,Lists!$T$3)&"_"&"EnergyCrops"),MATCH($M74,UK_solid_gaseous_feedstocks,0),MATCH(D$58,Years,0))*VLOOKUP($C74,Pass_rates_solid_gaseous,MATCH(D$58,Years,0)+1,0) -> 1.9132344 | E74: =INDEX(INDIRECT(Lists!$M$5&"_"&IF(Lists!$T$3="Set for feedstocks individually",Lists!$T36,Lists!$T$3)&"_"&"EnergyCrops"),MATCH($M74,UK_solid_gaseous_feedstocks,0),MATCH(E$58,Years,0))*VLOOKUP($C74,Pass_rates_solid_gaseous,MATCH(E$58,Years,0)+1,0) -> 2.33546544 | F74: =INDEX(INDIRECT(Lists!$M$5&"_"&IF(Lists!$T$3="Set for feedstocks individually",Lists!$T36,Lists!$T$3)&"_"&"EnergyCrops"),MATCH($M74,UK_solid_gaseous_feedstocks,0),MATCH(F$58,Years,0))*VLOOKUP($C74,Pass_rates_solid_gaseous,MATCH(F$58,Years,0)+1,0) -> 2.569011984 | G74: =INDEX(INDIRECT(Lists!$M$5&"_"&IF(Lists!$T$3="Set for feedstocks individually",Lists!$T36,Lists!$T$3)&"_"&"EnergyCrops"),MATCH($M74,UK_solid_gaseous_feedstocks,0),MATCH(G$58,Years,0))*VLOOKUP($C74,Pass_rates_solid_gaseous,MATCH(G$58,Years,0)+1,0) -> 2.685785256 | H74: =INDEX(INDIRECT(Lists!$M$5&"_"&IF(Lists!$T$3="Set for feedstocks individually",Lists!$T36,Lists!$T$3)&"_"&"EnergyCrops"),MATCH($M74,UK_solid_gaseous_feedstocks,0),MATCH(H$58,Years,0))*VLOOKUP($C74,Pass_rates_solid_gaseous,MATCH(H$58,Years,0)+1,0) -> 3.036105072 | I74: =INDEX(INDIRECT(Lists!$M$5&"_"&IF(Lists!$T$3="Set for feedstocks individually",Lists!$T36,Lists!$T$3)&"_"&"EnergyCrops"),MATCH($M74,UK_solid_gaseous_feedstocks,0),MATCH(I$58,Years,0))*VLOOKUP($C74,Pass_rates_solid_gaseous,MATCH(I$58,Years,0)+1,0) -> 3.4058871 | J74: =INDEX(INDIRECT(Lists!$M$5&"_"&IF(Lists!$T$3="Set for feedstocks individually",Lists!$T36,Lists!$T$3)&"_"&"EnergyCrops"),MATCH($M74,UK_solid_gaseous_feedstocks,0),MATCH(J$58,Years,0))*VLOOKUP($C74,Pass_rates_solid_gaseous,MATCH(J$58,Years,0)+1,0) -> 0 | K74: =INDEX(INDIRECT(Lists!$M$5&"_"&IF(Lists!$T$3="Set for feedstocks individually",Lists!$T36,Lists!$T$3)&"_"&"EnergyCrops"),MATCH($M74,UK_solid_gaseous_feedstocks,0),MATCH(K$58,Years,0))*VLOOKUP($C74,Pass_rates_solid_gaseous,MATCH(K$58,Years,0)+1,0) -> 0 | M74: =IF(Lists!$O$5="Max_EC","Biomethane_Crops_Min",IF(Lists!$Q$5="Max_Maize","Biomethane_Crops_Max","Biomethane_Crops_Min")) -> Biomethane_Crops_Min
C75: Total UK biogas | D75: =SUM(D70:D74) -> 69.83643287 | E75: =SUM(E70:E74) -> 66.94452784 | F75: 66.13803296 | G75: 68.90315892 | H75: 70.26608808 | I75: 71.46038806 | J75: 69.12157079 | K75: 70.32857639
C76: Bioethanol from crops | D76: =INDEX(INDIRECT(Lists!$M$5&"_"&IF(Lists!$T$3="Set for feedstocks individually",Lists!$T38,Lists!$T$3)&"_"&"1G"),MATCH($M76,OneG,0),MATCH(D$58,Years,0))*INDEX(Pass_rates_bioethanol_A,MATCH("UK",Supply_Regions,0),MATCH(D$58,Years,0)) -> 3.039582 | E76: =INDEX(INDIRECT(Lists!$M$5&"_"&IF(Lists!$T$3="Set for feedstocks individually",Lists!$T38,Lists!$T$3)&"_"&"1G"),MATCH($M76,OneG,0),MATCH(E$58,Years,0))*INDEX(Pass_rates_bioethanol_A,MATCH("UK",Supply_Regions,0),MATCH(E$58,Years,0)) -> 2.878918 | F76: =INDEX(INDIRECT(Lists!$M$5&"_"&IF(Lists!$T$3="Set for feedstocks individually",Lists!$T38,Lists!$T$3)&"_"&"1G"),MATCH($M76,OneG,0),MATCH(F$58,Years,0))*INDEX(Pass_rates_bioethanol_A,MATCH("UK",Supply_Regions,0),MATCH(F$58,Years,0)) -> 4.389183983 | G76: =INDEX(INDIRECT(Lists!$M$5&"_"&IF(Lists!$T$3="Set for feedstocks individually",Lists!$T38,Lists!$T$3)&"_"&"1G"),MATCH($M76,OneG,0),MATCH(G$58,Years,0))*INDEX(Pass_rates_bioethanol_A,MATCH("UK",Supply_Regions,0),MATCH(G$58,Years,0)) -> 5.5024361 | H76: =INDEX(INDIRECT(Lists!$M$5&"_"&IF(Lists!$T$3="Set for feedstocks individually",Lists!$T38,Lists!$T$3)&"_"&"1G"),MATCH($M76,OneG,0),MATCH(H$58,Years,0))*INDEX(Pass_rates_bioethanol_A,MATCH("UK",Supply_Regions,0),MATCH(H$58,Years,0)) -> 5.77357655 | I76: =INDEX(INDIRECT(Lists!$M$5&"_"&IF(Lists!$T$3="Set for feedstocks individually",Lists!$T38,Lists!$T$3)&"_"&"1G"),MATCH($M76,OneG,0),MATCH(I$58,Years,0))*INDEX(Pass_rates_bioethanol_A,MATCH("UK",Supply_Regions,0),MATCH(I$58,Years,0)) -> 5.635875 | J76: =INDEX(INDIRECT(Lists!$M$5&"_"&IF(Lists!$T$3="Set for feedstocks individually",Lists!$T38,Lists!$T$3)&"_"&"1G"),MATCH($M76,OneG,0),MATCH(J$58,Years,0))*INDEX(Pass_rates_bioethanol_A,MATCH("UK",Supply_Regions,0),MATCH(J$58,Years,0)) -> 2.687732805 | K76: =INDEX(INDIRECT(Lists!$M$5&"_"&IF(Lists!$T$3="Set for feedstocks individually",Lists!$T38,Lists!$T$3)&"_"&"1G"),MATCH($M76,OneG,0),MATCH(K$58,Years,0))*INDEX(Pass_rates_bioethanol_A,MATCH("UK",Supply_Regions,0),MATCH(K$58,Years,0)) -> 0 | M76: =IF(Lists!$O$5=Lists!$O$13,"Bioethanol_Crops_Min",IF(Lists!$Q$6="Max_BioEth","Bioethanol_Crops_Max","Bioethanol_Crops_Min")) -> Bioethanol_Crops_Max
C77: Biodiesel from crops | D77: =INDEX(INDIRECT(Lists!$M$5&"_"&IF(Lists!$T$3="Set for feedstocks individually",Lists!$T39,Lists!$T$3)&"_"&"1G"),MATCH($M77,OneG,0),MATCH(D$58,Years,0))*INDEX(Pass_rates_biodiesel_A,MATCH("UK",Supply_Regions,0),MATCH(D$58,Years,0)) -> 0.245952 | E77: =INDEX(INDIRECT(Lists!$M$5&"_"&IF(Lists!$T$3="Set for feedstocks individually",Lists!$T39,Lists!$T$3)&"_"&"1G"),MATCH($M77,OneG,0),MATCH(E$58,Years,0))*INDEX(Pass_rates_biodiesel_A,MATCH("UK",Supply_Regions,0),MATCH(E$58,Years,0)) -> 0.107604 | F77: =INDEX(INDIRECT(Lists!$M$5&"_"&IF(Lists!$T$3="Set for feedstocks individually",Lists!$T39,Lists!$T$3)&"_"&"1G"),MATCH($M77,OneG,0),MATCH(F$58,Years,0))*INDEX(Pass_rates_biodiesel_A,MATCH("UK",Supply_Regions,0),MATCH(F$58,Years,0)) -> 0.1963346 | G77: =INDEX(INDIRECT(Lists!$M$5&"_"&IF(Lists!$T$3="Set for feedstocks individually",Lists!$T39,Lists!$T$3)&"_"&"1G"),MATCH($M77,OneG,0),MATCH(G$58,Years,0))*INDEX(Pass_rates_biodiesel_A,MATCH("UK",Supply_Regions,0),MATCH(G$58,Years,0)) -> 0.2926658 | H77: =INDEX(INDIRECT(Lists!$M$5&"_"&IF(Lists!$T$3="Set for feedstocks individually",Lists!$T39,Lists!$T$3)&"_"&"1G"),MATCH($M77,OneG,0),MATCH(H$58,Years,0))*INDEX(Pass_rates_biodiesel_A,MATCH("UK",Supply_Regions,0),MATCH(H$58,Years,0)) -> 0.290306625 | I77: =INDEX(INDIRECT(Lists!$M$5&"_"&IF(Lists!$T$3="Set for feedstocks individually",Lists!$T39,Lists!$T$3)&"_"&"1G"),MATCH($M77,OneG,0),MATCH(I$58,Years,0))*INDEX(Pass_rates_biodiesel_A,MATCH("UK",Supply_Regions,0),MATCH(I$58,Years,0)) -> 0 | J77: =INDEX(INDIRECT(Lists!$M$5&"_"&IF(Lists!$T$3="Set for feedstocks individually",Lists!$T39,Lists!$T$3)&"_"&"1G"),MATCH($M77,OneG,0),MATCH(J$58,Years,0))*INDEX(Pass_rates_biodiesel_A,MATCH("UK",Supply_Regions,0),MATCH(J$58,Years,0)) -> 0 | K77: =INDEX(INDIRECT(Lists!$M$5&"_"&IF(Lists!$T$3="Set for feedstocks individually",Lists!$T39,Lists!$T$3)&"_"&"1G"),MATCH($M77,OneG,0),MATCH(K$58,Years,0))*INDEX(Pass_rates_biodiesel_A,MATCH("UK",Supply_Regions,0),MATCH(K$58,Years,0)) -> 0 | M77: =IF(Lists!$O$5=Lists!$O$13,"Biodiesel_Crops_Min",IF(Lists!$Q$7="Max_BioD","Biodiesel_Crops_Max","Biodiesel_Crops_Min")) -> Biodiesel_Crops_Max
C78: Biodiesel from UCO | D78: =INDEX(INDIRECT(Lists!$M$5&"_"&IF(Lists!$T$3="Set for feedstocks individually",Lists!$T40,Lists!$T$3)&"_"&"1G"),MATCH($M78,OneG,0),MATCH(D$58,Years,0))*INDEX(Pass_rates_biodiesel_UCO_A,MATCH("UK",Supply_Regions,0),MATCH(D$58,Years,0)) -> 6.625878 | E78: =INDEX(INDIRECT(Lists!$M$5&"_"&IF(Lists!$T$3="Set for feedstocks individually",Lists!$T40,Lists!$T$3)&"_"&"1G"),MATCH($M78,OneG,0),MATCH(E$58,Years,0))*INDEX(Pass_rates_biodiesel_UCO_A,MATCH("UK",Supply_Regions,0),MATCH(E$58,Years,0)) -> 6.625878 | F78: =INDEX(INDIRECT(Lists!$M$5&"_"&IF(Lists!$T$3="Set for feedstocks individually",Lists!$T40,Lists!$T$3)&"_"&"1G"),MATCH($M78,OneG,0),MATCH(F$58,Years,0))*INDEX(Pass_rates_biodiesel_UCO_A,MATCH("UK",Supply_Regions,0),MATCH(F$58,Years,0)) -> 6.625878 | G78: =INDEX(INDIRECT(Lists!$M$5&"_"&IF(Lists!$T$3="Set for feedstocks individually",Lists!$T40,Lists!$T$3)&"_"&"1G"),MATCH($M78,OneG,0),MATCH(G$58,Years,0))*INDEX(Pass_rates_biodiesel_UCO_A,MATCH("UK",Supply_Regions,0),MATCH(G$58,Years,0)) -> 6.625878 | H78: =INDEX(INDIRECT(Lists!$M$5&"_"&IF(Lists!$T$3="Set for feedstocks individually",Lists!$T40,Lists!$T$3)&"_"&"1G"),MATCH($M78,OneG,0),MATCH(H$58,Years,0))*INDEX(Pass_rates_biodiesel_UCO_A,MATCH("UK",Supply_Regions,0),MATCH(H$58,Years,0)) -> 6.625878 | I78: =INDEX(INDIRECT(Lists!$M$5&"_"&IF(Lists!$T$3="Set for feedstocks individually",Lists!$T40,Lists!$T$3)&"_"&"1G"),MATCH($M78,OneG,0),MATCH(I$58,Years,0))*INDEX(Pass_rates_biodiesel_UCO_A,MATCH("UK",Supply_Regions,0),MATCH(I$58,Years,0)) -> 6.625878 | J78: =INDEX(INDIRECT(Lists!$M$5&"_"&IF(Lists!$T$3="Set for feedstocks individually",Lists!$T40,Lists!$T$3)&"_"&"1G"),MATCH($M78,OneG,0),MATCH(J$58,Years,0))*INDEX(Pass_rates_biodiesel_UCO_A,MATCH("UK",Supply_Regions,0),MATCH(J$58,Years,0)) -> 6.625878 | K78: =INDEX(INDIRECT(Lists!$M$5&"_"&IF(Lists!$T$3="Set for feedstocks individually",Lists!$T40,Lists!$T$3)&"_"&"1G"),MATCH($M78,OneG,0),MATCH(K$58,Years,0))*INDEX(Pass_rates_biodiesel_UCO_A,MATCH("UK",Supply_Regions,0),MATCH(K$58,Years,0)) -> 6.625878 | M78: UCO
C79: Biodiesel from tallow | D79: =INDEX(INDIRECT(Lists!$M$5&"_"&IF(Lists!$T$3="Set for feedstocks individually",Lists!$T41,Lists!$T$3)&"_"&"1G"),MATCH($M79,OneG,0),MATCH(D$58,Years,0))*INDEX(Pass_rates_biodiesel_UCO_A,MATCH("UK",Supply_Regions,0),MATCH(D$58,Years,0)) -> 3.9288 | E79: =INDEX(INDIRECT(Lists!$M$5&"_"&IF(Lists!$T$3="Set for feedstocks individually",Lists!$T41,Lists!$T$3)&"_"&"1G"),MATCH($M79,OneG,0),MATCH(E$58,Years,0))*INDEX(Pass_rates_biodiesel_UCO_A,MATCH("UK",Supply_Regions,0),MATCH(E$58,Years,0)) -> 3.9288 | F79: =INDEX(INDIRECT(Lists!$M$5&"_"&IF(Lists!$T$3="Set for feedstocks individually",Lists!$T41,Lists!$T$3)&"_"&"1G"),MATCH($M79,OneG,0),MATCH(F$58,Years,0))*INDEX(Pass_rates_biodiesel_UCO_A,MATCH("UK",Supply_Regions,0),MATCH(F$58,Years,0)) -> 3.9288 | G79: =INDEX(INDIRECT(Lists!$M$5&"_"&IF(Lists!$T$3="Set for feedstocks individually",Lists!$T41,Lists!$T$3)&"_"&"1G"),MATCH($M79,OneG,0),MATCH(G$58,Years,0))*INDEX(Pass_rates_biodiesel_UCO_A,MATCH("UK",Supply_Regions,0),MATCH(G$58,Years,0)) -> 3.9288 | H79: =INDEX(INDIRECT(Lists!$M$5&"_"&IF(Lists!$T$3="Set for feedstocks individually",Lists!$T41,Lists!$T$3)&"_"&"1G"),MATCH($M79,OneG,0),MATCH(H$58,Years,0))*INDEX(Pass_rates_biodiesel_UCO_A,MATCH("UK",Supply_Regions,0),MATCH(H$58,Years,0)) -> 3.9288 | I79: =INDEX(INDIRECT(Lists!$M$5&"_"&IF(Lists!$T$3="Set for feedstocks individually",Lists!$T41,Lists!$T$3)&"_"&"1G"),MATCH($M79,OneG,0),MATCH(I$58,Years,0))*INDEX(Pass_rates_biodiesel_UCO_A,MATCH("UK",Supply_Regions,0),MATCH(I$58,Years,0)) -> 3.9288 | J79: =INDEX(INDIRECT(Lists!$M$5&"_"&IF(Lists!$T$3="Set for feedstocks individually",Lists!$T41,Lists!$T$3)&"_"&"1G"),MATCH($M79,OneG,0),MATCH(J$58,Years,0))*INDEX(Pass_rates_biodiesel_UCO_A,MATCH("UK",Supply_Regions,0),MATCH(J$58,Years,0)) -> 3.9288 | K79: =INDEX(INDIRECT(Lists!$M$5&"_"&IF(Lists!$T$3="Set for feedstocks individually",Lists!$T41,Lists!$T$3)&"_"&"1G"),MATCH($M79,OneG,0),MATCH(K$58,Years,0))*INDEX(Pass_rates_biodiesel_UCO_A,MATCH("UK",Supply_Regions,0),MATCH(K$58,Years,0)) -> 3.9288 | M79: Tallow
C80: Total UK liquid biofuels (1G) | D80: =SUM(D76:D79) -> 13.840212 | E80: 13.5412 | F80: 15.14019658 | G80: 16.3497799 | H80: 16.61856117 | I80: 16.190553 | J80: 13.24241081 | K80: 10.554678 | M80: Total
C81: Total UK | D81: =D69+D75+D80 -> 195.2624501 | E81: =E69+E75+E80 -> 259.5295245 | F81: 261.2877558 | G81: 291.6180843 | H81: 336.3468202 | I81: 396.8530779 | J81: 414.5107257 | K81: 439.3982002
C83: Potential International Resource Available to UK | D83: 2015 | E83: 2020 | F83: 2025 | G83: 2030 | H83: 2035 | I83: 2040 | J83: 2045 | K83: 2050
D84: PJ | E84: PJ | F84: PJ | G84: PJ | H84: PJ | I84: PJ | J84: PJ | K84: PJ
C85: =Lists!$AB$21 -> International agricultural residues | D85: =MAX(0,D97*'Set Scenarios'!E45) -> 483.8081997 | E85: =MAX(0,E97*'Set Scenarios'!F45) -> 515.707544 | F85: =MAX(0,F97*'Set Scenarios'!G45) -> 494.4603396 | G85: =MAX(0,G97*'Set Scenarios'!H45) -> 409.491275 | H85: =MAX(0,H97*'Set Scenarios'!I45) -> 353.7499923 | I85: =MAX(0,I97*'Set Scenarios'!J45) -> 297.0895526 | J85: =MAX(0,J97*'Set Scenarios'!K45) -> 179.632467 | K85: =MAX(0,K97*'Set Scenarios'!L45) -> 120.6741349
C86: =Lists!$AB$22 -> International woody biomass | D86: =MAX(0,D98*'Set Scenarios'!E46) -> 383.8709582 | E86: =MAX(0,E98*'Set Scenarios'!F46) -> 392.9920227 | F86: =MAX(0,F98*'Set Scenarios'!G46) -> 361.0305803 | G86: =MAX(0,G98*'Set Scenarios'!H46) -> 269.5941046 | H86: =MAX(0,H98*'Set Scenarios'!I46) -> 141.9443296 | I86: =MAX(0,I98*'Set Scenarios'!J46) -> 80.87327709 | J86: =MAX(0,J98*'Set Scenarios'!K46) -> 34.63966725 | K86: =MAX(0,K98*'Set Scenarios'!L46) -> 14.20833293
C87: Total international solid biomass | D87: =SUM(D85:D86) -> 867.679158 | E87: =SUM(E85:E86) -> 908.6995667 | F87: 855.4909198 | G87: 679.0853795 | H87: 495.6943219 | I87: 377.9628297 | J87: 214.2721342 | K87: 134.8824679
C88: International bioethanol | D88: =MAX(0,D100*'Set Scenarios'!E47) -> 61.42546453 | E88: =MAX(0,E100*'Set Scenarios'!F47) -> 103.2062914 | F88: =MAX(0,F100*'Set Scenarios'!G47) -> 89.36201166 | G88: =MAX(0,G100*'Set Scenarios'!H47) -> 75.03171113 | H88: =MAX(0,H100*'Set Scenarios'!I47) -> 64.94034812 | I88: =MAX(0,I100*'Set Scenarios'!J47) -> 55.31347209 | J88: =MAX(0,J100*'Set Scenarios'!K47) -> 30.63274841 | K88: =MAX(0,K100*'Set Scenarios'!L47) -> 21.12735871
C89: International biodiesel | D89: =MAX(0,D101*'Set Scenarios'!E48) -> 11.2448503 | E89: =MAX(0,E101*'Set Scenarios'!F48) -> 11.40855729 | F89: =MAX(0,F101*'Set Scenarios'!G48) -> 12.56502295 | G89: =MAX(0,G101*'Set Scenarios'!H48) -> 11.46647244 | H89: =MAX(0,H101*'Set Scenarios'!I48) -> 10.32651579 | I89: =MAX(0,I101*'Set Scenarios'!J48) -> 7.658681272 | J89: =MAX(0,J101*'Set Scenarios'!K48) -> 4.786026436 | K89: =MAX(0,K101*'Set Scenarios'!L48) -> 3.443936171
C90: Total international liquid biofuels (1G) | D90: =SUM(D88:D89) -> 72.67031484 | E90: 114.6148487 | F90: 101.9270346 | G90: 86.49818358 | H90: 75.26686391 | I90: 62.97215336 | J90: 35.41877485 | K90: 24.57129488
C91: Total international | D91: =D87+D90 -> 940.3494728 | E91: =E87+E90 -> 1023.314415 | F91: 957.4179545 | G91: 765.5835631 | H91: 570.9611858 | I91: 440.9349831 | J91: 249.6909091 | K91: 159.4537628
C93: International resource available to the UK is based on a total potential international resource available for trade as shown below
C95: Potential International Resource Available for Trade | D95: 2015 | E95: 2020 | F95: 2025 | G95: 2030 | H95: 2035 | I95: 2040 | J95: 2045 | K95: 2050
D96: PJ | E96: PJ | F96: PJ | G96: PJ | H96: PJ | I96: PJ | J96: PJ | K96: PJ
C97: =Lists!$AB$21 -> International agricultural residues | D97: ='Global Output - Scenario'!F23*VLOOKUP($C97,Pass_rates_solid_gaseous,MATCH(D$58,Years,0)+1,0) -> 4838.081997 | E97: ='Global Output - Scenario'!G23*VLOOKUP($C97,Pass_rates_solid_gaseous,MATCH(E$58,Years,0)+1,0) -> 5157.07544 | F97: ='Global Output - Scenario'!H23*VLOOKUP($C97,Pass_rates_solid_gaseous,MATCH(F$58,Years,0)+1,0) -> 5494.003773 | G97: ='Global Output - Scenario'!I23*VLOOKUP($C97,Pass_rates_solid_gaseous,MATCH(G$58,Years,0)+1,0) -> 5849.875357 | H97: ='Global Output - Scenario'!J23*VLOOKUP($C97,Pass_rates_solid_gaseous,MATCH(H$58,Years,0)+1,0) -> 5895.833204 | I97: ='Global Output - Scenario'!K23*VLOOKUP($C97,Pass_rates_solid_gaseous,MATCH(I$58,Years,0)+1,0) -> 5941.791052 | J97: ='Global Output - Scenario'!L23*VLOOKUP($C97,Pass_rates_solid_gaseous,MATCH(J$58,Years,0)+1,0) -> 5987.7489 | K97: ='Global Output - Scenario'!M23*VLOOKUP($C97,Pass_rates_solid_gaseous,MATCH(K$58,Years,0)+1,0) -> 6033.706747
C98: =Lists!$AB$22 -> International woody biomass | D98: =('Global Output - Scenario'!F24-(IF(Lists!$Y$5=Lists!$Y$12,'Global demand - biomass type'!D550,'Global demand - biomass type'!D552)/INDEX(PJ_Wood_To_PJ_2G,1,MATCH(D$95,Years,0))))*VLOOKUP($C98,Pass_rates_solid_gaseous,MATCH(D$58,Years,0)+1,0) -> 3838.709582 | E98: =('Global Output - Scenario'!G24-(IF(Lists!$Y$5=Lists!$Y$12,'Global demand - biomass type'!E550,'Global demand - biomass type'!E552)/INDEX(PJ_Wood_To_PJ_2G,1,MATCH(E$95,Years,0))))*VLOOKUP($C98,Pass_rates_solid_gaseous,MATCH(E$58,Years,0)+1,0) -> 3929.920227 | F98: =('Global Output - Scenario'!H24-(IF(Lists!$Y$5=Lists!$Y$12,'Global demand - biomass type'!F550,'Global demand - biomass type'!F552)/INDEX(PJ_Wood_To_PJ_2G,1,MATCH(F$95,Years,0))))*VLOOKUP($C98,Pass_rates_solid_gaseous,MATCH(F$58,Years,0)+1,0) -> 4011.450892 | G98: =('Global Output - Scenario'!I24-(IF(Lists!$Y$5=Lists!$Y$12,'Global demand - biomass type'!G550,'Global demand - biomass type'!G552)/INDEX(PJ_Wood_To_PJ_2G,1,MATCH(G$95,Years,0))))*VLOOKUP($C98,Pass_rates_solid_gaseous,MATCH(G$58,Years,0)+1,0) -> 3851.344351 | H98: =('Global Output - Scenario'!J24-(IF(Lists!$Y$5=Lists!$Y$12,'Global demand - biomass type'!H550,'Global demand - biomass type'!H552)/INDEX(PJ_Wood_To_PJ_2G,1,MATCH(H$95,Years,0))))*VLOOKUP($C98,Pass_rates_solid_gaseous,MATCH(H$58,Years,0)+1,0) -> 2365.738827 | I98: =('Global Output - Scenario'!K24-(IF(Lists!$Y$5=Lists!$Y$12,'Global demand - biomass type'!I550,'Global demand - biomass type'!I552)/INDEX(PJ_Wood_To_PJ_2G,1,MATCH(I$95,Years,0))))*VLOOKUP($C98,Pass_rates_solid_gaseous,MATCH(I$58,Years,0)+1,0) -> 1617.465542 | J98: =('Global Output - Scenario'!L24-(IF(Lists!$Y$5=Lists!$Y$12,'Global demand - biomass type'!J550,'Global demand - biomass type'!J552)/INDEX(PJ_Wood_To_PJ_2G,1,MATCH(J$95,Years,0))))*VLOOKUP($C98,Pass_rates_solid_gaseous,MATCH(J$58,Years,0)+1,0) -> 1154.655575 | K98: =('Global Output - Scenario'!M24-(IF(Lists!$Y$5=Lists!$Y$12,'Global demand - biomass type'!K550,'Global demand - biomass type'!K552)/INDEX(PJ_Wood_To_PJ_2G,1,MATCH(K$95,Years,0))))*VLOOKUP($C98,Pass_rates_solid_gaseous,MATCH(K$58,Years,0)+1,0) -> 710.4166465
C99: Total international solid biomass | D99: =SUM(D97:D98) -> 8676.79158 | E99: 9086.995667 | F99: 9505.454665 | G99: 9701.219708 | H99: 8261.572031 | I99: 7559.256594 | J99: 7142.404475 | K99: 6744.123394
C100: Bioethanol - sustainable | D100: ='Global Output - Scenario'!F26 -> 614.2546453 | E100: ='Global Output - Scenario'!G26 -> 1032.062914 | F100: ='Global Output - Scenario'!H26 -> 992.9112407 | G100: ='Global Output - Scenario'!I26 -> 1071.881588 | H100: ='Global Output - Scenario'!J26 -> 1082.339135 | I100: ='Global Output - Scenario'!K26 -> 1106.269442 | J100: ='Global Output - Scenario'!L26 -> 1021.091614 | K100: ='Global Output - Scenario'!M26 -> 1056.367935
C101: Biodiesel - sustainable | D101: ='Global Output - Scenario'!F27+IF('Sustainability data'!$C$29=Lists!$U$13,IF(Lists!$Y$5=Lists!$Y$12,'Global demand - biomass type'!D549,'Global demand - biomass type'!D551),0) -> 112.448503 | E101: ='Global Output - Scenario'!G27+IF('Sustainability data'!$C$29=Lists!$U$13,IF(Lists!$Y$5=Lists!$Y$12,'Global demand - biomass type'!E549,'Global demand - biomass type'!E551),0) -> 114.0855729 | F101: ='Global Output - Scenario'!H27+IF('Sustainability data'!$C$29=Lists!$U$13,IF(Lists!$Y$5=Lists!$Y$12,'Global demand - biomass type'!F549,'Global demand - biomass type'!F551),0) -> 139.6113661 | G101: ='Global Output - Scenario'!I27+IF('Sustainability data'!$C$29=Lists!$U$13,IF(Lists!$Y$5=Lists!$Y$12,'Global demand - biomass type'!G549,'Global demand - biomass type'!G551),0) -> 163.8067492 | H101: ='Global Output - Scenario'!J27+IF('Sustainability data'!$C$29=Lists!$U$13,IF(Lists!$Y$5=Lists!$Y$12,'Global demand - biomass type'!H549,'Global demand - biomass type'!H551),0) -> 172.1085965 | I101: ='Global Output - Scenario'!K27+IF('Sustainability data'!$C$29=Lists!$U$13,IF(Lists!$Y$5=Lists!$Y$12,'Global demand - biomass type'!I549,'Global demand - biomass type'!I551),0) -> 153.1736254 | J101: ='Global Output - Scenario'!L27+IF('Sustainability data'!$C$29=Lists!$U$13,IF(Lists!$Y$5=Lists!$Y$12,'Global demand - biomass type'!J549,'Global demand - biomass type'!J551),0) -> 159.5342145 | K101: ='Global Output - Scenario'!M27+IF('Sustainability data'!$C$29=Lists!$U$13,IF(Lists!$Y$5=Lists!$Y$12,'Global demand - biomass type'!K549,'Global demand - biomass type'!K551),0) -> 172.1968086
C102: Bioethanol - non sustainable | D102: ='Global Output - Scenario'!F28 -> 40.34537113 | E102: ='Global Output - Scenario'!G28 -> 79.32586108 | F102: ='Global Output - Scenario'!H28 -> 86.04640072 | G102: ='Global Output - Scenario'!I28 -> 101.1591915 | H102: ='Global Output - Scenario'!J28 -> 116.0391861 | I102: ='Global Output - Scenario'!K28 -> 233.8270176 | J102: ='Global Output - Scenario'!L28 -> 502.1364589 | K102: ='Global Output - Scenario'!M28 -> 629.3566114
C103: Biodiesel - non-sustainable | D103: ='Global Output - Scenario'!F29-IF('Sustainability data'!$C$29=Lists!$U$13,0,IF(Lists!$Y$5=Lists!$Y$12,'Global demand - biomass type'!D549,'Global demand - biomass type'!D551)) -> 179.7606299 | E103: ='Global Output - Scenario'!G29-IF('Sustainability data'!$C$29=Lists!$U$13,0,IF(Lists!$Y$5=Lists!$Y$12,'Global demand - biomass type'!E549,'Global demand - biomass type'!E551)) -> 432.7844616 | F103: ='Global Output - Scenario'!H29-IF('Sustainability data'!$C$29=Lists!$U$13,0,IF(Lists!$Y$5=Lists!$Y$12,'Global demand - biomass type'!F549,'Global demand - biomass type'!F551)) -> 446.9818125 | G103: ='Global Output - Scenario'!I29-IF('Sustainability data'!$C$29=Lists!$U$13,0,IF(Lists!$Y$5=Lists!$Y$12,'Global demand - biomass type'!G549,'Global demand - biomass type'!G551)) -> 472.885501 | H103: ='Global Output - Scenario'!J29-IF('Sustainability data'!$C$29=Lists!$U$13,0,IF(Lists!$Y$5=Lists!$Y$12,'Global demand - biomass type'!H549,'Global demand - biomass type'!H551)) -> 514.3051424 | I103: ='Global Output - Scenario'!K29-IF('Sustainability data'!$C$29=Lists!$U$13,0,IF(Lists!$Y$5=Lists!$Y$12,'Global demand - biomass type'!I549,'Global demand - biomass type'!I551)) -> 644.6849526 | J103: ='Global Output - Scenario'!L29-IF('Sustainability data'!$C$29=Lists!$U$13,0,IF(Lists!$Y$5=Lists!$Y$12,'Global demand - biomass type'!J549,'Global demand - biomass type'!J551)) -> 698.0076553 | K103: ='Global Output - Scenario'!M29-IF('Sustainability data'!$C$29=Lists!$U$13,0,IF(Lists!$Y$5=Lists!$Y$12,'Global demand - biomass type'!K549,'Global demand - biomass type'!K551)) -> 745.6906232
C104: Total international liquid biofuels (1G) | D104: =SUM(D100:D103) -> 946.8091494 | E104: =SUM(E100:E103) -> 1658.25881 | F104: 1665.55082 | G104: 1809.733029 | H104: 1884.79206 | I104: 2137.955037 | J104: 2380.769942 | K104: 2603.611979
C105: Total international | D105: =D99+D104 -> 9623.600729 | E105: =E99+E104 -> 10745.25448 | F105: =F99+F104 -> 11171.00548 | G105: 11510.95274 | H105: 10146.36409 | I105: 9697.211631 | J105: 9523.174417 | K105: 9347.735373
C107: Note: Negative numbers in summary above indicates that the biomass resource estimated as potentially available is not enough to meet the global demand for bioenergy in the demand scenario chosen

Sheet Scenario Results (TWh) (hidden)
C1: Scenario Results | D1: Model version | E1: =Introduction!$F$27 -> Version 8.09 | G1: Date of model version | I1: =Introduction!$F$28 -> 21st Feb 2017
C3: Scenario parameters chosen
C4: UK | H4: International
C5: Price Scenario | D5: Level of barriers overcome | E5: Land Based Crops | F5: Annual crop production which is maximised | H5: Land based crops | I5: Global scenario | J5: Global bioenergy demand
C6: ='Set Scenarios'!E6 -> £4/GJ | D6: ='Set Scenarios'!E7 -> No barriers overcome | E6: ='Set Scenarios'!E8 -> Maximise production annual energy crops | F6: =IF('Set Scenarios'!$E$8=Lists!$O$12,"n/a",'Set Scenarios'!$E$9) -> Maximise production of crops for liquid biofuels | H6: ='Set Scenarios'!E39 -> Maximise production annual energy crops | I6: ='Set Scenarios'!E37 -> BAU/continuing trends | J6: ='Set Scenarios'!E38 -> BAU (including new policies)
C8: GHG Sustainability Criteria Applied
C9: Biofuels and bioliquids | D9: Solid and gaseous biomass | E9: Distribution used for GHG emissions
C10: ='Sustainability data'!$C$29 -> Applied | D10: ='Sustainability data'!$C$30 -> Applied | E10: ='Sustainability data'!$C$32 -> Central
C13: Summary Results
C15: Total potential bioenergy resource available to UK | D15: 2015 | E15: 2020 | F15: 2025 | G15: 2030 | H15: 2035 | I15: 2040 | J15: 2045 | K15: 2050
D16: TWh | E16: TWh | F16: TWh | G16: TWh | H16: TWh | I16: TWh | J16: TWh | K16: TWh
C17: UK solid biomass | D17: ='Scenario Results (PJ)'!D17*PJ_to_TWh -> 30.996057 | E17: ='Scenario Results (PJ)'!E17*PJ_to_TWh -> 49.73438796 | F17: ='Scenario Results (PJ)'!F17*PJ_to_TWh -> 50.00264619 | G17: ='Scenario Results (PJ)'!G17*PJ_to_TWh -> 57.32365152 | H17: ='Scenario Results (PJ)'!H17*PJ_to_TWh -> 69.29504748 | I17: ='Scenario Results (PJ)'!I17*PJ_to_TWh -> 85.88948246 | J17: ='Scenario Results (PJ)'!J17*PJ_to_TWh -> 92.26298448 | K17: ='Scenario Results (PJ)'!K17*PJ_to_TWh -> 99.58748495
C18: UK biogas | D18: ='Scenario Results (PJ)'!D18*PJ_to_TWh -> 19.39900913 | E18: ='Scenario Results (PJ)'!E18*PJ_to_TWh -> 18.59570218 | F18: ='Scenario Results (PJ)'!F18*PJ_to_TWh -> 18.37167582 | G18: ='Scenario Results (PJ)'!G18*PJ_to_TWh -> 19.13976637 | H18: ='Scenario Results (PJ)'!H18*PJ_to_TWh -> 19.5183578 | I18: ='Scenario Results (PJ)'!I18*PJ_to_TWh -> 19.85010779 | J18: ='Scenario Results (PJ)'!J18*PJ_to_TWh -> 19.20043633 | K18: ='Scenario Results (PJ)'!K18*PJ_to_TWh -> 19.53571567
C19: UK liquid biofuels | D19: ='Scenario Results (PJ)'!D19*PJ_to_TWh -> 3.844503333 | E19: ='Scenario Results (PJ)'!E19*PJ_to_TWh -> 3.761444444 | F19: ='Scenario Results (PJ)'!F19*PJ_to_TWh -> 4.205610162 | G19: ='Scenario Results (PJ)'!G19*PJ_to_TWh -> 4.541605528 | H19: ='Scenario Results (PJ)'!H19*PJ_to_TWh -> 4.616266993 | I19: ='Scenario Results (PJ)'!I19*PJ_to_TWh -> 4.497375833 | J19: ='Scenario Results (PJ)'!J19*PJ_to_TWh -> 3.678447446 | K19: ='Scenario Results (PJ)'!K19*PJ_to_TWh -> 2.931855
C20: International solid biomass | D20: ='Scenario Results (PJ)'!D20*PJ_to_TWh -> 241.0219883 | E20: ='Scenario Results (PJ)'!E20*PJ_to_TWh -> 252.4165463 | F20: ='Scenario Results (PJ)'!F20*PJ_to_TWh -> 237.6363666 | G20: ='Scenario Results (PJ)'!G20*PJ_to_TWh -> 188.6348276 | H20: ='Scenario Results (PJ)'!H20*PJ_to_TWh -> 137.6928672 | I20: ='Scenario Results (PJ)'!I20*PJ_to_TWh -> 104.9896749 | J20: ='Scenario Results (PJ)'!J20*PJ_to_TWh -> 59.52003729 | K20: ='Scenario Results (PJ)'!K20*PJ_to_TWh -> 37.46735219
C21: International liquid biofuels (1G) | D21: ='Scenario Results (PJ)'!D21*PJ_to_TWh -> 20.18619857 | E21: ='Scenario Results (PJ)'!E21*PJ_to_TWh -> 31.83745798 | F21: ='Scenario Results (PJ)'!F21*PJ_to_TWh -> 28.31306517 | G21: ='Scenario Results (PJ)'!G21*PJ_to_TWh -> 24.02727322 | H21: ='Scenario Results (PJ)'!H21*PJ_to_TWh -> 20.9074622 | I21: ='Scenario Results (PJ)'!I21*PJ_to_TWh -> 17.49226482 | J21: ='Scenario Results (PJ)'!J21*PJ_to_TWh -> 9.838548568 | K21: ='Scenario Results (PJ)'!K21*PJ_to_TWh -> 6.825359689
C22: Total | D22: =SUM(D17:D21) -> 315.4477564 | E22: 356.3455389 | F22: 338.529364 | G22: 293.6671243 | H22: 252.0300017 | I22: 232.7189058 | J22: 184.5004541 | K22: 166.3477675
D23: =IF('Scenario Results (PJ)'!D22*PJ_to_TWh/D22-1<1^-10,"","ERROR") ->  | E23: =IF('Scenario Results (PJ)'!E22*PJ_to_TWh/E22-1<1^-10,"","ERROR") ->  | F23: =IF('Scenario Results (PJ)'!F22*PJ_to_TWh/F22-1<1^-10,"","ERROR") ->  | G23: =IF('Scenario Results (PJ)'!G22*PJ_to_TWh/G22-1<1^-10,"","ERROR") ->  | H23: =IF('Scenario Results (PJ)'!H22*PJ_to_TWh/H22-1<1^-10,"","ERROR") ->  | I23: =IF('Scenario Results (PJ)'!I22*PJ_to_TWh/I22-1<1^-10,"","ERROR") ->  | J23: =IF('Scenario Results (PJ)'!J22*PJ_to_TWh/J22-1<1^-10,"","ERROR") ->  | K23: =IF('Scenario Results (PJ)'!K22*PJ_to_TWh/K22-1<1^-10,"","ERROR") -> 
C56: Detailed Results
D57: Total Biomass availability TWh
C58: Potential UK Resource | D58: 2015 | E58: 2020 | F58: 2025 | G58: 2030 | H58: 2035 | I58: 2040 | J58: 2045 | K58: 2050 | M58: LOOK UP FOR DETAILED RESULTS _ DO NOT DELETE
D59: TWh | E59: TWh | F59: TWh | G59: TWh | H59: TWh | I59: TWh | J59: TWh | K59: TWh
C60: =Lists!F13 -> UK perennial energy crops | D60: ='Scenario Results (PJ)'!D60*PJ_to_TWh -> 0.4778333333 | E60: ='Scenario Results (PJ)'!E60*PJ_to_TWh -> 0.2180610432 | F60: ='Scenario Results (PJ)'!F60*PJ_to_TWh -> 1.67628 | G60: ='Scenario Results (PJ)'!G60*PJ_to_TWh -> 6.372263333 | H60: ='Scenario Results (PJ)'!H60*PJ_to_TWh -> 12.49415344 | I60: ='Scenario Results (PJ)'!I60*PJ_to_TWh -> 20.44964 | J60: ='Scenario Results (PJ)'!J60*PJ_to_TWh -> 25.24986979 | K60: ='Scenario Results (PJ)'!K60*PJ_to_TWh -> 30.744 | M60: =IF(Lists!$O$5="Max_EC","Energy_Crops_Max","Energy_Crops_Min") -> Energy_Crops_Min
C61: =Lists!F14 -> Dry agricultural residues | D61: ='Scenario Results (PJ)'!D61*PJ_to_TWh -> 12.38166667 | E61: ='Scenario Results (PJ)'!E61*PJ_to_TWh -> 16.9575 | F61: ='Scenario Results (PJ)'!F61*PJ_to_TWh -> 17.63041667 | G61: ='Scenario Results (PJ)'!G61*PJ_to_TWh -> 18.30333333 | H61: ='Scenario Results (PJ)'!H61*PJ_to_TWh -> 22.61 | I61: ='Scenario Results (PJ)'!I61*PJ_to_TWh -> 26.91666667 | J61: ='Scenario Results (PJ)'!J61*PJ_to_TWh -> 26.91666667 | K61: ='Scenario Results (PJ)'!K61*PJ_to_TWh -> 26.91666667 | M61: Dry_Agr_Res
C62: =Lists!F15 -> Forestry residues | D62: ='Scenario Results (PJ)'!D62*PJ_to_TWh -> 0.03219444444 | E62: ='Scenario Results (PJ)'!E62*PJ_to_TWh -> 0.0665 | F62: ='Scenario Results (PJ)'!F62*PJ_to_TWh -> 0.2744444444 | G62: ='Scenario Results (PJ)'!G62*PJ_to_TWh -> 0.4596944444 | H62: ='Scenario Results (PJ)'!H62*PJ_to_TWh -> 0.4185277778 | I62: ='Scenario Results (PJ)'!I62*PJ_to_TWh -> 0.5077222222 | J62: ='Scenario Results (PJ)'!J62*PJ_to_TWh -> 0.55575 | K62: ='Scenario Results (PJ)'!K62*PJ_to_TWh -> 0.3910833333 | M62: Forestry_Residue
C63: =Lists!F16 -> Stemwood | D63: ='Scenario Results (PJ)'!D63*PJ_to_TWh -> 0 | E63: ='Scenario Results (PJ)'!E63*PJ_to_TWh -> 0 | F63: ='Scenario Results (PJ)'!F63*PJ_to_TWh -> 0 | G63: ='Scenario Results (PJ)'!G63*PJ_to_TWh -> 0.133 | H63: ='Scenario Results (PJ)'!H63*PJ_to_TWh -> 0.10925 | I63: ='Scenario Results (PJ)'!I63*PJ_to_TWh -> 0.1451388889 | J63: ='Scenario Results (PJ)'!J63*PJ_to_TWh -> 0.1345833333 | K63: ='Scenario Results (PJ)'!K63*PJ_to_TWh -> 0 | M63: SRW
C64: =Lists!F17 -> Short rotation forestry | D64: ='Scenario Results (PJ)'!D64*PJ_to_TWh -> 0 | E64: ='Scenario Results (PJ)'!E64*PJ_to_TWh -> 0 | F64: ='Scenario Results (PJ)'!F64*PJ_to_TWh -> 0 | G64: ='Scenario Results (PJ)'!G64*PJ_to_TWh -> 0 | H64: ='Scenario Results (PJ)'!H64*PJ_to_TWh -> 0.23275 | I64: ='Scenario Results (PJ)'!I64*PJ_to_TWh -> 2.375 | J64: ='Scenario Results (PJ)'!J64*PJ_to_TWh -> 2.6125 | K64: ='Scenario Results (PJ)'!K64*PJ_to_TWh -> 3.4086 | M64: SRF
C65: =Lists!F18 -> Sawmill co-products | D65: ='Scenario Results (PJ)'!D65*PJ_to_TWh -> 0.6808333333 | E65: ='Scenario Results (PJ)'!E65*PJ_to_TWh -> 0 | F65: ='Scenario Results (PJ)'!F65*PJ_to_TWh -> 0.7462777778 | G65: ='Scenario Results (PJ)'!G65*PJ_to_TWh -> 1.454555556 | H65: ='Scenario Results (PJ)'!H65*PJ_to_TWh -> 1.286722222 | I65: ='Scenario Results (PJ)'!I65*PJ_to_TWh -> 1.342666667 | J65: ='Scenario Results (PJ)'!J65*PJ_to_TWh -> 1.25875 | K65: ='Scenario Results (PJ)'!K65*PJ_to_TWh -> 0.6993055556 | M65: Sawmill
C66: =Lists!F19 -> Arboricultural arisings | D66: ='Scenario Results (PJ)'!D66*PJ_to_TWh -> 0.7262222222 | E66: ='Scenario Results (PJ)'!E66*PJ_to_TWh -> 1.235 | F66: ='Scenario Results (PJ)'!F66*PJ_to_TWh -> 1.425 | G66: ='Scenario Results (PJ)'!G66*PJ_to_TWh -> 1.615 | H66: ='Scenario Results (PJ)'!H66*PJ_to_TWh -> 1.615 | I66: ='Scenario Results (PJ)'!I66*PJ_to_TWh -> 1.615 | J66: ='Scenario Results (PJ)'!J66*PJ_to_TWh -> 1.615 | K66: ='Scenario Results (PJ)'!K66*PJ_to_TWh -> 1.615 | M66: Arbs
C67: =Lists!F20 -> Waste wood | D67: ='Scenario Results (PJ)'!D67*PJ_to_TWh -> 7.811111111 | E67: ='Scenario Results (PJ)'!E67*PJ_to_TWh -> 20.53055556 | F67: ='Scenario Results (PJ)'!F67*PJ_to_TWh -> 20.53055556 | G67: ='Scenario Results (PJ)'!G67*PJ_to_TWh -> 20.53055556 | H67: ='Scenario Results (PJ)'!H67*PJ_to_TWh -> 20.53055556 | I67: ='Scenario Results (PJ)'!I67*PJ_to_TWh -> 20.53055556 | J67: ='Scenario Results (PJ)'!J67*PJ_to_TWh -> 20.53055556 | K67: ='Scenario Results (PJ)'!K67*PJ_to_TWh -> 20.53055556 | M67: Waste_wood
C68: =Lists!F21 -> Renewable fraction of wastes | D68: ='Scenario Results (PJ)'!D68*PJ_to_TWh -> 8.886195888 | E68: ='Scenario Results (PJ)'!E68*PJ_to_TWh -> 10.72677136 | F68: ='Scenario Results (PJ)'!F68*PJ_to_TWh -> 7.719671745 | G68: ='Scenario Results (PJ)'!G68*PJ_to_TWh -> 8.455249302 | H68: ='Scenario Results (PJ)'!H68*PJ_to_TWh -> 9.998088486 | I68: ='Scenario Results (PJ)'!I68*PJ_to_TWh -> 12.00709246 | J68: ='Scenario Results (PJ)'!J68*PJ_to_TWh -> 13.38930913 | K68: ='Scenario Results (PJ)'!K68*PJ_to_TWh -> 15.28227383 | M68: MSW
C69: Total UK solid biomass | D69: =SUM(D60:D68) -> 30.996057 | E69: =SUM(E60:E68) -> 49.73438796 | F69: 50.00264619 | G69: 57.32365152 | H69: 69.29504748 | I69: 85.88948246 | J69: 92.26298448 | K69: 99.58748495
C70: =Lists!F22 -> Biogas from food waste | D70: ='Scenario Results (PJ)'!D70*PJ_to_TWh -> 1.961234123 | E70: ='Scenario Results (PJ)'!E70*PJ_to_TWh -> 2.926463517 | F70: ='Scenario Results (PJ)'!F70*PJ_to_TWh -> 3.800097996 | G70: ='Scenario Results (PJ)'!G70*PJ_to_TWh -> 4.76304149 | H70: ='Scenario Results (PJ)'!H70*PJ_to_TWh -> 5.045457896 | I70: ='Scenario Results (PJ)'!I70*PJ_to_TWh -> 5.328302922 | J70: ='Scenario Results (PJ)'!J70*PJ_to_TWh -> 5.610389012 | K70: ='Scenario Results (PJ)'!K70*PJ_to_TWh -> 5.893234038 | M70: Food_Waste_AD
C71: =Lists!F23 -> Landfill gas | D71: ='Scenario Results (PJ)'!D71*PJ_to_TWh -> 13.60033277 | E71: ='Scenario Results (PJ)'!E71*PJ_to_TWh -> 11.42333325 | F71: ='Scenario Results (PJ)'!F71*PJ_to_TWh -> 10.04720952 | G71: ='Scenario Results (PJ)'!G71*PJ_to_TWh -> 9.629948913 | H71: ='Scenario Results (PJ)'!H71*PJ_to_TWh -> 9.516430047 | I71: ='Scenario Results (PJ)'!I71*PJ_to_TWh -> 9.419023641 | J71: ='Scenario Results (PJ)'!J71*PJ_to_TWh -> 9.354215208 | K71: ='Scenario Results (PJ)'!K71*PJ_to_TWh -> 9.304253125 | M71: Landfill_Gas
C72: =Lists!F24 -> Biogas from sewage sludge | D72: ='Scenario Results (PJ)'!D72*PJ_to_TWh -> 3.288215437 | E72: ='Scenario Results (PJ)'!E72*PJ_to_TWh -> 3.562568987 | F72: ='Scenario Results (PJ)'!F72*PJ_to_TWh -> 3.776540548 | G72: ='Scenario Results (PJ)'!G72*PJ_to_TWh -> 3.96651119 | H72: ='Scenario Results (PJ)'!H72*PJ_to_TWh -> 4.075952606 | I72: ='Scenario Results (PJ)'!I72*PJ_to_TWh -> 4.116728523 | J72: ='Scenario Results (PJ)'!J72*PJ_to_TWh -> 4.195859153 | K72: ='Scenario Results (PJ)'!K72*PJ_to_TWh -> 4.291956558 | M72: Sewage_Sludge_AD
C73: =Lists!F25 -> Biogas from livestock manures | D73: ='Scenario Results (PJ)'!D73*PJ_to_TWh -> 0.01777280143 | E73: ='Scenario Results (PJ)'!E73*PJ_to_TWh -> 0.03459602428 | F73: ='Scenario Results (PJ)'!F73*PJ_to_TWh -> 0.03421331507 | G73: ='Scenario Results (PJ)'!G73*PJ_to_TWh -> 0.03421331507 | H73: ='Scenario Results (PJ)'!H73*PJ_to_TWh -> 0.03715473149 | I73: ='Scenario Results (PJ)'!I73*PJ_to_TWh -> 0.03997295791 | J73: ='Scenario Results (PJ)'!J73*PJ_to_TWh -> 0.03997295791 | K73: ='Scenario Results (PJ)'!K73*PJ_to_TWh -> 0.04627194442 | M73: Wet_Manures_AD
C74: =Lists!F26 -> Biogas from crops | D74: ='Scenario Results (PJ)'!D74*PJ_to_TWh -> 0.531454 | E74: ='Scenario Results (PJ)'!E74*PJ_to_TWh -> 0.6487404 | F74: ='Scenario Results (PJ)'!F74*PJ_to_TWh -> 0.71361444 | G74: ='Scenario Results (PJ)'!G74*PJ_to_TWh -> 0.74605146 | H74: ='Scenario Results (PJ)'!H74*PJ_to_TWh -> 0.84336252 | I74: ='Scenario Results (PJ)'!I74*PJ_to_TWh -> 0.94607975 | J74: ='Scenario Results (PJ)'!J74*PJ_to_TWh -> 0 | K74: ='Scenario Results (PJ)'!K74*PJ_to_TWh -> 0 | M74: =IF(Lists!$O$5="Max_EC","Biomethane_Crops_Min",IF(Lists!$Q$5="Max_Maize","Biomethane_Crops_Max","Biomethane_Crops_Min")) -> Biomethane_Crops_Min
C75: Total UK biogas | D75: =SUM(D70:D74) -> 19.39900913 | E75: =SUM(E70:E74) -> 18.59570218 | F75: 18.37167582 | G75: 19.13976637 | H75: 19.5183578 | I75: 19.85010779 | J75: 19.20043633 | K75: 19.53571567
C76: Bioethanol from crops | D76: ='Scenario Results (PJ)'!D76*PJ_to_TWh -> 0.8443283333 | E76: ='Scenario Results (PJ)'!E76*PJ_to_TWh -> 0.7996994444 | F76: ='Scenario Results (PJ)'!F76*PJ_to_TWh -> 1.219217773 | G76: ='Scenario Results (PJ)'!G76*PJ_to_TWh -> 1.528454472 | H76: ='Scenario Results (PJ)'!H76*PJ_to_TWh -> 1.603771264 | I76: ='Scenario Results (PJ)'!I76*PJ_to_TWh -> 1.565520833 | J76: ='Scenario Results (PJ)'!J76*PJ_to_TWh -> 0.7465924459 | K76: ='Scenario Results (PJ)'!K76*PJ_to_TWh -> 0 | M76: =IF(Lists!$O$5=Lists!$O$13,"Bioethanol_Crops_Min",IF(Lists!$Q$6="Max_BioEth","Bioethanol_Crops_Max","Bioethanol_Crops_Min")) -> Bioethanol_Crops_Max
C77: Biodiesel from crops | D77: ='Scenario Results (PJ)'!D77*PJ_to_TWh -> 0.06832 | E77: ='Scenario Results (PJ)'!E77*PJ_to_TWh -> 0.02989 | F77: ='Scenario Results (PJ)'!F77*PJ_to_TWh -> 0.05453738889 | G77: ='Scenario Results (PJ)'!G77*PJ_to_TWh -> 0.08129605556 | H77: ='Scenario Results (PJ)'!H77*PJ_to_TWh -> 0.08064072917 | I77: ='Scenario Results (PJ)'!I77*PJ_to_TWh -> 0 | J77: ='Scenario Results (PJ)'!J77*PJ_to_TWh -> 0 | K77: ='Scenario Results (PJ)'!K77*PJ_to_TWh -> 0 | M77: =IF(Lists!$O$5=Lists!$O$13,"Biodiesel_Crops_Min",IF(Lists!$Q$7="Max_BioD","Biodiesel_Crops_Max","Biodiesel_Crops_Min")) -> Biodiesel_Crops_Max
C78: Biodiesel from UCO | D78: ='Scenario Results (PJ)'!D78*PJ_to_TWh -> 1.840521667 | E78: ='Scenario Results (PJ)'!E78*PJ_to_TWh -> 1.840521667 | F78: ='Scenario Results (PJ)'!F78*PJ_to_TWh -> 1.840521667 | G78: ='Scenario Results (PJ)'!G78*PJ_to_TWh -> 1.840521667 | H78: ='Scenario Results (PJ)'!H78*PJ_to_TWh -> 1.840521667 | I78: ='Scenario Results (PJ)'!I78*PJ_to_TWh -> 1.840521667 | J78: ='Scenario Results (PJ)'!J78*PJ_to_TWh -> 1.840521667 | K78: ='Scenario Results (PJ)'!K78*PJ_to_TWh -> 1.840521667 | M78: UCO
C79: Biodiesel from tallow | D79: ='Scenario Results (PJ)'!D79*PJ_to_TWh -> 1.091333333 | E79: ='Scenario Results (PJ)'!E79*PJ_to_TWh -> 1.091333333 | F79: ='Scenario Results (PJ)'!F79*PJ_to_TWh -> 1.091333333 | G79: ='Scenario Results (PJ)'!G79*PJ_to_TWh -> 1.091333333 | H79: ='Scenario Results (PJ)'!H79*PJ_to_TWh -> 1.091333333 | I79: ='Scenario Results (PJ)'!I79*PJ_to_TWh -> 1.091333333 | J79: ='Scenario Results (PJ)'!J79*PJ_to_TWh -> 1.091333333 | K79: ='Scenario Results (PJ)'!K79*PJ_to_TWh -> 1.091333333 | M79: Tallow
C80: Total UK liquid biofuels (1G) | D80: =SUM(D76:D79) -> 3.844503333 | E80: 3.761444444 | F80: 4.205610162 | G80: 4.541605528 | H80: 4.616266993 | I80: 4.497375833 | J80: 3.678447446 | K80: 2.931855 | M80: Total
C81: Total UK | D81: =D69+D75+D80 -> 54.23956946 | E81: =E69+E75+E80 -> 72.09153459 | F81: 72.57993217 | G81: 81.00502342 | H81: 93.42967227 | I81: 110.2369661 | J81: 115.1418683 | K81: 122.0550556
C83: Potential International Resource Available to UK | D83: 2015 | E83: 2020 | F83: 2025 | G83: 2030 | H83: 2035 | I83: 2040 | J83: 2045 | K83: 2050
D84: TWh | E84: TWh | F84: TWh | G84: TWh | H84: TWh | I84: TWh | J84: TWh | K84: TWh
C85: =Lists!$AB$21 -> International agricultural residues | D85: ='Scenario Results (PJ)'!D85*PJ_to_TWh -> 134.3911666 | E85: ='Scenario Results (PJ)'!E85*PJ_to_TWh -> 143.2520956 | F85: ='Scenario Results (PJ)'!F85*PJ_to_TWh -> 137.3500943 | G85: ='Scenario Results (PJ)'!G85*PJ_to_TWh -> 113.7475764 | H85: ='Scenario Results (PJ)'!H85*PJ_to_TWh -> 98.26388674 | I85: ='Scenario Results (PJ)'!I85*PJ_to_TWh -> 82.52487572 | J85: ='Scenario Results (PJ)'!J85*PJ_to_TWh -> 49.8979075 | K85: ='Scenario Results (PJ)'!K85*PJ_to_TWh -> 33.52059304
C86: =Lists!$AB$22 -> International woody biomass | D86: ='Scenario Results (PJ)'!D86*PJ_to_TWh -> 106.6308217 | E86: ='Scenario Results (PJ)'!E86*PJ_to_TWh -> 109.1644507 | F86: ='Scenario Results (PJ)'!F86*PJ_to_TWh -> 100.2862723 | G86: ='Scenario Results (PJ)'!G86*PJ_to_TWh -> 74.88725127 | H86: ='Scenario Results (PJ)'!H86*PJ_to_TWh -> 39.42898045 | I86: ='Scenario Results (PJ)'!I86*PJ_to_TWh -> 22.46479919 | J86: ='Scenario Results (PJ)'!J86*PJ_to_TWh -> 9.622129791 | K86: ='Scenario Results (PJ)'!K86*PJ_to_TWh -> 3.946759147
C87: Total international solid biomass | D87: =SUM(D85:D86) -> 241.0219883 | E87: =SUM(E85:E86) -> 252.4165463 | F87: 237.6363666 | G87: 188.6348276 | H87: 137.6928672 | I87: 104.9896749 | J87: 59.52003729 | K87: 37.46735219
C88: International bioethanol | D88: ='Scenario Results (PJ)'!D88*PJ_to_TWh -> 17.06262904 | E88: ='Scenario Results (PJ)'!E88*PJ_to_TWh -> 28.66841429 | F88: ='Scenario Results (PJ)'!F88*PJ_to_TWh -> 24.82278102 | G88: ='Scenario Results (PJ)'!G88*PJ_to_TWh -> 20.84214198 | H88: ='Scenario Results (PJ)'!H88*PJ_to_TWh -> 18.03898559 | I88: ='Scenario Results (PJ)'!I88*PJ_to_TWh -> 15.36485336 | J88: ='Scenario Results (PJ)'!J88*PJ_to_TWh -> 8.50909678 | K88: ='Scenario Results (PJ)'!K88*PJ_to_TWh -> 5.868710753
C89: International biodiesel | D89: ='Scenario Results (PJ)'!D89*PJ_to_TWh -> 3.123569528 | E89: ='Scenario Results (PJ)'!E89*PJ_to_TWh -> 3.169043692 | F89: ='Scenario Results (PJ)'!F89*PJ_to_TWh -> 3.490284153 | G89: ='Scenario Results (PJ)'!G89*PJ_to_TWh -> 3.185131234 | H89: ='Scenario Results (PJ)'!H89*PJ_to_TWh -> 2.868476608 | I89: ='Scenario Results (PJ)'!I89*PJ_to_TWh -> 2.127411464 | J89: ='Scenario Results (PJ)'!J89*PJ_to_TWh -> 1.329451788 | K89: ='Scenario Results (PJ)'!K89*PJ_to_TWh -> 0.9566489364
C90: Total international liquid biofuels (1G) | D90: =SUM(D88:D89) -> 20.18619857 | E90: =SUM(E88:E89) -> 31.83745798 | F90: 28.31306517 | G90: 24.02727322 | H90: 20.9074622 | I90: 17.49226482 | J90: 9.838548568 | K90: 6.825359689
C91: Total international | D91: =D87+D90 -> 261.2081869 | E91: =E87+E90 -> 284.2540043 | F91: 265.9494318 | G91: 212.6621009 | H91: 158.6003294 | I91: 122.4819397 | J91: 69.35858586 | K91: 44.29271188
C93: International resource available to the UK is based on a total potential international resource available for trade as shown below
C95: Potential International Resource Available for Trade | D95: 2015 | E95: 2020 | F95: 2025 | G95: 2030 | H95: 2035 | I95: 2040 | J95: 2045 | K95: 2050
D96: TWh | E96: TWh | F96: TWh | G96: TWh | H96: TWh | I96: TWh | J96: TWh | K96: TWh
C97: =Lists!$AB$21 -> International agricultural residues | D97: ='Scenario Results (PJ)'!D97*PJ_to_TWh -> 1343.911666 | E97: ='Scenario Results (PJ)'!E97*PJ_to_TWh -> 1432.520956 | F97: ='Scenario Results (PJ)'!F97*PJ_to_TWh -> 1526.112159 | G97: ='Scenario Results (PJ)'!G97*PJ_to_TWh -> 1624.965377 | H97: ='Scenario Results (PJ)'!H97*PJ_to_TWh -> 1637.731446 | I97: ='Scenario Results (PJ)'!I97*PJ_to_TWh -> 1650.497514 | J97: ='Scenario Results (PJ)'!J97*PJ_to_TWh -> 1663.263583 | K97: ='Scenario Results (PJ)'!K97*PJ_to_TWh -> 1676.029652
C98: =Lists!$AB$22 -> International woody biomass | D98: ='Scenario Results (PJ)'!D98*PJ_to_TWh -> 1066.308217 | E98: ='Scenario Results (PJ)'!E98*PJ_to_TWh -> 1091.644507 | F98: ='Scenario Results (PJ)'!F98*PJ_to_TWh -> 1114.291914 | G98: ='Scenario Results (PJ)'!G98*PJ_to_TWh -> 1069.817875 | H98: ='Scenario Results (PJ)'!H98*PJ_to_TWh -> 657.1496741 | I98: ='Scenario Results (PJ)'!I98*PJ_to_TWh -> 449.2959838 | J98: ='Scenario Results (PJ)'!J98*PJ_to_TWh -> 320.7376597 | K98: ='Scenario Results (PJ)'!K98*PJ_to_TWh -> 197.3379574
C99: Total international solid biomass | D99: =SUM(D97:D98) -> 2410.219883 | E99: =SUM(E97:E98) -> 2524.165463 | F99: 2640.404074 | G99: 2694.783252 | H99: 2294.88112 | I99: 2099.793498 | J99: 1984.001243 | K99: 1873.367609
C100: Bioethanol - sustainable | D100: ='Scenario Results (PJ)'!D100*PJ_to_TWh -> 170.6262904 | E100: ='Scenario Results (PJ)'!E100*PJ_to_TWh -> 286.6841429 | F100: ='Scenario Results (PJ)'!F100*PJ_to_TWh -> 275.808678 | G100: ='Scenario Results (PJ)'!G100*PJ_to_TWh -> 297.7448855 | H100: ='Scenario Results (PJ)'!H100*PJ_to_TWh -> 300.6497598 | I100: ='Scenario Results (PJ)'!I100*PJ_to_TWh -> 307.2970672 | J100: ='Scenario Results (PJ)'!J100*PJ_to_TWh -> 283.6365593 | K100: ='Scenario Results (PJ)'!K100*PJ_to_TWh -> 293.4355376
C101: Biodiesel - sustainable | D101: ='Scenario Results (PJ)'!D101*PJ_to_TWh -> 31.23569528 | E101: ='Scenario Results (PJ)'!E101*PJ_to_TWh -> 31.69043692 | F101: ='Scenario Results (PJ)'!F101*PJ_to_TWh -> 38.78093503 | G101: ='Scenario Results (PJ)'!G101*PJ_to_TWh -> 45.50187478 | H101: ='Scenario Results (PJ)'!H101*PJ_to_TWh -> 47.80794346 | I101: ='Scenario Results (PJ)'!I101*PJ_to_TWh -> 42.54822929 | J101: ='Scenario Results (PJ)'!J101*PJ_to_TWh -> 44.31505959 | K101: ='Scenario Results (PJ)'!K101*PJ_to_TWh -> 47.83244682
C102: Bioethanol - non sustainable | D102: ='Scenario Results (PJ)'!D102*PJ_to_TWh -> 11.20704754 | E102: ='Scenario Results (PJ)'!E102*PJ_to_TWh -> 22.03496141 | F102: ='Scenario Results (PJ)'!F102*PJ_to_TWh -> 23.90177798 | G102: ='Scenario Results (PJ)'!G102*PJ_to_TWh -> 28.09977543 | H102: ='Scenario Results (PJ)'!H102*PJ_to_TWh -> 32.23310726 | I102: ='Scenario Results (PJ)'!I102*PJ_to_TWh -> 64.95194932 | J102: ='Scenario Results (PJ)'!J102*PJ_to_TWh -> 139.4823497 | K102: ='Scenario Results (PJ)'!K102*PJ_to_TWh -> 174.821281
C103: Biodiesel - non-sustainable | D103: ='Scenario Results (PJ)'!D103*PJ_to_TWh -> 49.93350831 | E103: ='Scenario Results (PJ)'!E103*PJ_to_TWh -> 120.217906 | F103: ='Scenario Results (PJ)'!F103*PJ_to_TWh -> 124.1616146 | G103: ='Scenario Results (PJ)'!G103*PJ_to_TWh -> 131.3570836 | H103: ='Scenario Results (PJ)'!H103*PJ_to_TWh -> 142.8625396 | I103: ='Scenario Results (PJ)'!I103*PJ_to_TWh -> 179.0791535 | J103: ='Scenario Results (PJ)'!J103*PJ_to_TWh -> 193.8910154 | K103: ='Scenario Results (PJ)'!K103*PJ_to_TWh -> 207.1362842
C104: Total international liquid biofuels (1G) | D104: =SUM(D100:D103) -> 263.0025415 | E104: =SUM(E100:E103) -> 460.6274472 | F104: 462.6530056 | G104: 502.7036193 | H104: 523.5533501 | I104: 593.8763993 | J104: 661.324984 | K104: 723.2255496
C105: Total international | D105: =D99+D104 -> 2673.222425 | E105: 634.5707515 | F105: 649.4973332 | G105: 707.6623531 | H105: 746.4569404 | I105: 880.4557314 | J105: 1039.013409 | K105: 1153.015562
C107: Note: Negative numbers in summary above indicates that the biomass resource estimated as potentially available is not enough to meet the global demand for bioenergy in the demand scenario chosen

Sheet Scenario Results (land use) (hidden)
C1: Scenario Results | D1: Model version | E1: =Introduction!$F$27 -> Version 8.09 | G1: Date of model version | I1: =Introduction!$F$28 -> 21st Feb 2017
C3: Scenario parameters chosen
C4: UK | H4: International
C5: Price Scenario | D5: Level of barriers overcome | E5: Land Based Crops | F5: Annual crop production which is maximised | H5: Land based crops | I5: Global scenario | J5: Global bioenergy demand
C6: ='Set Scenarios'!E6 -> £4/GJ | D6: ='Set Scenarios'!E7 -> No barriers overcome | E6: ='Set Scenarios'!E8 -> Maximise production annual energy crops | F6: =IF('Set Scenarios'!$E$8=Lists!$O$12,"n/a",'Set Scenarios'!$E$9) -> Maximise production of crops for liquid biofuels | H6: ='Set Scenarios'!E39 -> Maximise production annual energy crops | I6: ='Set Scenarios'!E37 -> BAU/continuing trends | J6: ='Set Scenarios'!E38 -> BAU (including new policies)
C8: GHG Sustainability Criteria Applied
C9: Biofuels and bioliquids | D9: Solid and gaseous biomass | E9: Distribution used for GHG emissions
C10: ='Sustainability data'!$C$29 -> Applied | D10: ='Sustainability data'!$C$30 -> Applied | E10: ='Sustainability data'!$C$32 -> Central
C13: UK
C15: UK land area needed to meet projected bioenergy supply from UK | D15: 2015 | E15: 2020 | F15: 2025 | G15: 2030 | H15: 2035 | I15: 2040 | J15: 2045 | K15: 2050
D16: kha | E16: kha | F16: kha | G16: kha | H16: kha | I16: kha | J16: kha | K16: kha
C17: Maize (for biomethane) | D17: =(('Scenario Results (PJ)'!D$74*(10^6))/'UK crop yields'!D$31)/1000 -> 19.72 | E17: =(('Scenario Results (PJ)'!E$74*(10^6))/'UK crop yields'!E$31)/1000 -> 22.92571429 | F17: =(('Scenario Results (PJ)'!F$74*(10^6))/'UK crop yields'!F$31)/1000 -> 24.072 | G17: =(('Scenario Results (PJ)'!G$74*(10^6))/'UK crop yields'!G$31)/1000 -> 24.072 | H17: =(('Scenario Results (PJ)'!H$74*(10^6))/'UK crop yields'!H$31)/1000 -> 26.078 | I17: =(('Scenario Results (PJ)'!I$74*(10^6))/'UK crop yields'!I$31)/1000 -> 28.084 | J17: =(('Scenario Results (PJ)'!J$74*(10^6))/'UK crop yields'!J$31)/1000 -> 0 | K17: =(('Scenario Results (PJ)'!K$74*(10^6))/'UK crop yields'!K$31)/1000 -> 0
C18: Wheat (for bioethanol) | D18: ='UK Biofuels Land Use'!D26 -> 25.99951387 | E18: ='UK Biofuels Land Use'!E26 -> 22.28196723 | F18: ='UK Biofuels Land Use'!F26 -> 43.51715864 | G18: ='UK Biofuels Land Use'!G26 -> 57.31160876 | H18: ='UK Biofuels Land Use'!H26 -> 58.5849936 | I18: ='UK Biofuels Land Use'!I26 -> 54.45650765 | J18: ='UK Biofuels Land Use'!J26 -> 15.61387893 | K18: ='UK Biofuels Land Use'!K26 -> 0
C19: Sugar beet (for bioethanol) | D19: ='UK Biofuels Land Use'!D25 -> 9.285908403 | E19: ='UK Biofuels Land Use'!E27 -> 0 | F19: ='UK Biofuels Land Use'!F25 -> 8.441734912 | G19: ='UK Biofuels Land Use'!G25 -> 8.074702959 | H19: ='UK Biofuels Land Use'!H25 -> 7.738257002 | I19: ='UK Biofuels Land Use'!I25 -> 7.428726722 | J19: ='UK Biofuels Land Use'!J25 -> 7.143006464 | K19: ='UK Biofuels Land Use'!K25 -> 6.878450669
C20: Oilseed rape (for biodiesel) | D20: =(('Scenario Results (PJ)'!D$77*(10^6))/'UK crop yields'!D$34)/1000 -> 4.8 | E20: ='UK Biofuels Land Use'!E28 -> 0 | F20: =(('Scenario Results (PJ)'!F$77*(10^6))/'UK crop yields'!F$34)/1000 -> 3.483333333 | G20: =(('Scenario Results (PJ)'!G$77*(10^6))/'UK crop yields'!G$34)/1000 -> 4.966666667 | H20: =(('Scenario Results (PJ)'!H$77*(10^6))/'UK crop yields'!H$34)/1000 -> 4.721354167 | I20: =(('Scenario Results (PJ)'!I$77*(10^6))/'UK crop yields'!I$34)/1000 -> 0 | J20: =(('Scenario Results (PJ)'!J$77*(10^6))/'UK crop yields'!J$34)/1000 -> 0 | K20: =(('Scenario Results (PJ)'!K$77*(10^6))/'UK crop yields'!K$34)/1000 -> 0
C21: Total (annual crops) | D21: =SUM(D17:D20) -> 59.80542227 | E21: ='UK Biofuels Land Use'!E29 -> 0 | F21: =SUM(F17:F20) -> 79.51422688 | G21: 94.42497839 | H21: 97.12260477 | I21: 89.96923437 | J21: 22.75688539 | K21: 6.878450669
C22: Perennial energy crops | D22: =(('Scenario Results (PJ)'!D$60*(10^6))/'UK crop yields'!D$30)/1000 -> 10 | E22: ='UK Biofuels Land Use'!E30 -> 0 | F22: =(('Scenario Results (PJ)'!F$60*(10^6))/'UK crop yields'!F$30)/1000 -> 28.8 | G22: =(('Scenario Results (PJ)'!G$60*(10^6))/'UK crop yields'!G$30)/1000 -> 103.6 | H22: =(('Scenario Results (PJ)'!H$60*(10^6))/'UK crop yields'!H$30)/1000 -> 185.15 | I22: =(('Scenario Results (PJ)'!I$60*(10^6))/'UK crop yields'!I$30)/1000 -> 278.4 | J22: =(('Scenario Results (PJ)'!J$60*(10^6))/'UK crop yields'!J$30)/1000 -> 317.9 | K22: =(('Scenario Results (PJ)'!K$60*(10^6))/'UK crop yields'!K$30)/1000 -> 360
C23: Short rotation forestry | D23: ='UK SRF Land use'!D24 -> 0 | E23: ='UK Biofuels Land Use'!E31 -> 0 | F23: ='UK SRF Land use'!F24 -> 17248.57143 | G23: ='UK SRF Land use'!G24 -> 43748.57143 | H23: ='UK SRF Land use'!H24 -> 74806.57143 | I23: ='UK SRF Land use'!I24 -> 108236.5714 | J23: ='UK SRF Land use'!J24 -> 141666.5714 | K23: ='UK SRF Land use'!K24 -> 175096.5714
C24: Total (all crops, including SRF) | D24: =SUM(D21:D23) -> 69.80542227 | E24: =SUM(E21:E23) -> 0 | F24: 17356.88566 | G24: 43946.59641 | H24: 75088.84403 | I24: 108604.9407 | J24: 142007.2283 | K24: 175463.4499
C26: International
C28: Land area needed outside the UK to meet projected bioenergy supply to UK from international sources | D28: 2015 | E28: 2020 | F28: 2025 | G28: 2030 | H28: 2035 | I28: 2040 | J28: 2045 | K28: 2050
D29: kha | E29: kha | F29: kha | G29: kha | H29: kha | I29: kha | J29: kha | K29: kha
C30: Bioethanol crops | D30: ='Global Land Use'!CH66 -> 436.4759577 | E30: ='Global Land Use'!CI66 -> 715.4911602 | F30: ='Global Land Use'!CJ66 -> 603.0792166 | G30: ='Global Land Use'!CK66 -> 487.5323427 | H30: ='Global Land Use'!CL66 -> 409.2709048 | I30: ='Global Land Use'!CM66 -> 340.9383765 | J30: ='Global Land Use'!CN66 -> 176.7418254 | K30: ='Global Land Use'!CO66 -> 117.5839848
C31: Biodiesel crops | D31: ='Global Land Use'!DI91 -> 348.0824898 | E31: ='Global Land Use'!DJ91 -> 177.0092273 | F31: ='Global Land Use'!DK91 -> 221.5834893 | G31: ='Global Land Use'!DL91 -> 211.1915835 | H31: ='Global Land Use'!DM91 -> 146.6112829 | I31: ='Global Land Use'!DN91 -> 87.83500496 | J31: ='Global Land Use'!DO91 -> 52.45398832 | K31: ='Global Land Use'!DP91 -> 39.25881843
C32: Perennial energy crops | D32: ='Global Land Use'!CH41 -> 0 | E32: ='Global Land Use'!CI41 -> 35.8602122 | F32: ='Global Land Use'!CJ41 -> 212.3252009 | G32: ='Global Land Use'!CK41 -> 251.3951803 | H32: ='Global Land Use'!CL41 -> 89.43711111 | I32: ='Global Land Use'!CM41 -> 54.09200882 | J32: ='Global Land Use'!CN41 -> 26.64945334 | K32: ='Global Land Use'!CO41 -> 17.72768032
C33: Total (all crops) | D33: =SUM(D30:D32) -> 784.5584475 | E33: =SUM(E30:E32) -> 928.3605996 | F33: 1036.987907 | G33: 950.1191065 | H33: 645.3192988 | I33: 482.8653903 | J33: 255.8452671 | K33: 174.5704835
C35: International by region
C37: Bioethanol
C38: Land area needed outside the UK to meet projected bioethanol supply to UK from international sources
D39: 2015 | E39: 2020 | F39: 2025 | G39: 2030 | H39: 2035 | I39: 2040 | J39: 2045 | K39: 2050
D40: kha | E40: kha | F40: kha | G40: kha | H40: kha | I40: kha | J40: kha | K40: kha
C41: Canada & Mexico | D41: ='Global Land Use'!CH49 -> 0 | E41: ='Global Land Use'!CI49 -> 0 | F41: ='Global Land Use'!CJ49 -> 0 | G41: ='Global Land Use'!CK49 -> 0 | H41: ='Global Land Use'!CL49 -> 0 | I41: ='Global Land Use'!CM49 -> 0 | J41: ='Global Land Use'!CN49 -> 0 | K41: ='Global Land Use'!CO49 -> 0
C42: US | D42: ='Global Land Use'!CH50 -> 0 | E42: ='Global Land Use'!CI50 -> 0 | F42: ='Global Land Use'!CJ50 -> 0 | G42: ='Global Land Use'!CK50 -> 0 | H42: ='Global Land Use'!CL50 -> 3.104492901 | I42: ='Global Land Use'!CM50 -> 10.39860128 | J42: ='Global Land Use'!CN50 -> 0 | K42: ='Global Land Use'!CO50 -> 0
C43: Latin America | D43: ='Global Land Use'!CH51 -> 307.8514056 | E43: ='Global Land Use'!CI51 -> 361.4922795 | F43: ='Global Land Use'!CJ51 -> 290.3483051 | G43: ='Global Land Use'!CK51 -> 241.9048167 | H43: ='Global Land Use'!CL51 -> 198.6930081 | I43: ='Global Land Use'!CM51 -> 160.2029616 | J43: ='Global Land Use'!CN51 -> 95.21011503 | K43: ='Global Land Use'!CO51 -> 63.38403551
C44: Middle East | D44: ='Global Land Use'!CH52 -> 0 | E44: ='Global Land Use'!CI52 -> 0 | F44: ='Global Land Use'!CJ52 -> 0 | G44: ='Global Land Use'!CK52 -> 0 | H44: ='Global Land Use'!CL52 -> 0 | I44: ='Global Land Use'!CM52 -> 0 | J44: ='Global Land Use'!CN52 -> 0 | K44: ='Global Land Use'!CO52 -> 0
C45: Africa | D45: ='Global Land Use'!CH53 -> 71.15126076 | E45: ='Global Land Use'!CI53 -> 345.4436422 | F45: ='Global Land Use'!CJ53 -> 310.9902406 | G45: ='Global Land Use'!CK53 -> 242.9198157 | H45: ='Global Land Use'!CL53 -> 205.1525092 | I45: ='Global Land Use'!CM53 -> 168.4027349 | J45: ='Global Land Use'!CN53 -> 79.50126028 | K45: ='Global Land Use'!CO53 -> 52.11158768
C46: EU (Without UK) | D46: ='Global Land Use'!CH54 -> 0 | E46: ='Global Land Use'!CI54 -> 0 | F46: ='Global Land Use'!CJ54 -> 0 | G46: ='Global Land Use'!CK54 -> 0 | H46: ='Global Land Use'!CL54 -> 0 | I46: ='Global Land Use'!CM54 -> 0 | J46: ='Global Land Use'!CN54 -> 0 | K46: ='Global Land Use'!CO54 -> 0
C47: Eurasia & non EU Europe | D47: ='Global Land Use'!CH55 -> 0 | E47: ='Global Land Use'!CI55 -> 0 | F47: ='Global Land Use'!CJ55 -> 0 | G47: ='Global Land Use'!CK55 -> 0 | H47: ='Global Land Use'!CL55 -> 0 | I47: ='Global Land Use'!CM55 -> 0 | J47: ='Global Land Use'!CN55 -> 0 | K47: ='Global Land Use'!CO55 -> 0
C48: Russia | D48: ='Global Land Use'!CH56 -> 0 | E48: ='Global Land Use'!CI56 -> 0 | F48: ='Global Land Use'!CJ56 -> 0 | G48: ='Global Land Use'!CK56 -> 0 | H48: ='Global Land Use'!CL56 -> 0 | I48: ='Global Land Use'!CM56 -> 0 | J48: ='Global Land Use'!CN56 -> 0 | K48: ='Global Land Use'!CO56 -> 0
C49: India | D49: ='Global Land Use'!CH57 -> 29.5179182 | E49: ='Global Land Use'!CI57 -> 8.555238515 | F49: ='Global Land Use'!CJ57 -> 0 | G49: ='Global Land Use'!CK57 -> 0 | H49: ='Global Land Use'!CL57 -> 0 | I49: ='Global Land Use'!CM57 -> 0 | J49: ='Global Land Use'!CN57 -> 0 | K49: ='Global Land Use'!CO57 -> 0
C50: China | D50: ='Global Land Use'!CH58 -> 27.95537312 | E50: ='Global Land Use'!CI58 -> 0 | F50: ='Global Land Use'!CJ58 -> 0 | G50: ='Global Land Use'!CK58 -> 0 | H50: ='Global Land Use'!CL58 -> 0 | I50: ='Global Land Use'!CM58 -> 0 | J50: ='Global Land Use'!CN58 -> 0 | K50: ='Global Land Use'!CO58 -> 0
C51: Rest of Asia | D51: ='Global Land Use'!CH59 -> 0 | E51: ='Global Land Use'!CI59 -> 0 | F51: ='Global Land Use'!CJ59 -> 0 | G51: ='Global Land Use'!CK59 -> 0 | H51: ='Global Land Use'!CL59 -> 0 | I51: ='Global Land Use'!CM59 -> 0 | J51: ='Global Land Use'!CN59 -> 0 | K51: ='Global Land Use'!CO59 -> 0
C52: Japan | D52: ='Global Land Use'!CH60 -> 0 | E52: ='Global Land Use'!CI60 -> 0 | F52: ='Global Land Use'!CJ60 -> 1.740670902 | G52: ='Global Land Use'!CK60 -> 2.707710292 | H52: ='Global Land Use'!CL60 -> 2.320894536 | I52: ='Global Land Use'!CM60 -> 1.93407878 | J52: ='Global Land Use'!CN60 -> 2.030450107 | K52: ='Global Land Use'!CO60 -> 2.0883616
C53: Australia, New Zealand & South Korea | D53: ='Global Land Use'!CH61 -> 0 | E53: ='Global Land Use'!CI61 -> 0 | F53: ='Global Land Use'!CJ61 -> 0 | G53: ='Global Land Use'!CK61 -> 0 | H53: ='Global Land Use'!CL61 -> 0 | I53: ='Global Land Use'!CM61 -> 0 | J53: ='Global Land Use'!CN61 -> 0 | K53: ='Global Land Use'!CO61 -> 0
C54: World | D54: =SUM(D41:D53) -> 436.4759577 | E54: =SUM(E41:E53) -> 715.4911602 | F54: 603.0792166 | G54: 487.5323427 | H54: 409.2709048 | I54: 340.9383765 | J54: 176.7418254 | K54: 117.5839848
C56: Biodiesel
C57: Land area needed outside the UK to meet projected biodiesel supply to UK from international sources
D58: 2015 | E58: 2020 | F58: 2025 | G58: 2030 | H58: 2035 | I58: 2040 | J58: 2045 | K58: 2050
D59: kha | E59: kha | F59: kha | G59: kha | H59: kha | I59: kha | J59: kha | K59: kha | M59: LOOK UP FOR DETAILED RESULTS _ DO NOT DELETE
C60: Canada & Mexico | D60: ='Global Land Use'!DI74 -> 27.6012972 | E60: ='Global Land Use'!DJ74 -> 12.11707406 | F60: ='Global Land Use'!DK74 -> 10.30823555 | G60: ='Global Land Use'!DL74 -> 7.648384069 | H60: ='Global Land Use'!DM74 -> 7.76962538 | I60: ='Global Land Use'!DN74 -> 0 | J60: ='Global Land Use'!DO74 -> 0 | K60: ='Global Land Use'!DP74 -> 0
C61: US | D61: ='Global Land Use'!DI75 -> 128.0116936 | E61: ='Global Land Use'!DJ75 -> 68.72075689 | F61: ='Global Land Use'!DK75 -> 97.48448564 | G61: ='Global Land Use'!DL75 -> 90.38905504 | H61: ='Global Land Use'!DM75 -> 36.60542821 | I61: ='Global Land Use'!DN75 -> 0 | J61: ='Global Land Use'!DO75 -> 0 | K61: ='Global Land Use'!DP75 -> 0 | M61: =IF(Lists!$O$5="Max_EC","Energy_Crops_Max","Energy_Crops_Min") -> Energy_Crops_Min
C62: Latin America | D62: ='Global Land Use'!DI76 -> 147.8853337 | E62: ='Global Land Use'!DJ76 -> 40.06409444 | F62: ='Global Land Use'!DK76 -> 28.66100283 | G62: ='Global Land Use'!DL76 -> 19.37661595 | H62: ='Global Land Use'!DM76 -> 16.45653157 | I62: ='Global Land Use'!DN76 -> 12.09416777 | J62: ='Global Land Use'!DO76 -> 0 | K62: ='Global Land Use'!DP76 -> 0 | M62: Dry_Agr_Res
C63: Middle East | D63: ='Global Land Use'!DI77 -> 0 | E63: ='Global Land Use'!DJ77 -> 0 | F63: ='Global Land Use'!DK77 -> 0 | G63: ='Global Land Use'!DL77 -> 0 | H63: ='Global Land Use'!DM77 -> 0 | I63: ='Global Land Use'!DN77 -> 0 | J63: ='Global Land Use'!DO77 -> 0 | K63: ='Global Land Use'!DP77 -> 0 | M63: Forestry_Residue
C64: Africa | D64: ='Global Land Use'!DI78 -> 0 | E64: ='Global Land Use'!DJ78 -> 0 | F64: ='Global Land Use'!DK78 -> 0 | G64: ='Global Land Use'!DL78 -> 2.042762682 | H64: ='Global Land Use'!DM78 -> 2.247676064 | I64: ='Global Land Use'!DN78 -> 2.118429241 | J64: ='Global Land Use'!DO78 -> 2.149022797 | K64: ='Global Land Use'!DP78 -> 1.714461317 | M64: SRW
C65: EU (Without UK) | D65: ='Global Land Use'!DI79 -> 0 | E65: ='Global Land Use'!DJ79 -> 0 | F65: ='Global Land Use'!DK79 -> 0 | G65: ='Global Land Use'!DL79 -> 0 | H65: ='Global Land Use'!DM79 -> 0 | I65: ='Global Land Use'!DN79 -> 0 | J65: ='Global Land Use'!DO79 -> 0 | K65: ='Global Land Use'!DP79 -> 0 | M65: SRF
C66: Eurasia & non EU Europe | D66: ='Global Land Use'!DI80 -> 1.685849491 | E66: ='Global Land Use'!DJ80 -> 0 | F66: ='Global Land Use'!DK80 -> 0 | G66: ='Global Land Use'!DL80 -> 0 | H66: ='Global Land Use'!DM80 -> 0 | I66: ='Global Land Use'!DN80 -> 0 | J66: ='Global Land Use'!DO80 -> 0 | K66: ='Global Land Use'!DP80 -> 0 | M66: Sawmill
C67: Russia | D67: ='Global Land Use'!DI81 -> 0 | E67: ='Global Land Use'!DJ81 -> 0 | F67: ='Global Land Use'!DK81 -> 0 | G67: ='Global Land Use'!DL81 -> 0 | H67: ='Global Land Use'!DM81 -> 0 | I67: ='Global Land Use'!DN81 -> 0 | J67: ='Global Land Use'!DO81 -> 0 | K67: ='Global Land Use'!DP81 -> 0 | M67: Arbs
C68: India | D68: ='Global Land Use'!DI82 -> 0.785269 | E68: ='Global Land Use'!DJ82 -> 0 | F68: ='Global Land Use'!DK82 -> 0 | G68: ='Global Land Use'!DL82 -> 0 | H68: ='Global Land Use'!DM82 -> 0 | I68: ='Global Land Use'!DN82 -> 0 | J68: ='Global Land Use'!DO82 -> 0 | K68: ='Global Land Use'!DP82 -> 0 | M68: Waste_wood
C69: China | D69: ='Global Land Use'!DI83 -> 42.11304687 | E69: ='Global Land Use'!DJ83 -> 56.10730189 | F69: ='Global Land Use'!DK83 -> 85.12976528 | G69: ='Global Land Use'!DL83 -> 91.73476581 | H69: ='Global Land Use'!DM83 -> 83.53202167 | I69: ='Global Land Use'!DN83 -> 73.62240795 | J69: ='Global Land Use'!DO83 -> 50.30496552 | K69: ='Global Land Use'!DP83 -> 37.54435712 | M69: MSW
C70: Rest of Asia | D70: ='Global Land Use'!DI84 -> 0 | E70: ='Global Land Use'!DJ84 -> 0 | F70: ='Global Land Use'!DK84 -> 0 | G70: ='Global Land Use'!DL84 -> 0 | H70: ='Global Land Use'!DM84 -> 0 | I70: ='Global Land Use'!DN84 -> 0 | J70: ='Global Land Use'!DO84 -> 0 | K70: ='Global Land Use'!DP84 -> 0
C71: Japan | D71: ='Global Land Use'!DI85 -> 0 | E71: ='Global Land Use'!DJ85 -> 0 | F71: ='Global Land Use'!DK85 -> 0 | G71: ='Global Land Use'!DL85 -> 0 | H71: ='Global Land Use'!DM85 -> 0 | I71: ='Global Land Use'!DN85 -> 0 | J71: ='Global Land Use'!DO85 -> 0 | K71: ='Global Land Use'!DP85 -> 0 | M71: Food_Waste_AD
C72: Australia, New Zealand & South Korea | D72: ='Global Land Use'!DI86 -> 0 | E72: ='Global Land Use'!DJ86 -> 0 | F72: ='Global Land Use'!DK86 -> 0 | G72: ='Global Land Use'!DL86 -> 0 | H72: ='Global Land Use'!DM86 -> 0 | I72: ='Global Land Use'!DN86 -> 0 | J72: ='Global Land Use'!DO86 -> 0 | K72: ='Global Land Use'!DP86 -> 0 | M72: Landfill_Gas
C73: World | D73: =SUM(D60:D72) -> 348.0824898 | E73: 177.0092273 | F73: 221.5834893 | G73: 211.1915835 | H73: 146.6112829 | I73: 87.83500496 | J73: 52.45398832 | K73: 39.25881843 | M73: Sewage_Sludge_AD
C75: Perennial energy crop
C76: Land area needed outside the UK to meet projected perennial energy crop supply to UK from international sources | M76: Wet_Manures_AD
D77: 2015 | E77: 2020 | F77: 2025 | G77: 2030 | H77: 2035 | I77: 2040 | J77: 2045 | K77: 2050 | M77: =IF(Lists!$O$5="Max_EC","Biomethane_Crops_Min",IF(Lists!$Q$5="Max_Maize","Biomethane_Crops_Max","Biomethane_Crops_Min")) -> Biomethane_Crops_Min
D78: kha | E78: kha | F78: kha | G78: kha | H78: kha | I78: kha | J78: kha | K78: kha
C79: Canada & Mexico | D79: ='Global Land Use'!CH24 -> 0 | E79: ='Global Land Use'!CI24 -> 12.8602122 | F79: ='Global Land Use'!CJ24 -> 42.41854838 | G79: ='Global Land Use'!CK24 -> 31.17931283 | H79: ='Global Land Use'!CL24 -> 32.651139 | I79: ='Global Land Use'!CM24 -> 32.099135 | J79: ='Global Land Use'!CN24 -> 22.95877668 | K79: ='Global Land Use'!CO24 -> 17.72768032 | M79: =IF(Lists!$O$5=Lists!$O$13,"Bioethanol_Crops_Min",IF(Lists!$Q$6="Max_BioEth","Bioethanol_Crops_Max","Bioethanol_Crops_Min")) -> Bioethanol_Crops_Max
C80: US | D80: ='Global Land Use'!CH25 -> 0 | E80: ='Global Land Use'!CI25 -> 20 | F80: ='Global Land Use'!CJ25 -> 0 | G80: ='Global Land Use'!CK25 -> 0 | H80: ='Global Land Use'!CL25 -> 0 | I80: ='Global Land Use'!CM25 -> 0 | J80: ='Global Land Use'!CN25 -> 0 | K80: ='Global Land Use'!CO25 -> 0 | M80: =IF(Lists!$O$5=Lists!$O$13,"Biodiesel_Crops_Min",IF(Lists!$Q$7="Max_BioD","Biodiesel_Crops_Max","Biodiesel_Crops_Min")) -> Biodiesel_Crops_Max
C81: Latin America | D81: ='Global Land Use'!CH26 -> 0 | E81: ='Global Land Use'!CI26 -> 0 | F81: ='Global Land Use'!CJ26 -> 61.13697066 | G81: ='Global Land Use'!CK26 -> 94.2406179 | H81: ='Global Land Use'!CL26 -> 0 | I81: ='Global Land Use'!CM26 -> 0 | J81: ='Global Land Use'!CN26 -> 0 | K81: ='Global Land Use'!CO26 -> 0 | M81: UCO
C82: Middle East | D82: ='Global Land Use'!CH27 -> 0 | E82: ='Global Land Use'!CI27 -> 0 | F82: ='Global Land Use'!CJ27 -> 0 | G82: ='Global Land Use'!CK27 -> 0 | H82: ='Global Land Use'!CL27 -> 0 | I82: ='Global Land Use'!CM27 -> 0 | J82: ='Global Land Use'!CN27 -> 0 | K82: ='Global Land Use'!CO27 -> 0 | M82: Tallow
C83: Africa | D83: ='Global Land Use'!CH28 -> 0 | E83: ='Global Land Use'!CI28 -> 0 | F83: ='Global Land Use'!CJ28 -> 0 | G83: ='Global Land Use'!CK28 -> 0 | H83: ='Global Land Use'!CL28 -> 0 | I83: ='Global Land Use'!CM28 -> 0 | J83: ='Global Land Use'!CN28 -> 0 | K83: ='Global Land Use'!CO28 -> 0 | M83: Total
C84: EU (Without UK) | D84: ='Global Land Use'!CH29 -> 0 | E84: ='Global Land Use'!CI29 -> 0 | F84: ='Global Land Use'!CJ29 -> 17.72930677 | G84: ='Global Land Use'!CK29 -> 0 | H84: ='Global Land Use'!CL29 -> 0 | I84: ='Global Land Use'!CM29 -> 0 | J84: ='Global Land Use'!CN29 -> 0 | K84: ='Global Land Use'!CO29 -> 0
C85: Eurasia & non EU Europe | D85: ='Global Land Use'!CH30 -> 0 | E85: ='Global Land Use'!CI30 -> 0 | F85: ='Global Land Use'!CJ30 -> 64.22959111 | G85: ='Global Land Use'!CK30 -> 54.17625572 | H85: ='Global Land Use'!CL30 -> 29.64064936 | I85: ='Global Land Use'!CM30 -> 4.440387897 | J85: ='Global Land Use'!CN30 -> 0 | K85: ='Global Land Use'!CO30 -> 0
C86: Russia | D86: ='Global Land Use'!CH31 -> 0 | E86: ='Global Land Use'!CI31 -> 0 | F86: ='Global Land Use'!CJ31 -> 0 | G86: ='Global Land Use'!CK31 -> 0 | H86: ='Global Land Use'!CL31 -> 0 | I86: ='Global Land Use'!CM31 -> 0 | J86: ='Global Land Use'!CN31 -> 0 | K86: ='Global Land Use'!CO31 -> 0
C87: India | D87: ='Global Land Use'!CH32 -> 0 | E87: ='Global Land Use'!CI32 -> 0 | F87: ='Global Land Use'!CJ32 -> 0 | G87: ='Global Land Use'!CK32 -> 0 | H87: ='Global Land Use'!CL32 -> 0 | I87: ='Global Land Use'!CM32 -> 0 | J87: ='Global Land Use'!CN32 -> 0 | K87: ='Global Land Use'!CO32 -> 0
C88: China | D88: ='Global Land Use'!CH33 -> 0 | E88: ='Global Land Use'!CI33 -> 0 | F88: ='Global Land Use'!CJ33 -> 0 | G88: ='Global Land Use'!CK33 -> 34.93403145 | H88: ='Global Land Use'!CL33 -> 0 | I88: ='Global Land Use'!CM33 -> 0 | J88: ='Global Land Use'!CN33 -> 0 | K88: ='Global Land Use'!CO33 -> 0
C89: Rest of Asia | D89: ='Global Land Use'!CH34 -> 0 | E89: ='Global Land Use'!CI34 -> 0 | F89: ='Global Land Use'!CJ34 -> 0 | G89: ='Global Land Use'!CK34 -> 0 | H89: ='Global Land Use'!CL34 -> 0 | I89: ='Global Land Use'!CM34 -> 0 | J89: ='Global Land Use'!CN34 -> 0 | K89: ='Global Land Use'!CO34 -> 0
C90: Japan | D90: ='Global Land Use'!CH35 -> 0 | E90: ='Global Land Use'!CI35 -> 0 | F90: ='Global Land Use'!CJ35 -> 0 | G90: ='Global Land Use'!CK35 -> 0 | H90: ='Global Land Use'!CL35 -> 0 | I90: ='Global Land Use'!CM35 -> 0 | J90: ='Global Land Use'!CN35 -> 0 | K90: ='Global Land Use'!CO35 -> 0
C91: Australia, New Zealand & South Korea | D91: ='Global Land Use'!CH36 -> 0 | E91: ='Global Land Use'!CI36 -> 3 | F91: ='Global Land Use'!CJ36 -> 26.810784 | G91: ='Global Land Use'!CK36 -> 36.8649624 | H91: ='Global Land Use'!CL36 -> 27.14532276 | I91: ='Global Land Use'!CM36 -> 17.55248592 | J91: ='Global Land Use'!CN36 -> 3.69067666 | K91: ='Global Land Use'!CO36 -> 0
C92: World | D92: =SUM(D79:D91) -> 0 | E92: 35.8602122 | F92: 212.3252009 | G92: 251.3951803 | H92: 89.43711111 | I92: 54.09200882 | J92: 26.64945334 | K92: 17.72768032
C94: Bioethanol, biodiesel and perennial energy crop
C95: Total land area needed by region to supply UK with projected supply of bioethanol, biodiesel and perennial energy crops
D96: 2015 | E96: 2020 | F96: 2025 | G96: 2030 | H96: 2035 | I96: 2040 | J96: 2045 | K96: 2050
D97: kha | E97: kha | F97: kha | G97: kha | H97: kha | I97: kha | J97: kha | K97: kha
C98: Canada & Mexico | D98: =D41+D60+D79 -> 27.6012972 | E98: 24.97728625 | F98: 52.72678393 | G98: 38.8276969 | H98: 40.42076438 | I98: 32.099135 | J98: 22.95877668 | K98: 17.72768032
C99: US | D99: 128.0116936 | E99: 88.72075689 | F99: 97.48448564 | G99: 90.38905504 | H99: 39.70992111 | I99: 10.39860128 | J99: 0 | K99: 0
C100: Latin America | D100: 455.7367393 | E100: 401.5563739 | F100: 380.1462786 | G100: 355.5220505 | H100: 215.1495397 | I100: 172.2971293 | J100: 95.21011503 | K100: 63.38403551
C101: Middle East | D101: 0 | E101: 0 | F101: 0 | G101: 0 | H101: 0 | I101: 0 | J101: 0 | K101: 0
C102: Africa | D102: 71.15126076 | E102: 345.4436422 | F102: 310.9902406 | G102: 244.9625784 | H102: 207.4001853 | I102: 170.5211642 | J102: 81.65028307 | K102: 53.826049
C103: EU (Without UK) | D103: 0 | E103: 0 | F103: 17.72930677 | G103: 0 | H103: 0 | I103: 0 | J103: 0 | K103: 0
C104: Eurasia & non EU Europe | D104: 1.685849491 | E104: 0 | F104: 64.22959111 | G104: 54.17625572 | H104: 29.64064936 | I104: 4.440387897 | J104: 0 | K104: 0
C105: Russia | D105: 0 | E105: 0 | F105: 0 | G105: 0 | H105: 0 | I105: 0 | J105: 0 | K105: 0
C106: India | D106: 30.3031872 | E106: 8.555238515 | F106: 0 | G106: 0 | H106: 0 | I106: 0 | J106: 0 | K106: 0
C107: China | D107: 70.06841999 | E107: 56.10730189 | F107: 85.12976528 | G107: 126.6687973 | H107: 83.53202167 | I107: 73.62240795 | J107: 50.30496552 | K107: 37.54435712
C108: Rest of Asia | D108: 0 | E108: 0 | F108: 0 | G108: 0 | H108: 0 | I108: 0 | J108: 0 | K108: 0
C109: Japan | D109: 0 | E109: 0 | F109: 1.740670902 | G109: 2.707710292 | H109: 2.320894536 | I109: 1.93407878 | J109: 2.030450107 | K109: 2.0883616
C110: Australia, New Zealand & South Korea | D110: 0 | E110: 3 | F110: 26.810784 | G110: 36.8649624 | H110: 27.14532276 | I110: 17.55248592 | J110: 3.69067666 | K110: 0
C111: World | D111: =SUM(D98:D110) -> 784.5584475 | E111: 928.3605996 | F111: 1036.987907 | G111: 950.1191065 | H111: 645.3192988 | I111: 482.8653903 | J111: 255.8452671 | K111: 174.5704835

Sheet Background assumptions >>> (hidden)
B7: This sheet is intentionally blank

Sheet Sustainability data (hidden)
A23: Key: | B23: Data input value | F23: Global scenario | G23: =Scenario_A -> BAU/continuing trends
B24: Interpolated or extrapolated value | G24: =Scenario_B -> High investment/globalisation
B25: Calculated value | G25: =Scenario_C -> Low investment/regionalisation
B29: Sustainability criteria for biofuels and bioliquids | C29: ='Set other key assumptions'!E7 -> Applied | D29: set on "Set other key assumptions" tab
B30: Sustainability criteria for solid and gaseous biofuels | C30: ='Set other key assumptions'!E8 -> Applied | D30: set on "Set other key assumptions" tab
B32: Distribution for GHG emissions | C32: ='Set other key assumptions'!E9 -> Central | D32: set on "Set other key assumptions" tab
C35: Emissions assuming feedstock available as chips/bales | I35: Emissions assuming feedstock available as pellets
B37: Lifecycle GHG Emissions (kg CO2/GJ) | C37: Low | D37: 2 | E37: 3 | F37: 4 | G37: High | I37: Low | J37: 2 | K37: 3 | L37: 4 | M37: High
B38: =Lists!AB12 -> UK perennial energy crops | C38: 7.73 | D38: 9.64 | E38: 11.55 | F38: 13.46 | G38: 15.38 | I38: 19.25 | J38: 21.66 | K38: 24.06 | L38: 26.47 | M38: 28.88
B39: =Lists!AB13 -> Dry agricultural residues | C39: 5.95 | D39: 6.19 | E39: 6.43 | F39: 6.67 | G39: 6.91 | I39: 9.97 | J39: 11.86 | K39: 13.74 | L39: 15.63 | M39: 17.52
B40: =Lists!AB14 -> Forestry residues | C40: 2.05 | D40: 2.86 | E40: 3.67 | F40: 4.48 | G40: 5.29 | I40: 7.73 | J40: 9.64 | K40: 11.55 | L40: 13.46 | M40: 15.38
B41: =Lists!AB15 -> Stemwood | C41: 1.72 | D41: 1.84 | E41: 1.96 | F41: 2.08 | G41: 2.2 | I41: 7.72 | J41: 11.74 | K41: 15.76 | L41: 19.79 | M41: 23.81
B42: =Lists!AB16 -> Short rotation forestry | C42: 2.27 | D42: 2.55 | E42: 2.84 | F42: 3.12 | G42: 3.4 | I42: 6.81 | J42: 8.24 | K42: 9.68 | L42: 11.12 | M42: 12.56
B43: =Lists!AB17 -> Sawmill co-products | I43: 4.52 | J43: 6.3 | K43: 8.08 | L43: 9.85 | M43: 11.63
B44: =Lists!AB18 -> Arboricultural arisings | C44: 2.05 | D44: 2.86 | E44: 3.67 | F44: 4.48 | G44: 5.29 | I44: 7.73 | J44: 9.64 | K44: 11.55 | L44: 13.46 | M44: 15.38
B45: =Lists!AB19 -> Waste wood | C45: 0.68 | D45: 0.77 | E45: 0.85 | F45: 0.94 | G45: 1.02 | I45: 6.87 | J45: 7.96 | K45: 9.05 | L45: 10.15 | M45: 11.24
B46: =Lists!AB20 -> Renewable fraction of wastes | C46: 7.68 | D46: 8.54 | E46: 9.41 | F46: 10.27 | G46: 11.14
B47: =Lists!AB21 -> International agricultural residues | C47: 3.09 | D47: 7.21 | E47: 11.33 | F47: 15.45 | G47: 19.57
B48: =Lists!AB22 -> International woody biomass | C48: 2.56 | D48: 8.18 | E48: 13.8 | F48: 19.42 | G48: 25.04 | I48: 4.62 | J48: 11.47 | K48: 18.32 | L48: 25.16 | M48: 32.01
B49: =Lists!AC12 -> Biogas from food waste | C49: 4.97 | D49: 7.48 | E49: 9.99 | F49: 12.49 | G49: 15
B50: =Lists!AC13 -> Landfill gas | C50: 8 | D50: 9 | E50: 10 | F50: 11 | G50: 12
B51: =Lists!AC14 -> Biogas from sewage sludge | C51: 12.36 | D51: 14.96 | E51: 17.55 | F51: 20.15 | G51: 22.74
B52: =Lists!AC15 -> Biogas from livestock manures | C52: 12.36 | D52: 14.96 | E52: 17.55 | F52: 20.15 | G52: 22.74
B53: =Lists!AC16 -> Biogas from crops | C53: 26.38 | D53: 28.2 | E53: 30.03 | F53: 32.65 | G53: 35.27 | O53: Note: Biogas values based on production of biomethane which has higher emissions factors
O54: Conservative assumption to avoid overestimating pass rates if assumed end use is biomethane rather than biogas for heat or electricity
B55: ILUC Emissions (kg CO2/GJ) | C55: Low | D55: 2 | E55: 3 | F55: 4 | G55: High | I55: Low | J55: 2 | K55: 3 | L55: 4 | M55: High
B56: =B38 -> UK perennial energy crops | C56: 0 | D56: =($G56-$C56)/4+C56 -> 0 | E56: 0 | F56: 0 | G56: 0 | I56: 0 | J56: =($M56-$I56)/4+I56 -> 0 | K56: 0 | L56: 0 | M56: 0
B57: Dry agricultural residues | C57: 0 | D57: 0 | E57: 0 | F57: 0 | G57: 0 | I57: 0 | J57: 0 | K57: 0 | L57: 0 | M57: 0
B58: Forestry residues | C58: 0 | D58: 0 | E58: 0 | F58: 0 | G58: 0 | I58: 0 | J58: 0 | K58: 0 | L58: 0 | M58: 0
B59: Stemwood | C59: 0 | D59: 0 | E59: 0 | F59: 0 | G59: 0 | I59: 0 | J59: 0 | K59: 0 | L59: 0 | M59: 0
B60: Short rotation forestry | C60: 0 | D60: 0 | E60: 0 | F60: 0 | G60: 0 | I60: 0 | J60: 0 | K60: 0 | L60: 0 | M60: 0
B61: Sawmill co-products | C61: 0 | D61: 0 | E61: 0 | F61: 0 | G61: 0 | I61: 0 | J61: 0 | K61: 0 | L61: 0 | M61: 0
B62: Arboricultural arisings | C62: 0 | D62: 0 | E62: 0 | F62: 0 | G62: 0 | I62: 0 | J62: 0 | K62: 0 | L62: 0 | M62: 0
B63: Waste wood | C63: 0 | D63: 0 | E63: 0 | F63: 0 | G63: 0 | I63: 0 | J63: 0 | K63: 0 | L63: 0 | M63: 0
B64: Renewable fraction of wastes | C64: 0 | D64: 0 | E64: 0 | F64: 0 | G64: 0 | I64: 0 | J64: 0 | K64: 0 | L64: 0 | M64: 0
B65: International agricultural residues | C65: 0 | D65: 0 | E65: 0 | F65: 0 | G65: 0 | I65: 0 | J65: 0 | K65: 0 | L65: 0 | M65: 0
B66: International woody biomass | C66: 0 | D66: 0 | E66: 0 | F66: 0 | G66: 0 | I66: 0 | J66: 0 | K66: 0 | L66: 0 | M66: 0
B67: Biogas from food waste | C67: 0 | D67: 0 | E67: 0 | F67: 0 | G67: 0
B68: Landfill gas | C68: 0 | D68: 0 | E68: 0 | F68: 0 | G68: 0
B69: Biogas from sewage sludge | C69: 0 | D69: 0 | E69: 0 | F69: 0 | G69: 0
B70: Biogas from livestock manures | C70: 0 | D70: 0 | E70: 0 | F70: 0 | G70: 0
B71: Biogas from crops | C71: 0 | D71: 0 | E71: 0 | F71: 0 | G71: 0
B73: Total GHG Emissions kg CO2/GJ (inc. ILUC) | C73: Low | D73: 2 | E73: 3 | F73: 4 | G73: High | I73: Low | J73: 2 | K73: 3 | L73: 4 | M73: High
B74: =B38 -> UK perennial energy crops | C74: =C38+C56 -> 7.73 | D74: 9.64 | E74: 11.55 | F74: 13.46 | G74: 15.38 | I74: =I38+I56 -> 19.25 | J74: 21.66 | K74: 24.06 | L74: 26.47 | M74: 28.88
B75: Dry agricultural residues | C75: 5.95 | D75: 6.19 | E75: 6.43 | F75: 6.67 | G75: 6.91 | I75: 9.97 | J75: 11.86 | K75: 13.74 | L75: 15.63 | M75: 17.52
B76: Forestry residues | C76: 2.05 | D76: 2.86 | E76: 3.67 | F76: 4.48 | G76: 5.29 | I76: 7.73 | J76: 9.64 | K76: 11.55 | L76: 13.46 | M76: 15.38
B77: Stemwood | C77: 1.72 | D77: 1.84 | E77: 1.96 | F77: 2.08 | G77: 2.2 | I77: 7.72 | J77: 11.74 | K77: 15.76 | L77: 19.79 | M77: 23.81
B78: Short rotation forestry | C78: 2.27 | D78: 2.55 | E78: 2.84 | F78: 3.12 | G78: 3.4 | I78: 6.81 | J78: 8.24 | K78: 9.68 | L78: 11.12 | M78: 12.56
B79: Sawmill co-products | C79: 0 | D79: 0 | E79: 0 | F79: 0 | G79: 0 | I79: 4.52 | J79: 6.3 | K79: 8.08 | L79: 9.85 | M79: 11.63
B80: Arboricultural arisings | C80: 2.05 | D80: 2.86 | E80: 3.67 | F80: 4.48 | G80: 5.29 | I80: 7.73 | J80: 9.64 | K80: 11.55 | L80: 13.46 | M80: 15.38
B81: Waste wood | C81: 0.68 | D81: 0.77 | E81: 0.85 | F81: 0.94 | G81: 1.02 | I81: 6.87 | J81: 7.96 | K81: 9.05 | L81: 10.15 | M81: 11.24
B82: Renewable fraction of wastes | C82: 7.68 | D82: 8.54 | E82: 9.41 | F82: 10.27 | G82: 11.14 | I82: 0 | J82: 0 | K82: 0 | L82: 0 | M82: 0
B83: International agricultural residues | C83: 3.09 | D83: 7.21 | E83: 11.33 | F83: 15.45 | G83: 19.57 | I83: 0 | J83: 0 | K83: 0 | L83: 0 | M83: 0
B84: International woody biomass | C84: =C48+C66 -> 2.56 | D84: 8.18 | E84: 13.8 | F84: 19.42 | G84: 25.04 | I84: 4.62 | J84: 11.47 | K84: 18.32 | L84: 25.16 | M84: 32.01
B85: Biogas from food waste | C85: 4.97 | D85: 7.48 | E85: 9.99 | F85: 12.49 | G85: 15
B86: Landfill gas | C86: 8 | D86: 9 | E86: 10 | F86: 11 | G86: 12
B87: Biogas from sewage sludge | C87: 12.36 | D87: 14.96 | E87: 17.55 | F87: 20.15 | G87: 22.74
B88: Biogas from livestock manures | C88: 12.36 | D88: 14.96 | E88: 17.55 | F88: 20.15 | G88: 22.74
B89: Biogas from crops | C89: 26.38 | D89: 28.2 | E89: 30.03 | F89: 32.65 | G89: 35.27
B92: Distributions for emissions | C92: Low | D92: 2 | E92: 3 | F92: 4 | G92: High
B93: Central | C93: 0.2 | D93: 0.2 | E93: 0.2 | F93: 0.2 | G93: 0.2
B94: Low weighted | C94: 0.1 | D94: 0.1 | E94: 0.2 | F94: 0.3 | G94: 0.3
B95: High weighted | C95: 0.3 | D95: 0.3 | E95: 0.2 | F95: 0.1 | G95: 0.1
B98: Sustainability Criteria | C98: Unit | D98: 2015 | E98: 2020 | F98: 2025 | G98: 2030 | H98: 2035 | I98: 2040 | J98: 2045 | K98: 2050
A99: Electricity | B99: Fossil fuel comparator | C99: kg CO2/MWh | D99: ='Set other key assumptions'!F12 -> 712.8 | E99: ='Set other key assumptions'!G12 -> 712.8 | F99: ='Set other key assumptions'!H12 -> 712.8 | G99: ='Set other key assumptions'!I12 -> 712.8 | H99: ='Set other key assumptions'!J12 -> 712.8 | I99: ='Set other key assumptions'!K12 -> 712.8 | J99: ='Set other key assumptions'!L12 -> 712.8 | K99: ='Set other key assumptions'!M12 -> 712.8 | M99: set on "Set other key assumptions" tab
B100: Fossil fuel comparator | C100: g CO2/MJ | D100: =D99/kWh_to_MJ -> 198 | E100: 198 | F100: 198 | G100: 198 | H100: 198 | I100: 198 | J100: 198 | K100: 198
B101: % saving required | C101: % | D101: ='Set other key assumptions'!F13 -> 0.6 | E101: ='Set other key assumptions'!G13 -> 0.6 | F101: ='Set other key assumptions'!H13 -> 0.6 | G101: ='Set other key assumptions'!I13 -> 0.6 | H101: ='Set other key assumptions'!J13 -> 0.6 | I101: ='Set other key assumptions'!K13 -> 0.6 | J101: ='Set other key assumptions'!L13 -> 0.6 | K101: ='Set other key assumptions'!M13 -> 0.6 | M101: set on "Set other key assumptions" tab
B102: Emissions limit | C102: kg CO2/MWh | D102: =D99*(1-D101) -> 285.12 | E102: 285.12 | F102: 285.12 | G102: 285.12 | H102: 285.12 | I102: 285.12 | J102: 285.12 | K102: 285.12
B103: Emissions limit | C103: g CO2/MJ | D103: =D100*(1-D101) -> 79.2 | E103: 79.2 | F103: 79.2 | G103: 79.2 | H103: 79.2 | I103: 79.2 | J103: 79.2 | K103: 79.2 | M103: Note: Value for new dedicated biomass plant in 2015 is higher so is taken. Note all plant will have to meet this value from 2020.
A104: Heat | B104: Fossil fuel comparator | C104: kg CO2/MWh | D104: ='Set other key assumptions'!F14 -> 313.2 | E104: ='Set other key assumptions'!G14 -> 313.2 | F104: ='Set other key assumptions'!H14 -> 313.2 | G104: ='Set other key assumptions'!I14 -> 313.2 | H104: ='Set other key assumptions'!J14 -> 313.2 | I104: ='Set other key assumptions'!K14 -> 313.2 | J104: ='Set other key assumptions'!L14 -> 313.2 | K104: ='Set other key assumptions'!M14 -> 313.2 | M104: set on "Set other key assumptions" tab
B105: Fossil fuel comparator | C105: g CO2/MJ | D105: =D104/kWh_to_MJ -> 87 | E105: 87 | F105: 87 | G105: 87 | H105: 87 | I105: 87 | J105: 87 | K105: 87
B106: % saving required | C106: % | D106: ='Set other key assumptions'!F15 -> 0.6 | E106: ='Set other key assumptions'!G15 -> 0.6 | F106: ='Set other key assumptions'!H15 -> 0.6 | G106: ='Set other key assumptions'!I15 -> 0.6 | H106: ='Set other key assumptions'!J15 -> 0.6 | I106: ='Set other key assumptions'!K15 -> 0.6 | J106: ='Set other key assumptions'!L15 -> 0.6 | K106: ='Set other key assumptions'!M15 -> 0.6 | M106: set on "Set other key assumptions" tab
B107: Emissions limit | C107: kg CO2/MWh | D107: =D104*(1-D106) -> 125.28 | E107: 125.28 | F107: 125.28 | G107: 125.28 | H107: 125.28 | I107: 125.28 | J107: 125.28 | K107: 125.28
B108: Emissions limit | C108: g CO2/MJ | D108: =D105*(1-D106) -> 34.8 | E108: 34.8 | F108: 34.8 | G108: 34.8 | H108: 34.8 | I108: 34.8 | J108: 34.8 | K108: 34.8
A109: Biomethane | B109: Fossil fuel comparator | C109: kg CO2/MWh | D109: ='Set other key assumptions'!F16 -> 313.2 | E109: ='Set other key assumptions'!G16 -> 313.2 | F109: ='Set other key assumptions'!H16 -> 313.2 | G109: ='Set other key assumptions'!I16 -> 313.2 | H109: ='Set other key assumptions'!J16 -> 313.2 | I109: ='Set other key assumptions'!K16 -> 313.2 | J109: ='Set other key assumptions'!L16 -> 313.2 | K109: ='Set other key assumptions'!M16 -> 313.2 | M109: set on "Set other key assumptions" tab
B110: Fossil fuel comparator | C110: g CO2/MJ | D110: =D109/kWh_to_MJ -> 87 | E110: 87 | F110: 87 | G110: 87 | H110: 87 | I110: 87 | J110: 87 | K110: 87
B111: % saving required | C111: % | D111: ='Set other key assumptions'!F17 -> 0.6 | E111: ='Set other key assumptions'!G17 -> 0.6 | F111: ='Set other key assumptions'!H17 -> 0.6 | G111: ='Set other key assumptions'!I17 -> 0.6 | H111: ='Set other key assumptions'!J17 -> 0.6 | I111: ='Set other key assumptions'!K17 -> 0.6 | J111: ='Set other key assumptions'!L17 -> 0.6 | K111: ='Set other key assumptions'!M17 -> 0.6 | M111: set on "Set other key assumptions" tab
B112: Emissions limit | C112: kg CO2/MWh | D112: =D109*(1-D111) -> 125.28 | E112: 125.28 | F112: 125.28 | G112: 125.28 | H112: 125.28 | I112: 125.28 | J112: 125.28 | K112: 125.28
B113: Emissions limit | C113: g CO2/MJ | D113: =D110*(1-D111) -> 34.8 | E113: 34.8 | F113: 34.8 | G113: 34.8 | H113: 34.8 | I113: 34.8 | J113: 34.8 | K113: 34.8
A114: Liquid | B114: Fossil fuel comparator | C114: kg CO2/MWh | D114: =D115*kWh_to_MJ -> 301.68 | E114: 301.68 | F114: 301.68 | G114: 301.68 | H114: 301.68 | I114: 301.68 | J114: 301.68 | K114: 301.68
B115: Fossil fuel comparator | C115: g CO2/MJ | D115: ='Set other key assumptions'!F18 -> 83.8 | E115: ='Set other key assumptions'!G18 -> 83.8 | F115: ='Set other key assumptions'!H18 -> 83.8 | G115: ='Set other key assumptions'!I18 -> 83.8 | H115: ='Set other key assumptions'!J18 -> 83.8 | I115: ='Set other key assumptions'!K18 -> 83.8 | J115: ='Set other key assumptions'!L18 -> 83.8 | K115: ='Set other key assumptions'!M18 -> 83.8 | M115: set on "Set other key assumptions" tab
B116: % saving required | C116: % | D116: ='Set other key assumptions'!F19 -> 0.35 | E116: ='Set other key assumptions'!G19 -> 0.5 | F116: ='Set other key assumptions'!H19 -> 0.5 | G116: ='Set other key assumptions'!I19 -> 0.5 | H116: ='Set other key assumptions'!J19 -> 0.5 | I116: ='Set other key assumptions'!K19 -> 0.55 | J116: ='Set other key assumptions'!L19 -> 0.6 | K116: ='Set other key assumptions'!M19 -> 0.6 | M116: set on "Set other key assumptions" tab
B117: Emissions limit | C117: kg CO2/MWh | D117: =D114*(1-D116) -> 196.092 | E117: 150.84 | F117: 150.84 | G117: 150.84 | H117: 150.84 | I117: 135.756 | J117: 120.672 | K117: 120.672
B118: Emissions limit | C118: g CO2/MJ | D118: =D115*(1-D116) -> 54.47 | E118: 41.9 | F118: 41.9 | G118: 41.9 | H118: 41.9 | I118: 37.71 | J118: 33.52 | K118: 33.52
D120: Values set on "Set other key assumptions" tab
B121: Conversion Technology Efficiencies | C121: Comparator | D121: 2015 | E121: 2020 | F121: 2025 | G121: 2030 | H121: 2035 | I121: 2040 | J121: 2045 | K121: 2050
B122: Co-firing | C122: Electricity | D122: ='Set other key assumptions'!F22 -> 0.36 | E122: ='Set other key assumptions'!G22 -> 0.36 | F122: ='Set other key assumptions'!H22 -> 0.36 | G122: ='Set other key assumptions'!I22 -> 0.36 | H122: ='Set other key assumptions'!J22 -> 0.36 | I122: ='Set other key assumptions'!K22 -> 0.36 | J122: ='Set other key assumptions'!L22 -> 0.36 | K122: ='Set other key assumptions'!M22 -> 0.36
B123: Dedicated Biomass | C123: Electricity | D123: ='Set other key assumptions'!F23 -> 0.25 | E123: ='Set other key assumptions'!G23 -> 0.25 | F123: ='Set other key assumptions'!H23 -> 0.25 | G123: ='Set other key assumptions'!I23 -> 0.25 | H123: ='Set other key assumptions'!J23 -> 0.25 | I123: ='Set other key assumptions'!K23 -> 0.25 | J123: ='Set other key assumptions'!L23 -> 0.25 | K123: ='Set other key assumptions'!M23 -> 0.25
B124: Advanced Conversion Technology | C124: Electricity | D124: ='Set other key assumptions'!F24 -> 0.35 | E124: ='Set other key assumptions'!G24 -> 0.35 | F124: ='Set other key assumptions'!H24 -> 0.35 | G124: ='Set other key assumptions'!I24 -> 0.35 | H124: ='Set other key assumptions'!J24 -> 0.35 | I124: ='Set other key assumptions'!K24 -> 0.35 | J124: ='Set other key assumptions'!L24 -> 0.35 | K124: ='Set other key assumptions'!M24 -> 0.35
B125: Dedicated Biomass with CHP | C125: Electricity | D125: ='Set other key assumptions'!F25 -> 0.6789788159 | E125: ='Set other key assumptions'!G25 -> 0.6789788159 | F125: ='Set other key assumptions'!H25 -> 0.6789788159 | G125: ='Set other key assumptions'!I25 -> 0.6789788159 | H125: ='Set other key assumptions'!J25 -> 0.6789788159 | I125: ='Set other key assumptions'!K25 -> 0.6789788159 | J125: ='Set other key assumptions'!L25 -> 0.6789788159 | K125: ='Set other key assumptions'!M25 -> 0.6789788159
B126: Boiler for heat | C126: Heat | D126: ='Set other key assumptions'!F26 -> 0.85 | E126: ='Set other key assumptions'!G26 -> 0.85 | F126: ='Set other key assumptions'!H26 -> 0.85 | G126: ='Set other key assumptions'!I26 -> 0.85 | H126: ='Set other key assumptions'!J26 -> 0.85 | I126: ='Set other key assumptions'!K26 -> 0.85 | J126: ='Set other key assumptions'!L26 -> 0.85 | K126: ='Set other key assumptions'!M26 -> 0.85
B127: Biogas grid injection | C127: Biomethane | D127: ='Set other key assumptions'!F27 -> 0.99 | E127: ='Set other key assumptions'!G27 -> 0.99 | F127: ='Set other key assumptions'!H27 -> 0.99 | G127: ='Set other key assumptions'!I27 -> 0.99 | H127: ='Set other key assumptions'!J27 -> 0.99 | I127: ='Set other key assumptions'!K27 -> 0.99 | J127: ='Set other key assumptions'!L27 -> 0.99 | K127: ='Set other key assumptions'!M27 -> 0.99
B128: Biogas for electricity | C128: Electricity | D128: ='Set other key assumptions'!F28 -> 0.36 | E128: ='Set other key assumptions'!G28 -> 0.36 | F128: ='Set other key assumptions'!H28 -> 0.36 | G128: ='Set other key assumptions'!I28 -> 0.36 | H128: ='Set other key assumptions'!J28 -> 0.36 | I128: ='Set other key assumptions'!K28 -> 0.36 | J128: ='Set other key assumptions'!L28 -> 0.36 | K128: ='Set other key assumptions'!M28 -> 0.36
B129: 1G biofuels | C129: Liquid | D129: ='Set other key assumptions'!F29 -> 1 | E129: ='Set other key assumptions'!G29 -> 1 | F129: ='Set other key assumptions'!H29 -> 1 | G129: ='Set other key assumptions'!I29 -> 1 | H129: ='Set other key assumptions'!J29 -> 1 | I129: ='Set other key assumptions'!K29 -> 1 | J129: ='Set other key assumptions'!L29 -> 1 | K129: ='Set other key assumptions'!M29 -> 1
B130: Advanced biofuels | C130: Liquid | D130: ='Set other key assumptions'!F30 -> 0.4545454545 | E130: ='Set other key assumptions'!G30 -> 0.4545454545 | F130: ='Set other key assumptions'!H30 -> 0.4545454545 | G130: ='Set other key assumptions'!I30 -> 0.4545454545 | H130: ='Set other key assumptions'!J30 -> 0.4545454545 | I130: ='Set other key assumptions'!K30 -> 0.4545454545 | J130: ='Set other key assumptions'!L30 -> 0.4545454545 | K130: ='Set other key assumptions'!M30 -> 0.4545454545
B133: Bioethanol | D133: Typical GHG emissions saving | E133: Typical GHG emissions (g CO2 e/JMJ) | F133: Typical emissions in year as % of 2010 emissions | O133: Lowest emissions as % of typical | X133: Highest emissions as % of typical | AG133: Distribution of ILUC emissions | AM133: =AG133 -> Distribution of ILUC emissions | AS133: =AM133 -> Distribution of ILUC emissions | AY133: =AS133 -> Distribution of ILUC emissions | BE133: =AY133 -> Distribution of ILUC emissions | BK133: =BE133 -> Distribution of ILUC emissions | BQ133: =BK133 -> Distribution of ILUC emissions | BW133: =BQ133 -> Distribution of ILUC emissions
AG134: 2015 | AH134: =AG134 -> 2015 | AI134: =AH134 -> 2015 | AJ134: =AI134 -> 2015 | AK134: =AJ134 -> 2015 | AM134: 2020 | AN134: =AM134 -> 2020 | AO134: =AN134 -> 2020 | AP134: =AO134 -> 2020 | AQ134: =AP134 -> 2020 | AS134: 2025 | AT134: =AS134 -> 2025 | AU134: =AT134 -> 2025 | AV134: =AU134 -> 2025 | AW134: =AV134 -> 2025 | AY134: 2030 | AZ134: =AY134 -> 2030 | BA134: =AZ134 -> 2030 | BB134: =BA134 -> 2030 | BC134: =BB134 -> 2030 | BE134: 2035 | BF134: =BE134 -> 2035 | BG134: =BF134 -> 2035 | BH134: =BG134 -> 2035 | BI134: =BH134 -> 2035 | BK134: 2040 | BL134: =BK134 -> 2040 | BM134: =BL134 -> 2040 | BN134: =BM134 -> 2040 | BO134: =BN134 -> 2040 | BQ134: 2045 | BR134: =BQ134 -> 2045 | BS134: =BR134 -> 2045 | BT134: =BS134 -> 2045 | BU134: =BT134 -> 2045 | BW134: 2050 | BX134: =BW134 -> 2050 | BY134: =BX134 -> 2050 | BZ134: =BY134 -> 2050 | CA134: =BZ134 -> 2050
A135: =Scenario_A -> BAU/continuing trends | B135: Region | C135: Feedstock | D135: Legacy data from model for 2010 | E135: Legacy data from model for 2010 | F135: 2015 | G135: 2020 | H135: 2025 | I135: 2030 | J135: 2035 | K135: 2040 | L135: 2045 | M135: 2050 | O135: 2015 | P135: 2020 | Q135: 2025 | R135: 2030 | S135: 2035 | T135: 2040 | U135: 2045 | V135: 2050 | X135: 2015 | Y135: 2020 | Z135: 2025 | AA135: 2030 | AB135: 2035 | AC135: 2040 | AD135: 2045 | AE135: 2050 | AG135: Low | AH135: 2 | AI135: 3 | AJ135: 4 | AK135: High | AM135: Low | AN135: 2 | AO135: 3 | AP135: 4 | AQ135: High | AS135: Low | AT135: 2 | AU135: 3 | AV135: 4 | AW135: High | AY135: Low | AZ135: 2 | BA135: 3 | BB135: 4 | BC135: High | BE135: Low | BF135: 2 | BG135: 3 | BH135: 4 | BI135: High | BK135: Low | BL135: 2 | BM135: 3 | BN135: 4 | BO135: High | BQ135: Low | BR135: 2 | BS135: 3 | BT135: 4 | BU135: High | BW135: Low | BX135: 2 | BY135: 3 | BZ135: 4 | CA135: High
B136: Canada | C136: corn | D136: 0.4 | E136: =(1-D136)*Biofuels_comparator -> 50.28 | F136: =AVERAGE(1,G136) -> 0.98 | G136: =G137 -> 0.96 | H136: 0.945 | I136: 0.93 | J136: 0.9125 | K136: 0.895 | L136: 0.8775 | M136: 0.86 | O136: 0.2 | P136: 0.2 | Q136: 0.2 | R136: 0.2 | S136: 0.2 | T136: 0.2 | U136: 0.2 | V136: 0.2 | X136: 0.2 | Y136: 0.2 | Z136: 0.2 | AA136: 0.2 | AB136: 0.2 | AC136: 0.2 | AD136: 0.2 | AE136: 0.2
B137: USA | C137: corn | D137: 0.4 | E137: =(1-D137)*Biofuels_comparator -> 50.28 | F137: =AVERAGE(1,G137) -> 0.98 | G137: 0.96 | H137: =AVERAGE(G137,I137) -> 0.945 | I137: 0.93 | J137: =AVERAGE(I137,K137) -> 0.9125 | K137: =AVERAGE(I137,M137) -> 0.895 | L137: =AVERAGE(K137,M137) -> 0.8775 | M137: 0.86 | O137: 0.2 | P137: 0.2 | Q137: 0.2 | R137: 0.2 | S137: 0.2 | T137: 0.2 | U137: 0.2 | V137: 0.2 | X137: 0.2 | Y137: 0.2 | Z137: 0.2 | AA137: 0.2 | AB137: 0.2 | AC137: 0.2 | AD137: 0.2 | AE137: 0.2
B138: Central America | C138: sugar cane | D138: 0.71 | E138: =(1-D138)*Biofuels_comparator -> 24.302 | F138: =AVERAGE(1,G138) -> 0.99 | G138: =G139 -> 0.98 | H138: 0.97 | I138: 0.96 | J138: 0.95 | K138: 0.94 | L138: 0.93 | M138: 0.92 | O138: 0.2 | P138: 0.2 | Q138: 0.2 | R138: 0.2 | S138: 0.2 | T138: 0.2 | U138: 0.2 | V138: 0.2 | X138: 0.2 | Y138: 0.2 | Z138: 0.2 | AA138: 0.2 | AB138: 0.2 | AC138: 0.2 | AD138: 0.2 | AE138: 0.2
B139: South America | C139: sugar cane | D139: 0.71 | E139: =(1-D139)*Biofuels_comparator -> 24.302 | F139: =AVERAGE(1,G139) -> 0.99 | G139: 0.98 | H139: =AVERAGE(G139,I139) -> 0.97 | I139: 0.96 | J139: =AVERAGE(I139,K139) -> 0.95 | K139: =AVERAGE(I139,M139) -> 0.94 | L139: =AVERAGE(K139,M139) -> 0.93 | M139: 0.92 | O139: 0.2 | P139: 0.2 | Q139: 0.2 | R139: 0.2 | S139: 0.2 | T139: 0.2 | U139: 0.2 | V139: 0.2 | X139: 0.2 | Y139: 0.2 | Z139: 0.2 | AA139: 0.2 | AB139: 0.2 | AC139: 0.2 | AD139: 0.2 | AE139: 0.2
B140: North Africa | C140: none
B141: West Africa | C141: none
B142: East Africa | C142: none
B143: South Africa | C143: sugar cane | D143: 0.62 | E143: =(1-D143)*Biofuels_comparator -> 31.844 | F143: =AVERAGE(1,G143) -> 0.99 | G143: =G139 -> 0.98 | H143: 0.97 | I143: 0.96 | J143: 0.95 | K143: 0.94 | L143: 0.93 | M143: 0.92 | O143: 0.2 | P143: 0.2 | Q143: 0.2 | R143: 0.2 | S143: 0.2 | T143: 0.2 | U143: 0.2 | V143: 0.2 | X143: 0.2 | Y143: 0.2 | Z143: 0.2 | AA143: 0.2 | AB143: 0.2 | AC143: 0.2 | AD143: 0.2 | AE143: 0.2
B144: Western Europe | C144: sugar beet | D144: 0.55 | E144: =(1-D144)*Biofuels_comparator -> 37.71 | F144: =AVERAGE(1,G144) -> 0.99 | G144: =G154 -> 0.98 | H144: 0.97 | I144: 0.96 | J144: 0.95 | K144: 0.94 | L144: 0.93 | M144: 0.92 | O144: 0.2 | P144: 0.2 | Q144: 0.2 | R144: 0.2 | S144: 0.2 | T144: 0.2 | U144: 0.2 | V144: 0.2 | X144: 0.2 | Y144: 0.2 | Z144: 0.2 | AA144: 0.2 | AB144: 0.2 | AC144: 0.2 | AD144: 0.2 | AE144: 0.2
B145: East Europe | C145: wheat | D145: 0.18 | E145: =(1-D145)*Biofuels_comparator -> 68.716 | F145: =AVERAGE(1,G145) -> 0.975 | G145: =G153 -> 0.95 | H145: 0.93 | I145: 0.91 | J145: 0.89 | K145: 0.87 | L145: 0.85 | M145: 0.83 | O145: 0.2 | P145: 0.2 | Q145: 0.2 | R145: 0.2 | S145: 0.2 | T145: 0.2 | U145: 0.2 | V145: 0.2 | X145: 0.2 | Y145: 0.2 | Z145: 0.2 | AA145: 0.2 | AB145: 0.2 | AC145: 0.2 | AD145: 0.2 | AE145: 0.2
B146: Former USSR | C146: wheat | D146: 0.07 | E146: =(1-D146)*Biofuels_comparator -> 77.934 | F146: =AVERAGE(1,G146) -> 0.975 | G146: =G153 -> 0.95 | H146: 0.93 | I146: 0.91 | J146: 0.89 | K146: 0.87 | L146: 0.85 | M146: 0.83 | O146: 0.2 | P146: 0.2 | Q146: 0.2 | R146: 0.2 | S146: 0.2 | T146: 0.2 | U146: 0.2 | V146: 0.2 | X146: 0.2 | Y146: 0.2 | Z146: 0.2 | AA146: 0.2 | AB146: 0.2 | AC146: 0.2 | AD146: 0.2 | AE146: 0.2
B147: Middle East | C147: none
B148: South Asia | C148: sugarcane | D148: 0.62 | E148: =(1-D148)*Biofuels_comparator -> 31.844 | F148: =F138 -> 0.99 | G148: 0.98 | H148: 0.97 | I148: 0.96 | J148: 0.95 | K148: 0.94 | L148: 0.93 | M148: 0.92 | O148: 0.2 | P148: 0.2 | Q148: 0.2 | R148: 0.2 | S148: 0.2 | T148: 0.2 | U148: 0.2 | V148: 0.2 | X148: 0.2 | Y148: 0.2 | Z148: 0.2 | AA148: 0.2 | AB148: 0.2 | AC148: 0.2 | AD148: 0.2 | AE148: 0.2
B149: East Asia | C149: corn | D149: 0.4 | E149: =(1-D149)*Biofuels_comparator -> 50.28 | F149: =F137 -> 0.98 | G149: 0.96 | H149: 0.945 | I149: 0.93 | J149: 0.9125 | K149: 0.895 | L149: 0.8775 | M149: 0.86 | O149: 0.2 | P149: 0.2 | Q149: 0.2 | R149: 0.2 | S149: 0.2 | T149: 0.2 | U149: 0.2 | V149: 0.2 | X149: 0.2 | Y149: 0.2 | Z149: 0.2 | AA149: 0.2 | AB149: 0.2 | AC149: 0.2 | AD149: 0.2 | AE149: 0.2
B150: South East Asia | C150: cassava | D150: 0.45 | E150: =(1-D150)*Biofuels_comparator -> 46.09 | F150: =AVERAGE(1,G150) -> 0.995 | G150: 0.99 | H150: =AVERAGE(G150,I150) -> 0.985 | I150: 0.98 | J150: =AVERAGE(I150,K150) -> 0.9775 | K150: =AVERAGE(I150,M150) -> 0.975 | L150: =AVERAGE(K150,M150) -> 0.9725 | M150: 0.97 | O150: 0.2 | P150: 0.2 | Q150: 0.2 | R150: 0.2 | S150: 0.2 | T150: 0.2 | U150: 0.2 | V150: 0.2 | X150: 0.2 | Y150: 0.2 | Z150: 0.2 | AA150: 0.2 | AB150: 0.2 | AC150: 0.2 | AD150: 0.2 | AE150: 0.2
B151: Oceania | C151: wheat | D151: 0.18 | E151: =(1-D151)*Biofuels_comparator -> 68.716 | F151: =AVERAGE(1,G151) -> 0.975 | G151: =G153 -> 0.95 | H151: 0.93 | I151: 0.91 | J151: 0.89 | K151: 0.87 | L151: 0.85 | M151: 0.83 | O151: 0.2 | P151: 0.2 | Q151: 0.2 | R151: 0.2 | S151: 0.2 | T151: 0.2 | U151: 0.2 | V151: 0.2 | X151: 0.2 | Y151: 0.2 | Z151: 0.2 | AA151: 0.2 | AB151: 0.2 | AC151: 0.2 | AD151: 0.2 | AE151: 0.2
B152: Japan | C152: sugar cane | D152: 0.62 | E152: =(1-D152)*Biofuels_comparator -> 31.844 | F152: =AVERAGE(1,G152) -> 0.99 | G152: =G139 -> 0.98 | H152: 0.97 | I152: 0.96 | J152: 0.95 | K152: 0.94 | L152: 0.93 | M152: 0.92 | O152: 0.2 | P152: 0.2 | Q152: 0.2 | R152: 0.2 | S152: 0.2 | T152: 0.2 | U152: 0.2 | V152: 0.2 | X152: 0.2 | Y152: 0.2 | Z152: 0.2 | AA152: 0.2 | AB152: 0.2 | AC152: 0.2 | AD152: 0.2 | AE152: 0.2
B153: UK | C153: wheat | D153: =(83.8-E153)/83.8 -> 0.5755369928 | E153: 35.57 | F153: =AVERAGE(1,G153) -> 0.975 | G153: 0.95 | H153: =AVERAGE(G153,I153) -> 0.93 | I153: 0.91 | J153: =AVERAGE(I153,K153) -> 0.89 | K153: =AVERAGE(I153,M153) -> 0.87 | L153: =AVERAGE(K153,M153) -> 0.85 | M153: 0.83 | O153: 0.2 | P153: 0.2 | Q153: 0.2 | R153: 0.2 | S153: 0.2 | T153: 0.2 | U153: 0.2 | V153: 0.2 | X153: 0.2 | Y153: 0.2 | Z153: 0.2 | AA153: 0.2 | AB153: 0.2 | AC153: 0.2 | AD153: 0.2 | AE153: 0.2
B154: UK | C154: sugar beet | D154: =(83.8-E154)/83.8 -> 0.5584725537 | E154: 37 | F154: =AVERAGE(1,G154) -> 0.99 | G154: 0.98 | H154: =AVERAGE(G154,I154) -> 0.97 | I154: 0.96 | J154: =AVERAGE(I154,K154) -> 0.95 | K154: =AVERAGE(I154,M154) -> 0.94 | L154: =AVERAGE(K154,M154) -> 0.93 | M154: 0.92 | O154: 0.2 | P154: 0.2 | Q154: 0.2 | R154: 0.2 | S154: 0.2 | T154: 0.2 | U154: 0.2 | V154: 0.2 | X154: 0.2 | Y154: 0.2 | Z154: 0.2 | AA154: 0.2 | AB154: 0.2 | AC154: 0.2 | AD154: 0.2 | AE154: 0.2
B158: Bioethanol | D158: Typical GHG emissions saving | E158: Typical GHG emissions (g CO2 e/JMJ) | F158: Typical emissions in year as % of 2010 emissions | O158: Lowest emissions as % of typical | X158: Highest emissions as % of typical | AG158: Distribution of ILUC emissions | AM158: =AG158 -> Distribution of ILUC emissions | AS158: =AM158 -> Distribution of ILUC emissions | AY158: =AS158 -> Distribution of ILUC emissions | BE158: =AY158 -> Distribution of ILUC emissions | BK158: =BE158 -> Distribution of ILUC emissions | BQ158: =BK158 -> Distribution of ILUC emissions | BW158: =BQ158 -> Distribution of ILUC emissions
AG159: 2015 | AH159: =AG159 -> 2015 | AI159: =AH159 -> 2015 | AJ159: =AI159 -> 2015 | AK159: =AJ159 -> 2015 | AM159: 2020 | AN159: =AM159 -> 2020 | AO159: =AN159 -> 2020 | AP159: =AO159 -> 2020 | AQ159: =AP159 -> 2020 | AS159: 2025 | AT159: =AS159 -> 2025 | AU159: =AT159 -> 2025 | AV159: =AU159 -> 2025 | AW159: =AV159 -> 2025 | AY159: 2030 | AZ159: =AY159 -> 2030 | BA159: =AZ159 -> 2030 | BB159: =BA159 -> 2030 | BC159: =BB159 -> 2030 | BE159: 2035 | BF159: =BE159 -> 2035 | BG159: =BF159 -> 2035 | BH159: =BG159 -> 2035 | BI159: =BH159 -> 2035 | BK159: 2040 | BL159: =BK159 -> 2040 | BM159: =BL159 -> 2040 | BN159: =BM159 -> 2040 | BO159: =BN159 -> 2040 | BQ159: 2045 | BR159: =BQ159 -> 2045 | BS159: =BR159 -> 2045 | BT159: =BS159 -> 2045 | BU159: =BT159 -> 2045 | BW159: 2050 | BX159: =BW159 -> 2050 | BY159: =BX159 -> 2050 | BZ159: =BY159 -> 2050 | CA159: =BZ159 -> 2050
A160: =Scenario_B -> High investment/globalisation | B160: Region | C160: Feedstock | D160: Legacy data from model for 2010 | E160: Legacy data from model for 2010 | F160: 2015 | G160: 2020 | H160: 2025 | I160: 2030 | J160: 2035 | K160: 2040 | L160: 2045 | M160: 2050 | O160: 2015 | P160: 2020 | Q160: 2025 | R160: 2030 | S160: 2035 | T160: 2040 | U160: 2045 | V160: 2050 | X160: 2015 | Y160: 2020 | Z160: 2025 | AA160: 2030 | AB160: 2035 | AC160: 2040 | AD160: 2045 | AE160: 2050 | AG160: Low | AH160: 2 | AI160: 3 | AJ160: 4 | AK160: High | AM160: Low | AN160: 2 | AO160: 3 | AP160: 4 | AQ160: High | AS160: Low | AT160: 2 | AU160: 3 | AV160: 4 | AW160: High | AY160: Low | AZ160: 2 | BA160: 3 | BB160: 4 | BC160: High | BE160: Low | BF160: 2 | BG160: 3 | BH160: 4 | BI160: High | BK160: Low | BL160: 2 | BM160: 3 | BN160: 4 | BO160: High | BQ160: Low | BR160: 2 | BS160: 3 | BT160: 4 | BU160: High | BW160: Low | BX160: 2 | BY160: 3 | BZ160: 4 | CA160: High
B161: Canada | C161: corn | D161: 0.4 | E161: =(1-D161)*Biofuels_comparator -> 50.28 | F161: 0.98 | G161: 0.96 | H161: 0.945 | I161: 0.93 | J161: 0.9125 | K161: 0.895 | L161: 0.8775 | M161: 0.86 | O161: 0.2 | P161: 0.2 | Q161: 0.2 | R161: 0.2 | S161: 0.2 | T161: 0.2 | U161: 0.2 | V161: 0.2 | X161: 0.2 | Y161: 0.2 | Z161: 0.2 | AA161: 0.2 | AB161: 0.2 | AC161: 0.2 | AD161: 0.2 | AE161: 0.2
B162: USA | C162: corn | D162: 0.4 | E162: =(1-D162)*Biofuels_comparator -> 50.28 | F162: 0.98 | G162: 0.96 | H162: 0.945 | I162: 0.93 | J162: 0.9125 | K162: 0.895 | L162: 0.8775 | M162: 0.86 | O162: 0.2 | P162: 0.2 | Q162: 0.2 | R162: 0.2 | S162: 0.2 | T162: 0.2 | U162: 0.2 | V162: 0.2 | X162: 0.2 | Y162: 0.2 | Z162: 0.2 | AA162: 0.2 | AB162: 0.2 | AC162: 0.2 | AD162: 0.2 | AE162: 0.2
B163: Central America | C163: sugar cane | D163: 0.71 | E163: =(1-D163)*Biofuels_comparator -> 24.302 | F163: 0.99 | G163: 0.98 | H163: 0.97 | I163: 0.96 | J163: 0.95 | K163: 0.94 | L163: 0.93 | M163: 0.92 | O163: 0.2 | P163: 0.2 | Q163: 0.2 | R163: 0.2 | S163: 0.2 | T163: 0.2 | U163: 0.2 | V163: 0.2 | X163: 0.2 | Y163: 0.2 | Z163: 0.2 | AA163: 0.2 | AB163: 0.2 | AC163: 0.2 | AD163: 0.2 | AE163: 0.2
B164: South America | C164: sugar cane | D164: 0.71 | E164: =(1-D164)*Biofuels_comparator -> 24.302 | F164: 0.99 | G164: 0.98 | H164: 0.97 | I164: 0.96 | J164: 0.95 | K164: 0.94 | L164: 0.93 | M164: 0.92 | O164: 0.2 | P164: 0.2 | Q164: 0.2 | R164: 0.2 | S164: 0.2 | T164: 0.2 | U164: 0.2 | V164: 0.2 | X164: 0.2 | Y164: 0.2 | Z164: 0.2 | AA164: 0.2 | AB164: 0.2 | AC164: 0.2 | AD164: 0.2 | AE164: 0.2
B165: North Africa | C165: none
B166: West Africa | C166: none
B167: East Africa | C167: none
B168: South Africa | C168: sugar cane | D168: 0.62 | E168: =(1-D168)*Biofuels_comparator -> 31.844 | F168: 0.99 | G168: 0.98 | H168: 0.97 | I168: 0.96 | J168: 0.95 | K168: 0.94 | L168: 0.93 | M168: 0.92 | O168: 0.2 | P168: 0.2 | Q168: 0.2 | R168: 0.2 | S168: 0.2 | T168: 0.2 | U168: 0.2 | V168: 0.2 | X168: 0.2 | Y168: 0.2 | Z168: 0.2 | AA168: 0.2 | AB168: 0.2 | AC168: 0.2 | AD168: 0.2 | AE168: 0.2
B169: Western Europe | C169: sugar beet | D169: 0.55 | E169: =(1-D169)*Biofuels_comparator -> 37.71 | F169: 0.99 | G169: 0.98 | H169: 0.97 | I169: 0.96 | J169: 0.95 | K169: 0.94 | L169: 0.93 | M169: 0.92 | O169: 0.2 | P169: 0.2 | Q169: 0.2 | R169: 0.2 | S169: 0.2 | T169: 0.2 | U169: 0.2 | V169: 0.2 | X169: 0.2 | Y169: 0.2 | Z169: 0.2 | AA169: 0.2 | AB169: 0.2 | AC169: 0.2 | AD169: 0.2 | AE169: 0.2
B170: East Europe | C170: wheat | D170: 0.18 | E170: =(1-D170)*Biofuels_comparator -> 68.716 | F170: 0.975 | G170: 0.95 | H170: 0.93 | I170: 0.91 | J170: 0.89 | K170: 0.87 | L170: 0.85 | M170: 0.83 | O170: 0.2 | P170: 0.2 | Q170: 0.2 | R170: 0.2 | S170: 0.2 | T170: 0.2 | U170: 0.2 | V170: 0.2 | X170: 0.2 | Y170: 0.2 | Z170: 0.2 | AA170: 0.2 | AB170: 0.2 | AC170: 0.2 | AD170: 0.2 | AE170: 0.2
B171: Former USSR | C171: wheat | D171: 0.07 | E171: =(1-D171)*Biofuels_comparator -> 77.934 | F171: 0.975 | G171: 0.95 | H171: 0.93 | I171: 0.91 | J171: 0.89 | K171: 0.87 | L171: 0.85 | M171: 0.83 | O171: 0.2 | P171: 0.2 | Q171: 0.2 | R171: 0.2 | S171: 0.2 | T171: 0.2 | U171: 0.2 | V171: 0.2 | X171: 0.2 | Y171: 0.2 | Z171: 0.2 | AA171: 0.2 | AB171: 0.2 | AC171: 0.2 | AD171: 0.2 | AE171: 0.2
B172: Middle East | C172: none
B173: South Asia | C173: sugarcane | D173: 0.62 | E173: =(1-D173)*Biofuels_comparator -> 31.844 | F173: 0.99 | G173: 0.98 | H173: 0.97 | I173: 0.96 | J173: 0.95 | K173: 0.94 | L173: 0.93 | M173: 0.92 | O173: 0.2 | P173: 0.2 | Q173: 0.2 | R173: 0.2 | S173: 0.2 | T173: 0.2 | U173: 0.2 | V173: 0.2 | X173: 0.2 | Y173: 0.2 | Z173: 0.2 | AA173: 0.2 | AB173: 0.2 | AC173: 0.2 | AD173: 0.2 | AE173: 0.2
B174: East Asia | C174: corn | D174: 0.4 | E174: =(1-D174)*Biofuels_comparator -> 50.28 | F174: 0.98 | G174: 0.96 | H174: 0.945 | I174: 0.93 | J174: 0.9125 | K174: 0.895 | L174: 0.8775 | M174: 0.86 | O174: 0.2 | P174: 0.2 | Q174: 0.2 | R174: 0.2 | S174: 0.2 | T174: 0.2 | U174: 0.2 | V174: 0.2 | X174: 0.2 | Y174: 0.2 | Z174: 0.2 | AA174: 0.2 | AB174: 0.2 | AC174: 0.2 | AD174: 0.2 | AE174: 0.2
B175: South East Asia | C175: cassava | D175: 0.45 | E175: =(1-D175)*Biofuels_comparator -> 46.09 | F175: 0.995 | G175: 0.99 | H175: 0.985 | I175: 0.98 | J175: 0.9775 | K175: 0.975 | L175: 0.9725 | M175: 0.97 | O175: 0.2 | P175: 0.2 | Q175: 0.2 | R175: 0.2 | S175: 0.2 | T175: 0.2 | U175: 0.2 | V175: 0.2 | X175: 0.2 | Y175: 0.2 | Z175: 0.2 | AA175: 0.2 | AB175: 0.2 | AC175: 0.2 | AD175: 0.2 | AE175: 0.2
B176: Oceania | C176: wheat | D176: 0.18 | E176: =(1-D176)*Biofuels_comparator -> 68.716 | F176: 0.975 | G176: 0.95 | H176: 0.93 | I176: 0.91 | J176: 0.89 | K176: 0.87 | L176: 0.85 | M176: 0.83 | O176: 0.2 | P176: 0.2 | Q176: 0.2 | R176: 0.2 | S176: 0.2 | T176: 0.2 | U176: 0.2 | V176: 0.2 | X176: 0.2 | Y176: 0.2 | Z176: 0.2 | AA176: 0.2 | AB176: 0.2 | AC176: 0.2 | AD176: 0.2 | AE176: 0.2
B177: Japan | C177: sugar cane | D177: 0.62 | E177: =(1-D177)*Biofuels_comparator -> 31.844 | F177: 0.99 | G177: 0.98 | H177: 0.97 | I177: 0.96 | J177: 0.95 | K177: 0.94 | L177: 0.93 | M177: 0.92 | O177: 0.2 | P177: 0.2 | Q177: 0.2 | R177: 0.2 | S177: 0.2 | T177: 0.2 | U177: 0.2 | V177: 0.2 | X177: 0.2 | Y177: 0.2 | Z177: 0.2 | AA177: 0.2 | AB177: 0.2 | AC177: 0.2 | AD177: 0.2 | AE177: 0.2
B178: UK | C178: wheat | D178: =(83.8-E178)/83.8 -> 0.5755369928 | E178: 35.57 | F178: 0.975 | G178: 0.95 | H178: 0.93 | I178: 0.91 | J178: 0.89 | K178: 0.87 | L178: 0.85 | M178: 0.83 | O178: 0.2 | P178: 0.2 | Q178: 0.2 | R178: 0.2 | S178: 0.2 | T178: 0.2 | U178: 0.2 | V178: 0.2 | X178: 0.2 | Y178: 0.2 | Z178: 0.2 | AA178: 0.2 | AB178: 0.2 | AC178: 0.2 | AD178: 0.2 | AE178: 0.2
B179: UK | C179: sugar beet | D179: =(83.8-E179)/83.8 -> 0.5584725537 | E179: 37 | F179: 0.99 | G179: 0.98 | H179: 0.97 | I179: 0.96 | J179: 0.95 | K179: 0.94 | L179: 0.93 | M179: 0.92 | O179: 0.2 | P179: 0.2 | Q179: 0.2 | R179: 0.2 | S179: 0.2 | T179: 0.2 | U179: 0.2 | V179: 0.2 | X179: 0.2 | Y179: 0.2 | Z179: 0.2 | AA179: 0.2 | AB179: 0.2 | AC179: 0.2 | AD179: 0.2 | AE179: 0.2
B183: Bioethanol | D183: Typical GHG emissions saving | E183: Typical GHG emissions (g CO2 e/JMJ) | F183: Typical emissions in year as % of 2010 emissions | O183: Lowest emissions as % of typical | X183: Highest emissions as % of typical | AG183: Distribution of ILUC emissions | AM183: =AG183 -> Distribution of ILUC emissions | AS183: =AM183 -> Distribution of ILUC emissions | AY183: =AS183 -> Distribution of ILUC emissions | BE183: =AY183 -> Distribution of ILUC emissions | BK183: =BE183 -> Distribution of ILUC emissions | BQ183: =BK183 -> Distribution of ILUC emissions | BW183: =BQ183 -> Distribution of ILUC emissions
AG184: 2015 | AH184: =AG184 -> 2015 | AI184: =AH184 -> 2015 | AJ184: =AI184 -> 2015 | AK184: =AJ184 -> 2015 | AM184: 2020 | AN184: =AM184 -> 2020 | AO184: =AN184 -> 2020 | AP184: =AO184 -> 2020 | AQ184: =AP184 -> 2020 | AS184: 2025 | AT184: =AS184 -> 2025 | AU184: =AT184 -> 2025 | AV184: =AU184 -> 2025 | AW184: =AV184 -> 2025 | AY184: 2030 | AZ184: =AY184 -> 2030 | BA184: =AZ184 -> 2030 | BB184: =BA184 -> 2030 | BC184: =BB184 -> 2030 | BE184: 2035 | BF184: =BE184 -> 2035 | BG184: =BF184 -> 2035 | BH184: =BG184 -> 2035 | BI184: =BH184 -> 2035 | BK184: 2040 | BL184: =BK184 -> 2040 | BM184: =BL184 -> 2040 | BN184: =BM184 -> 2040 | BO184: =BN184 -> 2040 | BQ184: 2045 | BR184: =BQ184 -> 2045 | BS184: =BR184 -> 2045 | BT184: =BS184 -> 2045 | BU184: =BT184 -> 2045 | BW184: 2050 | BX184: =BW184 -> 2050 | BY184: =BX184 -> 2050 | BZ184: =BY184 -> 2050 | CA184: =BZ184 -> 2050
A185: =Scenario_C -> Low investment/regionalisation | B185: Region | C185: Feedstock | D185: Legacy data from model for 2010 | E185: Legacy data from model for 2010 | F185: 2015 | G185: 2020 | H185: 2025 | I185: 2030 | J185: 2035 | K185: 2040 | L185: 2045 | M185: 2050 | O185: 2015 | P185: 2020 | Q185: 2025 | R185: 2030 | S185: 2035 | T185: 2040 | U185: 2045 | V185: 2050 | X185: 2015 | Y185: 2020 | Z185: 2025 | AA185: 2030 | AB185: 2035 | AC185: 2040 | AD185: 2045 | AE185: 2050 | AG185: Low | AH185: 2 | AI185: 3 | AJ185: 4 | AK185: High | AM185: Low | AN185: 2 | AO185: 3 | AP185: 4 | AQ185: High | AS185: Low | AT185: 2 | AU185: 3 | AV185: 4 | AW185: High | AY185: Low | AZ185: 2 | BA185: 3 | BB185: 4 | BC185: High | BE185: Low | BF185: 2 | BG185: 3 | BH185: 4 | BI185: High | BK185: Low | BL185: 2 | BM185: 3 | BN185: 4 | BO185: High | BQ185: Low | BR185: 2 | BS185: 3 | BT185: 4 | BU185: High | BW185: Low | BX185: 2 | BY185: 3 | BZ185: 4 | CA185: High
B186: Canada | C186: corn | D186: 0.4 | E186: =(1-D186)*Biofuels_comparator -> 50.28 | F186: 0.98 | G186: 0.96 | H186: 0.945 | I186: 0.93 | J186: 0.9125 | K186: 0.895 | L186: 0.8775 | M186: 0.86 | O186: 0.2 | P186: 0.2 | Q186: 0.2 | R186: 0.2 | S186: 0.2 | T186: 0.2 | U186: 0.2 | V186: 0.2 | X186: 0.2 | Y186: 0.2 | Z186: 0.2 | AA186: 0.2 | AB186: 0.2 | AC186: 0.2 | AD186: 0.2 | AE186: 0.2
B187: USA | C187: corn | D187: 0.4 | E187: =(1-D187)*Biofuels_comparator -> 50.28 | F187: 0.98 | G187: 0.96 | H187: 0.945 | I187: 0.93 | J187: 0.9125 | K187: 0.895 | L187: 0.8775 | M187: 0.86 | O187: 0.2 | P187: 0.2 | Q187: 0.2 | R187: 0.2 | S187: 0.2 | T187: 0.2 | U187: 0.2 | V187: 0.2 | X187: 0.2 | Y187: 0.2 | Z187: 0.2 | AA187: 0.2 | AB187: 0.2 | AC187: 0.2 | AD187: 0.2 | AE187: 0.2
B188: Central America | C188: sugar cane | D188: 0.71 | E188: =(1-D188)*Biofuels_comparator -> 24.302 | F188: 0.99 | G188: 0.98 | H188: 0.97 | I188: 0.96 | J188: 0.95 | K188: 0.94 | L188: 0.93 | M188: 0.92 | O188: 0.2 | P188: 0.2 | Q188: 0.2 | R188: 0.2 | S188: 0.2 | T188: 0.2 | U188: 0.2 | V188: 0.2 | X188: 0.2 | Y188: 0.2 | Z188: 0.2 | AA188: 0.2 | AB188: 0.2 | AC188: 0.2 | AD188: 0.2 | AE188: 0.2
B189: South America | C189: sugar cane | D189: 0.71 | E189: =(1-D189)*Biofuels_comparator -> 24.302 | F189: 0.99 | G189: 0.98 | H189: 0.97 | I189: 0.96 | J189: 0.95 | K189: 0.94 | L189: 0.93 | M189: 0.92 | O189: 0.2 | P189: 0.2 | Q189: 0.2 | R189: 0.2 | S189: 0.2 | T189: 0.2 | U189: 0.2 | V189: 0.2 | X189: 0.2 | Y189: 0.2 | Z189: 0.2 | AA189: 0.2 | AB189: 0.2 | AC189: 0.2 | AD189: 0.2 | AE189: 0.2
B190: North Africa | C190: none
B191: West Africa | C191: none
B192: East Africa | C192: none
B193: South Africa | C193: sugar cane | D193: 0.62 | E193: =(1-D193)*Biofuels_comparator -> 31.844 | F193: 0.99 | G193: 0.98 | H193: 0.97 | I193: 0.96 | J193: 0.95 | K193: 0.94 | L193: 0.93 | M193: 0.92 | O193: 0.2 | P193: 0.2 | Q193: 0.2 | R193: 0.2 | S193: 0.2 | T193: 0.2 | U193: 0.2 | V193: 0.2 | X193: 0.2 | Y193: 0.2 | Z193: 0.2 | AA193: 0.2 | AB193: 0.2 | AC193: 0.2 | AD193: 0.2 | AE193: 0.2
B194: Western Europe | C194: sugar beet | D194: 0.55 | E194: =(1-D194)*Biofuels_comparator -> 37.71 | F194: 0.99 | G194: 0.98 | H194: 0.97 | I194: 0.96 | J194: 0.95 | K194: 0.94 | L194: 0.93 | M194: 0.92 | O194: 0.2 | P194: 0.2 | Q194: 0.2 | R194: 0.2 | S194: 0.2 | T194: 0.2 | U194: 0.2 | V194: 0.2 | X194: 0.2 | Y194: 0.2 | Z194: 0.2 | AA194: 0.2 | AB194: 0.2 | AC194: 0.2 | AD194: 0.2 | AE194: 0.2
B195: East Europe | C195: wheat | D195: 0.18 | E195: =(1-D195)*Biofuels_comparator -> 68.716 | F195: 0.975 | G195: 0.95 | H195: 0.93 | I195: 0.91 | J195: 0.89 | K195: 0.87 | L195: 0.85 | M195: 0.83 | O195: 0.2 | P195: 0.2 | Q195: 0.2 | R195: 0.2 | S195: 0.2 | T195: 0.2 | U195: 0.2 | V195: 0.2 | X195: 0.2 | Y195: 0.2 | Z195: 0.2 | AA195: 0.2 | AB195: 0.2 | AC195: 0.2 | AD195: 0.2 | AE195: 0.2
B196: Former USSR | C196: wheat | D196: 0.07 | E196: =(1-D196)*Biofuels_comparator -> 77.934 | F196: 0.975 | G196: 0.95 | H196: 0.93 | I196: 0.91 | J196: 0.89 | K196: 0.87 | L196: 0.85 | M196: 0.83 | O196: 0.2 | P196: 0.2 | Q196: 0.2 | R196: 0.2 | S196: 0.2 | T196: 0.2 | U196: 0.2 | V196: 0.2 | X196: 0.2 | Y196: 0.2 | Z196: 0.2 | AA196: 0.2 | AB196: 0.2 | AC196: 0.2 | AD196: 0.2 | AE196: 0.2
B197: Middle East | C197: none
B198: South Asia | C198: sugarcane | D198: 0.62 | E198: =(1-D198)*Biofuels_comparator -> 31.844 | F198: 0.99 | G198: 0.98 | H198: 0.97 | I198: 0.96 | J198: 0.95 | K198: 0.94 | L198: 0.93 | M198: 0.92 | O198: 0.2 | P198: 0.2 | Q198: 0.2 | R198: 0.2 | S198: 0.2 | T198: 0.2 | U198: 0.2 | V198: 0.2 | X198: 0.2 | Y198: 0.2 | Z198: 0.2 | AA198: 0.2 | AB198: 0.2 | AC198: 0.2 | AD198: 0.2 | AE198: 0.2
B199: East Asia | C199: corn | D199: 0.4 | E199: =(1-D199)*Biofuels_comparator -> 50.28 | F199: 0.98 | G199: 0.96 | H199: 0.945 | I199: 0.93 | J199: 0.9125 | K199: 0.895 | L199: 0.8775 | M199: 0.86 | O199: 0.2 | P199: 0.2 | Q199: 0.2 | R199: 0.2 | S199: 0.2 | T199: 0.2 | U199: 0.2 | V199: 0.2 | X199: 0.2 | Y199: 0.2 | Z199: 0.2 | AA199: 0.2 | AB199: 0.2 | AC199: 0.2 | AD199: 0.2 | AE199: 0.2
B200: South East Asia | C200: cassava | D200: 0.45 | E200: =(1-D200)*Biofuels_comparator -> 46.09 | F200: 0.995 | G200: 0.99 | H200: 0.985 | I200: 0.98 | J200: 0.9775 | K200: 0.975 | L200: 0.9725 | M200: 0.97 | O200: 0.2 | P200: 0.2 | Q200: 0.2 | R200: 0.2 | S200: 0.2 | T200: 0.2 | U200: 0.2 | V200: 0.2 | X200: 0.2 | Y200: 0.2 | Z200: 0.2 | AA200: 0.2 | AB200: 0.2 | AC200: 0.2 | AD200: 0.2 | AE200: 0.2
B201: Oceania | C201: wheat | D201: 0.18 | E201: =(1-D201)*Biofuels_comparator -> 68.716 | F201: 0.975 | G201: 0.95 | H201: 0.93 | I201: 0.91 | J201: 0.89 | K201: 0.87 | L201: 0.85 | M201: 0.83 | O201: 0.2 | P201: 0.2 | Q201: 0.2 | R201: 0.2 | S201: 0.2 | T201: 0.2 | U201: 0.2 | V201: 0.2 | X201: 0.2 | Y201: 0.2 | Z201: 0.2 | AA201: 0.2 | AB201: 0.2 | AC201: 0.2 | AD201: 0.2 | AE201: 0.2
B202: Japan | C202: sugar cane | D202: 0.62 | E202: =(1-D202)*Biofuels_comparator -> 31.844 | F202: 0.99 | G202: 0.98 | H202: 0.97 | I202: 0.96 | J202: 0.95 | K202: 0.94 | L202: 0.93 | M202: 0.92 | O202: 0.2 | P202: 0.2 | Q202: 0.2 | R202: 0.2 | S202: 0.2 | T202: 0.2 | U202: 0.2 | V202: 0.2 | X202: 0.2 | Y202: 0.2 | Z202: 0.2 | AA202: 0.2 | AB202: 0.2 | AC202: 0.2 | AD202: 0.2 | AE202: 0.2
B203: UK | C203: wheat | D203: =(83.8-E203)/83.8 -> 0.5755369928 | E203: 35.57 | F203: 0.975 | G203: 0.95 | H203: 0.93 | I203: 0.91 | J203: 0.89 | K203: 0.87 | L203: 0.85 | M203: 0.83 | O203: 0.2 | P203: 0.2 | Q203: 0.2 | R203: 0.2 | S203: 0.2 | T203: 0.2 | U203: 0.2 | V203: 0.2 | X203: 0.2 | Y203: 0.2 | Z203: 0.2 | AA203: 0.2 | AB203: 0.2 | AC203: 0.2 | AD203: 0.2 | AE203: 0.2
B204: UK | C204: sugar beet | D204: =(83.8-E204)/83.8 -> 0.5584725537 | E204: 37 | F204: 0.99 | G204: 0.98 | H204: 0.97 | I204: 0.96 | J204: 0.95 | K204: 0.94 | L204: 0.93 | M204: 0.92 | O204: 0.2 | P204: 0.2 | Q204: 0.2 | R204: 0.2 | S204: 0.2 | T204: 0.2 | U204: 0.2 | V204: 0.2 | X204: 0.2 | Y204: 0.2 | Z204: 0.2 | AA204: 0.2 | AB204: 0.2 | AC204: 0.2 | AD204: 0.2 | AE204: 0.2
A207: =Scenario_A -> BAU/continuing trends
B208: Biodiesel (from crops) | D208: Typical GHG emissions saving | E208: Typical GHG emissions (G CO2 e/JMJ) | F208: Typical emissions in year as % of 2010 emissions | O208: Lowest emissions as % of typical | X208: Highest emissions as % of typical | AG208: =AG133 -> Distribution of ILUC emissions | AM208: =AM133 -> Distribution of ILUC emissions | AS208: =AS133 -> Distribution of ILUC emissions | AY208: =AY133 -> Distribution of ILUC emissions | BE208: =BE133 -> Distribution of ILUC emissions | BK208: =BK133 -> Distribution of ILUC emissions | BQ208: =BQ133 -> Distribution of ILUC emissions | BW208: =BW133 -> Distribution of ILUC emissions
AG209: =AG134 -> 2015 | AH209: =AG209 -> 2015 | AI209: =AH209 -> 2015 | AJ209: =AI209 -> 2015 | AK209: =AJ209 -> 2015 | AM209: =AM134 -> 2020 | AN209: =AM209 -> 2020 | AO209: =AN209 -> 2020 | AP209: =AO209 -> 2020 | AQ209: =AP209 -> 2020 | AS209: =AS134 -> 2025 | AT209: =AS209 -> 2025 | AU209: =AT209 -> 2025 | AV209: =AU209 -> 2025 | AW209: =AV209 -> 2025 | AY209: =AY134 -> 2030 | AZ209: =AY209 -> 2030 | BA209: =AZ209 -> 2030 | BB209: =BA209 -> 2030 | BC209: =BB209 -> 2030 | BE209: =BE134 -> 2035 | BF209: =BE209 -> 2035 | BG209: =BF209 -> 2035 | BH209: =BG209 -> 2035 | BI209: =BH209 -> 2035 | BK209: =BK134 -> 2040 | BL209: =BK209 -> 2040 | BM209: =BL209 -> 2040 | BN209: =BM209 -> 2040 | BO209: =BN209 -> 2040 | BQ209: =BQ134 -> 2045 | BR209: =BQ209 -> 2045 | BS209: =BR209 -> 2045 | BT209: =BS209 -> 2045 | BU209: =BT209 -> 2045 | BW209: =BW134 -> 2050 | BX209: =BW209 -> 2050 | BY209: =BX209 -> 2050 | BZ209: =BY209 -> 2050 | CA209: =BZ209 -> 2050
B210: Region | C210: Feedstock | D210: Legacy data from model for 2010 | E210: Legacy data from model for 2010 | F210: 2015 | G210: 2020 | H210: 2025 | I210: 2030 | J210: 2035 | K210: 2040 | L210: 2045 | M210: 2050 | O210: 2015 | P210: 2020 | Q210: 2025 | R210: 2030 | S210: 2035 | T210: 2040 | U210: 2045 | V210: 2050 | X210: 2015 | Y210: 2020 | Z210: 2025 | AA210: 2030 | AB210: 2035 | AC210: 2040 | AD210: 2045 | AE210: 2050 | AG210: Low | AH210: 2 | AI210: 3 | AJ210: 4 | AK210: High | AM210: Low | AN210: 2 | AO210: 3 | AP210: 4 | AQ210: High | AS210: Low | AT210: 2 | AU210: 3 | AV210: 4 | AW210: High | AY210: Low | AZ210: 2 | BA210: 3 | BB210: 4 | BC210: High | BE210: Low | BF210: 2 | BG210: 3 | BH210: 4 | BI210: High | BK210: Low | BL210: 2 | BM210: 3 | BN210: 4 | BO210: High | BQ210: Low | BR210: 2 | BS210: 3 | BT210: 4 | BU210: High | BW210: Low | BX210: 2 | BY210: 3 | BZ210: 4 | CA210: High
B211: Canada | C211: OSR | D211: 0.44 | E211: =(1-D211)*Biofuels_comparator -> 46.928 | F211: 0.985 | G211: 0.97 | H211: 0.955 | I211: 0.94 | J211: 0.9275 | K211: 0.915 | L211: 0.9025 | M211: 0.89 | O211: 0.2 | P211: 0.2 | Q211: 0.2 | R211: 0.2 | S211: 0.2 | T211: 0.2 | U211: 0.2 | V211: 0.2 | X211: 0.2 | Y211: 0.2 | Z211: 0.2 | AA211: 0.2 | AB211: 0.2 | AC211: 0.2 | AD211: 0.2 | AE211: 0.2
B212: USA | C212: soy | D212: 0.4 | E212: =(1-D212)*Biofuels_comparator -> 50.28 | F212: 0.995 | G212: 0.99 | H212: 0.98 | I212: 0.97 | J212: 0.965 | K212: 0.96 | L212: 0.955 | M212: 0.95 | O212: 0.2 | P212: 0.2 | Q212: 0.2 | R212: 0.2 | S212: 0.2 | T212: 0.2 | U212: 0.2 | V212: 0.2 | X212: 0.2 | Y212: 0.2 | Z212: 0.2 | AA212: 0.2 | AB212: 0.2 | AC212: 0.2 | AD212: 0.2 | AE212: 0.2
B213: Central America | C213: soy | D213: 0.4 | E213: =(1-D213)*Biofuels_comparator -> 50.28 | F213: 0.995 | G213: 0.99 | H213: 0.98 | I213: 0.97 | J213: 0.965 | K213: 0.96 | L213: 0.955 | M213: 0.95 | O213: 0.2 | P213: 0.2 | Q213: 0.2 | R213: 0.2 | S213: 0.2 | T213: 0.2 | U213: 0.2 | V213: 0.2 | X213: 0.2 | Y213: 0.2 | Z213: 0.2 | AA213: 0.2 | AB213: 0.2 | AC213: 0.2 | AD213: 0.2 | AE213: 0.2
B214: South America | C214: soy | D214: 0.42 | E214: =(1-D214)*Biofuels_comparator -> 48.604 | F214: 0.995 | G214: 0.99 | H214: 0.98 | I214: 0.97 | J214: 0.965 | K214: 0.96 | L214: 0.955 | M214: 0.95 | O214: 0.2 | P214: 0.2 | Q214: 0.2 | R214: 0.2 | S214: 0.2 | T214: 0.2 | U214: 0.2 | V214: 0.2 | X214: 0.2 | Y214: 0.2 | Z214: 0.2 | AA214: 0.2 | AB214: 0.2 | AC214: 0.2 | AD214: 0.2 | AE214: 0.2
B215: North Africa | C215: none
B216: West Africa | C216: jatropha | D216: 0.66 | E216: =(1-D216)*Biofuels_comparator -> 28.492 | F216: 0.99 | G216: 0.98 | H216: 0.975 | I216: 0.97 | J216: 0.9625 | K216: 0.955 | L216: 0.9475 | M216: 0.94 | O216: 0.2 | P216: 0.2 | Q216: 0.2 | R216: 0.2 | S216: 0.2 | T216: 0.2 | U216: 0.2 | V216: 0.2 | X216: 0.2 | Y216: 0.2 | Z216: 0.2 | AA216: 0.2 | AB216: 0.2 | AC216: 0.2 | AD216: 0.2 | AE216: 0.2
B217: East Africa | C217: jatropha | D217: 0.66 | E217: 28.492 | F217: 0.99 | G217: 0.98 | H217: 0.975 | I217: 0.97 | J217: 0.9625 | K217: 0.955 | L217: 0.9475 | M217: 0.94 | O217: 0.2 | P217: 0.2 | Q217: 0.2 | R217: 0.2 | S217: 0.2 | T217: 0.2 | U217: 0.2 | V217: 0.2 | X217: 0.2 | Y217: 0.2 | Z217: 0.2 | AA217: 0.2 | AB217: 0.2 | AC217: 0.2 | AD217: 0.2 | AE217: 0.2
B218: South Africa | C218: soy | D218: 0.4 | E218: 50.28 | F218: 0.995 | G218: 0.99 | H218: 0.98 | I218: 0.97 | J218: 0.965 | K218: 0.96 | L218: 0.955 | M218: 0.95 | O218: 0.2 | P218: 0.2 | Q218: 0.2 | R218: 0.2 | S218: 0.2 | T218: 0.2 | U218: 0.2 | V218: 0.2 | X218: 0.2 | Y218: 0.2 | Z218: 0.2 | AA218: 0.2 | AB218: 0.2 | AC218: 0.2 | AD218: 0.2 | AE218: 0.2
B219: Western Europe | C219: OSR | D219: 0.38 | E219: 51.956 | F219: 0.985 | G219: 0.97 | H219: 0.955 | I219: 0.94 | J219: 0.9275 | K219: 0.915 | L219: 0.9025 | M219: 0.89 | O219: 0.2 | P219: 0.2 | Q219: 0.2 | R219: 0.2 | S219: 0.2 | T219: 0.2 | U219: 0.2 | V219: 0.2 | X219: 0.2 | Y219: 0.2 | Z219: 0.2 | AA219: 0.2 | AB219: 0.2 | AC219: 0.2 | AD219: 0.2 | AE219: 0.2
B220: East Europe | C220: OSR | D220: 0.38 | E220: 51.956 | F220: 0.985 | G220: 0.97 | H220: 0.955 | I220: 0.94 | J220: 0.9275 | K220: 0.915 | L220: 0.9025 | M220: 0.89 | O220: 0.2 | P220: 0.2 | Q220: 0.2 | R220: 0.2 | S220: 0.2 | T220: 0.2 | U220: 0.2 | V220: 0.2 | X220: 0.2 | Y220: 0.2 | Z220: 0.2 | AA220: 0.2 | AB220: 0.2 | AC220: 0.2 | AD220: 0.2 | AE220: 0.2
B221: Former USSR | C221: OSR | D221: 0.27 | E221: 61.174 | F221: 0.985 | G221: 0.97 | H221: 0.955 | I221: 0.94 | J221: 0.9275 | K221: 0.915 | L221: 0.9025 | M221: 0.89 | O221: 0.2 | P221: 0.2 | Q221: 0.2 | R221: 0.2 | S221: 0.2 | T221: 0.2 | U221: 0.2 | V221: 0.2 | X221: 0.2 | Y221: 0.2 | Z221: 0.2 | AA221: 0.2 | AB221: 0.2 | AC221: 0.2 | AD221: 0.2 | AE221: 0.2
B222: Middle East | C222: none
B223: South Asia | C223: jatropha | D223: 0.66 | E223: =(1-D223)*Biofuels_comparator -> 28.492 | F223: 0.99 | G223: 0.98 | H223: 0.975 | I223: 0.97 | J223: 0.9625 | K223: 0.955 | L223: 0.9475 | M223: 0.94 | O223: 0.2 | P223: 0.2 | Q223: 0.2 | R223: 0.2 | S223: 0.2 | T223: 0.2 | U223: 0.2 | V223: 0.2 | X223: 0.2 | Y223: 0.2 | Z223: 0.2 | AA223: 0.2 | AB223: 0.2 | AC223: 0.2 | AD223: 0.2 | AE223: 0.2
B224: East Asia | C224: jatropha | D224: 0.66 | E224: =(1-D224)*Biofuels_comparator -> 28.492 | F224: 0.99 | G224: 0.98 | H224: 0.975 | I224: 0.97 | J224: 0.9625 | K224: 0.955 | L224: 0.9475 | M224: 0.94 | O224: 0.2 | P224: 0.2 | Q224: 0.2 | R224: 0.2 | S224: 0.2 | T224: 0.2 | U224: 0.2 | V224: 0.2 | X224: 0.2 | Y224: 0.2 | Z224: 0.2 | AA224: 0.2 | AB224: 0.2 | AC224: 0.2 | AD224: 0.2 | AE224: 0.2
B225: South East Asia | C225: palm | D225: 0.36 | E225: =(1-D225)*Biofuels_comparator -> 53.632 | F225: 0.995 | G225: 0.99 | H225: 0.99 | I225: 0.99 | J225: 0.9875 | K225: 0.985 | L225: 0.9825 | M225: 0.98 | O225: 0.2 | P225: 0.2 | Q225: 0.2 | R225: 0.2 | S225: 0.2 | T225: 0.2 | U225: 0.2 | V225: 0.2 | X225: 0.2 | Y225: 0.2 | Z225: 0.2 | AA225: 0.2 | AB225: 0.2 | AC225: 0.2 | AD225: 0.2 | AE225: 0.2
B226: Oceania | C226: OSR | D226: 0.18 | E226: =(1-D226)*Biofuels_comparator -> 68.716 | F226: 0.985 | G226: 0.97 | H226: 0.955 | I226: 0.94 | J226: 0.9275 | K226: 0.915 | L226: 0.9025 | M226: 0.89 | O226: 0.2 | P226: 0.2 | Q226: 0.2 | R226: 0.2 | S226: 0.2 | T226: 0.2 | U226: 0.2 | V226: 0.2 | X226: 0.2 | Y226: 0.2 | Z226: 0.2 | AA226: 0.2 | AB226: 0.2 | AC226: 0.2 | AD226: 0.2 | AE226: 0.2
B227: Japan | C227: none | O227: 0.2 | P227: 0.2 | Q227: 0.2 | R227: 0.2 | S227: 0.2 | T227: 0.2 | U227: 0.2 | V227: 0.2 | X227: 0.2 | Y227: 0.2 | Z227: 0.2 | AA227: 0.2 | AB227: 0.2 | AC227: 0.2 | AD227: 0.2 | AE227: 0.2
B228: UK | C228: OSR | D228: =D219 -> 0.38 | E228: =(1-D228)*Biofuels_comparator -> 51.956 | F228: 0.985 | G228: 0.97 | H228: 0.955 | I228: 0.94 | J228: 0.9275 | K228: 0.915 | L228: 0.9025 | M228: 0.89 | O228: 0.2 | P228: 0.2 | Q228: 0.2 | R228: 0.2 | S228: 0.2 | T228: 0.2 | U228: 0.2 | V228: 0.2 | X228: 0.2 | Y228: 0.2 | Z228: 0.2 | AA228: 0.2 | AB228: 0.2 | AC228: 0.2 | AD228: 0.2 | AE228: 0.2
A232: =Scenario_B -> High investment/globalisation
B233: Biodiesel (from crops) | D233: Typical GHG emissions saving | E233: Typical GHG emissions (G CO2 e/JMJ) | F233: Typical emissions in year as % of 2010 emissions | O233: Lowest emissions as % of typical | X233: Highest emissions as % of typical | AG233: =AG158 -> Distribution of ILUC emissions | AM233: =AM158 -> Distribution of ILUC emissions | AS233: =AS158 -> Distribution of ILUC emissions | AY233: =AY158 -> Distribution of ILUC emissions | BE233: =BE158 -> Distribution of ILUC emissions | BK233: =BK158 -> Distribution of ILUC emissions | BQ233: =BQ158 -> Distribution of ILUC emissions | BW233: =BW158 -> Distribution of ILUC emissions
AG234: =AG159 -> 2015 | AH234: =AG234 -> 2015 | AI234: =AH234 -> 2015 | AJ234: =AI234 -> 2015 | AK234: =AJ234 -> 2015 | AM234: =AM159 -> 2020 | AN234: =AM234 -> 2020 | AO234: =AN234 -> 2020 | AP234: =AO234 -> 2020 | AQ234: =AP234 -> 2020 | AS234: =AS159 -> 2025 | AT234: =AS234 -> 2025 | AU234: =AT234 -> 2025 | AV234: =AU234 -> 2025 | AW234: =AV234 -> 2025 | AY234: =AY159 -> 2030 | AZ234: =AY234 -> 2030 | BA234: =AZ234 -> 2030 | BB234: =BA234 -> 2030 | BC234: =BB234 -> 2030 | BE234: =BE159 -> 2035 | BF234: =BE234 -> 2035 | BG234: =BF234 -> 2035 | BH234: =BG234 -> 2035 | BI234: =BH234 -> 2035 | BK234: =BK159 -> 2040 | BL234: =BK234 -> 2040 | BM234: =BL234 -> 2040 | BN234: =BM234 -> 2040 | BO234: =BN234 -> 2040 | BQ234: =BQ159 -> 2045 | BR234: =BQ234 -> 2045 | BS234: =BR234 -> 2045 | BT234: =BS234 -> 2045 | BU234: =BT234 -> 2045 | BW234: =BW159 -> 2050 | BX234: =BW234 -> 2050 | BY234: =BX234 -> 2050 | BZ234: =BY234 -> 2050 | CA234: =BZ234 -> 2050
B235: Region | C235: Feedstock | D235: Legacy data from model for 2010 | E235: Legacy data from model for 2010 | F235: 2015 | G235: 2020 | H235: 2025 | I235: 2030 | J235: 2035 | K235: 2040 | L235: 2045 | M235: 2050 | O235: 2015 | P235: 2020 | Q235: 2025 | R235: 2030 | S235: 2035 | T235: 2040 | U235: 2045 | V235: 2050 | X235: 2015 | Y235: 2020 | Z235: 2025 | AA235: 2030 | AB235: 2035 | AC235: 2040 | AD235: 2045 | AE235: 2050 | AG235: Low | AH235: 2 | AI235: 3 | AJ235: 4 | AK235: High | AM235: Low | AN235: 2 | AO235: 3 | AP235: 4 | AQ235: High | AS235: Low | AT235: 2 | AU235: 3 | AV235: 4 | AW235: High | AY235: Low | AZ235: 2 | BA235: 3 | BB235: 4 | BC235: High | BE235: Low | BF235: 2 | BG235: 3 | BH235: 4 | BI235: High | BK235: Low | BL235: 2 | BM235: 3 | BN235: 4 | BO235: High | BQ235: Low | BR235: 2 | BS235: 3 | BT235: 4 | BU235: High | BW235: Low | BX235: 2 | BY235: 3 | BZ235: 4 | CA235: High
B236: Canada | C236: OSR | D236: 0.44 | E236: =(1-D236)*Biofuels_comparator -> 46.928 | F236: 0.985 | G236: 0.97 | H236: 0.955 | I236: 0.94 | J236: 0.9275 | K236: 0.915 | L236: 0.9025 | M236: 0.89 | O236: 0.2 | P236: 0.2 | Q236: 0.2 | R236: 0.2 | S236: 0.2 | T236: 0.2 | U236: 0.2 | V236: 0.2 | X236: 0.2 | Y236: 0.2 | Z236: 0.2 | AA236: 0.2 | AB236: 0.2 | AC236: 0.2 | AD236: 0.2 | AE236: 0.2
B237: USA | C237: soy | D237: 0.4 | E237: =(1-D237)*Biofuels_comparator -> 50.28 | F237: 0.995 | G237: 0.99 | H237: 0.98 | I237: 0.97 | J237: 0.965 | K237: 0.96 | L237: 0.955 | M237: 0.95 | O237: 0.2 | P237: 0.2 | Q237: 0.2 | R237: 0.2 | S237: 0.2 | T237: 0.2 | U237: 0.2 | V237: 0.2 | X237: 0.2 | Y237: 0.2 | Z237: 0.2 | AA237: 0.2 | AB237: 0.2 | AC237: 0.2 | AD237: 0.2 | AE237: 0.2
B238: Central America | C238: soy | D238: 0.4 | E238: =(1-D238)*Biofuels_comparator -> 50.28 | F238: 0.995 | G238: 0.99 | H238: 0.98 | I238: 0.97 | J238: 0.965 | K238: 0.96 | L238: 0.955 | M238: 0.95 | O238: 0.2 | P238: 0.2 | Q238: 0.2 | R238: 0.2 | S238: 0.2 | T238: 0.2 | U238: 0.2 | V238: 0.2 | X238: 0.2 | Y238: 0.2 | Z238: 0.2 | AA238: 0.2 | AB238: 0.2 | AC238: 0.2 | AD238: 0.2 | AE238: 0.2
B239: South America | C239: soy | D239: 0.42 | E239: =(1-D239)*Biofuels_comparator -> 48.604 | F239: 0.995 | G239: 0.99 | H239: 0.98 | I239: 0.97 | J239: 0.965 | K239: 0.96 | L239: 0.955 | M239: 0.95 | O239: 0.2 | P239: 0.2 | Q239: 0.2 | R239: 0.2 | S239: 0.2 | T239: 0.2 | U239: 0.2 | V239: 0.2 | X239: 0.2 | Y239: 0.2 | Z239: 0.2 | AA239: 0.2 | AB239: 0.2 | AC239: 0.2 | AD239: 0.2 | AE239: 0.2
B240: North Africa | C240: none
B241: West Africa | C241: jatropha | D241: 0.66 | E241: =(1-D241)*Biofuels_comparator -> 28.492 | F241: 0.99 | G241: 0.98 | H241: 0.975 | I241: 0.97 | J241: 0.9625 | K241: 0.955 | L241: 0.9475 | M241: 0.94 | O241: 0.2 | P241: 0.2 | Q241: 0.2 | R241: 0.2 | S241: 0.2 | T241: 0.2 | U241: 0.2 | V241: 0.2 | X241: 0.2 | Y241: 0.2 | Z241: 0.2 | AA241: 0.2 | AB241: 0.2 | AC241: 0.2 | AD241: 0.2 | AE241: 0.2
B242: East Africa | C242: jatropha | D242: 0.66 | E242: 28.492 | F242: 0.99 | G242: 0.98 | H242: 0.975 | I242: 0.97 | J242: 0.9625 | K242: 0.955 | L242: 0.9475 | M242: 0.94 | O242: 0.2 | P242: 0.2 | Q242: 0.2 | R242: 0.2 | S242: 0.2 | T242: 0.2 | U242: 0.2 | V242: 0.2 | X242: 0.2 | Y242: 0.2 | Z242: 0.2 | AA242: 0.2 | AB242: 0.2 | AC242: 0.2 | AD242: 0.2 | AE242: 0.2
B243: South Africa | C243: soy | D243: 0.4 | E243: 50.28 | F243: 0.995 | G243: 0.99 | H243: 0.98 | I243: 0.97 | J243: 0.965 | K243: 0.96 | L243: 0.955 | M243: 0.95 | O243: 0.2 | P243: 0.2 | Q243: 0.2 | R243: 0.2 | S243: 0.2 | T243: 0.2 | U243: 0.2 | V243: 0.2 | X243: 0.2 | Y243: 0.2 | Z243: 0.2 | AA243: 0.2 | AB243: 0.2 | AC243: 0.2 | AD243: 0.2 | AE243: 0.2
B244: Western Europe | C244: OSR | D244: 0.38 | E244: 51.956 | F244: 0.985 | G244: 0.97 | H244: 0.955 | I244: 0.94 | J244: 0.9275 | K244: 0.915 | L244: 0.9025 | M244: 0.89 | O244: 0.2 | P244: 0.2 | Q244: 0.2 | R244: 0.2 | S244: 0.2 | T244: 0.2 | U244: 0.2 | V244: 0.2 | X244: 0.2 | Y244: 0.2 | Z244: 0.2 | AA244: 0.2 | AB244: 0.2 | AC244: 0.2 | AD244: 0.2 | AE244: 0.2
B245: East Europe | C245: OSR | D245: 0.38 | E245: 51.956 | F245: 0.985 | G245: 0.97 | H245: 0.955 | I245: 0.94 | J245: 0.9275 | K245: 0.915 | L245: 0.9025 | M245: 0.89 | O245: 0.2 | P245: 0.2 | Q245: 0.2 | R245: 0.2 | S245: 0.2 | T245: 0.2 | U245: 0.2 | V245: 0.2 | X245: 0.2 | Y245: 0.2 | Z245: 0.2 | AA245: 0.2 | AB245: 0.2 | AC245: 0.2 | AD245: 0.2 | AE245: 0.2
B246: Former USSR | C246: OSR | D246: 0.27 | E246: 61.174 | F246: 0.985 | G246: 0.97 | H246: 0.955 | I246: 0.94 | J246: 0.9275 | K246: 0.915 | L246: 0.9025 | M246: 0.89 | O246: 0.2 | P246: 0.2 | Q246: 0.2 | R246: 0.2 | S246: 0.2 | T246: 0.2 | U246: 0.2 | V246: 0.2 | X246: 0.2 | Y246: 0.2 | Z246: 0.2 | AA246: 0.2 | AB246: 0.2 | AC246: 0.2 | AD246: 0.2 | AE246: 0.2
B247: Middle East | C247: none
B248: South Asia | C248: jatropha | D248: 0.66 | E248: =(1-D248)*Biofuels_comparator -> 28.492 | F248: 0.99 | G248: 0.98 | H248: 0.975 | I248: 0.97 | J248: 0.9625 | K248: 0.955 | L248: 0.9475 | M248: 0.94 | O248: 0.2 | P248: 0.2 | Q248: 0.2 | R248: 0.2 | S248: 0.2 | T248: 0.2 | U248: 0.2 | V248: 0.2 | X248: 0.2 | Y248: 0.2 | Z248: 0.2 | AA248: 0.2 | AB248: 0.2 | AC248: 0.2 | AD248: 0.2 | AE248: 0.2
... 93 more rows

Sheet Assumed end use (hidden)
A10: Key: | B10: Data input value | F10: Global scenario | G10: =Scenario_A -> BAU/continuing trends
B11: Interpolated or extrapolated value | G11: =Scenario_B -> High investment/globalisation
B12: Calculated value | G12: =Scenario_C -> Low investment/regionalisation
B17: Figures set on "Set other key assumptions" tab | C17: Assumed end use
B18: Feedstock resource (UK unless specified as international) | C18: Co-firing | E18: Dedicated Biomass | G18: Advanced Conversion Technology | I18: Dedicated Biomass with CHP | K18: Boiler for heat | M18: Advanced biofuels | N18: Biogas grid injection | O18: Biogas for electricity | P18: Liquid biofuel or vehicle fuel | R18: Total allocated | S18: Error check
C19: as chips or bales | D19: as pellets | E19: as chips or bales | F19: as pellets | G19: as chips or bales | H19: as pellets | I19: as chips or bales | J19: as pellets | K19: as chips or bales | L19: as pellets
B20: ='Sustainability data'!B38 -> UK perennial energy crops | C20: ='Set other key assumptions'!D37 -> 1 | D20: ='Set other key assumptions'!E37 -> 0 | E20: ='Set other key assumptions'!F37 -> 0 | F20: ='Set other key assumptions'!G37 -> 0 | G20: ='Set other key assumptions'!H37 -> 0 | H20: ='Set other key assumptions'!I37 -> 0 | I20: ='Set other key assumptions'!J37 -> 0 | J20: ='Set other key assumptions'!K37 -> 0 | K20: ='Set other key assumptions'!L37 -> 0 | L20: ='Set other key assumptions'!M37 -> 0 | M20: ='Set other key assumptions'!N37 -> 0 | R20: =SUM(C20:P20) -> 1 | S20: =IF(R20=1,"OK","ERROR - End uses of resource does not equal 100%") -> OK
B21: ='Sustainability data'!B39 -> Dry agricultural residues | C21: ='Set other key assumptions'!D38 -> 1 | D21: ='Set other key assumptions'!E38 -> 0 | E21: ='Set other key assumptions'!F38 -> 0 | F21: ='Set other key assumptions'!G38 -> 0 | G21: ='Set other key assumptions'!H38 -> 0 | H21: ='Set other key assumptions'!I38 -> 0 | I21: ='Set other key assumptions'!J38 -> 0 | J21: ='Set other key assumptions'!K38 -> 0 | K21: ='Set other key assumptions'!L38 -> 0 | L21: ='Set other key assumptions'!M38 -> 0 | M21: ='Set other key assumptions'!N38 -> 0 | R21: =SUM(C21:P21) -> 1 | S21: =IF(R21=1,"OK","ERROR - End uses of resource does not equal 100%") -> OK
B22: ='Sustainability data'!B40 -> Forestry residues | C22: ='Set other key assumptions'!D39 -> 1 | D22: ='Set other key assumptions'!E39 -> 0 | E22: ='Set other key assumptions'!F39 -> 0 | F22: ='Set other key assumptions'!G39 -> 0 | G22: ='Set other key assumptions'!H39 -> 0 | H22: ='Set other key assumptions'!I39 -> 0 | I22: ='Set other key assumptions'!J39 -> 0 | J22: ='Set other key assumptions'!K39 -> 0 | K22: ='Set other key assumptions'!L39 -> 0 | L22: ='Set other key assumptions'!M39 -> 0 | M22: ='Set other key assumptions'!N39 -> 0 | R22: =SUM(C22:P22) -> 1 | S22: =IF(R22=1,"OK","ERROR - End uses of resource does not equal 100%") -> OK
B23: ='Sustainability data'!B41 -> Stemwood | C23: ='Set other key assumptions'!D40 -> 1 | D23: ='Set other key assumptions'!E40 -> 0 | E23: ='Set other key assumptions'!F40 -> 0 | F23: ='Set other key assumptions'!G40 -> 0 | G23: ='Set other key assumptions'!H40 -> 0 | H23: ='Set other key assumptions'!I40 -> 0 | I23: ='Set other key assumptions'!J40 -> 0 | J23: ='Set other key assumptions'!K40 -> 0 | K23: ='Set other key assumptions'!L40 -> 0 | L23: ='Set other key assumptions'!M40 -> 0 | M23: ='Set other key assumptions'!N40 -> 0 | R23: 1 | S23: OK
B24: ='Sustainability data'!B42 -> Short rotation forestry | C24: ='Set other key assumptions'!D41 -> 1 | D24: ='Set other key assumptions'!E41 -> 0 | E24: ='Set other key assumptions'!F41 -> 0 | F24: ='Set other key assumptions'!G41 -> 0 | G24: ='Set other key assumptions'!H41 -> 0 | H24: ='Set other key assumptions'!I41 -> 0 | I24: ='Set other key assumptions'!J41 -> 0 | J24: ='Set other key assumptions'!K41 -> 0 | K24: ='Set other key assumptions'!L41 -> 0 | L24: ='Set other key assumptions'!M41 -> 0 | M24: ='Set other key assumptions'!N41 -> 0 | R24: 1 | S24: OK
B25: ='Sustainability data'!B43 -> Sawmill co-products | D25: ='Set other key assumptions'!E42 -> 1 | F25: ='Set other key assumptions'!G42 -> 0 | H25: ='Set other key assumptions'!I42 -> 0 | J25: ='Set other key assumptions'!K42 -> 0 | L25: ='Set other key assumptions'!M42 -> 0 | M25: ='Set other key assumptions'!N42 -> 0 | R25: 1 | S25: OK
B26: ='Sustainability data'!B44 -> Arboricultural arisings | C26: ='Set other key assumptions'!D43 -> 1 | D26: ='Set other key assumptions'!E43 -> 0 | E26: ='Set other key assumptions'!F43 -> 0 | F26: ='Set other key assumptions'!G43 -> 0 | G26: ='Set other key assumptions'!H43 -> 0 | H26: ='Set other key assumptions'!I43 -> 0 | I26: ='Set other key assumptions'!J43 -> 0 | J26: ='Set other key assumptions'!K43 -> 0 | K26: ='Set other key assumptions'!L43 -> 0 | L26: ='Set other key assumptions'!M43 -> 0 | M26: ='Set other key assumptions'!N43 -> 0 | R26: 1 | S26: OK
B27: ='Sustainability data'!B45 -> Waste wood | C27: ='Set other key assumptions'!D44 -> 1 | D27: ='Set other key assumptions'!E44 -> 0 | E27: ='Set other key assumptions'!F44 -> 0 | F27: ='Set other key assumptions'!G44 -> 0 | G27: ='Set other key assumptions'!H44 -> 0 | H27: ='Set other key assumptions'!I44 -> 0 | I27: ='Set other key assumptions'!J44 -> 0 | J27: ='Set other key assumptions'!K44 -> 0 | K27: ='Set other key assumptions'!L44 -> 0 | L27: ='Set other key assumptions'!M44 -> 0 | M27: ='Set other key assumptions'!N44 -> 0 | R27: 1 | S27: OK
B28: ='Sustainability data'!B46 -> Renewable fraction of wastes | C28: ='Set other key assumptions'!D45 -> 1 | E28: ='Set other key assumptions'!F45 -> 0 | G28: ='Set other key assumptions'!H45 -> 0 | I28: ='Set other key assumptions'!J45 -> 0 | K28: ='Set other key assumptions'!L45 -> 0 | M28: ='Set other key assumptions'!N45 -> 0 | R28: 1 | S28: OK
B29: ='Sustainability data'!B47 -> International agricultural residues | C29: ='Set other key assumptions'!D46 -> 1 | E29: ='Set other key assumptions'!F46 -> 0 | G29: ='Set other key assumptions'!H46 -> 0 | I29: ='Set other key assumptions'!J46 -> 0 | K29: ='Set other key assumptions'!L46 -> 0 | M29: ='Set other key assumptions'!N46 -> 0 | R29: 1 | S29: OK
B30: ='Sustainability data'!B48 -> International woody biomass | C30: ='Set other key assumptions'!D47 -> 1 | D30: ='Set other key assumptions'!E47 -> 0 | E30: ='Set other key assumptions'!F47 -> 0 | F30: ='Set other key assumptions'!G47 -> 0 | G30: ='Set other key assumptions'!H47 -> 0 | H30: ='Set other key assumptions'!I47 -> 0 | I30: ='Set other key assumptions'!J47 -> 0 | J30: ='Set other key assumptions'!K47 -> 0 | K30: ='Set other key assumptions'!L47 -> 0 | L30: ='Set other key assumptions'!M47 -> 0 | M30: ='Set other key assumptions'!N47 -> 0 | R30: 1 | S30: OK
K31: As biogas
B32: ='Sustainability data'!B49 -> Biogas from food waste | K32: ='Set other key assumptions'!L49 -> 0 | N32: ='Set other key assumptions'!O49 -> 0.5 | O32: ='Set other key assumptions'!P49 -> 0.5 | P32: ='Set other key assumptions'!Q49 -> 0 | R32: 1 | S32: OK
B33: ='Sustainability data'!B50 -> Landfill gas | K33: ='Set other key assumptions'!L50 -> 0 | N33: ='Set other key assumptions'!O50 -> 0.5 | O33: ='Set other key assumptions'!P50 -> 0.4 | P33: ='Set other key assumptions'!Q50 -> 0.1 | R33: 1 | S33: OK
B34: ='Sustainability data'!B51 -> Biogas from sewage sludge | K34: ='Set other key assumptions'!L51 -> 0 | N34: ='Set other key assumptions'!O51 -> 0.5 | O34: ='Set other key assumptions'!P51 -> 0.5 | P34: ='Set other key assumptions'!Q51 -> 0 | R34: 1 | S34: OK
B35: ='Sustainability data'!B52 -> Biogas from livestock manures | K35: ='Set other key assumptions'!L52 -> 0 | N35: ='Set other key assumptions'!O52 -> 0.5 | O35: ='Set other key assumptions'!P52 -> 0.5 | P35: ='Set other key assumptions'!Q52 -> 0 | R35: 1 | S35: OK
B36: ='Sustainability data'!B53 -> Biogas from crops | K36: ='Set other key assumptions'!L53 -> 0 | N36: ='Set other key assumptions'!O53 -> 0.7 | O36: ='Set other key assumptions'!P53 -> 0.3 | P36: ='Set other key assumptions'!Q53 -> 0 | R36: 1 | S36: OK

Sheet Land availability data (hidden)
A14: Key: | B14: Data input value
B15: Interpolated or extrapolated value
B16: Calculated value | F16: Percentage of abandoned pasture (rest) land available for use | K16: ='Set other key assumptions'!H60 -> 0 | M16: set on "Set other key assumptions" tab
A17: Global scenario | B17: =Scenario_A -> BAU/continuing trends
B18: =Scenario_B -> High investment/globalisation
B19: =Scenario_C -> Low investment/regionalisation
A21: =Scenario_A -> BAU/continuing trends | C21: Abandoned agricultural land | M21: Abandoned pasture (rest) land | W21: % of land not degraded and suitable for both annual and perennial energy crops | AF21: % of land mildly degraded and suitable for only perennial energy crops | BY21: Maximum ha can be planted
C22: Mha | D22: Mha | E22: Mha | F22: Mha | G22: Mha | H22: Mha | I22: Mha | J22: Mha | K22: Mha | M22: Mha | N22: Mha | O22: Mha | P22: Mha | Q22: Mha | R22: Mha | S22: Mha | T22: Mha | U22: Mha | W22: Mha | X22: Mha | Y22: Mha | Z22: Mha | AA22: Mha | AB22: Mha | AC22: Mha | AD22: Mha | AF22: Mha | AG22: Mha | AH22: Mha | AI22: Mha | AJ22: Mha | AK22: Mha | AL22: Mha | AM22: Mha | BY22: Mha | BZ22: Mha | CA22: Mha | CB22: Mha | CC22: Mha | CD22: Mha | CE22: Mha | CF22: Mha
B23: Region | C23: 2010 | D23: 2015 | E23: 2020 | F23: 2025 | G23: 2030 | H23: 2035 | I23: 2040 | J23: 2045 | K23: 2050 | M23: 2010 | N23: 2015 | O23: 2020 | P23: 2025 | Q23: 2030 | R23: 2035 | S23: 2040 | T23: 2045 | U23: 2050 | W23: 2015 | X23: 2020 | Y23: 2025 | Z23: 2030 | AA23: 2035 | AB23: 2040 | AC23: 2045 | AD23: 2050 | AF23: 2015 | AG23: 2020 | AH23: 2025 | AI23: 2030 | AJ23: 2035 | AK23: 2040 | AL23: 2045 | AM23: 2050 | BY23: 2015 | BZ23: 2020 | CA23: 2025 | CB23: 2030 | CC23: 2035 | CD23: 2040 | CE23: 2045 | CF23: 2050
B24: Canada | C24: 0.214629 | D24: =AVERAGE(C24,E24) -> 0.1073145 | E24: 0 | F24: 0 | G24: 0 | H24: =AVERAGE(G24,I24) -> 0 | I24: 0 | J24: =AVERAGE(I24,K24) -> 0 | K24: 0 | M24: =M47 -> 0 | N24: =N47 -> 0 | O24: 0 | P24: 0 | Q24: 0 | R24: 0 | S24: 0 | T24: 0 | U24: 0 | W24: 0.35 | X24: =$W24 -> 0.35 | Y24: =$W24 -> 0.35 | Z24: 0.35 | AA24: 0.35 | AB24: 0.35 | AC24: 0.35 | AD24: 0.35 | AF24: 0.37 | AG24: =AF24 -> 0.37 | AH24: =AG24 -> 0.37 | AI24: 0.37 | AJ24: 0.37 | AK24: 0.37 | AL24: 0.37 | AM24: 0.37 | BY24: 0.6413306182 | BZ24: 2.237166422 | CA24: 6.208116569 | CB24: 16.08911124
B25: USA | C25: 4.174519 | D25: 5.052797 | E25: 5.931075 | F25: 6.9627635 | G25: 7.994452 | H25: 7.789677 | I25: 7.584902 | J25: 7.584902 | K25: 7.584902 | M25: =M48 -> 0.6085011 | N25: 0.6085011 | O25: 0.6085011 | P25: 0.6085011 | Q25: 0.6085011 | R25: 0.6085011 | S25: 0.6085011 | T25: 0.6085011 | U25: 0.6085011 | W25: 0.35 | X25: 0.35 | Y25: 0.35 | Z25: 0.35 | AA25: 0.35 | AB25: 0.35 | AC25: 0.35 | AD25: 0.35 | AF25: 0.37 | AG25: =AF25 -> 0.37 | AH25: 0.37 | AI25: 0.37 | AJ25: 0.37 | AK25: 0.37 | AL25: 0.37 | AM25: 0.37 | BY25: 1.509799164 | BZ25: 5.266662618 | CA25: 14.61494109 | CB25: 37.87644938
B26: Central America | C26: 2.1973974 | D26: 1.88658585 | E26: 1.5757743 | F26: 1.5064177 | G26: 1.4370611 | H26: 1.7031481 | I26: 1.9692351 | J26: 2.3157456 | K26: 2.6622561 | M26: =M49 -> 4.6564259 | N26: 4.98754345 | O26: 5.318661 | P26: 5.484466 | Q26: 5.650271 | R26: 5.722338 | S26: 5.794405 | T26: 5.72104 | U26: 5.647675 | W26: 0.54 | X26: 0.54 | Y26: 0.54 | Z26: 0.54 | AA26: 0.54 | AB26: 0.54 | AC26: 0.54 | AD26: 0.54 | AF26: 0.34 | AG26: 0.34 | AH26: 0.34 | AI26: 0.34 | AJ26: 0.34 | AK26: 0.34 | AL26: 0.34 | AM26: 0.34 | BY26: 0.2405347015 | BZ26: 0.8310356287 | CA26: 1.782043277 | CB26: 3.313650604
B27: South America | C27: 9.103707 | D27: 8.838197 | E27: 8.572687 | F27: 8.3850295 | G27: 8.197372 | H27: 7.929964 | I27: 7.662556 | J27: 7.2119995 | K27: 6.761443 | M27: =M50 -> 51.66387 | N27: 52.0609 | O27: 52.45793 | P27: 54.104445 | Q27: 55.75096 | R27: 55.634945 | S27: 55.51893 | T27: 55.193045 | U27: 54.86716 | W27: 0.54 | X27: 0.54 | Y27: 0.54 | Z27: 0.54 | AA27: 0.54 | AB27: 0.54 | AC27: 0.54 | AD27: 0.54 | AF27: 0.34 | AG27: 0.34 | AH27: 0.34 | AI27: 0.34 | AJ27: 0.34 | AK27: 0.34 | AL27: 0.34 | AM27: 0.34 | BY27: 2.801488456 | BZ27: 7.31331363 | CA27: 14.57965319 | CB27: 26.28216572
B28: North Africa | C28: 0 | D28: =AVERAGE(C28,E28) -> 0 | E28: 0 | F28: =AVERAGE(E28,G28) -> 0 | G28: 0 | H28: 0 | I28: 0 | J28: 0 | K28: 0 | M28: =M51 -> 0 | N28: 0 | O28: 0 | P28: 0 | Q28: 0 | R28: 0 | S28: 0 | T28: 0 | U28: 0 | W28: 0.63 | X28: 0.63 | Y28: 0.63 | Z28: 0.63 | AA28: 0.63 | AB28: 0.63 | AC28: 0.63 | AD28: 0.63 | AF28: 0.28 | AG28: 0.28 | AH28: 0.28 | AI28: 0.28 | AJ28: 0.28 | AK28: 0.28 | AL28: 0.28 | AM28: 0.28 | BY28: 0.1227255744 | BZ28: 0.4240108567 | CA28: 0.9092338167 | CB28: 1.690690246
B29: West Africa | C29: 0.912134 | D29: =AVERAGE(C29,E29) -> 0.912134 | E29: 0.912134 | F29: 0.912134 | G29: 0.912134 | H29: 0.761403 | I29: 0.610672 | J29: 0.610672 | K29: 0.610672 | M29: =M52 -> 40.95032 | N29: 39.56927 | O29: 38.18822 | P29: 36.091315 | Q29: 33.99441 | R29: 32.62895 | S29: 31.26349 | T29: 30.50044 | U29: 29.73739 | W29: 0.63 | X29: 0.63 | Y29: 0.63 | Z29: 0.63 | AA29: 0.63 | AB29: 0.63 | AC29: 0.63 | AD29: 0.63 | AF29: 0.28 | AG29: 0.28 | AH29: 0.28 | AI29: 0.28 | AJ29: 0.28 | AK29: 0.28 | AL29: 0.28 | AM29: 0.28 | BY29: 0.7419079251 | BZ29: 2.247282967 | CA29: 4.168565377 | CB29: 6.620662694
B30: East Africa | C30: 2.25869 | D30: 1.650871 | E30: 1.043052 | F30: 0.7390015 | G30: 0.434951 | H30: 0.434951 | I30: 0.434951 | J30: 0.3682065 | K30: 0.301462 | M30: =M53 -> 13.3572 | N30: 13.43354 | O30: 13.50988 | P30: 12.97666 | Q30: 12.44344 | R30: 12.212445 | S30: 11.98145 | T30: 12.05719 | U30: 12.13293 | W30: 0.63 | X30: 0.63 | Y30: 0.63 | Z30: 0.63 | AA30: 0.63 | AB30: 0.63 | AC30: 0.63 | AD30: 0.63 | AF30: 0.28 | AG30: 0.28 | AH30: 0.28 | AI30: 0.28 | AJ30: 0.28 | AK30: 0.28 | AL30: 0.28 | AM30: 0.28 | BY30: 0.5305604068 | BZ30: 1.607098839 | CA30: 2.981064991 | CB30: 4.734632659
B31: South Africa | C31: 24.355241 | D31: 23.9338165 | E31: 23.512392 | F31: 23.416705 | G31: 23.321018 | H31: 22.9712915 | I31: 22.621565 | J31: 22.2447225 | K31: 21.86788 | M31: =M54 -> 25.397448 | N31: 24.661887 | O31: 23.926326 | P31: 24.069738 | Q31: 24.21315 | R31: 24.5098 | S31: 24.80645 | T31: 25.438665 | U31: 26.07088 | W31: 0.63 | X31: 0.63 | Y31: 0.63 | Z31: 0.63 | AA31: 0.63 | AB31: 0.63 | AC31: 0.63 | AD31: 0.63 | AF31: 0.28 | AG31: 0.28 | AH31: 0.28 | AI31: 0.28 | AJ31: 0.28 | AK31: 0.28 | AL31: 0.28 | AM31: 0.28 | BY31: 1.306073032 | BZ31: 3.956172429 | CA31: 7.338445428 | CB31: 11.6551781
B32: Western Europe | C32: 2.665789 | D32: 2.967901 | E32: 3.270013 | F32: 4.1726335 | G32: 5.075254 | H32: 5.176825 | I32: 5.278396 | J32: 5.4167095 | K32: 5.555023 | M32: =M55 -> 0.9198471 | N32: 0.9198471 | O32: 0.9198471 | P32: 0.9354188 | Q32: 0.9509905 | R32: 0.960974 | S32: 0.9709575 | T32: 0.9709575 | U32: 0.9709575 | W32: 0.44 | X32: 0.44 | Y32: 0.44 | Z32: 0.44 | AA32: 0.44 | AB32: 0.44 | AC32: 0.44 | AD32: 0.44 | AF32: 0.35 | AG32: 0.35 | AH32: 0.35 | AI32: 0.35 | AJ32: 0.35 | AK32: 0.35 | AL32: 0.35 | AM32: 0.35 | BY32: 0.4592745051 | BZ32: 1.602096441 | CA32: 4.445803122 | CB32: 11.52185533
B33: East Europe | C33: 2.180515 | D33: 2.544472 | E33: 2.908429 | F33: 3.4922015 | G33: 4.075974 | H33: 4.3846725 | I33: 4.693371 | J33: 5.3521635 | K33: 6.010956 | M33: =M56 -> 0.632109 | N33: 0.69266525 | O33: 0.7532215 | P33: 0.7807515 | Q33: 0.8082815 | R33: 0.74832525 | S33: 0.688369 | T33: 0.77776225 | U33: 0.8671555 | W33: 0.28 | X33: 0.28 | Y33: 0.28 | Z33: 0.28 | AA33: 0.28 | AB33: 0.28 | AC33: 0.28 | AD33: 0.28 | AF33: 0.48 | AG33: 0.48 | AH33: 0.48 | AI33: 0.48 | AJ33: 0.48 | AK33: 0.48 | AL33: 0.48 | AM33: 0.48 | BY33: 0.41859 | BZ33: 1.460175869 | CA33: 4.051974818 | CB33: 10.50119998
B34: Former USSR | C34: 3.041459 | D34: 3.7504815 | E34: 4.459504 | F34: 5.4378515 | G34: 6.416199 | H34: 6.655982 | I34: 6.895765 | J34: 7.358044 | K34: 7.820323 | M34: =M57 -> 0.05448276 | N34: 0.05448276 | O34: 0.05448276 | P34: 0.05448276 | Q34: 0.05448276 | R34: 0.05448276 | S34: 0.05448276 | T34: 0.05448276 | U34: 0.05448276 | W34: 0.39 | X34: 0.39 | Y34: 0.39 | Z34: 0.39 | AA34: 0.39 | AB34: 0.39 | AC34: 0.39 | AD34: 0.39 | AF34: 0.27 | AG34: 0.27 | AH34: 0.27 | AI34: 0.27 | AJ34: 0.27 | AK34: 0.27 | AL34: 0.27 | AM34: 0.27 | BY34: 1.658945351 | BZ34: 5.731575045 | CA34: 12.29058589 | CB34: 22.85393845
B35: Middle East | C35: 0 | D35: 0 | E35: 0 | F35: 0 | G35: 0 | H35: 0 | I35: 0 | J35: 0 | K35: 0 | M35: =M58 -> 0 | N35: 0 | O35: 0 | P35: 0 | Q35: 0 | R35: 0 | S35: 0 | T35: 0 | U35: 0 | W35: 0 | X35: 0 | Y35: 0 | Z35: 0 | AA35: 0 | AB35: 0 | AC35: 0 | AD35: 0 | AF35: 0.11 | AG35: 0.11 | AH35: 0.11 | AI35: 0.11 | AJ35: 0.11 | AK35: 0.11 | AL35: 0.11 | AM35: 0.11 | BY35: 0.01972084084 | BZ35: 0.06813454051 | CA35: 0.146105288 | CB35: 0.2716779565
B36: South Asia | C36: 0.785269 | D36: 0.3926345 | E36: 0 | F36: 0 | G36: 0 | H36: 0 | I36: 0 | J36: 0 | K36: 0 | M36: =M59 -> 19.0391 | N36: 18.82956 | O36: 18.62002 | P36: 19.598996 | Q36: 20.577972 | R36: 20.577972 | S36: 20.577972 | T36: 20.577972 | U36: 20.577972 | W36: 0.05 | X36: 0.05 | Y36: 0.05 | Z36: 0.05 | AA36: 0.05 | AB36: 0.05 | AC36: 0.05 | AD36: 0.05 | AF36: 0.32 | AG36: 0.32 | AH36: 0.32 | AI36: 0.32 | AJ36: 0.32 | AK36: 0.32 | AL36: 0.32 | AM36: 0.32 | BY36: 0.2390497871 | BZ36: 0.5441446228 | CA36: 0.9335315365 | CB36: 1.430498875
B37: East Asia | C37: 11.77165 | D37: 13.476175 | E37: 15.1807 | F37: 17.41963 | G37: 19.65856 | H37: 20.7014125 | I37: 21.744265 | J37: 24.6051255 | K37: 27.465986 | M37: =M60 -> 0.6220873 | N37: 0.6220873 | O37: 0.6220873 | P37: 0.6220873 | Q37: 0.6220873 | R37: 0.6220873 | S37: 0.6220873 | T37: 0.6220873 | U37: 0.6220873 | W37: 0.25 | X37: 0.25 | Y37: 0.25 | Z37: 0.25 | AA37: 0.25 | AB37: 0.25 | AC37: 0.25 | AD37: 0.25 | AF37: 0.36 | AG37: 0.36 | AH37: 0.36 | AI37: 0.36 | AJ37: 0.36 | AK37: 0.36 | AL37: 0.36 | AM37: 0.36 | BY37: 2.712312034 | BZ37: 7.080517688 | CA37: 14.11555658 | CB37: 25.44555706
B38: South East Asia | C38: 0 | D38: 0 | E38: 0 | F38: 0 | G38: 0 | H38: 0.0126605 | I38: 0.025321 | J38: 0.025321 | K38: 0.025321 | M38: =M61 -> 17.2221725 | N38: 16.6386875 | O38: 16.0552025 | P38: 15.9805725 | Q38: 15.9059425 | R38: 15.7367775 | S38: 15.5676125 | T38: 15.5154675 | U38: 15.4633225 | W38: 0.36 | X38: 0.36 | Y38: 0.36 | Z38: 0.36 | AA38: 0.36 | AB38: 0.36 | AC38: 0.36 | AD38: 0.36 | AF38: 0.37 | AG38: 0.37 | AH38: 0.37 | AI38: 0.37 | AJ38: 0.37 | AK38: 0.37 | AL38: 0.37 | AM38: 0.37 | BY38: 0.07094683958 | BZ38: 0.1852074342 | CA38: 0.3692252644 | CB38: 0.6655878202
B39: Oceania | C39: 1.30154 | D39: 1.2681675 | E39: 1.234795 | F39: 1.5254015 | G39: 1.816008 | H39: 2.096933 | I39: 2.377858 | J39: 2.239622 | K39: 2.101386 | M39: =M62 -> 3.952825 | N39: 4.485834 | O39: 5.018843 | P39: 5.1037535 | Q39: 5.188664 | R39: 5.188664 | S39: 5.188664 | T39: 5.188664 | U39: 5.188664 | W39: 0.59 | X39: 0.59 | Y39: 0.59 | Z39: 0.59 | AA39: 0.59 | AB39: 0.59 | AC39: 0.59 | AD39: 0.59 | AF39: 0.29 | AG39: 0.29 | AH39: 0.29 | AI39: 0.29 | AJ39: 0.29 | AK39: 0.29 | AL39: 0.29 | AM39: 0.29 | BY39: 2.049749424 | BZ39: 7.150181912 | CA39: 19.84169008 | CB39: 51.42222368
B40: Japan | C40: 0 | D40: 0 | E40: 0 | F40: 0.028442335 | G40: 0.05688467 | H40: 0.05688467 | I40: 0.05688467 | J40: 0.124414835 | K40: 0.191945 | M40: =M63 -> 0 | N40: 0 | O40: 0 | P40: 0 | Q40: 0 | R40: 0 | S40: 0 | T40: 0 | U40: 0 | W40: 0.85 | X40: 0.85 | Y40: =$W40 -> 0.85 | Z40: 0.85 | AA40: 0.85 | AB40: 0.85 | AC40: 0.85 | AD40: 0.85 | AF40: 0.15 | AG40: 0.15 | AH40: 0.15 | AI40: 0.15 | AJ40: 0.15 | AK40: 0.15 | AL40: 0.15 | AM40: 0.15 | BY40: 0 | BZ40: 0 | CA40: 0 | CB40: 0
B41: World | C41: =SUM(C24:C40) -> 64.9625394 | D41: =SUM(D24:D40) -> 66.78154735 | E41: 68.6005553 | F41: 73.99821153 | G41: 79.39586777 | H41: 80.67580477 | I41: 81.95574177 | J41: 85.45764844 | K41: 88.9595551 | M41: =SUM(M24:M40) -> 179.0763887 | N41: =SUM(N24:N40) -> 177.5648055 | O41: 176.0532223 | P41: =SUM(P24:P40) -> 176.4111875 | Q41: 176.7691527 | R41: 175.2062619 | S41: 173.6433712 | T41: 173.2262744 | U41: 172.8091777 | BY41: =SUM(BY24:BY40) -> 15.52300866 | BZ41: =SUM(BZ24:BZ40) -> 47.70477694 | CA41: =SUM(CA24:CA40) -> 108.7765363 | CB41: =SUM(CB24:CB40) -> 232.3750798 | CF41: =SUM(CF24:CF40) -> 0
A44: =Scenario_B -> High investment/globalisation | C44: Abandoned agricultural land | M44: Abandoned pasture (rest) land | W44: % of land not degraded and suitable for both annual and perennial energy crops | AF44: % of land mildly degraded and suitable for only perennial energy crops | BY44: Maximum ha can be planted
C45: Mha | D45: Mha | E45: Mha | F45: Mha | G45: Mha | H45: Mha | I45: Mha | J45: Mha | K45: Mha | M45: Mha | N45: Mha | O45: Mha | P45: Mha | Q45: Mha | R45: Mha | S45: Mha | T45: Mha | U45: Mha | W45: Mha | X45: Mha | Y45: Mha | Z45: Mha | AA45: Mha | AB45: Mha | AC45: Mha | AD45: Mha | AF45: Mha | AG45: Mha | AH45: Mha | AI45: Mha | AJ45: Mha | AK45: Mha | AL45: Mha | AM45: Mha | BY45: Mha | BZ45: Mha | CA45: Mha | CB45: Mha | CF45: Mha
B46: Region | C46: 2010 | D46: 2015 | E46: 2020 | F46: 2025 | G46: 2030 | H46: 2035 | I46: 2040 | J46: 2045 | K46: 2050 | M46: 2010 | N46: 2015 | O46: 2020 | P46: 2025 | Q46: 2030 | R46: 2035 | S46: 2040 | T46: 2045 | U46: 2050 | W46: 2015 | X46: 2020 | Y46: 2025 | Z46: 2030 | AA46: 2035 | AB46: 2040 | AC46: 2045 | AD46: 2050 | AF46: 2015 | AG46: 2020 | AH46: 2025 | AI46: 2030 | AJ46: 2035 | AK46: 2040 | AL46: 2045 | AM46: 2050 | BY46: 2015 | BZ46: 2020 | CA46: 2025 | CB46: 2030 | CC46: 2035 | CD46: 2040 | CE46: 2045 | CF46: 2050
B47: Canada | C47: =C24 -> 0.214629 | D47: =D24 -> 0.1073145 | E47: 0 | F47: =AVERAGE(E47,G47) -> 0 | G47: 0 | H47: =AVERAGE(G47,I47) -> 0 | I47: 0 | J47: =AVERAGE(I47,K47) -> 0 | K47: 0 | M47: 0 | N47: =AVERAGE(M47,O47) -> 0 | O47: 0 | P47: =AVERAGE(O47,Q47) -> 0 | Q47: 0 | R47: =AVERAGE(Q47,S47) -> 0 | S47: 0 | T47: =AVERAGE(S47,U47) -> 0 | U47: 0 | W47: 0.35 | X47: =$W47 -> 0.35 | Y47: =$W47 -> 0.35 | Z47: 0.35 | AA47: 0.35 | AB47: 0.35 | AC47: 0.35 | AD47: 0.35 | AF47: 0.37 | AG47: =AF47 -> 0.37 | AH47: =AG47 -> 0.37 | AI47: =AH47 -> 0.37 | AJ47: =AI47 -> 0.37 | AK47: =AJ47 -> 0.37 | AL47: =AK47 -> 0.37 | AM47: =AL47 -> 0.37 | BY47: 0.6413306182 | BZ47: 2.237166422 | CA47: 6.208116569 | CB47: 16.08911124
B48: USA | C48: =C25 -> 4.174519 | D48: 5.052797 | E48: 19.73335 | F48: =AVERAGE(E48,G48) -> 27.410085 | G48: 35.08682 | H48: =AVERAGE(G48,I48) -> 37.906245 | I48: 40.72567 | J48: =AVERAGE(I48,K48) -> 43.760895 | K48: 46.79612 | M48: 0.6085011 | N48: =AVERAGE(M48,O48) -> 0.6085011 | O48: 0.6085011 | P48: =AVERAGE(O48,Q48) -> 0.6085011 | Q48: 0.6085011 | R48: =AVERAGE(Q48,S48) -> 0.6085011 | S48: 0.6085011 | T48: =AVERAGE(S48,U48) -> 0.6085011 | U48: 0.6085011 | W48: 0.35 | X48: 0.35 | Y48: 0.35 | Z48: 0.35 | AA48: 0.35 | AB48: 0.35 | AC48: 0.35 | AD48: 0.35 | AF48: 0.37 | AG48: =AF48 -> 0.37 | AH48: 0.37 | AI48: 0.37 | AJ48: 0.37 | AK48: 0.37 | AL48: 0.37 | AM48: 0.37 | BY48: 1.509799164 | BZ48: 5.266662618 | CA48: 14.61494109 | CB48: 37.87644938
B49: Central America | C49: =C26 -> 2.1973974 | D49: 1.88658585 | E49: 5.3211218 | F49: =AVERAGE(E49,G49) -> 7.1007049 | G49: 8.880288 | H49: =AVERAGE(G49,I49) -> 9.8997695 | I49: 10.919251 | J49: =AVERAGE(I49,K49) -> 12.18327 | K49: 13.447289 | M49: 4.6564259 | N49: =AVERAGE(M49,O49) -> 4.98754345 | O49: 5.318661 | P49: =AVERAGE(O49,Q49) -> 5.484466 | Q49: 5.650271 | R49: =AVERAGE(Q49,S49) -> 5.722338 | S49: 5.794405 | T49: =AVERAGE(S49,U49) -> 5.72104 | U49: 5.647675 | W49: 0.54 | X49: 0.54 | Y49: 0.54 | Z49: 0.54 | AA49: 0.54 | AB49: 0.54 | AC49: 0.54 | AD49: 0.54 | AF49: 0.34 | AG49: 0.34 | AH49: 0.34 | AI49: 0.34 | AJ49: 0.34 | AK49: 0.34 | AL49: 0.34 | AM49: 0.34 | BY49: 0.2405347015 | BZ49: 0.8310356287 | CA49: 1.782043277 | CB49: 3.313650604
B50: South America | C50: =C27 -> 9.103707 | D50: 8.838197 | E50: 12.712614 | F50: =AVERAGE(E50,G50) -> 16.2360025 | G50: 19.759391 | H50: =AVERAGE(G50,I50) -> 20.4674575 | I50: 21.175524 | J50: =AVERAGE(I50,K50) -> 22.708347 | K50: 24.24117 | M50: 51.66387 | N50: =AVERAGE(M50,O50) -> 52.0609 | O50: 52.45793 | P50: =AVERAGE(O50,Q50) -> 54.104445 | Q50: 55.75096 | R50: =AVERAGE(Q50,S50) -> 55.634945 | S50: 55.51893 | T50: =AVERAGE(S50,U50) -> 55.193045 | U50: 54.86716 | W50: 0.54 | X50: 0.54 | Y50: 0.54 | Z50: 0.54 | AA50: 0.54 | AB50: 0.54 | AC50: 0.54 | AD50: 0.54 | AF50: 0.34 | AG50: 0.34 | AH50: 0.34 | AI50: 0.34 | AJ50: 0.34 | AK50: 0.34 | AL50: 0.34 | AM50: 0.34 | BY50: 2.801488456 | BZ50: 7.31331363 | CA50: 14.57965319 | CB50: 26.28216572
B51: North Africa | C51: =C28 -> 0 | D51: 0 | E51: 0 | F51: =AVERAGE(E51,G51) -> 0 | G51: 0 | H51: =AVERAGE(G51,I51) -> 0 | I51: 0 | J51: =AVERAGE(I51,K51) -> 0 | K51: 0 | M51: 0 | N51: =AVERAGE(M51,O51) -> 0 | O51: 0 | P51: =AVERAGE(O51,Q51) -> 0 | Q51: 0 | R51: =AVERAGE(Q51,S51) -> 0 | S51: 0 | T51: =AVERAGE(S51,U51) -> 0 | U51: 0 | W51: 0.63 | X51: 0.63 | Y51: 0.63 | Z51: 0.63 | AA51: 0.63 | AB51: 0.63 | AC51: 0.63 | AD51: 0.63 | AF51: 0.28 | AG51: 0.28 | AH51: 0.28 | AI51: 0.28 | AJ51: 0.28 | AK51: 0.28 | AL51: 0.28 | AM51: 0.28 | BY51: 0.1227255744 | BZ51: 0.4240108567 | CA51: 0.9092338167 | CB51: 1.690690246
B52: West Africa | C52: =C29 -> 0.912134 | D52: 0.912134 | E52: 0.912134 | F52: =AVERAGE(E52,G52) -> 0.912134 | G52: 0.912134 | H52: =AVERAGE(G52,I52) -> 0.912134 | I52: 0.912134 | J52: =AVERAGE(I52,K52) -> 0.912134 | K52: 0.912134 | M52: 40.95032 | N52: =AVERAGE(M52,O52) -> 39.56927 | O52: 38.18822 | P52: 36.091315 | Q52: 33.99441 | R52: 32.62895 | S52: 31.26349 | T52: 30.50044 | U52: 29.73739 | W52: 0.63 | X52: 0.63 | Y52: 0.63 | Z52: 0.63 | AA52: 0.63 | AB52: 0.63 | AC52: 0.63 | AD52: 0.63 | AF52: 0.28 | AG52: 0.28 | AH52: 0.28 | AI52: 0.28 | AJ52: 0.28 | AK52: 0.28 | AL52: 0.28 | AM52: 0.28 | BY52: 0.7419079251 | BZ52: 2.247282967 | CA52: 4.168565377 | CB52: 6.620662694
B53: East Africa | C53: =C30 -> 2.25869 | D53: 1.650871 | E53: 1.347307 | F53: 1.347307 | G53: 1.347307 | H53: 1.347307 | I53: 1.347307 | J53: 1.5010055 | K53: 1.654704 | M53: 13.3572 | N53: 13.43354 | O53: 13.50988 | P53: 12.97666 | Q53: 12.44344 | R53: 12.212445 | S53: 11.98145 | T53: 12.05719 | U53: 12.13293 | W53: 0.63 | X53: 0.63 | Y53: 0.63 | Z53: 0.63 | AA53: 0.63 | AB53: 0.63 | AC53: 0.63 | AD53: 0.63 | AF53: 0.28 | AG53: 0.28 | AH53: 0.28 | AI53: 0.28 | AJ53: 0.28 | AK53: 0.28 | AL53: 0.28 | AM53: 0.28 | BY53: 0.5305604068 | BZ53: 1.607098839 | CA53: 2.981064991 | CB53: 4.734632659
B54: South Africa | C54: =C31 -> 24.355241 | D54: 23.9338165 | E54: 23.562262 | F54: 24.4052255 | G54: 25.248189 | H54: 26.295974 | I54: 27.343759 | J54: 33.534109 | K54: 39.724459 | M54: 25.397448 | N54: 24.661887 | O54: 23.926326 | P54: 24.069738 | Q54: 24.21315 | R54: 24.5098 | S54: 24.80645 | T54: 25.438665 | U54: 26.07088 | W54: 0.63 | X54: 0.63 | Y54: 0.63 | Z54: 0.63 | AA54: 0.63 | AB54: 0.63 | AC54: 0.63 | AD54: 0.63 | AF54: 0.28 | AG54: 0.28 | AH54: 0.28 | AI54: 0.28 | AJ54: 0.28 | AK54: 0.28 | AL54: 0.28 | AM54: 0.28 | BY54: 1.306073032 | BZ54: 3.956172429 | CA54: 7.338445428 | CB54: 11.6551781
B55: Western Europe | C55: =C32 -> 2.665789 | D55: 2.967901 | E55: 3.537472 | F55: 7.049486 | G55: 10.5615 | H55: 13.008995 | I55: 15.45649 | J55: 17.672055 | K55: 19.88762 | M55: 0.9198471 | N55: 0.9198471 | O55: 0.9198471 | P55: 0.9354188 | Q55: 0.9509905 | R55: 0.960974 | S55: 0.9709575 | T55: 0.9709575 | U55: 0.9709575 | W55: 0.44 | X55: 0.44 | Y55: 0.44 | Z55: 0.44 | AA55: 0.44 | AB55: 0.44 | AC55: 0.44 | AD55: 0.44 | AF55: 0.35 | AG55: 0.35 | AH55: 0.35 | AI55: 0.35 | AJ55: 0.35 | AK55: 0.35 | AL55: 0.35 | AM55: 0.35 | BY55: 0.4592745051 | BZ55: 1.602096441 | CA55: 4.445803122 | CB55: 11.52185533
B56: East Europe | C56: =C33 -> 2.180515 | D56: 2.544472 | E56: 4.942925 | F56: 6.9783315 | G56: 9.013738 | H56: 10.286964 | I56: 11.56019 | J56: 12.645875 | K56: 13.73156 | M56: 0.632109 | N56: 0.69266525 | O56: 0.7532215 | P56: 0.7807515 | Q56: 0.8082815 | R56: 0.74832525 | S56: 0.688369 | T56: 0.77776225 | U56: 0.8671555 | W56: 0.28 | X56: 0.28 | Y56: 0.28 | Z56: 0.28 | AA56: 0.28 | AB56: 0.28 | AC56: 0.28 | AD56: 0.28 | AF56: 0.48 | AG56: 0.48 | AH56: 0.48 | AI56: 0.48 | AJ56: 0.48 | AK56: 0.48 | AL56: 0.48 | AM56: 0.48 | BY56: 0.41859 | BZ56: 1.460175869 | CA56: 4.051974818 | CB56: 10.50119998
B57: Former USSR | C57: =C34 -> 3.041459 | D57: 3.7504815 | E57: 5.962865 | F57: 8.445456 | G57: 10.928047 | H57: 12.667753 | I57: 14.407459 | J57: 16.067019 | K57: 17.726579 | M57: 0.05448276 | N57: 0.05448276 | O57: 0.05448276 | P57: 0.05448276 | Q57: 0.05448276 | R57: 0.05448276 | S57: 0.05448276 | T57: 0.05448276 | U57: 0.05448276 | W57: 0.39 | X57: 0.39 | Y57: 0.39 | Z57: 0.39 | AA57: 0.39 | AB57: 0.39 | AC57: 0.39 | AD57: 0.39 | AF57: 0.27 | AG57: 0.27 | AH57: 0.27 | AI57: 0.27 | AJ57: 0.27 | AK57: 0.27 | AL57: 0.27 | AM57: 0.27 | BY57: 1.658945351 | BZ57: 5.731575045 | CA57: 12.29058589 | CB57: 22.85393845
B58: Middle East | C58: =C35 -> 0 | D58: 0 | E58: 0 | F58: 0 | G58: 0 | H58: 0 | I58: 0 | J58: 0 | K58: 0 | M58: 0 | N58: 0 | O58: 0 | P58: 0 | Q58: 0 | R58: 0 | S58: 0 | T58: 0 | U58: 0 | W58: 0 | X58: 0 | Y58: 0 | Z58: 0 | AA58: 0 | AB58: 0 | AC58: 0 | AD58: 0 | AF58: 0.11 | AG58: 0.11 | AH58: 0.11 | AI58: 0.11 | AJ58: 0.11 | AK58: 0.11 | AL58: 0.11 | AM58: 0.11 | BY58: 0.01972084084 | BZ58: 0.06813454051 | CA58: 0.146105288 | CB58: 0.2716779565
B59: South Asia | C59: =C36 -> 0.785269 | D59: 0.3926345 | E59: 0.510908 | F59: 0.775732 | G59: 1.040556 | H59: 1.3039585 | I59: 1.567361 | J59: 1.904471 | K59: 2.241581 | M59: 19.0391 | N59: 18.82956 | O59: 18.62002 | P59: 19.598996 | Q59: 20.577972 | R59: 20.577972 | S59: 20.577972 | T59: 20.577972 | U59: 20.577972 | W59: 0.05 | X59: 0.05 | Y59: 0.05 | Z59: 0.05 | AA59: 0.05 | AB59: 0.05 | AC59: 0.05 | AD59: 0.05 | AF59: 0.32 | AG59: 0.32 | AH59: 0.32 | AI59: 0.32 | AJ59: 0.32 | AK59: 0.32 | AL59: 0.32 | AM59: 0.32 | BY59: 0.2390497871 | BZ59: 0.5441446228 | CA59: 0.9335315365 | CB59: 1.430498875
B60: East Asia | C60: =C37 -> 11.77165 | D60: 13.476175 | E60: 16.70063 | F60: 22.3456175 | G60: 27.990605 | H60: 33.58347 | I60: 39.176335 | J60: 44.8016261 | K60: 50.4269172 | M60: 0.6220873 | N60: 0.6220873 | O60: 0.6220873 | P60: 0.6220873 | Q60: 0.6220873 | R60: 0.6220873 | S60: 0.6220873 | T60: 0.6220873 | U60: 0.6220873 | W60: 0.25 | X60: 0.25 | Y60: 0.25 | Z60: 0.25 | AA60: 0.25 | AB60: 0.25 | AC60: 0.25 | AD60: 0.25 | AF60: 0.36 | AG60: 0.36 | AH60: 0.36 | AI60: 0.36 | AJ60: 0.36 | AK60: 0.36 | AL60: 0.36 | AM60: 0.36 | BY60: 2.712312034 | BZ60: 7.080517688 | CA60: 14.11555658 | CB60: 25.44555706
B61: South East Asia | C61: =C38 -> 0 | D61: 0 | E61: 0 | F61: 0.6471325 | G61: 1.294265 | H61: 1.1715985 | I61: 1.048932 | J61: 1.33876 | K61: 1.628588 | M61: 17.2221725 | N61: 16.6386875 | O61: 16.0552025 | P61: 15.9805725 | Q61: 15.9059425 | R61: 15.7367775 | S61: 15.5676125 | T61: 15.5154675 | U61: 15.4633225 | W61: 0.36 | X61: 0.36 | Y61: 0.36 | Z61: 0.36 | AA61: 0.36 | AB61: 0.36 | AC61: 0.36 | AD61: 0.36 | AF61: 0.37 | AG61: 0.37 | AH61: 0.37 | AI61: 0.37 | AJ61: 0.37 | AK61: 0.37 | AL61: 0.37 | AM61: 0.37 | BY61: 0.07094683958 | BZ61: 0.1852074342 | CA61: 0.3692252644 | CB61: 0.6655878202
B62: Oceania | C62: =C39 -> 1.30154 | D62: 1.2681675 | E62: 15.4264 | F62: 16.789425 | G62: 18.15245 | H62: 18.35991 | I62: 18.56737 | J62: 18.584015 | K62: 18.60066 | M62: 3.952825 | N62: 4.485834 | O62: 5.018843 | P62: 5.1037535 | Q62: 5.188664 | R62: 5.188664 | S62: 5.188664 | T62: 5.188664 | U62: 5.188664 | W62: 0.59 | X62: 0.59 | Y62: 0.59 | Z62: 0.59 | AA62: 0.59 | AB62: 0.59 | AC62: 0.59 | AD62: 0.59 | AF62: 0.29 | AG62: 0.29 | AH62: 0.29 | AI62: 0.29 | AJ62: 0.29 | AK62: 0.29 | AL62: 0.29 | AM62: 0.29 | BY62: 2.049749424 | BZ62: 7.150181912 | CA62: 19.84169008 | CB62: 51.42222368
B63: Japan | C63: =C40 -> 0 | D63: 0 | E63: 0.021164 | F63: 0.053191165 | G63: 0.08521833 | H63: 0.08521833 | I63: 0.08521833 | J63: 0.189142115 | K63: 0.2930659 | M63: 0 | N63: 0 | O63: 0 | P63: 0 | Q63: 0 | R63: 0 | S63: 0 | T63: 0 | U63: 0 | W63: 0.85 | X63: 0.85 | Y63: =$W63 -> 0.85 | Z63: 0.85 | AA63: 0.85 | AB63: 0.85 | AC63: 0.85 | AD63: 0.85 | AF63: 0.15 | AG63: 0.15 | AH63: 0.15 | AI63: 0.15 | AJ63: 0.15 | AK63: 0.15 | AL63: 0.15 | AM63: 0.15 | BY63: 0 | BZ63: 0 | CA63: 0 | CB63: 0
B64: World | C64: =SUM(C47:C63) -> 64.9625394 | D64: 66.78154735 | E64: =SUM(E47:E63) -> 110.6911528 | F64: 140.4958306 | G64: 170.3005083 | H64: 187.2967543 | I64: 204.2930003 | J64: 227.8027237 | K64: 251.3124471 | M64: =SUM(M47:M63) -> 179.0763887 | N64: =SUM(N47:N63) -> 177.5648055 | O64: 176.0532223 | P64: =SUM(P47:P63) -> 176.4111875 | Q64: 176.7691527 | R64: 175.2062619 | S64: 173.6433712 | T64: 173.2262744 | U64: 172.8091777 | BY64: =SUM(BY47:BY63) -> 15.52300866 | BZ64: =SUM(BZ47:BZ63) -> 47.70477694 | CA64: =SUM(CA47:CA63) -> 108.7765363 | CB64: =SUM(CB47:CB63) -> 232.3750798 | CF64: =SUM(CF47:CF63) -> 0
A67: =Scenario_C -> Low investment/regionalisation | C67: Abandoned agricultural land | M67: Abandoned pasture (rest) land | W67: % of land not degraded and suitable for both annual and perennial energy crops | AF67: % of land mildly degraded and suitable for only perennial energy crops | BY67: Maximum ha can be planted
C68: Mha | D68: Mha | E68: Mha | F68: Mha | G68: Mha | H68: Mha | I68: Mha | J68: Mha | K68: Mha | M68: Mha | N68: Mha | O68: Mha | P68: Mha | Q68: Mha | R68: Mha | S68: Mha | T68: Mha | U68: Mha | W68: Mha | X68: Mha | Y68: Mha | Z68: Mha | AA68: Mha | AB68: Mha | AC68: Mha | AD68: Mha | AF68: Mha | AG68: Mha | AH68: Mha | AI68: Mha | AJ68: Mha | AK68: Mha | AL68: Mha | AM68: Mha | BY68: Mha | BZ68: Mha | CA68: Mha | CB68: Mha | CF68: Mha
B69: Region | C69: 2010 | D69: 2015 | E69: 2020 | F69: 2025 | G69: 2030 | H69: 2035 | I69: 2040 | J69: 2045 | K69: 2050 | M69: 2010 | N69: 2015 | O69: 2020 | P69: 2025 | Q69: 2030 | R69: 2035 | S69: 2040 | T69: 2045 | U69: 2050 | W69: 2015 | X69: 2020 | Y69: 2025 | Z69: 2030 | AA69: 2035 | AB69: 2040 | AC69: 2045 | AD69: 2050 | AF69: 2015 | AG69: 2020 | AH69: 2025 | AI69: 2030 | AJ69: 2035 | AK69: 2040 | AL69: 2045 | AM69: 2050 | BY69: 2015 | BZ69: 2020 | CA69: 2025 | CB69: 2030 | CC69: 2035 | CD69: 2040 | CE69: 2045 | CF69: 2050
B70: Canada | C70: =C24 -> 0.214629 | D70: =D24 -> 0.1073145 | E70: 0.1134877 | F70: =AVERAGE(E70,G70) -> 0.1134877 | G70: 0.1134877 | H70: =AVERAGE(G70,I70) -> 0.1134877 | I70: 0.1134877 | J70: =AVERAGE(I70,K70) -> 0.1134877 | K70: 0.1134877 | M70: =M47 -> 0 | N70: =N47 -> 0 | O70: 0 | P70: 0 | Q70: 0 | R70: 0 | S70: 0 | T70: 0 | U70: 0 | W70: 0.35 | X70: =$W70 -> 0.35 | Y70: =$W70 -> 0.35 | Z70: 0.35 | AA70: 0.35 | AB70: 0.35 | AC70: 0.35 | AD70: 0.35 | AF70: 0.37 | AG70: =AF70 -> 0.37 | AH70: =AG70 -> 0.37 | AI70: =AH70 -> 0.37 | AJ70: =AI70 -> 0.37 | AK70: =AJ70 -> 0.37 | AL70: =AK70 -> 0.37 | AM70: =AL70 -> 0.37 | BY70: 0.6413306182 | BZ70: 2.237166422 | CA70: 6.208116569 | CB70: 16.08911124
B71: USA | C71: =C25 -> 4.174519 | D71: 5.052797 | E71: 2.103473 | F71: =AVERAGE(E71,G71) -> 2.445144 | G71: 2.786815 | H71: =AVERAGE(G71,I71) -> 2.5476645 | I71: 2.308514 | J71: =AVERAGE(I71,K71) -> 2.308514 | K71: 2.308514 | M71: =M48 -> 0.6085011 | N71: 0.6085011 | O71: 0.6085011 | P71: 0.6085011 | Q71: 0.6085011 | R71: 0.6085011 | S71: 0.6085011 | T71: 0.6085011 | U71: 0.6085011 | W71: 0.35 | X71: 0.35 | Y71: 0.35 | Z71: 0.35 | AA71: 0.35 | AB71: 0.35 | AC71: 0.35 | AD71: 0.35 | AF71: 0.37 | AG71: =AF71 -> 0.37 | AH71: 0.37 | AI71: 0.37 | AJ71: 0.37 | AK71: 0.37 | AL71: 0.37 | AM71: 0.37 | BY71: 1.509799164 | BZ71: 5.266662618 | CA71: 14.61494109 | CB71: 37.87644938
B72: Central America | C72: =C26 -> 2.1973974 | D72: 1.88658585 | E72: 1.322372 | F72: =AVERAGE(E72,G72) -> 1.309834 | G72: 1.297296 | H72: =AVERAGE(G72,I72) -> 1.297296 | I72: 1.297296 | J72: =AVERAGE(I72,K72) -> 1.239258 | K72: 1.18122 | M72: =M49 -> 4.6564259 | N72: 4.98754345 | O72: 5.318661 | P72: 5.484466 | Q72: 5.650271 | R72: 5.722338 | S72: 5.794405 | T72: 5.72104 | U72: 5.647675 | W72: 0.54 | X72: 0.54 | Y72: 0.54 | Z72: 0.54 | AA72: 0.54 | AB72: 0.54 | AC72: 0.54 | AD72: 0.54 | AF72: 0.34 | AG72: 0.34 | AH72: 0.34 | AI72: 0.34 | AJ72: 0.34 | AK72: 0.34 | AL72: 0.34 | AM72: 0.34 | BY72: 0.2405347015 | BZ72: 0.8310356287 | CA72: 1.782043277 | CB72: 3.313650604
B73: South America | C73: =C27 -> 9.103707 | D73: 8.838197 | E73: 9.516707 | F73: =AVERAGE(E73,G73) -> 9.035643 | G73: 8.554579 | H73: =AVERAGE(G73,I73) -> 7.9969365 | I73: 7.439294 | J73: =AVERAGE(I73,K73) -> 7.13381 | K73: 6.828326 | M73: =M50 -> 51.66387 | N73: 52.0609 | O73: 52.45793 | P73: 54.104445 | Q73: 55.75096 | R73: 55.634945 | S73: 55.51893 | T73: 55.193045 | U73: 54.86716 | W73: 0.54 | X73: 0.54 | Y73: 0.54 | Z73: 0.54 | AA73: 0.54 | AB73: 0.54 | AC73: 0.54 | AD73: 0.54 | AF73: 0.34 | AG73: 0.34 | AH73: 0.34 | AI73: 0.34 | AJ73: 0.34 | AK73: 0.34 | AL73: 0.34 | AM73: 0.34 | BY73: 2.801488456 | BZ73: 7.31331363 | CA73: 14.57965319 | CB73: 26.28216572
B74: North Africa | C74: =C28 -> 0 | D74: 0 | E74: 0 | F74: =AVERAGE(E74,G74) -> 0 | G74: 0 | H74: =AVERAGE(G74,I74) -> 0 | I74: 0 | J74: =AVERAGE(I74,K74) -> 0 | K74: 0 | M74: =M51 -> 0 | N74: 0 | O74: 0 | P74: 0 | Q74: 0 | R74: 0 | S74: 0 | T74: 0 | U74: 0 | W74: 0.63 | X74: 0.63 | Y74: 0.63 | Z74: 0.63 | AA74: 0.63 | AB74: 0.63 | AC74: 0.63 | AD74: 0.63 | AF74: 0.28 | AG74: 0.28 | AH74: 0.28 | AI74: 0.28 | AJ74: 0.28 | AK74: 0.28 | AL74: 0.28 | AM74: 0.28 | BY74: 0.1227255744 | BZ74: 0.4240108567 | CA74: 0.9092338167 | CB74: 1.690690246
B75: West Africa | C75: =C29 -> 0.912134 | D75: 0.912134 | E75: 0.912134 | F75: =AVERAGE(E75,G75) -> 0.912134 | G75: 0.912134 | H75: =AVERAGE(G75,I75) -> 0.60857 | I75: 0.305006 | J75: =AVERAGE(I75,K75) -> 0.305006 | K75: 0.305006 | M75: =M52 -> 40.95032 | N75: 39.56927 | O75: 38.18822 | P75: 36.091315 | Q75: 33.99441 | R75: 32.62895 | S75: 31.26349 | T75: 30.50044 | U75: 29.73739 | W75: 0.63 | X75: 0.63 | Y75: 0.63 | Z75: 0.63 | AA75: 0.63 | AB75: 0.63 | AC75: 0.63 | AD75: 0.63 | AF75: 0.28 | AG75: 0.28 | AH75: 0.28 | AI75: 0.28 | AJ75: 0.28 | AK75: 0.28 | AL75: 0.28 | AM75: 0.28 | BY75: 0.7419079251 | BZ75: 2.247282967 | CA75: 4.168565377 | CB75: 6.620662694
B76: East Africa | C76: =C30 -> 2.25869 | D76: 1.650871 | E76: 1.350154 | F76: 0.977731 | G76: 0.605308 | H76: 0.453385 | I76: 0.301462 | J76: 0.301462 | K76: 0.301462 | M76: =M53 -> 13.3572 | N76: 13.43354 | O76: 13.50988 | P76: 12.97666 | Q76: 12.44344 | R76: 12.212445 | S76: 11.98145 | T76: 12.05719 | U76: 12.13293 | W76: 0.63 | X76: 0.63 | Y76: 0.63 | Z76: 0.63 | AA76: 0.63 | AB76: 0.63 | AC76: 0.63 | AD76: 0.63 | AF76: 0.28 | AG76: 0.28 | AH76: 0.28 | AI76: 0.28 | AJ76: 0.28 | AK76: 0.28 | AL76: 0.28 | AM76: 0.28 | BY76: 0.5305604068 | BZ76: 1.607098839 | CA76: 2.981064991 | CB76: 4.734632659
B77: South Africa | C77: =C31 -> 24.355241 | D77: 23.9338165 | E77: 25.323062 | F77: 23.875726 | G77: 22.42839 | H77: 22.166385 | I77: 21.90438 | J77: 21.8875175 | K77: 21.870655 | M77: =M54 -> 25.397448 | N77: 24.661887 | O77: 23.926326 | P77: 24.069738 | Q77: 24.21315 | R77: 24.5098 | S77: 24.80645 | T77: 25.438665 | U77: 26.07088 | W77: 0.63 | X77: 0.63 | Y77: 0.63 | Z77: 0.63 | AA77: 0.63 | AB77: 0.63 | AC77: 0.63 | AD77: 0.63 | AF77: 0.28 | AG77: 0.28 | AH77: 0.28 | AI77: 0.28 | AJ77: 0.28 | AK77: 0.28 | AL77: 0.28 | AM77: 0.28 | BY77: 1.306073032 | BZ77: 3.956172429 | CA77: 7.338445428 | CB77: 11.6551781
B78: Western Europe | C78: =C32 -> 2.665789 | D78: 2.967901 | E78: 2.786952 | F78: 3.4606625 | G78: 4.134373 | H78: 4.4517775 | I78: 4.769182 | J78: 4.9783155 | K78: 5.187449 | M78: =M55 -> 0.9198471 | N78: 0.9198471 | O78: 0.9198471 | P78: 0.9354188 | Q78: 0.9509905 | R78: 0.960974 | S78: 0.9709575 | T78: 0.9709575 | U78: 0.9709575 | W78: 0.44 | X78: 0.44 | Y78: 0.44 | Z78: 0.44 | AA78: 0.44 | AB78: 0.44 | AC78: 0.44 | AD78: 0.44 | AF78: 0.35 | AG78: 0.35 | AH78: 0.35 | AI78: 0.35 | AJ78: 0.35 | AK78: 0.35 | AL78: 0.35 | AM78: 0.35 | BY78: 0.4592745051 | BZ78: 1.602096441 | CA78: 4.445803122 | CB78: 11.52185533
B79: East Europe | C79: =C33 -> 2.180515 | D79: 2.544472 | E79: 1.959802 | F79: 2.650712 | G79: 3.341622 | H79: 3.7666765 | I79: 4.191731 | J79: 4.598458 | K79: 5.005185 | M79: =M56 -> 0.632109 | N79: 0.69266525 | O79: 0.7532215 | P79: 0.7807515 | Q79: 0.8082815 | R79: 0.74832525 | S79: 0.688369 | T79: 0.77776225 | U79: 0.8671555 | W79: 0.28 | X79: 0.28 | Y79: 0.28 | Z79: 0.28 | AA79: 0.28 | AB79: 0.28 | AC79: 0.28 | AD79: 0.28 | AF79: 0.48 | AG79: 0.48 | AH79: 0.48 | AI79: 0.48 | AJ79: 0.48 | AK79: 0.48 | AL79: 0.48 | AM79: 0.48 | BY79: 0.41859 | BZ79: 1.460175869 | CA79: 4.051974818 | CB79: 10.50119998
B80: Former USSR | C80: =C34 -> 3.041459 | D80: 3.7504815 | E80: 1.521049 | F80: 1.6045355 | G80: 1.688022 | H80: 1.688022 | I80: 1.688022 | J80: 1.77737945 | K80: 1.8667369 | M80: =M57 -> 0.05448276 | N80: 0.05448276 | O80: 0.05448276 | P80: 0.05448276 | Q80: 0.05448276 | R80: 0.05448276 | S80: 0.05448276 | T80: 0.05448276 | U80: 0.05448276 | W80: 0.39 | X80: 0.39 | Y80: 0.39 | Z80: 0.39 | AA80: 0.39 | AB80: 0.39 | AC80: 0.39 | AD80: 0.39 | AF80: 0.27 | AG80: 0.27 | AH80: 0.27 | AI80: 0.27 | AJ80: 0.27 | AK80: 0.27 | AL80: 0.27 | AM80: 0.27 | BY80: 1.658945351 | BZ80: 5.731575045 | CA80: 12.29058589 | CB80: 22.85393845
B81: Middle East | C81: =C35 -> 0 | D81: 0 | E81: 0 | F81: 0 | G81: 0 | H81: 0 | I81: 0 | J81: 0 | K81: 0 | M81: =M58 -> 0 | N81: 0 | O81: 0 | P81: 0 | Q81: 0 | R81: 0 | S81: 0 | T81: 0 | U81: 0 | W81: 0 | X81: 0 | Y81: 0 | Z81: 0 | AA81: 0 | AB81: 0 | AC81: 0 | AD81: 0 | AF81: 0.11 | AG81: 0.11 | AH81: 0.11 | AI81: 0.11 | AJ81: 0.11 | AK81: 0.11 | AL81: 0.11 | AM81: 0.11 | BY81: 0.01972084084 | BZ81: 0.06813454051 | CA81: 0.146105288 | CB81: 0.2716779565
B82: South Asia | C82: =C36 -> 0.785269 | D82: 0.3926345 | E82: 0 | F82: 0 | G82: 0 | H82: 0 | I82: 0 | J82: 0 | K82: 0 | M82: =M59 -> 19.0391 | N82: 18.82956 | O82: 18.62002 | P82: 19.598996 | Q82: 20.577972 | R82: 20.577972 | S82: 20.577972 | T82: 20.577972 | U82: 20.577972 | W82: 0.05 | X82: 0.05 | Y82: 0.05 | Z82: 0.05 | AA82: 0.05 | AB82: 0.05 | AC82: 0.05 | AD82: 0.05 | AF82: 0.32 | AG82: 0.32 | AH82: 0.32 | AI82: 0.32 | AJ82: 0.32 | AK82: 0.32 | AL82: 0.32 | AM82: 0.32 | BY82: 0.2390497871 | BZ82: 0.5441446228 | CA82: 0.9335315365 | CB82: 1.430498875
B83: East Asia | C83: =C37 -> 11.77165 | D83: 13.476175 | E83: 6.66354 | F83: 6.5524555 | G83: 6.441371 | H83: 6.7630945 | I83: 7.084818 | J83: 8.260347 | K83: 9.435876 | M83: =M60 -> 0.6220873 | N83: 0.6220873 | O83: 0.6220873 | P83: 0.6220873 | Q83: 0.6220873 | R83: 0.6220873 | S83: 0.6220873 | T83: 0.6220873 | U83: 0.6220873 | W83: 0.25 | X83: 0.25 | Y83: 0.25 | Z83: 0.25 | AA83: 0.25 | AB83: 0.25 | AC83: 0.25 | AD83: 0.25 | AF83: 0.36 | AG83: 0.36 | AH83: 0.36 | AI83: 0.36 | AJ83: 0.36 | AK83: 0.36 | AL83: 0.36 | AM83: 0.36 | BY83: 2.712312034 | BZ83: 7.080517688 | CA83: 14.11555658 | CB83: 25.44555706
B84: South East Asia | C84: =C38 -> 0 | D84: 0 | E84: 0 | F84: 0 | G84: 0 | H84: 0 | I84: 0 | J84: 0 | K84: 0 | M84: =M61 -> 17.2221725 | N84: 16.6386875 | O84: 16.0552025 | P84: 15.9805725 | Q84: 15.9059425 | R84: 15.7367775 | S84: 15.5676125 | T84: 15.5154675 | U84: 15.4633225 | W84: 0.36 | X84: 0.36 | Y84: 0.36 | Z84: 0.36 | AA84: 0.36 | AB84: 0.36 | AC84: 0.36 | AD84: 0.36 | AF84: 0.37 | AG84: 0.37 | AH84: 0.37 | AI84: 0.37 | AJ84: 0.37 | AK84: 0.37 | AL84: 0.37 | AM84: 0.37 | BY84: 0.07094683958 | BZ84: 0.1852074342 | CA84: 0.3692252644 | CB84: 0.6655878202
B85: Oceania | C85: =C39 -> 1.30154 | D85: 1.2681675 | E85: 0.612027 | F85: 0.6437355 | G85: 0.675444 | H85: 1.2005985 | I85: 1.725753 | J85: 1.424139 | K85: 1.122525 | M85: =M62 -> 3.952825 | N85: 4.485834 | O85: 5.018843 | P85: 5.1037535 | Q85: 5.188664 | R85: 5.188664 | S85: 5.188664 | T85: 5.188664 | U85: 5.188664 | W85: 0.59 | X85: 0.59 | Y85: 0.59 | Z85: 0.59 | AA85: 0.59 | AB85: 0.59 | AC85: 0.59 | AD85: 0.59 | AF85: 0.29 | AG85: 0.29 | AH85: 0.29 | AI85: 0.29 | AJ85: 0.29 | AK85: 0.29 | AL85: 0.29 | AM85: 0.29 | BY85: 2.049749424 | BZ85: 7.150181912 | CA85: 19.84169008 | CB85: 51.42222368
B86: Japan | C86: =C40 -> 0 | D86: 0 | E86: 0.021164 | F86: 0.053191165 | G86: 0.08521833 | H86: 0.08521833 | I86: 0.08521833 | J86: 0.319394165 | K86: 0.55357 | M86: =M63 -> 0 | N86: 0 | O86: 0 | P86: 0 | Q86: 0 | R86: 0 | S86: 0 | T86: 0 | U86: 0 | W86: 0.85 | X86: 0.85 | Y86: =$W86 -> 0.85 | Z86: 0.85 | AA86: 0.85 | AB86: 0.85 | AC86: 0.85 | AD86: 0.85 | AF86: 0.15 | AG86: 0.15 | AH86: 0.15 | AI86: 0.15 | AJ86: 0.15 | AK86: 0.15 | AL86: 0.15 | AM86: 0.15 | BY86: 0 | BZ86: 0 | CA86: 0 | CB86: 0
B87: World | C87: =SUM(C70:C86) -> 64.9625394 | D87: 66.78154735 | E87: 54.2059237 | F87: 53.63499186 | G87: 53.06406003 | H87: 53.13911203 | I87: 53.21416403 | J87: 54.64708831 | K87: 56.0800126 | M87: =SUM(M70:M86) -> 179.0763887 | N87: =SUM(N70:N86) -> 177.5648055 | O87: 176.0532223 | P87: =SUM(P70:P86) -> 176.4111875 | Q87: 176.7691527 | R87: 175.2062619 | S87: 173.6433712 | T87: 173.2262744 | U87: 172.8091777 | BY87: =SUM(BY70:BY86) -> 15.52300866 | BZ87: =SUM(BZ70:BZ86) -> 47.70477694 | CA87: =SUM(CA70:CA86) -> 108.7765363 | CB87: =SUM(CB70:CB86) -> 232.3750798 | CF87: =SUM(CF70:CF86) -> 0

Sheet Perennial energy crop data (hidden)
K3: Yield and
A17: Key: | B17: Data input value
B18: Interpolated or extrapolated value
B19: Calculated value
A20: Global scenario | B20: =Scenario_A -> BAU/continuing trends
B21: =Scenario_B -> High investment/globalisation | O21: Values set on "Set other key assumptions" tab
B22: =Scenario_C -> Low investment/regionalisation | O22: Annual growth rate in new area planted each year
B25: Current (2015) perennial energy crop yields on abandoned agricultural land which is not degraded | E25: Reduction in yield of perennial energy crops on different types of land | K25: Initial area which can be planted with energy crops and year first harvest achieved* | O25: =Scenario_A -> BAU/continuing trends | P25: =Scenario_B -> High investment/globalisation | Q25: =Scenario_C -> Low investment/regionalisation
B26: Region | C26: GJ/ha | E26: Type of land | H26: No degradation (i.e. suitable for annual or perennial crops) | I26: Mildly degraded (i.e. only suitable for perennial crops) | K26: Region | M26: Year | N26: kha
B27: Canada | C27: 189 | K27: Canada | M27: 2020 | N27: 150 | O27: ='Set other key assumptions'!E78 -> 0.2 | P27: ='Set other key assumptions'!F78 -> 0.2 | Q27: ='Set other key assumptions'!G78 -> 0.2
B28: USA | C28: 189 | K28: USA | M28: 2020 | N28: 200 | O28: ='Set other key assumptions'!E79 -> 0.2 | P28: ='Set other key assumptions'!F79 -> 0.2 | Q28: ='Set other key assumptions'!G79 -> 0.2
B29: Central America | C29: 170 | K29: Central America | M29: 2020 | N29: 150 | O29: ='Set other key assumptions'!E80 -> 0.1 | P29: ='Set other key assumptions'!F80 -> 0.2 | Q29: ='Set other key assumptions'!G80 -> 0.08
B30: South America | C30: 170 | E30: Abandoned agricultural land | H30: 0 | I30: 0.2 | K30: South America | M30: 2020 | N30: 200 | O30: ='Set other key assumptions'!E81 -> 0.1 | P30: ='Set other key assumptions'!F81 -> 0.2 | Q30: ='Set other key assumptions'!G81 -> 0.03
B31: North Africa | C31: 89 | E31: Pasture (rest) land | H31: 0.1 | I31: 0.3 | K31: North Africa | M31: 2020 | N31: 30 | O31: ='Set other key assumptions'!E82 -> 0.05 | P31: ='Set other key assumptions'!F82 -> 0.2 | Q31: ='Set other key assumptions'!G82 -> 0.02
B32: West Africa | C32: 139 | K32: West Africa | M32: 2020 | N32: 50 | O32: ='Set other key assumptions'!E83 -> 0.05 | P32: ='Set other key assumptions'!F83 -> 0.2 | Q32: ='Set other key assumptions'!G83 -> 0.02
B33: East Africa | C33: 111 | E33: Future yield increases for perennial energy crops | K33: East Africa | M33: 2020 | N33: 50 | O33: ='Set other key assumptions'!E84 -> 0.05 | P33: ='Set other key assumptions'!F84 -> 0.2 | Q33: ='Set other key assumptions'!G84 -> 0.02
B34: South Africa | C34: 89 | E34: Scenario | I34: Annual yield increase | K34: South Africa | M34: 2020 | N34: 60 | O34: ='Set other key assumptions'!E85 -> 0.05 | P34: ='Set other key assumptions'!F85 -> 0.2 | Q34: ='Set other key assumptions'!G85 -> 0.02
B35: Western Europe | C35: 189 | K35: Western Europe | M35: 2020 | N35: 50 | O35: ='Set other key assumptions'!E86 -> 0.05 | P35: ='Set other key assumptions'!F86 -> 0.2 | Q35: ='Set other key assumptions'!G86 -> 0.02
B36: East Europe | C36: 189 | E36: =Scenario_A -> BAU/continuing trends | I36: ='Set other key assumptions'!G67 -> 0.013 | K36: East Europe | M36: 2020 | N36: 100 | O36: ='Set other key assumptions'!E87 -> 0.2 | P36: ='Set other key assumptions'!F87 -> 0.2 | Q36: ='Set other key assumptions'!G87 -> 0.2
B37: Former USSR | C37: 205 | E37: =Scenario_B -> High investment/globalisation | I37: ='Set other key assumptions'!G68 -> 0.015 | K37: Former USSR | M37: 2020 | N37: 200 | O37: ='Set other key assumptions'!E88 -> 0.1 | P37: ='Set other key assumptions'!F88 -> 0.2 | Q37: ='Set other key assumptions'!G88 -> 0.02
B38: Middle East | C38: 89 | E38: =Scenario_C -> Low investment/regionalisation | I38: ='Set other key assumptions'!G69 -> 0.01 | K38: Middle East | M38: 2020 | N38: 0.5 | O38: ='Set other key assumptions'!E89 -> 0.1 | P38: ='Set other key assumptions'!F89 -> 0.2 | Q38: ='Set other key assumptions'!G89 -> 0.08
B39: South Asia | C39: 164 | I39: Values set on "Set other key assumptions" tab | K39: South Asia | M39: 2020 | N39: 20 | O39: ='Set other key assumptions'!E90 -> 0.05 | P39: ='Set other key assumptions'!F90 -> 0.2 | Q39: ='Set other key assumptions'!G90 -> 0.02
B40: East Asia | C40: 164 | K40: East Asia | M40: 2020 | N40: 130 | O40: ='Set other key assumptions'!E91 -> 0.1 | P40: ='Set other key assumptions'!F91 -> 0.2 | Q40: ='Set other key assumptions'!G91 -> 0.08
B41: South East Asia | C41: 164 | K41: South East Asia | M41: 2020 | N41: 10 | O41: ='Set other key assumptions'!E92 -> 0.1 | P41: ='Set other key assumptions'!F92 -> 0.2 | Q41: ='Set other key assumptions'!G92 -> 0.08
B42: Oceania | C42: 172 | K42: Oceania | M42: 2020 | N42: 30 | O42: ='Set other key assumptions'!E93 -> 0.2 | P42: ='Set other key assumptions'!F93 -> 0.2 | Q42: ='Set other key assumptions'!G93 -> 0.2
B43: Japan | C43: 172 | K43: Japan | M43: 2020 | N43: 0.1 | O43: ='Set other key assumptions'!E94 -> 0.2 | P43: ='Set other key assumptions'!F94 -> 0.2 | Q43: ='Set other key assumptions'!G94 -> 0.2
K45: * Depending on the type of energy crop planted, it can take several years between time of planting and time of first harvest
K46: The year entered here should be the year that the crop is expected to first be harvested
K47: Any value between 2015 and 2050 can be entered

Sheet Biofuels data (hidden)
A14: Key: | B14: Data input value
B15: Interpolated or extrapolated value
B16: Calculated value
A17: Global scenario | B17: =Scenario_A -> BAU/continuing trends
B18: =Scenario_B -> High investment/globalisation
B19: =Scenario_C -> Low investment/regionalisation
B22: Representative biofuels annual crop for region and current (2015) crop yields on abandoned agricultural land which is not degraded | H22: Reduction in yield of annual biofuels crops on different types of land | M22: Annual yield increase, %
B23: Region | C23: Bioethanol crop | D23: Yield | E23: Biodiesel crop | F23: Yield | H23: Type of land | K23: No degradation (i.e. suitable for annual or perennial crops) | M23: Region | N23: =Scenario_A -> BAU/continuing trends | P23: =Scenario_B -> High investment/globalisation | R23: =Scenario_C -> Low investment/regionalisation
D24: t/ha | F24: t/ha | N24: 2015 to 2030 | O24: 2030 to 2050 | P24: 2015 to 2030 | Q24: 2030 to 2050 | R24: 2015 to 2030 | S24: 2030 to 2050
B25: Canada | C25: corn | D25: 10.3 | E25: OSR | F25: 1.85 | M25: Canada | N25: 0.012 | O25: 0.012 | P25: 0.0144 | Q25: 0.0144 | R25: 0.006 | S25: 0
B26: USA | C26: corn | D26: 8.6 | E26: soy | F26: 2.85 | M26: USA | N26: 0.012 | O26: 0.012 | P26: 0.0144 | Q26: 0.0144 | R26: 0.006 | S26: 0
B27: Central America | C27: sugar cane | D27: 63 | E27: soy | F27: 2.84 | M27: Central America | N27: 0.004 | O27: 0.004 | P27: 0.0048 | Q27: 0.0048 | R27: 0.002 | S27: 0
B28: South America | C28: sugar cane | D28: 80 | E28: soy | F28: 2.84 | H28: Abandoned agricultural land | K28: 0 | M28: South America | N28: 0.009 | O28: 0.009 | P28: 0.0108 | Q28: 0.0108 | R28: 0.0045 | S28: 0
B29: North Africa | C29: none | E29: none | H29: Pasture land | K29: 0.1 | M29: North Africa
B30: West Africa | C30: none | E30: jatropha | F30: 2.27 | M30: West Africa | N30: 0.004 | O30: 0.004 | P30: 0.0048 | Q30: 0.0048 | R30: 0.002 | S30: 0
B31: East Africa | C31: none | E31: jatropha | F31: 2.27 | M31: East Africa | N31: 0.004 | O31: 0.004 | P31: 0.0048 | Q31: 0.0048 | R31: 0.002 | S31: 0
B32: South Africa | C32: sugar cane | D32: 64 | E32: soy | F32: 1.64 | M32: South Africa | N32: 0.004 | O32: 0.004 | P32: 0.0048 | Q32: 0.0048 | R32: 0.002 | S32: 0
B33: Western Europe | C33: sugar beet | D33: 65 | E33: OSR | F33: 3.11 | M33: Western Europe | N33: 0.01 | O33: 0.01 | P33: 0.012 | Q33: 0.012 | R33: 0.005 | S33: 0
B34: East Europe | C34: wheat | D34: 3.4 | E34: OSR | F34: 3.11 | M34: East Europe | N34: 0.009 | O34: 0.009 | P34: 0.0108 | Q34: 0.0108 | R34: 0.0045 | S34: 0
B35: Former USSR | C35: wheat | D35: 3 | E35: OSR | F35: =AVERAGE(1.32,1.51) -> 1.415 | M35: Former USSR | N35: 0.009 | O35: 0.009 | P35: 0.0108 | Q35: 0.0108 | R35: 0.0045 | S35: 0
B36: Middle East | C36: none | E36: none | M36: Middle East
B37: South Asia | C37: sugarcane | D37: 68.7 | E37: jatropha | F37: 2.27 | M37: South Asia | N37: 0.009 | O37: 0.009 | P37: 0.0108 | Q37: 0.0108 | R37: 0.0045 | S37: 0
B38: East Asia | C38: corn | D38: 5.5 | E38: jatropha | F38: 2.27 | M38: East Asia | N38: 0.009 | O38: 0.009 | P38: 0.0108 | Q38: 0.0108 | R38: 0.0045 | S38: 0
B39: South East Asia | C39: cassava | D39: 16 | E39: palm | F39: 19 | M39: South East Asia | N39: 0.008 | O39: 0.008 | P39: 0.0096 | Q39: 0.0096 | R39: 0.004 | S39: 0
B40: Oceania | C40: wheat | D40: 1.8 | E40: OSR | F40: 1.4 | M40: Oceania | N40: 0.009 | O40: 0.009 | P40: 0.0108 | Q40: 0.0108 | R40: 0.0045 | S40: 0
B41: Japan | C41: sugar cane | D41: 54 | E41: none | M41: Japan | N41: 0.009 | O41: 0.009 | P41: 0.0108 | Q41: 0.0108 | R41: 0.0045 | S41: 0
B45: Biofuels production per tonne feedstock (2015) | M45: Improvement in conversion efficiency (feedstocks to biofuels
B46: Region | C46: Bioethanol crop | D46: Yield | E46: Biodiesel crop | F46: Yield | M46: Region | N46: =Scenario_A -> BAU/continuing trends | P46: =Scenario_B -> High investment/globalisation | R46: =Scenario_C -> Low investment/regionalisation
D47: GJ biofuel/t feedstock | F47: GJ biofuel/t feedstock | H47: NCV | K47: GJ/t | N47: 2015 to 2030 | O47: 2030 to 2050 | P47: 2015 to 2030 | Q47: 2030 to 2050 | R47: 2015 to 2030 | S47: 2030 to 2050
B48: Canada | C48: corn | D48: =0.30260318*Biothanol_LHV -> 8.049244588 | E48: OSR | F48: =0.405*0.96*0.9615*Biodiesel_LHV -> 13.90652064 | H48: Bioethanol | K48: 26.6 | M48: Canada | N48: 0.0005 | O48: 0.0005 | P48: 0.0005 | Q48: 0.0005 | R48: 0.0003 | S48: 0.0003
B49: USA | C49: corn | D49: =0.30260318*Biothanol_LHV -> 8.049244588 | E49: soy | F49: =0.188*0.96*0.9776*Biodiesel_LHV -> 6.563465626 | H49: Biodiesel | K49: 37.2 | M49: USA | N49: 0.0005 | O49: 0.0005 | P49: 0.0005 | Q49: 0.0005 | R49: 0.0003 | S49: 0.0003
B50: Central America | C50: sugar cane | D50: =0.0725*Biothanol_LHV -> 1.9285 | E50: soy | F50: =0.188*0.96*0.9776*Biodiesel_LHV -> 6.563465626 | M50: Central America | N50: 0.0005 | O50: 0.0005 | P50: 0.0005 | Q50: 0.0005 | R50: 0.0003 | S50: 0.0003
B51: South America | C51: sugar cane | D51: =0.0725*Biothanol_LHV -> 1.9285 | E51: soy | F51: =0.188*0.96*0.9776*Biodiesel_LHV -> 6.563465626 | M51: South America | N51: 0.0005 | O51: 0.0005 | P51: 0.0005 | Q51: 0.0005 | R51: 0.0003 | S51: 0.0003
B52: North Africa | C52: none | E52: none | F52: =0.188*0.96*0.9776*Biodiesel_LHV -> 6.563465626 | M52: North Africa
B53: West Africa | C53: none | E53: jatropha | F53: =0.24*0.95*Biodiesel_LHV -> 8.4816 | M53: West Africa | N53: 0.0005 | O53: 0.0005 | P53: 0.0005 | Q53: 0.0005 | R53: 0.0003 | S53: 0.0003
B54: East Africa | C54: none | E54: jatropha | F54: =0.24*0.95*Biodiesel_LHV -> 8.4816 | M54: East Africa | N54: 0.0005 | O54: 0.0005 | P54: 0.0005 | Q54: 0.0005 | R54: 0.0003 | S54: 0.0003
B55: South Africa | C55: sugar cane | D55: =0.0725*Biothanol_LHV -> 1.9285 | E55: soy | F55: =0.188*0.96*0.9776*Biodiesel_LHV -> 6.563465626 | M55: South Africa | N55: 0.0005 | O55: 0.0005 | P55: 0.0005 | Q55: 0.0005 | R55: 0.0003 | S55: 0.0003
B56: Western Europe | C56: sugar beet | D56: =0.0827*Biothanol_LHV -> 2.19982 | E56: OSR | F56: =0.405*0.96*0.9615*Biodiesel_LHV -> 13.90652064 | M56: Western Europe | N56: 0.0005 | O56: 0.0005 | P56: 0.0005 | Q56: 0.0005 | R56: 0.0003 | S56: 0.0003
B57: East Europe | C57: wheat | D57: =0.2943*Biothanol_LHV -> 7.82838 | E57: OSR | F57: =0.405*0.96*0.9615*Biodiesel_LHV -> 13.90652064 | M57: East Europe | N57: 0.0005 | O57: 0.0005 | P57: 0.0005 | Q57: 0.0005 | R57: 0.0003 | S57: 0.0003
B58: Former USSR | C58: wheat | D58: =0.2943*Biothanol_LHV -> 7.82838 | E58: OSR | F58: =0.405*0.96*0.9615*Biodiesel_LHV -> 13.90652064 | M58: Former USSR | N58: 0.0005 | O58: 0.0005 | P58: 0.0005 | Q58: 0.0005 | R58: 0.0003 | S58: 0.0003
B59: Middle East | C59: none | E59: none | M59: Middle East
B60: South Asia | C60: sugar cane | D60: =0.0725*Biothanol_LHV -> 1.9285 | E60: jatropha | F60: =0.24*0.95*Biodiesel_LHV -> 8.4816 | M60: South Asia | N60: 0.0005 | O60: 0.0005 | P60: 0.0005 | Q60: 0.0005 | R60: 0.0003 | S60: 0.0003
B61: East Asia | C61: corn | D61: =0.30260318*Biothanol_LHV -> 8.049244588 | E61: jatropha | F61: =0.24*0.95*Biodiesel_LHV -> 8.4816 | M61: East Asia | N61: 0.0005 | O61: 0.0005 | P61: 0.0005 | Q61: 0.0005 | R61: 0.0003 | S61: 0.0003
B62: South East Asia | C62: cassava | D62: 6 | E62: palm | F62: =0.2269*0.96*0.9882*Biodiesel_LHV -> 8.007436777 | M62: South East Asia | N62: 0.0005 | O62: 0.0005 | P62: 0.0005 | Q62: 0.0005 | R62: 0.0003 | S62: 0.0003
B63: Oceania | C63: wheat | D63: =0.2943*Biothanol_LHV -> 7.82838 | E63: OSR | F63: =0.405*0.96*0.9615*Biodiesel_LHV -> 13.90652064 | M63: Oceania | N63: 0.0005 | O63: 0.0005 | P63: 0.0005 | Q63: 0.0005 | R63: 0.0003 | S63: 0.0003
B64: Japan | C64: sugar cane | D64: =0.0725*Biothanol_LHV -> 1.9285 | E64: none | M64: Japan | N64: 0.0005 | O64: 0.0005 | P64: 0.0005 | Q64: 0.0005 | R64: 0.0003 | S64: 0.0003
B68: Pattern of supply to meet forecast demand of bioethanol | M68: Pattern of supply to meet forecast demand of biodiesel
B69: Region | C69: 2015 | D69: 2020 | E69: 2025 | F69: 2030 | G69: 2035 | H69: 2040 | I69: 2045 | J69: 2050 | M69: Region | N69: 2015 | O69: 2020 | P69: 2025 | Q69: 2030 | R69: 2035 | S69: 2040 | T69: 2045 | U69: 2050
B70: Canada | C70: 0.0132973589 | D70: 0.01315698227 | E70: 0.01315698227 | F70: 0.01315698227 | G70: 0.01315698227 | H70: 0.01315698227 | I70: 0.01315698227 | J70: 0.01315698227 | M70: Canada | N70: 0 | O70: 0 | P70: 0 | Q70: 0 | R70: 0 | S70: 0 | T70: 0 | U70: 0
B71: USA | C71: 0.5242470258 | D71: 0.5007513644 | E71: 0.5007513644 | F71: 0.5007513644 | G71: 0.5007513644 | H71: 0.5007513644 | I71: 0.5007513644 | J71: 0.5007513644 | M71: USA | N71: 0.1622516866 | O71: 0.2136118069 | P71: 0.2136118069 | Q71: 0.2136118069 | R71: 0.2136118069 | S71: 0.2136118069 | T71: 0.2136118069 | U71: 0.2136118069
B72: Central America | C72: 0 | D72: 0 | E72: 0 | F72: 0 | G72: 0 | H72: 0 | I72: 0 | J72: 0 | M72: Central America | N72: 0 | O72: 0 | P72: 0 | Q72: 0 | R72: 0 | S72: 0 | T72: 0 | U72: 0
B73: South America | C73: 0.37240941 | D73: 0.3937336864 | E73: 0.3937336864 | F73: 0.3937336864 | G73: 0.3937336864 | H73: 0.3937336864 | I73: 0.3937336864 | J73: 0.3937336864 | M73: South America | N73: 0.2138024541 | O73: 0.1970078209 | P73: 0.1970078209 | Q73: 0.1970078209 | R73: 0.1970078209 | S73: 0.1970078209 | T73: 0.1970078209 | U73: 0.1970078209
B74: North Africa | C74: 0 | D74: 0 | E74: 0 | F74: 0 | G74: 0 | H74: 0 | I74: 0 | J74: 0 | M74: North Africa | N74: 0 | O74: 0 | P74: 0 | Q74: 0 | R74: 0 | S74: 0 | T74: 0 | U74: 0
B75: West Africa | C75: 0 | D75: 0 | E75: 0 | F75: 0 | G75: 0 | H75: 0 | I75: 0 | J75: 0 | M75: West Africa | N75: 0 | O75: 0 | P75: 0 | Q75: 0 | R75: 0 | S75: 0 | T75: 0 | U75: 0
B76: East Africa | C76: 0 | D76: 0 | E76: 0 | F76: 0 | G76: 0 | H76: 0 | I76: 0 | J76: 0 | M76: East Africa | N76: 0 | O76: 0 | P76: 0 | Q76: 0 | R76: 0 | S76: 0 | T76: 0 | U76: 0
B77: South Africa | C77: 0 | D77: 0 | E77: 0 | F77: 0 | G77: 0 | H77: 0 | I77: 0 | J77: 0 | M77: South Africa | N77: 0 | O77: 0 | P77: 0 | Q77: 0 | R77: 0 | S77: 0 | T77: 0 | U77: 0
B78: Western Europe | C78: 0.03197090418 | D78: 0.03486544382 | E78: 0.03486544382 | F78: 0.03486544382 | G78: 0.03486544382 | H78: 0.03486544382 | I78: 0.03486544382 | J78: 0.03486544382 | M78: Western Europe | N78: 0.3928199777 | O78: 0.3696533001 | P78: 0.3696533001 | Q78: 0.3696533001 | R78: 0.3696533001 | S78: 0.3696533001 | T78: 0.3696533001 | U78: 0.3696533001
B79: East Europe | C79: 0.01646985973 | D79: 0.01796098621 | E79: 0.01796098621 | F79: 0.01796098621 | G79: 0.01796098621 | H79: 0.01796098621 | I79: 0.01796098621 | J79: 0.01796098621 | M79: East Europe | N79: 0.2023618067 | O79: 0.1904274577 | P79: 0.1904274577 | Q79: 0.1904274577 | R79: 0.1904274577 | S79: 0.1904274577 | T79: 0.1904274577 | U79: 0.1904274577
B80: Former USSR | C80: 0 | D80: 0 | E80: 0 | F80: 0 | G80: 0 | H80: 0 | I80: 0 | J80: 0 | M80: Former USSR | N80: 0 | O80: 0 | P80: 0 | Q80: 0 | R80: 0 | S80: 0 | T80: 0 | U80: 0
B81: Middle East | C81: 0 | D81: 0 | E81: 0 | F81: 0 | G81: 0 | H81: 0 | I81: 0 | J81: 0 | M81: Middle East | N81: 0 | O81: 0 | P81: 0 | Q81: 0 | R81: 0 | S81: 0 | T81: 0 | U81: 0
B82: South Asia | C82: 0.01850051031 | D82: 0.01836934891 | E82: 0.01836934891 | F82: 0.01836934891 | G82: 0.01836934891 | H82: 0.01836934891 | I82: 0.01836934891 | J82: 0.01836934891 | M82: South Asia | N82: 0 | O82: 0 | P82: 0 | Q82: 0 | R82: 0 | S82: 0 | T82: 0 | U82: 0
B83: East Asia | C83: 0.02310493112 | D83: 0.021162188 | E83: 0.021162188 | F83: 0.021162188 | G83: 0.021162188 | H83: 0.021162188 | I83: 0.021162188 | J83: 0.021162188 | M83: East Asia | N83: 0 | O83: 0 | P83: 0 | Q83: 0 | R83: 0 | S83: 0 | T83: 0 | U83: 0
B84: South East Asia | C84: 0 | D84: 0 | E84: 0 | F84: 0 | G84: 0 | H84: 0 | I84: 0 | J84: 0 | M84: South East Asia | N84: 0.02876407489 | O84: 0.02929961445 | P84: 0.02929961445 | Q84: 0.02929961445 | R84: 0.02929961445 | S84: 0.02929961445 | T84: 0.02929961445 | U84: 0.02929961445
B85: Oceania | C85: 0 | D85: 0 | E85: 0 | F85: 0 | G85: 0 | H85: 0 | I85: 0 | J85: 0 | M85: Oceania | N85: 0 | O85: 0 | P85: 0 | Q85: 0 | R85: 0 | S85: 0 | T85: 0 | U85: 0
B86: Japan | C86: 0 | D86: 0 | E86: 0 | F86: 0 | G86: 0 | H86: 0 | I86: 0 | J86: 0 | M86: Japan | N86: 0 | O86: 0 | P86: 0 | Q86: 0 | R86: 0 | S86: 0 | T86: 0 | U86: 0
B87: Total | C87: =SUM(C70:C86) -> 1 | D87: =SUM(D70:D86) -> 1 | E87: 1 | F87: 1 | G87: 1 | H87: 1 | I87: 1 | J87: 1 | M87: Total | N87: =SUM(N70:N86) -> 1 | O87: 1 | P87: 1 | Q87: 1 | R87: 1 | S87: 1 | T87: 1 | U87: 1
B90: Percentage of land suitable for annual energy crops dedicated to sugar/starch crops for bioethanol | M90: Percentage of land suitable for annual energy crops dedicated to oil crops for biodiesel
B91: Region | C91: 2015 | D91: 2020 | E91: 2025 | F91: 2030 | G91: 2035 | H91: 2040 | I91: 2045 | J91: 2050 | M91: Region | N91: 2015 | O91: 2020 | P91: 2025 | Q91: 2030 | R91: 2035 | S91: 2040 | T91: 2045 | U91: 2050
B92: Canada | C92: 0.96 | D92: 0.85 | E92: 0.85 | F92: 0.85 | G92: 0.85 | H92: 0.85 | I92: 0.85 | J92: 0.85 | M92: Canada | N92: =1-C92 -> 0.04 | O92: =1-D92 -> 0.15 | P92: 0.15 | Q92: 0.15 | R92: 0.15 | S92: 0.15 | T92: 0.15 | U92: 0.15
B93: USA | C93: 0.96 | D93: 0.85 | E93: 0.85 | F93: 0.85 | G93: 0.85 | H93: 0.85 | I93: 0.85 | J93: 0.85 | M93: USA | N93: =1-C93 -> 0.04 | O93: =1-D93 -> 0.15 | P93: =1-E93 -> 0.15 | Q93: =1-F93 -> 0.15 | R93: =1-G93 -> 0.15 | S93: =1-H93 -> 0.15 | T93: =1-I93 -> 0.15 | U93: =1-J93 -> 0.15
B94: Central America | C94: 0.1 | D94: 0.11 | E94: 0.12 | F94: 0.12 | G94: 0.12 | H94: 0.12 | I94: 0.12 | J94: 0.12 | M94: Central America | N94: 0.9 | O94: 0.89 | P94: 0.88 | Q94: 0.88 | R94: 0.88 | S94: 0.88 | T94: 0.88 | U94: 0.88
B95: South America | C95: 0.46 | D95: 0.41 | E95: 0.41 | F95: 0.41 | G95: 0.41 | H95: 0.41 | I95: 0.41 | J95: 0.41 | M95: South America | N95: 0.54 | O95: 0.59 | P95: 0.59 | Q95: 0.59 | R95: 0.59 | S95: 0.59 | T95: 0.59 | U95: 0.59
B96: North Africa | M96: North Africa
B97: West Africa | C97: 0 | D97: 0 | E97: 0 | F97: 0 | G97: 0 | H97: 0 | I97: 0 | J97: 0 | M97: West Africa | N97: 1 | O97: 1 | P97: 1 | Q97: 1 | R97: 1 | S97: 1 | T97: 1 | U97: 1
B98: East Africa | C98: 0 | D98: 0 | E98: 0 | F98: 0 | G98: 0 | H98: 0 | I98: 0 | J98: 0 | M98: East Africa | N98: 1 | O98: 1 | P98: 1 | Q98: 1 | R98: 1 | S98: 1 | T98: 1 | U98: 1
B99: South Africa | C99: 1 | D99: 1 | E99: 1 | F99: 1 | G99: 1 | H99: 1 | I99: 1 | J99: 1 | M99: South Africa | N99: 0 | O99: 0 | P99: 0 | Q99: 0 | R99: 0 | S99: 0 | T99: 0 | U99: 0
B100: Western Europe | C100: 0.21 | D100: 0.23 | E100: 0.23 | F100: 0.23 | G100: 0.23 | H100: 0.23 | I100: 0.23 | J100: 0.23 | M100: Western Europe | N100: 0.79 | O100: 0.77 | P100: 0.77 | Q100: 0.77 | R100: 0.77 | S100: 0.77 | T100: 0.77 | U100: 0.77
B101: East Europe | C101: 0.21 | D101: 0.23 | E101: 0.23 | F101: 0.23 | G101: 0.23 | H101: 0.23 | I101: 0.23 | J101: 0.23 | M101: East Europe | N101: 0.79 | O101: 0.77 | P101: 0.77 | Q101: 0.77 | R101: 0.77 | S101: 0.77 | T101: 0.77 | U101: 0.77
B102: Former USSR | C102: 0.85 | D102: 0.85 | E102: 0.85 | F102: 0.85 | G102: 0.85 | H102: 0.85 | I102: 0.85 | J102: 0.85 | M102: Former USSR | N102: 0.15 | O102: 0.15 | P102: 0.15 | Q102: 0.15 | R102: 0.15 | S102: 0.15 | T102: 0.15 | U102: 0.15
B103: Middle East | M103: Middle East
B104: South Asia | C104: 0.2 | D104: 0.2 | E104: 0.2 | F104: 0.2 | G104: 0.2 | H104: 0.2 | I104: 0.2 | J104: 0.2 | M104: South Asia | N104: 0.8 | O104: 0.8 | P104: 0.8 | Q104: 0.8 | R104: 0.8 | S104: 0.8 | T104: 0.8 | U104: 0.8
B105: East Asia | C105: 0.75 | D105: 0.7 | E105: 0.65 | F105: 0.65 | G105: 0.65 | H105: 0.65 | I105: 0.65 | J105: 0.65 | M105: East Asia | N105: 0.25 | O105: 0.3 | P105: 0.35 | Q105: 0.35 | R105: 0.35 | S105: 0.35 | T105: 0.35 | U105: 0.35
B106: South East Asia | C106: 0.2 | D106: 0.2 | E106: 0.2 | F106: 0.2 | G106: 0.2 | H106: 0.2 | I106: 0.2 | J106: 0.2 | M106: South East Asia | N106: 0.8 | O106: 0.8 | P106: 0.8 | Q106: 0.8 | R106: 0.8 | S106: 0.8 | T106: 0.8 | U106: 0.8
B107: Oceania | C107: 0.92 | D107: 0.92 | E107: 0.92 | F107: 0.92 | G107: 0.92 | H107: 0.92 | I107: 0.92 | J107: 0.92 | M107: Oceania | N107: 0.08 | O107: 0.08 | P107: 0.08 | Q107: 0.08 | R107: 0.08 | S107: 0.08 | T107: 0.08 | U107: 0.08
B108: Japan | C108: 1 | D108: 1 | E108: 1 | F108: 1 | G108: 1 | H108: 1 | I108: 1 | J108: 1 | M108: Japan | N108: =1-C108 -> 0 | O108: 0 | P108: 0 | Q108: 0 | R108: 0 | S108: 0 | T108: 0 | U108: 0
A113: =Scenario_A -> BAU/continuing trends | B113: Supply region | C113: % of UCO used domestically for biodiesel | L113: % of tallow used domestically for biodiesel
C114: 2015 | D114: 2020 | E114: 2025 | F114: 2030 | G114: 2035 | H114: 2040 | I114: 2045 | J114: 2050 | L114: 2015 | M114: 2020 | N114: 2025 | O114: 2030 | P114: 2035 | Q114: 2040 | R114: 2045 | S114: 2050
C115: % | D115: % | E115: % | F115: % | G115: % | H115: % | I115: % | J115: % | L115: % | M115: % | N115: % | O115: % | P115: % | Q115: % | R115: % | S115: %
A116: BAU | B116: Canada | C116: 0.1 | D116: 0.1 | E116: 0.1 | F116: 0.1 | G116: 0.1 | H116: 0.1 | I116: 0.1 | J116: 0.1 | L116: 0.1 | M116: 0.1 | N116: 0.1 | O116: 0.1 | P116: 0.1 | Q116: 0.1 | R116: 0.1 | S116: 0.1
B117: USA | C117: 0.75 | D117: 0.75 | E117: 0.75 | F117: 0.75 | G117: 0.75 | H117: 0.75 | I117: 0.75 | J117: 0.75 | L117: 0.75 | M117: 0.75 | N117: 0.75 | O117: 0.75 | P117: 0.75 | Q117: 0.75 | R117: 0.75 | S117: 0.75
B118: Central America | C118: 0 | D118: 0 | E118: 0 | F118: 0 | G118: 0 | H118: 0 | I118: 0 | J118: 0 | L118: 0 | M118: 0 | N118: 0 | O118: 0 | P118: 0 | Q118: 0 | R118: 0 | S118: 0
B119: South America | C119: 0.1 | D119: 0.1 | E119: 0.1 | F119: 0.1 | G119: 0.1 | H119: 0.1 | I119: 0.1 | J119: 0.1 | L119: 0.1 | M119: 0.1 | N119: 0.1 | O119: 0.1 | P119: 0.1 | Q119: 0.1 | R119: 0.1 | S119: 0.1
B120: North Africa | C120: 0 | D120: 0 | E120: 0 | F120: 0 | G120: 0 | H120: 0 | I120: 0 | J120: 0 | L120: 0 | M120: 0 | N120: 0 | O120: 0 | P120: 0 | Q120: 0 | R120: 0 | S120: 0
B121: West Africa | C121: 0 | D121: 0 | E121: 0 | F121: 0 | G121: 0 | H121: 0 | I121: 0 | J121: 0 | L121: 0 | M121: 0 | N121: 0 | O121: 0 | P121: 0 | Q121: 0 | R121: 0 | S121: 0
B122: East Africa | C122: 0 | D122: 0 | E122: 0 | F122: 0 | G122: 0 | H122: 0 | I122: 0 | J122: 0 | L122: 0 | M122: 0 | N122: 0 | O122: 0 | P122: 0 | Q122: 0 | R122: 0 | S122: 0
B123: South Africa | C123: 0 | D123: 0 | E123: 0 | F123: 0 | G123: 0 | H123: 0 | I123: 0 | J123: 0 | L123: 0 | M123: 0 | N123: 0 | O123: 0 | P123: 0 | Q123: 0 | R123: 0 | S123: 0
B124: Western Europe | C124: 0.9 | D124: 0.9 | E124: 0.9 | F124: 0.9 | G124: 0.9 | H124: 0.9 | I124: 0.9 | J124: 0.9 | L124: 0.9 | M124: 0.9 | N124: 0.9 | O124: 0.9 | P124: 0.9 | Q124: 0.9 | R124: 0.9 | S124: 0.9
B125: East Europe | C125: 0.3 | D125: 0.3 | E125: 0.3 | F125: 0.3 | G125: 0.3 | H125: 0.3 | I125: 0.3 | J125: 0.3 | L125: 0.3 | M125: 0.3 | N125: 0.3 | O125: 0.3 | P125: 0.3 | Q125: 0.3 | R125: 0.3 | S125: 0.3
B126: Former USSR | C126: 0 | D126: 0 | E126: 0 | F126: 0 | G126: 0 | H126: 0 | I126: 0 | J126: 0 | L126: 0 | M126: 0 | N126: 0 | O126: 0 | P126: 0 | Q126: 0 | R126: 0 | S126: 0
B127: Middle East | C127: 0 | D127: 0 | E127: 0 | F127: 0 | G127: 0 | H127: 0 | I127: 0 | J127: 0 | L127: 0 | M127: 0 | N127: 0 | O127: 0 | P127: 0 | Q127: 0 | R127: 0 | S127: 0
B128: South Asia | C128: 0.1 | D128: 0.1 | E128: 0.1 | F128: 0.1 | G128: 0.1 | H128: 0.1 | I128: 0.1 | J128: 0.1 | L128: 0.1 | M128: 0.1 | N128: 0.1 | O128: 0.1 | P128: 0.1 | Q128: 0.1 | R128: 0.1 | S128: 0.1
B129: East Asia | C129: 0.1 | D129: 0.1 | E129: 0.1 | F129: 0.1 | G129: 0.1 | H129: 0.1 | I129: 0.1 | J129: 0.1 | L129: 0.1 | M129: 0.1 | N129: 0.1 | O129: 0.1 | P129: 0.1 | Q129: 0.1 | R129: 0.1 | S129: 0.1
B130: South East Asia | C130: 0.1 | D130: 0.1 | E130: 0.1 | F130: 0.1 | G130: 0.1 | H130: 0.1 | I130: 0.1 | J130: 0.1 | L130: 0.1 | M130: 0.1 | N130: 0.1 | O130: 0.1 | P130: 0.1 | Q130: 0.1 | R130: 0.1 | S130: 0.1
B131: Oceania | C131: 0.1 | D131: 0.1 | E131: 0.1 | F131: 0.1 | G131: 0.1 | H131: 0.1 | I131: 0.1 | J131: 0.1 | L131: 0.1 | M131: 0.1 | N131: 0.1 | O131: 0.1 | P131: 0.1 | Q131: 0.1 | R131: 0.1 | S131: 0.1
B132: Japan | C132: 0 | D132: 0 | E132: 0 | F132: 0 | G132: 0 | H132: 0 | I132: 0 | J132: 0 | L132: 0 | M132: 0 | N132: 0 | O132: 0 | P132: 0 | Q132: 0 | R132: 0 | S132: 0
B133: World
P134: CHECK % OF GLOBAL BIODIESEL DEMAND
A136: =Scenario_B -> High investment/globalisation | B136: =B$113 -> Supply region | C136: =C$113 -> % of UCO used domestically for biodiesel | L136: =L$113 -> % of tallow used domestically for biodiesel
C137: =C$114 -> 2015 | D137: 2020 | E137: 2025 | F137: 2030 | G137: 2035 | H137: 2040 | I137: 2045 | J137: 2050 | L137: =L$114 -> 2015 | M137: 2020 | N137: 2025 | O137: 2030 | P137: 2035 | Q137: 2040 | R137: 2045 | S137: 2050
C138: =C$115 -> % | D138: % | E138: % | F138: % | G138: % | H138: % | I138: % | J138: % | L138: =L$115 -> % | M138: % | N138: % | O138: % | P138: % | Q138: % | R138: % | S138: %
A139: BAU high investment | B139: Canada | C139: 0.1 | D139: 0.1 | E139: 0.1 | F139: 0.1 | G139: 0.1 | H139: 0.1 | I139: 0.1 | J139: 0.1 | L139: 0.1 | M139: 0.1 | N139: 0.1 | O139: 0.1 | P139: 0.1 | Q139: 0.1 | R139: 0.1 | S139: 0.1
B140: USA | C140: 0.75 | D140: 0.75 | E140: 0.75 | F140: 0.75 | G140: 0.75 | H140: 0.75 | I140: 0.75 | J140: 0.75 | L140: 0.75 | M140: 0.75 | N140: 0.75 | O140: 0.75 | P140: 0.75 | Q140: 0.75 | R140: 0.75 | S140: 0.75
B141: Central America | C141: 0 | D141: 0 | E141: 0 | F141: 0 | G141: 0 | H141: 0 | I141: 0 | J141: 0 | L141: 0 | M141: 0 | N141: 0 | O141: 0 | P141: 0 | Q141: 0 | R141: 0 | S141: 0
B142: South America | C142: 0.1 | D142: 0.1 | E142: 0.1 | F142: 0.1 | G142: 0.1 | H142: 0.1 | I142: 0.1 | J142: 0.1 | L142: 0.1 | M142: 0.1 | N142: 0.1 | O142: 0.1 | P142: 0.1 | Q142: 0.1 | R142: 0.1 | S142: 0.1
B143: North Africa | C143: 0 | D143: 0 | E143: 0 | F143: 0 | G143: 0 | H143: 0 | I143: 0 | J143: 0 | L143: 0 | M143: 0 | N143: 0 | O143: 0 | P143: 0 | Q143: 0 | R143: 0 | S143: 0
B144: West Africa | C144: 0 | D144: 0 | E144: 0 | F144: 0 | G144: 0 | H144: 0 | I144: 0 | J144: 0 | L144: 0 | M144: 0 | N144: 0 | O144: 0 | P144: 0 | Q144: 0 | R144: 0 | S144: 0
B145: East Africa | C145: 0 | D145: 0 | E145: 0 | F145: 0 | G145: 0 | H145: 0 | I145: 0 | J145: 0 | L145: 0 | M145: 0 | N145: 0 | O145: 0 | P145: 0 | Q145: 0 | R145: 0 | S145: 0
B146: South Africa | C146: 0 | D146: 0 | E146: 0 | F146: 0 | G146: 0 | H146: 0 | I146: 0 | J146: 0 | L146: 0 | M146: 0 | N146: 0 | O146: 0 | P146: 0 | Q146: 0 | R146: 0 | S146: 0
B147: Western Europe | C147: 0.9 | D147: 0.9 | E147: 0.9 | F147: 0.9 | G147: 0.9 | H147: 0.9 | I147: 0.9 | J147: 0.9 | L147: 0.9 | M147: 0.9 | N147: 0.9 | O147: 0.9 | P147: 0.9 | Q147: 0.9 | R147: 0.9 | S147: 0.9
B148: East Europe | C148: 0.3 | D148: 0.3 | E148: 0.3 | F148: 0.3 | G148: 0.3 | H148: 0.3 | I148: 0.3 | J148: 0.3 | L148: 0.3 | M148: 0.3 | N148: 0.3 | O148: 0.3 | P148: 0.3 | Q148: 0.3 | R148: 0.3 | S148: 0.3
B149: Former USSR | C149: 0 | D149: 0 | E149: 0 | F149: 0 | G149: 0 | H149: 0 | I149: 0 | J149: 0 | L149: 0 | M149: 0 | N149: 0 | O149: 0 | P149: 0 | Q149: 0 | R149: 0 | S149: 0
B150: Middle East | C150: 0 | D150: 0 | E150: 0 | F150: 0 | G150: 0 | H150: 0 | I150: 0 | J150: 0 | L150: 0 | M150: 0 | N150: 0 | O150: 0 | P150: 0 | Q150: 0 | R150: 0 | S150: 0
B151: South Asia | C151: 0.1 | D151: 0.1 | E151: 0.1 | F151: 0.1 | G151: 0.1 | H151: 0.1 | I151: 0.1 | J151: 0.1 | L151: 0.1 | M151: 0.1 | N151: 0.1 | O151: 0.1 | P151: 0.1 | Q151: 0.1 | R151: 0.1 | S151: 0.1
B152: East Asia | C152: 0.1 | D152: 0.1 | E152: 0.1 | F152: 0.1 | G152: 0.1 | H152: 0.1 | I152: 0.1 | J152: 0.1 | L152: 0.1 | M152: 0.1 | N152: 0.1 | O152: 0.1 | P152: 0.1 | Q152: 0.1 | R152: 0.1 | S152: 0.1
B153: South East Asia | C153: 0.1 | D153: 0.1 | E153: 0.1 | F153: 0.1 | G153: 0.1 | H153: 0.1 | I153: 0.1 | J153: 0.1 | L153: 0.1 | M153: 0.1 | N153: 0.1 | O153: 0.1 | P153: 0.1 | Q153: 0.1 | R153: 0.1 | S153: 0.1
B154: Oceania | C154: 0.1 | D154: 0.1 | E154: 0.1 | F154: 0.1 | G154: 0.1 | H154: 0.1 | I154: 0.1 | J154: 0.1 | L154: 0.1 | M154: 0.1 | N154: 0.1 | O154: 0.1 | P154: 0.1 | Q154: 0.1 | R154: 0.1 | S154: 0.1
B155: Japan | C155: 0 | D155: 0 | E155: 0 | F155: 0 | G155: 0 | H155: 0 | I155: 0 | J155: 0 | L155: 0 | M155: 0 | N155: 0 | O155: 0 | P155: 0 | Q155: 0 | R155: 0 | S155: 0
B156: World
A159: =Scenario_C -> Low investment/regionalisation | B159: =B$113 -> Supply region | C159: =C$113 -> % of UCO used domestically for biodiesel | L159: =L$113 -> % of tallow used domestically for biodiesel
C160: =C$114 -> 2015 | D160: 2020 | E160: 2025 | F160: 2030 | G160: 2035 | H160: 2040 | I160: 2045 | J160: 2050 | L160: =L$114 -> 2015 | M160: 2020 | N160: 2025 | O160: 2030 | P160: 2035 | Q160: 2040 | R160: 2045 | S160: 2050
C161: =C$115 -> % | D161: % | E161: % | F161: % | G161: % | H161: % | I161: % | J161: % | L161: =L$115 -> % | M161: % | N161: % | O161: % | P161: % | Q161: % | R161: % | S161: %
A162: Low investment | B162: Canada | C162: 0.1 | D162: 0.1 | E162: 0.1 | F162: 0.1 | G162: 0.1 | H162: 0.1 | I162: 0.1 | J162: 0.1 | L162: 0.1 | M162: 0.1 | N162: 0.1 | O162: 0.1 | P162: 0.1 | Q162: 0.1 | R162: 0.1 | S162: 0.1
B163: USA | C163: 0.75 | D163: 0.75 | E163: 0.75 | F163: 0.75 | G163: 0.75 | H163: 0.75 | I163: 0.75 | J163: 0.75 | L163: 0.75 | M163: 0.75 | N163: 0.75 | O163: 0.75 | P163: 0.75 | Q163: 0.75 | R163: 0.75 | S163: 0.75
B164: Central America | C164: 0 | D164: 0 | E164: 0 | F164: 0 | G164: 0 | H164: 0 | I164: 0 | J164: 0 | L164: 0 | M164: 0 | N164: 0 | O164: 0 | P164: 0 | Q164: 0 | R164: 0 | S164: 0
B165: South America | C165: 0.1 | D165: 0.1 | E165: 0.1 | F165: 0.1 | G165: 0.1 | H165: 0.1 | I165: 0.1 | J165: 0.1 | L165: 0.1 | M165: 0.1 | N165: 0.1 | O165: 0.1 | P165: 0.1 | Q165: 0.1 | R165: 0.1 | S165: 0.1
B166: North Africa | C166: 0 | D166: 0 | E166: 0 | F166: 0 | G166: 0 | H166: 0 | I166: 0 | J166: 0 | L166: 0 | M166: 0 | N166: 0 | O166: 0 | P166: 0 | Q166: 0 | R166: 0 | S166: 0
B167: West Africa | C167: 0 | D167: 0 | E167: 0 | F167: 0 | G167: 0 | H167: 0 | I167: 0 | J167: 0 | L167: 0 | M167: 0 | N167: 0 | O167: 0 | P167: 0 | Q167: 0 | R167: 0 | S167: 0
B168: East Africa | C168: 0 | D168: 0 | E168: 0 | F168: 0 | G168: 0 | H168: 0 | I168: 0 | J168: 0 | L168: 0 | M168: 0 | N168: 0 | O168: 0 | P168: 0 | Q168: 0 | R168: 0 | S168: 0
B169: South Africa | C169: 0 | D169: 0 | E169: 0 | F169: 0 | G169: 0 | H169: 0 | I169: 0 | J169: 0 | L169: 0 | M169: 0 | N169: 0 | O169: 0 | P169: 0 | Q169: 0 | R169: 0 | S169: 0
B170: Western Europe | C170: 0.9 | D170: 0.9 | E170: 0.9 | F170: 0.9 | G170: 0.9 | H170: 0.9 | I170: 0.9 | J170: 0.9 | L170: 0.9 | M170: 0.9 | N170: 0.9 | O170: 0.9 | P170: 0.9 | Q170: 0.9 | R170: 0.9 | S170: 0.9
B171: East Europe | C171: 0.3 | D171: 0.3 | E171: 0.3 | F171: 0.3 | G171: 0.3 | H171: 0.3 | I171: 0.3 | J171: 0.3 | L171: 0.3 | M171: 0.3 | N171: 0.3 | O171: 0.3 | P171: 0.3 | Q171: 0.3 | R171: 0.3 | S171: 0.3
B172: Former USSR | C172: 0 | D172: 0 | E172: 0 | F172: 0 | G172: 0 | H172: 0 | I172: 0 | J172: 0 | L172: 0 | M172: 0 | N172: 0 | O172: 0 | P172: 0 | Q172: 0 | R172: 0 | S172: 0
B173: Middle East | C173: 0 | D173: 0 | E173: 0 | F173: 0 | G173: 0 | H173: 0 | I173: 0 | J173: 0 | L173: 0 | M173: 0 | N173: 0 | O173: 0 | P173: 0 | Q173: 0 | R173: 0 | S173: 0
B174: South Asia | C174: 0.1 | D174: 0.1 | E174: 0.1 | F174: 0.1 | G174: 0.1 | H174: 0.1 | I174: 0.1 | J174: 0.1 | L174: 0.1 | M174: 0.1 | N174: 0.1 | O174: 0.1 | P174: 0.1 | Q174: 0.1 | R174: 0.1 | S174: 0.1
B175: East Asia | C175: 0.1 | D175: 0.1 | E175: 0.1 | F175: 0.1 | G175: 0.1 | H175: 0.1 | I175: 0.1 | J175: 0.1 | L175: 0.1 | M175: 0.1 | N175: 0.1 | O175: 0.1 | P175: 0.1 | Q175: 0.1 | R175: 0.1 | S175: 0.1
B176: South East Asia | C176: 0.1 | D176: 0.1 | E176: 0.1 | F176: 0.1 | G176: 0.1 | H176: 0.1 | I176: 0.1 | J176: 0.1 | L176: 0.1 | M176: 0.1 | N176: 0.1 | O176: 0.1 | P176: 0.1 | Q176: 0.1 | R176: 0.1 | S176: 0.1
B177: Oceania | C177: 0.1 | D177: 0.1 | E177: 0.1 | F177: 0.1 | G177: 0.1 | H177: 0.1 | I177: 0.1 | J177: 0.1 | L177: 0.1 | M177: 0.1 | N177: 0.1 | O177: 0.1 | P177: 0.1 | Q177: 0.1 | R177: 0.1 | S177: 0.1
B178: Japan | C178: 0 | D178: 0 | E178: 0 | F178: 0 | G178: 0 | H178: 0 | I178: 0 | J178: 0 | L178: 0 | M178: 0 | N178: 0 | O178: 0 | P178: 0 | Q178: 0 | R178: 0 | S178: 0
B179: World

Sheet UK crop yields (hidden)
A15: Key: | B15: Data input value
B16: Interpolated or extrapolated value
B17: Calculated value
B20: Crop | C20: Units | D20: 2015 | E20: 2020 | F20: 2025 | G20: 2030 | H20: 2035 | I20: 2040 | J20: 2045 | K20: 2050
B21: UK perennial energy crops | C21: odt/ha | D21: 9.4 | E21: 10.8 | F21: 11.45 | G21: 12.1 | H21: 13.275 | I21: 14.45 | J21: 15.625 | K21: 16.8
B22: Maize (for biomethane) | C22: t/ha | D22: 42 | E22: 44.1 | F22: 46.2 | G22: 48.3 | H22: 50.4 | I22: 52.5 | J22: 54.6 | K22: 56.7
B23: Wheat (for bioethanol) | C23: t/ha | D23: 8 | E23: 8.4 | F23: 8.8 | G23: 9.2 | H23: 9.6 | I23: 10 | J23: 10.4 | K23: 10.8
B24: Sugar beet (for bioethanol) | C24: t/ha | D24: 70 | E24: 73.5 | F24: 77 | G24: 80.5 | H24: 84 | I24: 87.5 | J24: 91 | K24: 94.5
B25: Oilseed rape (for biodiesel) | C25: t/ha | D25: 3.5 | E25: 3.675 | F25: 3.85 | G25: 4.025 | H25: 4.2 | I25: 4.375 | J25: 4.55 | K25: 4.725
B27: Bioenergy yield (GJ per ha) from crops
C28: Net Calorific Value or biofuels yield | D28: 2015 | E28: 2020 | F28: 2025 | G28: 2030 | H28: 2035 | I28: 2040 | J28: 2045 | K28: 2050
B29: Crop | C29: (GJ/t) | D29: GJ/ha | E29: GJ/ha | F29: GJ/ha | G29: GJ/ha | H29: GJ/ha | I29: GJ/ha | J29: GJ/ha | K29: GJ/ha
B30: UK perennial energy crops | C30: =Energy_Crops_Min!$F$7 -> 18.3 | D30: =(D21*$C30) -> 172.02 | E30: 197.64 | F30: 209.535 | G30: 221.43 | H30: 242.9325 | I30: 264.435 | J30: 285.9375 | K30: 307.44
B31: Maize (for biomethane) | C31: =Biomethane_Crops_Min!$F$7 -> 2.31 | D31: 97.02 | E31: 101.871 | F31: 106.722 | G31: 111.573 | H31: 116.424 | I31: 121.275 | J31: 126.126 | K31: 130.977
B32: Wheat (for bioethanol) | C32: =Bioethanol_Crops_Min!$F$7 -> 7.714 | D32: 61.712 | E32: 64.7976 | F32: 67.8832 | G32: 70.9688 | H32: 74.0544 | I32: 77.14 | J32: 80.2256 | K32: 83.3112
B33: Sugar beet (for bioethanol) | C33: 2.2078 | D33: 154.546 | E33: 162.2733 | F33: 170.0006 | G33: 177.7279 | H33: 185.4552 | I33: 193.1825 | J33: 200.9098 | K33: 208.6371
B34: Oilseed rape (for biodiesel) | C34: =Biodiesel_Crops_Min!$F$7 -> 14.64 | D34: 51.24 | E34: 53.802 | F34: 56.364 | G34: 58.926 | H34: 61.488 | I34: 64.05 | J34: 66.612 | K34: 69.174
B36: Assumptions for SRF
B37: NCV | C37: =SRF!$F$7 -> 19 | D37: GJ/odt
B38: Yield | C38: 90 | D38: odt/ha
B39: Growth rate | C39: 0.4 | D39: Maximum growth rate in planting in early years (pre 2020)
B41: Assumptions for split in bioethanol production
B43: Production of bioethanol from sugar beet at Wissington Biofuels plant (PJ)
D44: 2015 | E44: 2020 | F44: 2025 | G44: 2030 | H44: 2035 | I44: 2040 | J44: 2045 | K44: 2050
D45: PJ | E45: PJ | F45: PJ | G45: PJ | H45: PJ | I45: PJ | J45: PJ | K45: PJ
B46: Scenarios where liquid biofuels production is maximised | D46: 1.4351 | E46: 1.4351 | F46: 1.4351 | G46: 1.4351 | H46: 1.4351 | I46: 1.4351 | J46: 1.4351 | K46: 1.4351
B47: Sceanrios where liquid biofuels production is not maximised | D47: 1.4351 | E47: 1.4351 | F47: 1.4351 | G47: 1.4351 | H47: 1.4351 | I47: 1.4351 | J47: 0 | K47: 0

Sheet Global Constraints (hidden)
A31: Level of Barrier/constraint | B31: Abbrev | C31: Restriction on supply
A32: Not available at all | B32: NA | C32: 1 | G32: Key: | H32: Data input value
A33: Very high | B33: VH | C33: 0.95 | H33: Interpolated or extrapolated value
A34: High | B34: H | C34: 0.75 | H34: Calculated value
A35: Medium | B35: M | C35: 0.5 | G35: Global scenario | H35: =Scenario_A -> BAU/continuing trends
A36: Low | B36: L | C36: 0.2 | H36: =Scenario_B -> High investment/globalisation
A37: No barriers or constraints | B37: NONE | C37: 0 | H37: =Scenario_C -> Low investment/regionalisation
B41: Level of constraints due to availability of infrastructure | P41: =$B$41 -> Level of constraints due to availability of infrastructure | AD41: =$B$41 -> Level of constraints due to availability of infrastructure | AS41: =$B$41 -> Level of constraints due to availability of infrastructure | BG41: =$B$41 -> Level of constraints due to availability of infrastructure | BU41: =$B$41 -> Level of constraints due to availability of infrastructure | CI41: =$B$41 -> Level of constraints due to availability of infrastructure | CW41: =$B$41 -> Level of constraints due to availability of infrastructure
B43: Small roundwood | P43: Forestry residues | AD43: Sawmill coproducts | AS43: Woody energy crops | BG43: 1G Bioethanol | BU43: 1G Biodiesel | CI43: UCO | CW43: Tallow
B44: Now | C44: =Scenario_A -> BAU/continuing trends | G44: =Scenario_B -> High investment/globalisation | K44: =Scenario_C -> Low investment/regionalisation | P44: Now | Q44: =Scenario_A -> BAU/continuing trends | U44: =Scenario_B -> High investment/globalisation | Y44: =Scenario_C -> Low investment/regionalisation | AD44: Now | AE44: =Scenario_A -> BAU/continuing trends | AI44: =Scenario_B -> High investment/globalisation | AM44: =Scenario_C -> Low investment/regionalisation | AS44: Now | AT44: =Scenario_A -> BAU/continuing trends | AX44: =Scenario_B -> High investment/globalisation | BB44: =Scenario_C -> Low investment/regionalisation | BG44: Now | BH44: =Scenario_A -> BAU/continuing trends | BL44: =Scenario_B -> High investment/globalisation | BP44: =Scenario_C -> Low investment/regionalisation | BU44: Now | BV44: =Scenario_A -> BAU/continuing trends | BZ44: =Scenario_B -> High investment/globalisation | CD44: =Scenario_C -> Low investment/regionalisation | CI44: Now | CJ44: =Scenario_A -> BAU/continuing trends | CN44: =Scenario_B -> High investment/globalisation | CR44: =Scenario_C -> Low investment/regionalisation | CW44: Now | CX44: =Scenario_A -> BAU/continuing trends | DB44: =Scenario_B -> High investment/globalisation | DF44: =Scenario_C -> Low investment/regionalisation
A45: Supply Regions | B45: 2015 | C45: 2020 | D45: 2030 | E45: 2040 | F45: 2050 | G45: 2020 | H45: 2030 | I45: 2040 | J45: 2050 | K45: 2020 | L45: 2030 | M45: 2040 | N45: 2050 | P45: 2015 | Q45: 2020 | R45: 2030 | S45: 2040 | T45: 2050 | U45: 2020 | V45: 2030 | W45: 2040 | X45: 2050 | Y45: 2020 | Z45: 2030 | AA45: 2040 | AB45: 2050 | AD45: 2015 | AE45: 2020 | AF45: 2030 | AG45: 2040 | AH45: 2050 | AI45: 2020 | AJ45: 2030 | AK45: 2040 | AL45: 2050 | AM45: 2020 | AN45: 2030 | AO45: 2040 | AP45: 2050 | AS45: 2015 | AT45: 2020 | AU45: 2030 | AV45: 2040 | AW45: 2050 | AX45: 2020 | AY45: 2030 | AZ45: 2040 | BA45: 2050 | BB45: 2020 | BC45: 2030 | BD45: 2040 | BE45: 2050 | BG45: 2015 | BH45: 2020 | BI45: 2030 | BJ45: 2040 | BK45: 2050 | BL45: 2020 | BM45: 2030 | BN45: 2040 | BO45: 2050 | BP45: 2020 | BQ45: 2030 | BR45: 2040 | BS45: 2050 | BU45: 2015 | BV45: 2020 | BW45: 2030 | BX45: 2040 | BY45: 2050 | BZ45: 2020 | CA45: 2030 | CB45: 2040 | CC45: 2050 | CD45: 2020 | CE45: 2030 | CF45: 2040 | CG45: 2050 | CI45: 2015 | CJ45: 2020 | CK45: 2030 | CL45: 2040 | CM45: 2050 | CN45: 2020 | CO45: 2030 | CP45: 2040 | CQ45: 2050 | CR45: 2020 | CS45: 2030 | CT45: 2040 | CU45: 2050 | CW45: 2015 | CX45: 2020 | CY45: 2030 | CZ45: 2040 | DA45: 2050 | DB45: 2020 | DC45: 2030 | DD45: 2040 | DE45: 2050 | DF45: 2020 | DG45: 2030 | DH45: 2040 | DI45: 2050
A46: US | B46: L | C46: L | D46: L | E46: L | F46: L | G46: L | H46: L | I46: L | J46: L | K46: M | L46: M | M46: M | N46: M | P46: H | Q46: H | R46: M | S46: M | T46: M | U46: L | V46: L | W46: L | X46: L | Y46: M | Z46: M | AA46: M | AB46: M | AD46: L | AE46: L | AF46: L | AG46: L | AH46: L | AI46: L | AJ46: L | AK46: L | AL46: L | AM46: L | AN46: L | AO46: L | AP46: L | AR46: Canada | AS46: L | AT46: L | AU46: L | AV46: L | AW46: L | AX46: L | AY46: L | AZ46: L | BA46: L | BB46: L | BC46: L | BD46: L | BE46: L | BG46: L | BH46: L | BI46: L | BJ46: L | BK46: L | BL46: L | BM46: L | BN46: L | BO46: L | BP46: L | BQ46: L | BR46: L | BS46: L | BU46: L | BV46: L | BW46: L | BX46: L | BY46: L | BZ46: L | CA46: L | CB46: L | CC46: L | CD46: L | CE46: L | CF46: L | CG46: L | CI46: M | CJ46: L | CK46: L | CL46: L | CM46: L | CN46: L | CO46: L | CP46: L | CQ46: L | CR46: L | CS46: L | CT46: L | CU46: L | CW46: M | CX46: L | CY46: L | CZ46: L | DA46: L | DB46: L | DC46: L | DD46: L | DE46: L | DF46: L | DG46: L | DH46: L | DI46: L
A47: Canada | B47: L | C47: L | D47: L | E47: L | F47: L | G47: L | H47: L | I47: L | J47: L | K47: M | L47: M | M47: M | N47: M | P47: H | Q47: H | R47: M | S47: M | T47: M | U47: L | V47: L | W47: L | X47: L | Y47: M | Z47: M | AA47: M | AB47: M | AD47: L | AE47: L | AF47: L | AG47: L | AH47: L | AI47: L | AJ47: L | AK47: L | AL47: L | AM47: L | AN47: L | AO47: L | AP47: L | AR47: USA | AS47: L | AT47: L | AU47: L | AV47: L | AW47: L | AX47: L | AY47: L | AZ47: L | BA47: L | BB47: L | BC47: L | BD47: L | BE47: L | BG47: L | BH47: L | BI47: L | BJ47: L | BK47: L | BL47: L | BM47: L | BN47: L | BO47: L | BP47: L | BQ47: L | BR47: L | BS47: L | BU47: L | BV47: L | BW47: L | BX47: L | BY47: L | BZ47: L | CA47: L | CB47: L | CC47: L | CD47: L | CE47: L | CF47: L | CG47: L | CI47: M | CJ47: L | CK47: L | CL47: L | CM47: L | CN47: L | CO47: L | CP47: L | CQ47: L | CR47: L | CS47: L | CT47: L | CU47: L | CW47: M | CX47: L | CY47: L | CZ47: L | DA47: L | DB47: L | DC47: L | DD47: L | DE47: L | DF47: L | DG47: L | DH47: L | DI47: L
A48: Mexico | B48: H | C48: H | D48: H | E48: H | F48: H | G48: H | H48: H | I48: H | J48: H | K48: H | L48: H | M48: H | N48: H | P48: H | Q48: H | R48: H | S48: H | T48: H | U48: H | V48: H | W48: H | X48: H | Y48: H | Z48: H | AA48: H | AB48: H | AD48: M | AE48: M | AF48: L | AG48: L | AH48: L | AI48: M | AJ48: L | AK48: L | AL48: L | AM48: M | AN48: M | AO48: L | AP48: L | AR48: Central America | AS48: M | AT48: M | AU48: L | AV48: L | AW48: L | AX48: M | AY48: L | AZ48: L | BA48: L | BB48: M | BC48: M | BD48: M | BE48: M | BG48: M | BH48: L | BI48: L | BJ48: L | BK48: L | BL48: L | BM48: L | BN48: L | BO48: L | BP48: L | BQ48: L | BR48: L | BS48: L | BU48: M | BV48: L | BW48: L | BX48: L | BY48: L | BZ48: L | CA48: L | CB48: L | CC48: L | CD48: L | CE48: L | CF48: L | CG48: L | CI48: VH | CJ48: H | CK48: M | CL48: M | CM48: M | CN48: H | CO48: M | CP48: M | CQ48: L | CR48: H | CS48: H | CT48: M | CU48: M | CW48: VH | CX48: H | CY48: M | CZ48: M | DA48: M | DB48: H | DC48: M | DD48: M | DE48: L | DF48: H | DG48: H | DH48: M | DI48: M
A49: Brazil | B49: H | C49: M | D49: M | E49: M | F49: M | G49: M | H49: M | I49: M | J49: M | K49: H | L49: H | M49: H | N49: H | P49: H | Q49: M | R49: M | S49: M | T49: M | U49: M | V49: M | W49: M | X49: M | Y49: H | Z49: H | AA49: H | AB49: H | AD49: M | AE49: M | AF49: L | AG49: L | AH49: L | AI49: M | AJ49: L | AK49: L | AL49: L | AM49: M | AN49: M | AO49: L | AP49: L | AR49: South America | AS49: M | AT49: M | AU49: L | AV49: L | AW49: L | AX49: M | AY49: L | AZ49: L | BA49: L | BB49: M | BC49: M | BD49: M | BE49: M | BG49: M | BH49: M | BI49: L | BJ49: L | BK49: L | BL49: M | BM49: L | BN49: L | BO49: L | BP49: M | BQ49: M | BR49: M | BS49: M | BU49: M | BV49: M | BW49: L | BX49: L | BY49: L | BZ49: M | CA49: L | CB49: L | CC49: L | CD49: M | CE49: M | CF49: M | CG49: M | CI49: VH | CJ49: H | CK49: M | CL49: M | CM49: M | CN49: H | CO49: M | CP49: M | CQ49: L | CR49: H | CS49: H | CT49: M | CU49: M | CW49: VH | CX49: H | CY49: M | CZ49: M | DA49: M | DB49: H | DC49: M | DD49: M | DE49: L | DF49: H | DG49: H | DH49: M | DI49: M
A50: Argentina | B50: H | C50: H | D50: H | E50: H | F50: H | G50: H | H50: H | I50: H | J50: H | K50: H | L50: H | M50: H | N50: H | P50: H | Q50: H | R50: H | S50: H | T50: H | U50: H | V50: H | W50: H | X50: H | Y50: H | Z50: H | AA50: H | AB50: H | AD50: M | AE50: M | AF50: L | AG50: L | AH50: L | AI50: M | AJ50: L | AK50: L | AL50: L | AM50: M | AN50: M | AO50: L | AP50: L | AR50: North Africa | AS50: VH | AT50: VH | AU50: VH | AV50: H | AW50: H | AX50: M | AY50: M | AZ50: M | BA50: M | BB50: VH | BC50: VH | BD50: VH | BE50: VH | BG50: VH | BH50: H | BI50: H | BJ50: H | BK50: H | BL50: M | BM50: M | BN50: M | BO50: M | BP50: VH | BQ50: VH | BR50: VH | BS50: VH | BU50: VH | BV50: H | BW50: H | BX50: H | BY50: H | BZ50: M | CA50: M | CB50: M | CC50: M | CD50: VH | CE50: VH | CF50: VH | CG50: VH | CI50: NA | CJ50: NA | CK50: VH | CL50: H | CM50: H | CN50: NA | CO50: VH | CP50: H | CQ50: M | CR50: NA | CS50: VH | CT50: H | CU50: H | CW50: NA | CX50: NA | CY50: VH | CZ50: H | DA50: H | DB50: NA | DC50: VH | DD50: H | DE50: M | DF50: NA | DG50: VH | DH50: H | DI50: H
A51: Other South and Central America | B51: H | C51: H | D51: H | E51: H | F51: H | G51: H | H51: H | I51: H | J51: H | K51: H | L51: H | M51: H | N51: H | P51: H | Q51: H | R51: H | S51: H | T51: H | U51: H | V51: H | W51: H | X51: H | Y51: H | Z51: H | AA51: H | AB51: H | AD51: M | AE51: M | AF51: L | AG51: L | AH51: L | AI51: M | AJ51: L | AK51: L | AL51: L | AM51: M | AN51: M | AO51: L | AP51: L | AR51: West Africa | AS51: VH | AT51: VH | AU51: VH | AV51: H | AW51: H | AX51: M | AY51: M | AZ51: M | BA51: M | BB51: VH | BC51: VH | BD51: VH | BE51: VH | BG51: VH | BH51: H | BI51: H | BJ51: H | BK51: H | BL51: M | BM51: M | BN51: M | BO51: M | BP51: VH | BQ51: VH | BR51: VH | BS51: VH | BU51: VH | BV51: H | BW51: H | BX51: H | BY51: H | BZ51: M | CA51: M | CB51: M | CC51: M | CD51: VH | CE51: VH | CF51: VH | CG51: VH | CI51: NA | CJ51: VH | CK51: H | CL51: H | CM51: M | CN51: VH | CO51: H | CP51: M | CQ51: M | CR51: VH | CS51: VH | CT51: H | CU51: M | CW51: NA | CX51: VH | CY51: H | CZ51: H | DA51: M | DB51: VH | DC51: H | DD51: M | DE51: M | DF51: VH | DG51: VH | DH51: H | DI51: M
A52: Middle East | B52: VH | C52: H | D52: H | E52: H | F52: H | G52: M | H52: M | I52: M | J52: M | K52: H | L52: H | M52: H | N52: H | P52: VH | Q52: H | R52: H | S52: H | T52: H | U52: M | V52: M | W52: M | X52: M | Y52: H | Z52: H | AA52: H | AB52: H | AD52: VH | AE52: VH | AF52: VH | AG52: VH | AH52: VH | AI52: M | AJ52: M | AK52: M | AL52: M | AM52: H | AN52: H | AO52: M | AP52: M | AR52: East Africa | AS52: VH | AT52: VH | AU52: VH | AV52: H | AW52: H | AX52: M | AY52: M | AZ52: M | BA52: M | BB52: VH | BC52: VH | BD52: VH | BE52: VH | BG52: VH | BH52: H | BI52: H | BJ52: H | BK52: H | BL52: M | BM52: M | BN52: M | BO52: M | BP52: VH | BQ52: VH | BR52: VH | BS52: VH | BU52: VH | BV52: H | BW52: H | BX52: H | BY52: H | BZ52: M | CA52: M | CB52: M | CC52: M | CD52: VH | CE52: VH | CF52: VH | CG52: VH | CI52: NA | CJ52: VH | CK52: H | CL52: H | CM52: M | CN52: VH | CO52: H | CP52: M | CQ52: M | CR52: VH | CS52: VH | CT52: H | CU52: M | CW52: NA | CX52: VH | CY52: H | CZ52: H | DA52: M | DB52: VH | DC52: H | DD52: M | DE52: M | DF52: VH | DG52: VH | DH52: H | DI52: M
A53: Northern Africa | B53: VH | C53: H | D53: H | E53: H | F53: H | G53: M | H53: M | I53: M | J53: M | K53: H | L53: H | M53: H | N53: H | P53: VH | Q53: H | R53: H | S53: H | T53: H | U53: M | V53: M | W53: M | X53: M | Y53: H | Z53: H | AA53: H | AB53: H | AD53: VH | AE53: VH | AF53: VH | AG53: VH | AH53: VH | AI53: M | AJ53: M | AK53: M | AL53: M | AM53: H | AN53: H | AO53: M | AP53: M | AR53: South Africa | AS53: VH | AT53: VH | AU53: VH | AV53: H | AW53: H | AX53: M | AY53: M | AZ53: M | BA53: M | BB53: VH | BC53: VH | BD53: VH | BE53: VH | BG53: VH | BH53: H | BI53: H | BJ53: H | BK53: H | BL53: M | BM53: M | BN53: M | BO53: M | BP53: VH | BQ53: VH | BR53: VH | BS53: VH | BU53: VH | BV53: H | BW53: H | BX53: H | BY53: H | BZ53: M | CA53: M | CB53: M | CC53: M | CD53: VH | CE53: VH | CF53: VH | CG53: VH | CI53: NA | CJ53: VH | CK53: H | CL53: H | CM53: M | CN53: VH | CO53: H | CP53: M | CQ53: M | CR53: VH | CS53: VH | CT53: H | CU53: M | CW53: NA | CX53: VH | CY53: H | CZ53: H | DA53: M | DB53: VH | DC53: H | DD53: M | DE53: M | DF53: VH | DG53: VH | DH53: H | DI53: M
A54: Sub-Saharan Africa | B54: VH | C54: H | D54: H | E54: H | F54: H | G54: M | H54: M | I54: M | J54: M | K54: H | L54: H | M54: H | N54: H | P54: VH | Q54: H | R54: H | S54: H | T54: H | U54: M | V54: M | W54: M | X54: M | Y54: H | Z54: H | AA54: H | AB54: H | AD54: VH | AE54: VH | AF54: VH | AG54: VH | AH54: VH | AI54: M | AJ54: M | AK54: M | AL54: M | AM54: H | AN54: H | AO54: M | AP54: M | AR54: Western Europe | AS54: L | AT54: L | AU54: L | AV54: L | AW54: L | AX54: L | AY54: L | AZ54: L | BA54: L | BB54: L | BC54: L | BD54: L | BE54: L | BG54: L | BH54: L | BI54: L | BJ54: L | BK54: L | BL54: L | BM54: L | BN54: L | BO54: L | BP54: L | BQ54: L | BR54: L | BS54: L | BU54: L | BV54: L | BW54: L | BX54: L | BY54: L | BZ54: L | CA54: L | CB54: L | CC54: L | CD54: L | CE54: L | CF54: L | CG54: L | CI54: L | CJ54: L | CK54: L | CL54: L | CM54: L | CN54: L | CO54: L | CP54: L | CQ54: L | CR54: L | CS54: L | CT54: L | CU54: L | CW54: L | CX54: L | CY54: L | CZ54: L | DA54: L | DB54: L | DC54: L | DD54: L | DE54: L | DF54: L | DG54: L | DH54: L | DI54: L
A55: EU | B55: L | C55: L | D55: L | E55: L | F55: L | G55: L | H55: L | I55: L | J55: L | K55: L | L55: L | M55: L | N55: L | P55: L | Q55: L | R55: L | S55: L | T55: L | U55: L | V55: L | W55: L | X55: L | Y55: L | Z55: L | AA55: L | AB55: L | AD55: L | AE55: L | AF55: L | AG55: L | AH55: L | AI55: L | AJ55: L | AK55: L | AL55: L | AM55: L | AN55: L | AO55: L | AP55: L | AR55: East Europe | AS55: M | AT55: L | AU55: L | AV55: L | AW55: L | AX55: L | AY55: L | AZ55: L | BA55: L | BB55: M | BC55: M | BD55: M | BE55: M | BG55: L | BH55: L | BI55: L | BJ55: L | BK55: L | BL55: L | BM55: L | BN55: L | BO55: L | BP55: L | BQ55: L | BR55: L | BS55: L | BU55: L | BV55: L | BW55: L | BX55: L | BY55: L | BZ55: L | CA55: L | CB55: L | CC55: L | CD55: L | CE55: L | CF55: L | CG55: L | CI55: H | CJ55: H | CK55: M | CL55: M | CM55: M | CN55: H | CO55: M | CP55: M | CQ55: L | CR55: H | CS55: H | CT55: M | CU55: M | CW55: H | CX55: H | CY55: M | CZ55: M | DA55: M | DB55: H | DC55: M | DD55: M | DE55: L | DF55: H | DG55: H | DH55: M | DI55: M
A56: Other Europe and Eurasia | B56: M | C56: M | D56: M | E56: M | F56: M | G56: M | H56: M | I56: M | J56: M | K56: M | L56: M | M56: M | N56: M | P56: M | Q56: M | R56: M | S56: M | T56: M | U56: M | V56: M | W56: M | X56: M | Y56: M | Z56: M | AA56: M | AB56: M | AD56: M | AE56: M | AF56: M | AG56: M | AH56: M | AI56: M | AJ56: M | AK56: M | AL56: M | AM56: M | AN56: M | AO56: M | AP56: M | AR56: Former USSR | AS56: H | AT56: M | AU56: M | AV56: M | AW56: M | AX56: M | AY56: L | AZ56: L | BA56: L | BB56: H | BC56: H | BD56: H | BE56: H | BG56: M | BH56: M | BI56: M | BJ56: M | BK56: M | BL56: L | BM56: L | BN56: L | BO56: L | BP56: M | BQ56: M | BR56: M | BS56: M | BU56: M | BV56: M | BW56: M | BX56: M | BY56: M | BZ56: L | CA56: L | CB56: L | CC56: L | CD56: M | CE56: M | CF56: M | CG56: M | CI56: H | CJ56: H | CK56: M | CL56: M | CM56: M | CN56: H | CO56: M | CP56: M | CQ56: L | CR56: H | CS56: H | CT56: M | CU56: M | CW56: H | CX56: H | CY56: M | CZ56: M | DA56: M | DB56: H | DC56: M | DD56: M | DE56: L | DF56: H | DG56: H | DH56: M | DI56: M
A57: Russia | B57: H | C57: M | D57: M | E57: M | F57: M | G57: M | H57: L | I57: L | J57: L | K57: H | L57: H | M57: H | N57: H | P57: VH | Q57: H | R57: H | S57: H | T57: H | U57: M | V57: M | W57: L | X57: L | Y57: VH | Z57: VH | AA57: VH | AB57: H | AD57: H | AE57: M | AF57: M | AG57: M | AH57: M | AI57: M | AJ57: M | AK57: M | AL57: M | AM57: H | AN57: M | AO57: M | AP57: M | AR57: Middle East | AS57: VH | AT57: VH | AU57: H | AV57: H | AW57: H | AX57: M | AY57: M | AZ57: L | BA57: L | BB57: VH | BC57: VH | BD57: VH | BE57: VH | BG57: VH | BH57: VH | BI57: VH | BJ57: VH | BK57: VH | BL57: M | BM57: M | BN57: M | BO57: M | BP57: H | BQ57: H | BR57: H | BS57: H | BU57: VH | BV57: VH | BW57: VH | BX57: VH | BY57: VH | BZ57: M | CA57: M | CB57: M | CC57: M | CD57: H | CE57: H | CF57: H | CG57: H | CI57: NA | CJ57: NA | CK57: NA | CL57: VH | CM57: VH | CN57: NA | CO57: VH | CP57: H | CQ57: M | CR57: NA | CS57: NA | CT57: VH | CU57: VH | CW57: NA | CX57: NA | CY57: NA | CZ57: VH | DA57: VH | DB57: NA | DC57: VH | DD57: H | DE57: M | DF57: NA | DG57: NA | DH57: VH | DI57: VH
A58: India | B58: H | C58: H | D58: H | E58: H | F58: H | G58: H | H58: H | I58: H | J58: H | K58: H | L58: H | M58: H | N58: H | P58: H | Q58: H | R58: H | S58: H | T58: H | U58: H | V58: H | W58: H | X58: H | Y58: H | Z58: H | AA58: H | AB58: H | AD58: M | AE58: M | AF58: L | AG58: L | AH58: L | AI58: M | AJ58: L | AK58: L | AL58: L | AM58: M | AN58: M | AO58: L | AP58: L | AR58: South Asia | AS58: M | AT58: M | AU58: M | AV58: M | AW58: M | AX58: M | AY58: L | AZ58: L | BA58: L | BB58: M | BC58: M | BD58: M | BE58: M | BG58: M | BH58: M | BI58: L | BJ58: L | BK58: L | BL58: M | BM58: L | BN58: L | BO58: L | BP58: M | BQ58: M | BR58: M | BS58: M | BU58: M | BV58: M | BW58: L | BX58: L | BY58: L | BZ58: M | CA58: L | CB58: L | CC58: L | CD58: M | CE58: M | CF58: M | CG58: M | CI58: H | CJ58: H | CK58: M | CL58: M | CM58: M | CN58: H | CO58: M | CP58: M | CQ58: L | CR58: H | CS58: H | CT58: M | CU58: M | CW58: H | CX58: H | CY58: M | CZ58: M | DA58: M | DB58: H | DC58: M | DD58: M | DE58: L | DF58: H | DG58: H | DH58: M | DI58: M
A59: China | B59: H | C59: H | D59: H | E59: H | F59: H | G59: H | H59: H | I59: H | J59: H | K59: H | L59: H | M59: H | N59: H | P59: H | Q59: H | R59: H | S59: H | T59: H | U59: H | V59: H | W59: H | X59: H | Y59: H | Z59: H | AA59: H | AB59: H | AD59: M | AE59: M | AF59: L | AG59: L | AH59: L | AI59: M | AJ59: L | AK59: L | AL59: L | AM59: M | AN59: M | AO59: L | AP59: L | AR59: East Asia | AS59: M | AT59: M | AU59: L | AV59: L | AW59: L | AX59: M | AY59: L | AZ59: L | BA59: L | BB59: M | BC59: M | BD59: M | BE59: M | BG59: M | BH59: M | BI59: L | BJ59: L | BK59: L | BL59: L | BM59: L | BN59: L | BO59: L | BP59: M | BQ59: M | BR59: M | BS59: M | BU59: M | BV59: M | BW59: L | BX59: L | BY59: L | BZ59: L | CA59: L | CB59: L | CC59: L | CD59: M | CE59: M | CF59: M | CG59: M | CI59: H | CJ59: H | CK59: M | CL59: M | CM59: M | CN59: H | CO59: M | CP59: M | CQ59: L | CR59: H | CS59: H | CT59: M | CU59: M | CW59: H | CX59: H | CY59: M | CZ59: M | DA59: M | DB59: H | DC59: M | DD59: M | DE59: L | DF59: H | DG59: H | DH59: M | DI59: M
A60: Indonesia and Malaysia | B60: H | C60: H | D60: H | E60: H | F60: H | G60: H | H60: H | I60: H | J60: H | K60: H | L60: H | M60: H | N60: H | P60: H | Q60: H | R60: H | S60: H | T60: H | U60: H | V60: H | W60: H | X60: H | Y60: H | Z60: H | AA60: H | AB60: H | AD60: M | AE60: M | AF60: L | AG60: L | AH60: L | AI60: M | AJ60: L | AK60: L | AL60: L | AM60: M | AN60: M | AO60: L | AP60: L | AR60: South East Asia | AS60: M | AT60: M | AU60: L | AV60: L | AW60: L | AX60: M | AY60: L | AZ60: L | BA60: L | BB60: M | BC60: M | BD60: M | BE60: M | BG60: M | BH60: L | BI60: L | BJ60: L | BK60: L | BL60: L | BM60: L | BN60: L | BO60: L | BP60: M | BQ60: M | BR60: M | BS60: M | BU60: M | BV60: L | BW60: L | BX60: L | BY60: L | BZ60: L | CA60: L | CB60: L | CC60: L | CD60: M | CE60: M | CF60: M | CG60: M | CI60: H | CJ60: H | CK60: M | CL60: M | CM60: M | CN60: H | CO60: M | CP60: M | CQ60: L | CR60: H | CS60: H | CT60: M | CU60: M | CW60: H | CX60: H | CY60: M | CZ60: M | DA60: M | DB60: H | DC60: M | DD60: M | DE60: L | DF60: H | DG60: H | DH60: M | DI60: M
A61: Other Asia | B61: H | C61: H | D61: H | E61: H | F61: H | G61: H | H61: H | I61: H | J61: H | K61: H | L61: H | M61: H | N61: H | P61: H | Q61: H | R61: H | S61: H | T61: H | U61: H | V61: H | W61: H | X61: H | Y61: H | Z61: H | AA61: H | AB61: H | AD61: M | AE61: M | AF61: L | AG61: L | AH61: L | AI61: M | AJ61: L | AK61: L | AL61: L | AM61: M | AN61: M | AO61: L | AP61: L | AR61: Oceania | AS61: L | AT61: L | AU61: L | AV61: L | AW61: L | AX61: L | AY61: L | AZ61: L | BA61: L | BB61: L | BC61: L | BD61: L | BE61: L | BG61: L | BH61: L | BI61: L | BJ61: L | BK61: L | BL61: L | BM61: L | BN61: L | BO61: L | BP61: L | BQ61: L | BR61: L | BS61: L | BU61: L | BV61: L | BW61: L | BX61: L | BY61: L | BZ61: L | CA61: L | CB61: L | CC61: L | CD61: L | CE61: L | CF61: L | CG61: L | CI61: M | CJ61: M | CK61: M | CL61: M | CM61: M | CN61: M | CO61: M | CP61: M | CQ61: M | CR61: M | CS61: M | CT61: M | CU61: M | CW61: M | CX61: M | CY61: M | CZ61: M | DA61: M | DB61: M | DC61: M | DD61: M | DE61: M | DF61: M | DG61: M | DH61: M | DI61: M
A62: Japan | B62: H | C62: M | D62: L | E62: L | F62: L | G62: L | H62: L | I62: L | J62: L | K62: M | L62: M | M62: M | N62: M | P62: H | Q62: M | R62: L | S62: L | T62: L | U62: L | V62: L | W62: L | X62: L | Y62: M | Z62: M | AA62: M | AB62: M | AD62: L | AE62: L | AF62: L | AG62: L | AH62: L | AI62: L | AJ62: L | AK62: L | AL62: L | AM62: L | AN62: L | AO62: L | AP62: L | AR62: Japan | AS62: L | AT62: L | AU62: L | AV62: L | AW62: L | AX62: L | AY62: L | AZ62: L | BA62: L | BB62: L | BC62: L | BD62: L | BE62: L | BG62: L | BH62: L | BI62: L | BJ62: L | BK62: L | BL62: L | BM62: L | BN62: L | BO62: L | BP62: L | BQ62: L | BR62: L | BS62: L | BU62: L | BV62: L | BW62: L | BX62: L | BY62: L | BZ62: L | CA62: L | CB62: L | CC62: L | CD62: L | CE62: L | CF62: L | CG62: L | CI62: M | CJ62: M | CK62: M | CL62: M | CM62: M | CN62: M | CO62: M | CP62: M | CQ62: M | CR62: M | CS62: M | CT62: M | CU62: M | CW62: M | CX62: M | CY62: M | CZ62: M | DA62: M | DB62: M | DC62: M | DD62: M | DE62: M | DF62: M | DG62: M | DH62: M | DI62: M
A63: Australia and New Zealand | B63: M | C63: M | D63: L | E63: L | F63: L | G63: L | H63: L | I63: L | J63: L | K63: M | L63: M | M63: M | N63: M | P63: M | Q63: M | R63: L | S63: L | T63: L | U63: L | V63: L | W63: L | X63: L | Y63: M | Z63: M | AA63: M | AB63: M | AD63: L | AE63: L | AF63: L | AG63: L | AH63: L | AI63: L | AJ63: L | AK63: L | AL63: L | AM63: L | AN63: L | AO63: L | AP63: L
B65: Level of constraints due to development of market and trade mechanisms | P65: =$B$65 -> Level of constraints due to development of market and trade mechanisms | AD65: =$B$65 -> Level of constraints due to development of market and trade mechanisms | AS65: =$B$65 -> Level of constraints due to development of market and trade mechanisms | BG65: =$B$65 -> Level of constraints due to development of market and trade mechanisms | BU65: =$B$65 -> Level of constraints due to development of market and trade mechanisms | CI65: =$B$65 -> Level of constraints due to development of market and trade mechanisms | CW65: =$B$65 -> Level of constraints due to development of market and trade mechanisms
B67: =B$43 -> Small roundwood | P67: =P$43 -> Forestry residues | AD67: =AD43 -> Sawmill coproducts | AS67: =AS$43 -> Woody energy crops | BG67: =BG$43 -> 1G Bioethanol | BU67: =BU$43 -> 1G Biodiesel | CI67: =CI$43 -> UCO | CW67: =CW$43 -> Tallow
B68: Now | C68: =Scenario_A -> BAU/continuing trends | G68: =Scenario_B -> High investment/globalisation | K68: =Scenario_C -> Low investment/regionalisation | P68: Now | Q68: =Scenario_A -> BAU/continuing trends | U68: =Scenario_B -> High investment/globalisation | Y68: =Scenario_C -> Low investment/regionalisation | AD68: Now | AE68: =Scenario_A -> BAU/continuing trends | AI68: =Scenario_B -> High investment/globalisation | AM68: =Scenario_C -> Low investment/regionalisation | AS68: Now | AT68: =Scenario_A -> BAU/continuing trends | AX68: =Scenario_B -> High investment/globalisation | BB68: =Scenario_C -> Low investment/regionalisation | BG68: Now | BH68: =Scenario_A -> BAU/continuing trends | BL68: =Scenario_B -> High investment/globalisation | BP68: =Scenario_C -> Low investment/regionalisation | BU68: Now | BV68: =Scenario_A -> BAU/continuing trends | BZ68: =Scenario_B -> High investment/globalisation | CD68: =Scenario_C -> Low investment/regionalisation | CI68: Now | CJ68: =Scenario_A -> BAU/continuing trends | CN68: =Scenario_B -> High investment/globalisation | CR68: =Scenario_C -> Low investment/regionalisation | CW68: Now | CX68: =Scenario_A -> BAU/continuing trends | DB68: =Scenario_B -> High investment/globalisation | DF68: =Scenario_C -> Low investment/regionalisation
A69: Supply Regions | B69: 2015 | C69: 2020 | D69: 2030 | E69: 2040 | F69: 2050 | G69: 2020 | H69: 2030 | I69: 2040 | J69: 2050 | K69: 2020 | L69: 2030 | M69: 2040 | N69: 2050 | P69: 2015 | Q69: 2020 | R69: 2030 | S69: 2040 | T69: 2050 | U69: 2020 | V69: 2030 | W69: 2040 | X69: 2050 | Y69: 2020 | Z69: 2030 | AA69: 2040 | AB69: 2050 | AD69: 2015 | AE69: 2020 | AF69: 2030 | AG69: 2040 | AH69: 2050 | AI69: 2020 | AJ69: 2030 | AK69: 2040 | AL69: 2050 | AM69: 2020 | AN69: 2030 | AO69: 2040 | AP69: 2050 | AS69: 2015 | AT69: 2020 | AU69: 2030 | AV69: 2040 | AW69: 2050 | AX69: 2020 | AY69: 2030 | AZ69: 2040 | BA69: 2050 | BB69: 2020 | BC69: 2030 | BD69: 2040 | BE69: 2050 | BG69: 2015 | BH69: 2020 | BI69: 2030 | BJ69: 2040 | BK69: 2050 | BL69: 2020 | BM69: 2030 | BN69: 2040 | BO69: 2050 | BP69: 2020 | BQ69: 2030 | BR69: 2040 | BS69: 2050 | BU69: 2015 | BV69: 2020 | BW69: 2030 | BX69: 2040 | BY69: 2050 | BZ69: 2020 | CA69: 2030 | CB69: 2040 | CC69: 2050 | CD69: 2020 | CE69: 2030 | CF69: 2040 | CG69: 2050 | CI69: 2015 | CJ69: 2020 | CK69: 2030 | CL69: 2040 | CM69: 2050 | CN69: 2020 | CO69: 2030 | CP69: 2040 | CQ69: 2050 | CR69: 2020 | CS69: 2030 | CT69: 2040 | CU69: 2050 | CW69: 2015 | CX69: 2020 | CY69: 2030 | CZ69: 2040 | DA69: 2050 | DB69: 2020 | DC69: 2030 | DD69: 2040 | DE69: 2050 | DF69: 2020 | DG69: 2030 | DH69: 2040 | DI69: 2050
A70: US | B70: L | C70: L | D70: L | E70: L | F70: L | G70: L | H70: L | I70: L | J70: L | K70: L | L70: L | M70: L | N70: L | P70: L | Q70: L | R70: L | S70: L | T70: L | U70: L | V70: L | W70: L | X70: L | Y70: L | Z70: L | AA70: L | AB70: L | AD70: L | AE70: L | AF70: L | AG70: L | AH70: L | AI70: L | AJ70: L | AK70: L | AL70: L | AM70: L | AN70: L | AO70: L | AP70: L | AR70: Canada | AS70: M | AT70: M | AU70: M | AV70: M | AW70: M | AX70: L | AY70: L | AZ70: L | BA70: L | BB70: H | BC70: H | BD70: H | BE70: H | BG70: L | BH70: L | BI70: L | BJ70: L | BK70: L | BL70: L | BM70: L | BN70: L | BO70: L | BP70: M | BQ70: M | BR70: M | BS70: M | BU70: L | BV70: L | BW70: L | BX70: L | BY70: L | BZ70: L | CA70: L | CB70: L | CC70: L | CD70: M | CE70: M | CF70: M | CG70: M | CI70: M | CJ70: L | CK70: L | CL70: L | CM70: L | CN70: L | CO70: L | CP70: L | CQ70: L | CR70: L | CS70: L | CT70: L | CU70: L | CW70: M | CX70: L | CY70: L | CZ70: L | DA70: L | DB70: L | DC70: L | DD70: L | DE70: L | DF70: L | DG70: L | DH70: L | DI70: L
A71: Canada | B71: L | C71: L | D71: L | E71: L | F71: L | G71: L | H71: L | I71: L | J71: L | K71: L | L71: L | M71: L | N71: L | P71: L | Q71: L | R71: L | S71: L | T71: L | U71: L | V71: L | W71: L | X71: L | Y71: L | Z71: L | AA71: L | AB71: L | AD71: L | AE71: L | AF71: L | AG71: L | AH71: L | AI71: L | AJ71: L | AK71: L | AL71: L | AM71: L | AN71: L | AO71: L | AP71: L | AR71: USA | AS71: M | AT71: M | AU71: M | AV71: M | AW71: M | AX71: L | AY71: L | AZ71: L | BA71: L | BB71: H | BC71: H | BD71: H | BE71: H | BG71: L | BH71: L | BI71: L | BJ71: L | BK71: L | BL71: L | BM71: L | BN71: L | BO71: L | BP71: M | BQ71: M | BR71: M | BS71: M | BU71: L | BV71: L | BW71: L | BX71: L | BY71: L | BZ71: L | CA71: L | CB71: L | CC71: L | CD71: M | CE71: M | CF71: M | CG71: M | CI71: M | CJ71: L | CK71: L | CL71: L | CM71: L | CN71: L | CO71: L | CP71: L | CQ71: L | CR71: L | CS71: L | CT71: L | CU71: L | CW71: M | CX71: L | CY71: L | CZ71: L | DA71: L | DB71: L | DC71: L | DD71: L | DE71: L | DF71: L | DG71: L | DH71: L | DI71: L
A72: Mexico | B72: L | C72: L | D72: L | E72: L | F72: L | G72: L | H72: L | I72: L | J72: L | K72: H | L72: H | M72: H | N72: H | P72: L | Q72: L | R72: L | S72: L | T72: L | U72: L | V72: L | W72: L | X72: L | Y72: H | Z72: H | AA72: H | AB72: H | AD72: L | AE72: L | AF72: L | AG72: L | AH72: L | AI72: L | AJ72: L | AK72: L | AL72: L | AM72: M | AN72: M | AO72: M | AP72: M | AR72: Central America | AS72: M | AT72: M | AU72: M | AV72: M | AW72: M | AX72: L | AY72: L | AZ72: L | BA72: L | BB72: H | BC72: H | BD72: H | BE72: H | BG72: L | BH72: L | BI72: L | BJ72: L | BK72: L | BL72: L | BM72: L | BN72: L | BO72: L | BP72: M | BQ72: M | BR72: M | BS72: M | BU72: L | BV72: L | BW72: L | BX72: L | BY72: L | BZ72: L | CA72: L | CB72: L | CC72: L | CD72: M | CE72: M | CF72: M | CG72: M | CI72: VH | CJ72: H | CK72: M | CL72: M | CM72: M | CN72: H | CO72: M | CP72: M | CQ72: L | CR72: H | CS72: H | CT72: M | CU72: M | CW72: VH | CX72: H | CY72: M | CZ72: M | DA72: M | DB72: H | DC72: M | DD72: M | DE72: L | DF72: H | DG72: H | DH72: M | DI72: M
A73: Brazil | B73: L | C73: L | D73: L | E73: L | F73: L | G73: L | H73: L | I73: L | J73: L | K73: H | L73: H | M73: H | N73: H | P73: L | Q73: L | R73: L | S73: L | T73: L | U73: L | V73: L | W73: L | X73: L | Y73: H | Z73: H | AA73: H | AB73: H | AD73: L | AE73: L | AF73: L | AG73: L | AH73: L | AI73: L | AJ73: L | AK73: L | AL73: L | AM73: M | AN73: M | AO73: M | AP73: M | AR73: South America | AS73: M | AT73: M | AU73: M | AV73: M | AW73: M | AX73: L | AY73: L | AZ73: L | BA73: L | BB73: H | BC73: H | BD73: H | BE73: H | BG73: L | BH73: L | BI73: L | BJ73: M | BK73: M | BL73: L | BM73: L | BN73: L | BO73: L | BP73: L | BQ73: M | BR73: M | BS73: M | BU73: L | BV73: L | BW73: L | BX73: M | BY73: M | BZ73: L | CA73: L | CB73: L | CC73: L | CD73: L | CE73: M | CF73: M | CG73: M | CI73: VH | CJ73: H | CK73: M | CL73: M | CM73: M | CN73: H | CO73: M | CP73: M | CQ73: L | CR73: H | CS73: H | CT73: M | CU73: M | CW73: VH | CX73: H | CY73: M | CZ73: M | DA73: M | DB73: H | DC73: M | DD73: M | DE73: L | DF73: H | DG73: H | DH73: M | DI73: M
A74: Argentina | B74: L | C74: L | D74: L | E74: L | F74: L | G74: L | H74: L | I74: L | J74: L | K74: H | L74: H | M74: H | N74: H | P74: L | Q74: L | R74: L | S74: L | T74: L | U74: L | V74: L | W74: L | X74: L | Y74: H | Z74: H | AA74: H | AB74: H | AD74: L | AE74: L | AF74: L | AG74: L | AH74: L | AI74: L | AJ74: L | AK74: L | AL74: L | AM74: M | AN74: M | AO74: M | AP74: M | AR74: North Africa | AS74: H | AT74: H | AU74: H | AV74: H | AW74: H | AX74: M | AY74: M | AZ74: M | BA74: M | BB74: VH | BC74: VH | BD74: VH | BE74: VH | BG74: H | BH74: H | BI74: H | BJ74: H | BK74: H | BL74: M | BM74: M | BN74: M | BO74: M | BP74: H | BQ74: H | BR74: H | BS74: H | BU74: H | BV74: H | BW74: H | BX74: H | BY74: H | BZ74: M | CA74: M | CB74: M | CC74: M | CD74: H | CE74: H | CF74: H | CG74: H | CI74: NA | CJ74: NA | CK74: VH | CL74: H | CM74: H | CN74: NA | CO74: VH | CP74: H | CQ74: M | CR74: NA | CS74: VH | CT74: H | CU74: H | CW74: NA | CX74: NA | CY74: VH | CZ74: H | DA74: H | DB74: NA | DC74: VH | DD74: H | DE74: M | DF74: NA | DG74: VH | DH74: H | DI74: H
A75: Other South and Central America | B75: L | C75: L | D75: L | E75: L | F75: L | G75: L | H75: L | I75: L | J75: L | K75: H | L75: H | M75: H | N75: H | P75: L | Q75: L | R75: L | S75: L | T75: L | U75: L | V75: L | W75: L | X75: L | Y75: H | Z75: H | AA75: H | AB75: H | AD75: L | AE75: L | AF75: L | AG75: L | AH75: L | AI75: L | AJ75: L | AK75: L | AL75: L | AM75: M | AN75: M | AO75: M | AP75: M | AR75: West Africa | AS75: H | AT75: H | AU75: H | AV75: H | AW75: H | AX75: M | AY75: M | AZ75: M | BA75: M | BB75: VH | BC75: VH | BD75: VH | BE75: VH | BG75: H | BH75: H | BI75: H | BJ75: H | BK75: H | BL75: M | BM75: M | BN75: M | BO75: M | BP75: H | BQ75: H | BR75: H | BS75: H | BU75: H | BV75: H | BW75: H | BX75: H | BY75: H | BZ75: M | CA75: M | CB75: M | CC75: M | CD75: H | CE75: H | CF75: H | CG75: H | CI75: NA | CJ75: VH | CK75: H | CL75: H | CM75: M | CN75: VH | CO75: H | CP75: M | CQ75: M | CR75: VH | CS75: VH | CT75: H | CU75: M | CW75: NA | CX75: VH | CY75: H | CZ75: H | DA75: M | DB75: VH | DC75: H | DD75: M | DE75: M | DF75: VH | DG75: VH | DH75: H | DI75: M
A76: Middle East | B76: H | C76: H | D76: H | E76: H | F76: H | G76: M | H76: M | I76: M | J76: M | K76: H | L76: H | M76: H | N76: H | P76: H | Q76: H | R76: H | S76: H | T76: H | U76: M | V76: M | W76: M | X76: M | Y76: H | Z76: H | AA76: H | AB76: H | AD76: H | AE76: H | AF76: H | AG76: H | AH76: H | AI76: M | AJ76: M | AK76: M | AL76: M | AM76: H | AN76: H | AO76: H | AP76: H | AR76: East Africa | AS76: H | AT76: H | AU76: H | AV76: H | AW76: H | AX76: M | AY76: M | AZ76: M | BA76: M | BB76: VH | BC76: VH | BD76: VH | BE76: VH | BG76: H | BH76: H | BI76: H | BJ76: H | BK76: H | BL76: M | BM76: M | BN76: M | BO76: M | BP76: H | BQ76: H | BR76: H | BS76: H | BU76: H | BV76: H | BW76: H | BX76: H | BY76: H | BZ76: M | CA76: M | CB76: M | CC76: M | CD76: H | CE76: H | CF76: H | CG76: H | CI76: NA | CJ76: VH | CK76: H | CL76: H | CM76: M | CN76: VH | CO76: H | CP76: M | CQ76: M | CR76: VH | CS76: VH | CT76: H | CU76: M | CW76: NA | CX76: VH | CY76: H | CZ76: H | DA76: M | DB76: VH | DC76: H | DD76: M | DE76: M | DF76: VH | DG76: VH | DH76: H | DI76: M
A77: Northern Africa | B77: H | C77: H | D77: H | E77: H | F77: H | G77: M | H77: M | I77: M | J77: M | K77: H | L77: H | M77: H | N77: H | P77: H | Q77: H | R77: H | S77: H | T77: H | U77: M | V77: M | W77: M | X77: M | Y77: H | Z77: H | AA77: H | AB77: H | AD77: H | AE77: H | AF77: H | AG77: H | AH77: H | AI77: M | AJ77: M | AK77: M | AL77: M | AM77: H | AN77: H | AO77: H | AP77: H | AR77: South Africa | AS77: H | AT77: H | AU77: H | AV77: H | AW77: H | AX77: M | AY77: M | AZ77: M | BA77: M | BB77: VH | BC77: VH | BD77: VH | BE77: VH | BG77: H | BH77: M | BI77: M | BJ77: M | BK77: M | BL77: L | BM77: L | BN77: L | BO77: L | BP77: H | BQ77: H | BR77: H | BS77: H | BU77: H | BV77: M | BW77: M | BX77: M | BY77: M | BZ77: L | CA77: L | CB77: L | CC77: L | CD77: H | CE77: H | CF77: H | CG77: H | CI77: NA | CJ77: VH | CK77: H | CL77: H | CM77: M | CN77: VH | CO77: H | CP77: M | CQ77: M | CR77: VH | CS77: VH | CT77: H | CU77: M | CW77: NA | CX77: VH | CY77: H | CZ77: H | DA77: M | DB77: VH | DC77: H | DD77: M | DE77: M | DF77: VH | DG77: VH | DH77: H | DI77: M
A78: Sub-Saharan Africa | B78: H | C78: H | D78: H | E78: H | F78: H | G78: M | H78: M | I78: M | J78: M | K78: H | L78: H | M78: H | N78: H | P78: H | Q78: H | R78: H | S78: H | T78: H | U78: M | V78: M | W78: M | X78: M | Y78: H | Z78: H | AA78: H | AB78: H | AD78: H | AE78: H | AF78: H | AG78: H | AH78: H | AI78: M | AJ78: M | AK78: M | AL78: M | AM78: H | AN78: H | AO78: H | AP78: H | AR78: Western Europe | AS78: M | AT78: M | AU78: M | AV78: M | AW78: M | AX78: L | AY78: L | AZ78: L | BA78: L | BB78: H | BC78: H | BD78: H | BE78: H | BG78: L | BH78: L | BI78: L | BJ78: L | BK78: L | BL78: L | BM78: L | BN78: L | BO78: L | BP78: L | BQ78: L | BR78: L | BS78: L | BU78: L | BV78: L | BW78: L | BX78: L | BY78: L | BZ78: L | CA78: L | CB78: L | CC78: L | CD78: L | CE78: L | CF78: L | CG78: L | CI78: L | CJ78: L | CK78: L | CL78: L | CM78: L | CN78: L | CO78: L | CP78: L | CQ78: L | CR78: L | CS78: L | CT78: L | CU78: L | CW78: L | CX78: L | CY78: L | CZ78: L | DA78: L | DB78: L | DC78: L | DD78: L | DE78: L | DF78: L | DG78: L | DH78: L | DI78: L
A79: EU | B79: L | C79: L | D79: L | E79: L | F79: L | G79: L | H79: L | I79: L | J79: L | K79: L | L79: L | M79: L | N79: L | P79: L | Q79: L | R79: L | S79: L | T79: L | U79: L | V79: L | W79: L | X79: L | Y79: L | Z79: L | AA79: L | AB79: L | AD79: L | AE79: L | AF79: L | AG79: L | AH79: L | AI79: L | AJ79: L | AK79: L | AL79: L | AM79: L | AN79: L | AO79: L | AP79: L | AR79: East Europe | AS79: M | AT79: M | AU79: M | AV79: M | AW79: M | AX79: L | AY79: L | AZ79: L | BA79: L | BB79: H | BC79: H | BD79: H | BE79: H | BG79: L | BH79: L | BI79: L | BJ79: L | BK79: L | BL79: L | BM79: L | BN79: L | BO79: L | BP79: L | BQ79: L | BR79: L | BS79: L | BU79: L | BV79: L | BW79: L | BX79: L | BY79: L | BZ79: L | CA79: L | CB79: L | CC79: L | CD79: L | CE79: L | CF79: L | CG79: L | CI79: H | CJ79: H | CK79: M | CL79: M | CM79: M | CN79: H | CO79: M | CP79: M | CQ79: L | CR79: H | CS79: H | CT79: M | CU79: M | CW79: H | CX79: H | CY79: M | CZ79: M | DA79: M | DB79: H | DC79: M | DD79: M | DE79: L | DF79: H | DG79: H | DH79: M | DI79: M
A80: Other Europe and Eurasia | B80: M | C80: M | D80: M | E80: M | F80: M | G80: M | H80: M | I80: M | J80: M | K80: M | L80: M | M80: M | N80: M | P80: M | Q80: M | R80: M | S80: M | T80: M | U80: M | V80: M | W80: M | X80: M | Y80: M | Z80: M | AA80: M | AB80: M | AD80: M | AE80: M | AF80: M | AG80: M | AH80: M | AI80: M | AJ80: M | AK80: M | AL80: M | AM80: M | AN80: M | AO80: M | AP80: M | AR80: Former USSR | AS80: H | AT80: H | AU80: H | AV80: H | AW80: H | AX80: M | AY80: M | AZ80: M | BA80: M | BB80: VH | BC80: VH | BD80: VH | BE80: VH | BG80: H | BH80: M | BI80: M | BJ80: M | BK80: M | BL80: M | BM80: L | BN80: L | BO80: L | BP80: H | BQ80: H | BR80: H | BS80: H | BU80: H | BV80: M | BW80: M | BX80: M | BY80: M | BZ80: M | CA80: L | CB80: L | CC80: L | CD80: H | CE80: H | CF80: H | CG80: H | CI80: H | CJ80: H | CK80: M | CL80: M | CM80: M | CN80: H | CO80: M | CP80: M | CQ80: L | CR80: H | CS80: H | CT80: M | CU80: M | CW80: H | CX80: H | CY80: M | CZ80: M | DA80: M | DB80: H | DC80: M | DD80: M | DE80: L | DF80: H | DG80: H | DH80: M | DI80: M
A81: Russia | B81: M | C81: M | D81: M | E81: M | F81: M | G81: M | H81: M | I81: M | J81: M | K81: H | L81: H | M81: H | N81: H | P81: M | Q81: M | R81: M | S81: M | T81: M | U81: M | V81: M | W81: M | X81: M | Y81: H | Z81: H | AA81: H | AB81: H | AD81: H | AE81: M | AF81: M | AG81: M | AH81: M | AI81: M | AJ81: M | AK81: M | AL81: M | AM81: H | AN81: H | AO81: H | AP81: H | AR81: Middle East | AS81: H | AT81: H | AU81: H | AV81: H | AW81: H | AX81: M | AY81: M | AZ81: M | BA81: M | BB81: H | BC81: H | BD81: H | BE81: H | BG81: H | BH81: H | BI81: H | BJ81: H | BK81: H | BL81: M | BM81: M | BN81: M | BO81: M | BP81: H | BQ81: H | BR81: H | BS81: H | BU81: H | BV81: H | BW81: H | BX81: H | BY81: H | BZ81: M | CA81: M | CB81: M | CC81: M | CD81: H | CE81: H | CF81: H | CG81: H | CI81: NA | CJ81: NA | CK81: NA | CL81: VH | CM81: VH | CN81: NA | CO81: VH | CP81: H | CQ81: M | CR81: NA | CS81: NA | CT81: VH | CU81: VH | CW81: NA | CX81: NA | CY81: NA | CZ81: VH | DA81: VH | DB81: NA | DC81: VH | DD81: H | DE81: M | DF81: NA | DG81: NA | DH81: VH | DI81: VH
A82: India | B82: L | C82: L | D82: L | E82: L | F82: L | G82: L | H82: L | I82: L | J82: L | K82: H | L82: H | M82: H | N82: H | P82: L | Q82: L | R82: L | S82: L | T82: L | U82: L | V82: L | W82: L | X82: L | Y82: H | Z82: H | AA82: H | AB82: H | AD82: L | AE82: L | AF82: L | AG82: L | AH82: L | AI82: L | AJ82: L | AK82: L | AL82: L | AM82: M | AN82: M | AO82: M | AP82: M | AR82: South Asia | AS82: M | AT82: M | AU82: M | AV82: M | AW82: M | AX82: L | AY82: L | AZ82: L | BA82: L | BB82: H | BC82: H | BD82: H | BE82: H | BG82: L | BH82: L | BI82: L | BJ82: L | BK82: L | BL82: L | BM82: L | BN82: L | BO82: L | BP82: M | BQ82: M | BR82: M | BS82: M | BU82: L | BV82: L | BW82: L | BX82: L | BY82: L | BZ82: L | CA82: L | CB82: L | CC82: L | CD82: M | CE82: M | CF82: M | CG82: M | CI82: H | CJ82: H | CK82: M | CL82: M | CM82: M | CN82: H | CO82: M | CP82: M | CQ82: L | CR82: H | CS82: H | CT82: M | CU82: M | CW82: H | CX82: H | CY82: M | CZ82: M | DA82: M | DB82: H | DC82: M | DD82: M | DE82: L | DF82: H | DG82: H | DH82: M | DI82: M
A83: China | B83: L | C83: L | D83: L | E83: L | F83: L | G83: L | H83: L | I83: L | J83: L | K83: H | L83: H | M83: H | N83: H | P83: L | Q83: L | R83: L | S83: L | T83: L | U83: L | V83: L | W83: L | X83: L | Y83: H | Z83: H | AA83: H | AB83: H | AD83: L | AE83: L | AF83: L | AG83: L | AH83: L | AI83: L | AJ83: L | AK83: L | AL83: L | AM83: M | AN83: M | AO83: M | AP83: M | AR83: East Asia | AS83: L | AT83: L | AU83: L | AV83: L | AW83: L | AX83: L | AY83: L | AZ83: L | BA83: L | BB83: M | BC83: M | BD83: M | BE83: M | BG83: L | BH83: L | BI83: L | BJ83: L | BK83: L | BL83: L | BM83: L | BN83: L | BO83: L | BP83: M | BQ83: M | BR83: M | BS83: M | BU83: L | BV83: L | BW83: L | BX83: L | BY83: L | BZ83: L | CA83: L | CB83: L | CC83: L | CD83: M | CE83: M | CF83: M | CG83: M | CI83: H | CJ83: H | CK83: M | CL83: M | CM83: M | CN83: H | CO83: M | CP83: M | CQ83: L | CR83: H | CS83: H | CT83: M | CU83: M | CW83: H | CX83: H | CY83: M | CZ83: M | DA83: M | DB83: H | DC83: M | DD83: M | DE83: L | DF83: H | DG83: H | DH83: M | DI83: M
A84: Indonesia and Malaysia | B84: L | C84: L | D84: L | E84: L | F84: L | G84: L | H84: L | I84: L | J84: L | K84: H | L84: H | M84: H | N84: H | P84: L | Q84: L | R84: L | S84: L | T84: L | U84: L | V84: L | W84: L | X84: L | Y84: H | Z84: H | AA84: H | AB84: H | AD84: L | AE84: L | AF84: L | AG84: L | AH84: L | AI84: L | AJ84: L | AK84: L | AL84: L | AM84: M | AN84: M | AO84: M | AP84: M | AR84: South East Asia | AS84: M | AT84: M | AU84: M | AV84: M | AW84: M | AX84: L | AY84: L | AZ84: L | BA84: L | BB84: H | BC84: H | BD84: H | BE84: H | BG84: L | BH84: L | BI84: L | BJ84: L | BK84: L | BL84: L | BM84: L | BN84: L | BO84: L | BP84: M | BQ84: M | BR84: M | BS84: M | BU84: L | BV84: L | BW84: L | BX84: L | BY84: L | BZ84: L | CA84: L | CB84: L | CC84: L | CD84: M | CE84: M | CF84: M | CG84: M | CI84: H | CJ84: H | CK84: M | CL84: M | CM84: M | CN84: H | CO84: M | CP84: M | CQ84: L | CR84: H | CS84: H | CT84: M | CU84: M | CW84: H | CX84: H | CY84: M | CZ84: M | DA84: M | DB84: H | DC84: M | DD84: M | DE84: L | DF84: H | DG84: H | DH84: M | DI84: M
A85: Other Asia | B85: L | C85: L | D85: L | E85: L | F85: L | G85: L | H85: L | I85: L | J85: L | K85: H | L85: H | M85: H | N85: H | P85: L | Q85: L | R85: L | S85: L | T85: L | U85: L | V85: L | W85: L | X85: L | Y85: H | Z85: H | AA85: H | AB85: H | AD85: L | AE85: L | AF85: L | AG85: L | AH85: L | AI85: L | AJ85: L | AK85: L | AL85: L | AM85: M | AN85: M | AO85: M | AP85: M | AR85: Oceania | AS85: M | AT85: M | AU85: M | AV85: M | AW85: M | AX85: L | AY85: L | AZ85: L | BA85: L | BB85: H | BC85: H | BD85: H | BE85: H | BG85: L | BH85: L | BI85: L | BJ85: L | BK85: L | BL85: L | BM85: L | BN85: L | BO85: L | BP85: M | BQ85: M | BR85: M | BS85: M | BU85: L | BV85: L | BW85: L | BX85: L | BY85: L | BZ85: L | CA85: L | CB85: L | CC85: L | CD85: M | CE85: M | CF85: M | CG85: M | CI85: M | CJ85: M | CK85: M | CL85: M | CM85: M | CN85: M | CO85: M | CP85: M | CQ85: M | CR85: M | CS85: M | CT85: M | CU85: M | CW85: M | CX85: M | CY85: M | CZ85: M | DA85: M | DB85: M | DC85: M | DD85: M | DE85: M | DF85: M | DG85: M | DH85: M | DI85: M
A86: Japan | B86: L | C86: L | D86: L | E86: L | F86: L | G86: L | H86: L | I86: L | J86: L | K86: L | L86: L | M86: L | N86: L | P86: L | Q86: L | R86: L | S86: L | T86: L | U86: L | V86: L | W86: L | X86: L | Y86: L | Z86: L | AA86: L | AB86: L | AD86: L | AE86: L | AF86: L | AG86: L | AH86: L | AI86: L | AJ86: L | AK86: L | AL86: L | AM86: L | AN86: L | AO86: L | AP86: L | AR86: Japan | AS86: M | AT86: M | AU86: M | AV86: M | AW86: M | AX86: L | AY86: L | AZ86: L | BA86: L | BB86: H | BC86: H | BD86: H | BE86: H | BG86: L | BH86: L | BI86: L | BJ86: L | BK86: L | BL86: L | BM86: L | BN86: L | BO86: L | BP86: M | BQ86: M | BR86: M | BS86: M | BU86: L | BV86: L | BW86: L | BX86: L | BY86: L | BZ86: L | CA86: L | CB86: L | CC86: L | CD86: M | CE86: M | CF86: M | CG86: M | CI86: M | CJ86: M | CK86: M | CL86: M | CM86: M | CN86: M | CO86: M | CP86: M | CQ86: M | CR86: M | CS86: M | CT86: M | CU86: M | CW86: M | CX86: M | CY86: M | CZ86: M | DA86: M | DB86: M | DC86: M | DD86: M | DE86: M | DF86: M | DG86: M | DH86: M | DI86: M
